Workbook

Sheet Start
A1: START | F1: Excel Toolkit for Mitigation Analysis for Low-Carbon Development Planning | R1: XLMT-FOLU v17.1
D11: Disclaimer
D12: Data used has been obtained from reliable sources. The Ministry of Social Security, National Solidarity, and Environment and Sustainable Development (Environment and Sustainable Development Division) assumes no responsibility for errors and omissions in the data provided. Users are, however, kindly asked to report any errors or deficiencies in this product to the Ministry. The choices of calculation made in this tool are derived from TNC Report (2016).
D14: ©2017 Government of Mauritius and United Nations Environment Programme
D15: All rights reserved. No part of this Guideline and/or Toolkit may be produced, stored in a retrieval system or transmitted, in any form or by any means, electronic, mechanical, photocopying, recording or otherwise without prior permission from the Ministry of Social Security, National Solidarity, and Environment and Sustainable Development (Environment and Sustainable Development Division) and the United Nations Environment Programme. Results based on the use of the Toolkit must be duly acknowledged and referenced; the copyright holder’s endorsement of Users' views, products or services shall not be implied in any way.

Sheet 1. Sector
A1: Sector | C1: Excel Toolkit for Mitigation Analysis for Low-Carbon Development Planning | J1: XLMT-FOLU v17.1
D4: STAKEHOLDER USER GROUP | F4: Contact Details of Registered Users:
F5: Name | G5: Email | H5: Phone Number | I5: Address
C6: Chair: | D6: Forestry Service | F6: Mr Vishnu Tezoo | G6: vtezoo@govmu.org | H6: 670 7254; 670 7255 | I6: Botanical Garden Street, Curepipe
C7: Members: | D7: Forestry Service | F7: Mr Zayd Jhumka | G7: zayd.jhumka@gmail.com | H7: 671 7254; 670 7255 | I7: Botanical Garden Street, Curepipe
D8: Forestry Service | F8: Mr Dianendrarao Rama | G8: soumenrama@gmail.com | H8: 672 7254; 670 7255 | I8: Botanical Garden Street, Curepipe

Sheet 2. Description
A1: Description | E1: Excel Toolkit for Mitigation Analysis for Low-Carbon Development Planning | P1: XLMT-FOLU v17.1
C3: Mitigation actions modelled to reduce GHG emissions in FOLU sector (source: TNC, 2016)
B4: Scenarios | F4: TNC Assumptions | J4: Expected GHG Removals (GgCO2e)
B5: BAU | C5: Business-As-Usual | F5: # | J5: BAU Net GHG Removals: 2020: 409.0; 2030: 412.0; 2040: 413.7; 2050: 415.7;
B6: SC1 | C6: Tree Planting | F6: In the Tree Planting scenario, the number of trees planted outside forest areas and their distributions in terms of native and exotic trees are captured in Table 4.13 in TNC, 2016. @ | J6: Relative to BAU, emissions reductions of: 1.90 GgCO2e in 2020; 2.20 GgCO2e in 2030; 2.44 GgCO2e in 2040; 2.68 GgCO2e in 2050;
B7: SC2 | C7: Afforestation (5000 ha) | F7: Afforesting some 5,000 ha of abandoned land for GHG sinks between 2021 and 2050. It is assumed that all of the 5 000 ha of land is available in the agro-ecological zone of Dry Lowland (DLL). | J7: Relative to BAU, emissions reductions of: 1.90 GgCO2e in 2020; 20.48 GgCO2e in 2030; 46.14 GgCO2e in 2040; 75.8 GgCO2e in 2050;
B8: SC3 | C8: Afforestation 1000 ha) | F8: An Afforestation scenario based on only 1 000 ha of abandoned sugar cane land because of competing land uses. | J8: Relative to BAU, emissions reductions of: 1.90 GgCO2e in 2020; 5.81 GgCO2e in 2030; 10.94 GgCO2e in 2040; 17.1 GgCO2e in 2050;
B9: # | C9: BAU assumes that the carbon stock is maintained at its 2014 level based on the observation that the stock of trees has remained unchanged between 2006 and 2014 with the exception of an increase in the area of mangrove forests due to ongoing baseline initiatives (see Table 4.12, TNC(2016)). The loss of carbon stock due to fuelwood removal decreases by ~7.4% and ~6.6% annually for eucalyptus and pine wood >20 years, respectively. The disturbed area has been kept constant at the average between 2006 and 2014 (i.e. at 100 ha per annum).
B10: @ | C10: Note: Trees planted in clear-felled forest areas and gaps are merely replacing trees (already accounted in BAU scenario). Hence, these trees are not included in the policy scenario in order to avoid double accounting

Sheet 3. Query
A1: Query | D1: Excel Toolkit for Mitigation Analysis for Low-Carbon Development Planning | O1: XLMT-FOLU v17.1
B3: Users can analyze their results after inputting their parameters (if required) and new assumptions. The number of cases of User-defined scenarios that can be made, in addition to the TNC scenarios (labelled TNC), has been limited to two (labelled UD1 and UD2) for practical reasons. Users can visualize the impact of their assumptions and/or parameter changes made on a number of variables relevant to individual sectors including the Total CO2e emission. Full list of the variables relevant to individual sectors appear in in the individual user manuals. Results can be compared graphically or through tabular representations. Radar dashboards are provided to assess the extent of departure from the targeted annual values estimated by the original TNC studies. The Toolkit has a pdf reporting system, which provides details of the project and the results of the investigations.

Sheet 4. Data
A1: Data | C1: Excel Toolkit for Mitigation Analysis for Low-Carbon Development Planning | S1: XLMT-FOLU v17.1
B3: BAU | C3: Dry Lowland Forest, ha | I3: Moist Forest, ha | O3: Wet Upland Forest, ha | U3: Mangrove Forest, ha | V3: Total Forests | W3: CROP LAND, ha | AB3: CROPLAND | AC3: LAND
C4: Araucaria | D4: Casuarina | E4: Eucalyptus | F4: Tabebuia | G4: Scrub Land | I4: Araucaria | J4: Casuarina | K4: Eucalyptus | L4: Natural | M4: Tabebuia | O4: Euc Red | P4: Cryptomeria | Q4: Pine<20y | R4: Pine>20y | S4: Araucaria | T4: Natural | U4: Mangrove | W4: Fruits | X4: Mixed | Y4: Orchard | Z4: Sugarcane | AA4: Tea | AB4: ha | AC4: ha | AE4: Chk forest | AG4: Ckt total
B5: 2006 | C5: 408 | D5: 116 | E5: 2389 | F5: 710 | G5: 12276 | I5: 176 | J5: 110 | K5: 889 | L5: 5085 | M5: 139 | O5: 546 | P5: 967 | Q5: 2684 | R5: 5478 | S5: 62 | T5: 15146 | U5: 61 | V5: =SUM(C5:U5) -> 47242 | W5: 686 | X5: 6781 | Y5: 300 | Z5: 60000 | AA5: 688 | AB5: =SUM(W5:AA5) -> 68455 | AC5: =V5+AB5 -> 115697 | AE5: 47242 | AF5: =V5-AE5 -> 0 | AG5: 115697 | AH5: =AC5-AG5 -> 0
B6: 2007 | C6: 384 | D6: 112 | E6: 2410 | F6: 710 | G6: 12276 | I6: 176 | J6: 110 | K6: 889 | L6: 5085 | M6: 139 | O6: 546 | P6: 967 | Q6: 2734 | R6: 5461 | S6: 62 | T6: 15113 | U6: 75 | V6: =SUM(C6:U6) -> 47249 | W6: 668 | X6: 6336 | Y6: 300 | Z6: 68520 | AA6: 688 | AB6: =SUM(W6:AA6) -> 76512 | AC6: =V6+AB6 -> 123761 | AE6: 47249 | AF6: =V6-AE6 -> 0 | AG6: 123761 | AH6: =AC6-AG6 -> 0
B7: 2008 | C7: 384 | D7: 112 | E7: 2413 | F7: 710 | G7: 12254 | I7: 176 | J7: 110 | K7: 889 | L7: 5085 | M7: 139 | O7: 550 | P7: 967 | Q7: 2533 | R7: 5632 | S7: 62 | T7: 15143 | U7: 84 | V7: 47243 | W7: 730 | X7: 5810 | Y7: 300 | Z7: 65440 | AA7: 701 | AB7: 72981 | AC7: 120224 | AE7: 47243 | AF7: 0 | AG7: 120224 | AH7: 0
B8: 2009 | C8: 384 | D8: 112 | E8: 2413 | F8: 710 | G8: 12254 | I8: 176 | J8: 110 | K8: 889 | L8: 5085 | M8: 139 | O8: 550 | P8: 967 | Q8: 2476 | R8: 5721 | S8: 62 | T8: 15111 | U8: 98 | V8: 47257 | W8: 765 | X8: 6543 | Y8: 300 | Z8: 65850 | AA8: 713 | AB8: 74171 | AC8: 121428 | AE8: 47257 | AF8: 0 | AG8: 121428 | AH8: 0
B9: 2010 | C9: 382 | D9: 112 | E9: 2433 | F9: 710 | G9: 12242 | I9: 174 | J9: 110 | K9: 889 | L9: 5079 | M9: 139 | O9: 565 | P9: 965 | Q9: 2382 | R9: 5817 | S9: 60 | T9: 15100 | U9: 112 | V9: 47271 | W9: 790 | X9: 7009 | Y9: 300 | Z9: 64130 | AA9: 698 | AB9: 72927 | AC9: 120198 | AE9: 47271 | AF9: 0 | AG9: 120198 | AH9: 0
B10: 2011 | C10: 382 | D10: 112 | E10: 2437 | F10: 710 | G10: 12242 | I10: 174 | J10: 110 | K10: 889 | L10: 5079 | M10: 139 | O10: 565 | P10: 965 | Q10: 2268 | R10: 5908 | S10: 60 | T10: 15100 | U10: 127 | V10: 47267 | W10: 874 | X10: 6974 | Y10: 300 | Z10: 61730 | AA10: 651 | AB10: 70529 | AC10: 117796 | AE10: 47267 | AF10: 0 | AG10: 117796 | AH10: 0
B11: 2012 | C11: 382 | D11: 112 | E11: 2437 | F11: 710 | G11: 12242 | I11: 174 | J11: 110 | K11: 889 | L11: 5079 | M11: 139 | O11: 565 | P11: 965 | Q11: 2203 | R11: 5976 | S11: 60 | T11: 15100 | U11: 140 | V11: 47283 | W11: 1003 | X11: 7628 | Y11: 305 | Z11: 60000 | AA11: 651 | AB11: 69587 | AC11: 116870 | AE11: 47283 | AF11: 0 | AG11: 116870 | AH11: 0
B12: 2013 | C12: 382 | D12: 111 | E12: 2402 | F12: 710 | G12: 12243 | I12: 174 | J12: 110 | K12: 889 | L12: 5079 | M12: 139 | O12: 565 | P12: 965 | Q12: 2245 | R12: 5934 | S12: 60 | T12: 15100 | U12: 160 | V12: 47268 | W12: 1111 | X12: 7410 | Y12: 310 | Z12: 56464 | AA12: 672 | AB12: 65967 | AC12: 113235 | AE12: 47268 | AF12: 0 | AG12: 113235 | AH12: 0
B13: 2014 | C13: 382 | D13: 106 | E13: 2402 | F13: 710 | G13: 12243 | I13: 174 | J13: 110 | K13: 889 | L13: 5079 | M13: 139 | O13: 565 | P13: 965 | Q13: 2271 | R13: 5866 | S13: 60 | T13: 15142 | U13: 181 | V13: 47284 | W13: 1111 | X13: 7410 | Y13: 310 | Z13: 56464 | AA13: 672 | AB13: 65967 | AC13: 113251 | AE13: 47284 | AF13: 0 | AG13: 113251 | AH13: 0
B14: 2015 | C14: 382 | D14: 106 | E14: 2402 | F14: 710 | G14: 12243 | I14: 174 | J14: 110 | K14: 889 | L14: 5079 | M14: 139 | O14: 565 | P14: 965 | Q14: 2271 | R14: 5832 | S14: 60 | T14: 15142 | U14: 182 | V14: 47251 | W14: 1111 | X14: 7410 | Y14: 310 | Z14: 56464 | AA14: 672 | AB14: 65967 | AC14: 113218 | AE14: 47251 | AF14: 0 | AG14: 113218 | AH14: 0
B15: 2016 | C15: 382 | D15: 106 | E15: 2402 | F15: 710 | G15: 12243 | I15: 174 | J15: 110 | K15: 889 | L15: 5079 | M15: 139 | O15: 565 | P15: 965 | Q15: 2271 | R15: 5837 | S15: 60 | T15: 15142 | U15: 183 | V15: 47257 | W15: 1111 | X15: 7410 | Y15: 310 | Z15: 56464 | AA15: 672 | AB15: 65967 | AC15: 113224 | AE15: 47257 | AF15: 0 | AG15: 113224 | AH15: 0
B16: 2017 | C16: 382 | D16: 106 | E16: 2402 | F16: 710 | G16: 12243 | I16: 174 | J16: 110 | K16: 889 | L16: 5079 | M16: 139 | O16: 565 | P16: 965 | Q16: 2271 | R16: 5842 | S16: 60 | T16: 15142 | U16: 184 | V16: 47263 | W16: 1111 | X16: 7410 | Y16: 310 | Z16: 56464 | AA16: 672 | AB16: 65967 | AC16: 113230 | AE16: 47263 | AF16: 0 | AG16: 113230 | AH16: 0
B17: 2018 | C17: 382 | D17: 106 | E17: 2402 | F17: 710 | G17: 12243 | I17: 174 | J17: 110 | K17: 889 | L17: 5079 | M17: 139 | O17: 565 | P17: 965 | Q17: 2271 | R17: 5847 | S17: 60 | T17: 15142 | U17: 185 | V17: 47269 | W17: 1111 | X17: 7410 | Y17: 310 | Z17: 56464 | AA17: 672 | AB17: 65967 | AC17: 113236 | AE17: 47269 | AF17: 0 | AG17: 113236 | AH17: 0
B18: 2019 | C18: 382 | D18: 106 | E18: 2402 | F18: 710 | G18: 12243 | I18: 174 | J18: 110 | K18: 889 | L18: 5079 | M18: 139 | O18: 565 | P18: 965 | Q18: 2271 | R18: 5847 | S18: 60 | T18: 15142 | U18: 186 | V18: 47270 | W18: 1111 | X18: 7410 | Y18: 310 | Z18: 56464 | AA18: 672 | AB18: 65967 | AC18: 113237 | AE18: 47270 | AF18: 0 | AG18: 113237 | AH18: 0
B19: 2020 | C19: 382 | D19: 106 | E19: 2402 | F19: 710 | G19: 12243 | I19: 174 | J19: 110 | K19: 889 | L19: 5079 | M19: 139 | O19: 565 | P19: 965 | Q19: 2271 | R19: 5847 | S19: 60 | T19: 15142 | U19: 187 | V19: 47271 | W19: 1111 | X19: 7410 | Y19: 310 | Z19: 56464 | AA19: 672 | AB19: 65967 | AC19: 113238 | AE19: 47271 | AF19: 0 | AG19: 113238 | AH19: 0
B20: 2021 | C20: 382 | D20: 106 | E20: 2402 | F20: 710 | G20: 12243 | I20: 174 | J20: 110 | K20: 889 | L20: 5079 | M20: 139 | O20: 565 | P20: 965 | Q20: 2271 | R20: 5847 | S20: 60 | T20: 15142 | U20: 188 | V20: 47272 | W20: 1111 | X20: 7410 | Y20: 310 | Z20: 56464 | AA20: 672 | AB20: 65967 | AC20: 113239 | AE20: 47272 | AF20: 0 | AG20: 113239 | AH20: 0
B21: 2022 | C21: 382 | D21: 106 | E21: 2402 | F21: 710 | G21: 12243 | I21: 174 | J21: 110 | K21: 889 | L21: 5079 | M21: 139 | O21: 565 | P21: 965 | Q21: 2271 | R21: 5847 | S21: 60 | T21: 15142 | U21: 189 | V21: 47273 | W21: 1111 | X21: 7410 | Y21: 310 | Z21: 56464 | AA21: 672 | AB21: 65967 | AC21: 113240 | AE21: 47273 | AF21: 0 | AG21: 113240 | AH21: 0
B22: 2023 | C22: 382 | D22: 106 | E22: 2402 | F22: 710 | G22: 12243 | I22: 174 | J22: 110 | K22: 889 | L22: 5079 | M22: 139 | O22: 565 | P22: 965 | Q22: 2271 | R22: 5847 | S22: 60 | T22: 15142 | U22: 190 | V22: 47274 | W22: 1111 | X22: 7410 | Y22: 310 | Z22: 56464 | AA22: 672 | AB22: 65967 | AC22: 113241 | AE22: 47274 | AF22: 0 | AG22: 113241 | AH22: 0
B23: 2024 | C23: 382 | D23: 106 | E23: 2402 | F23: 710 | G23: 12243 | I23: 174 | J23: 110 | K23: 889 | L23: 5079 | M23: 139 | O23: 565 | P23: 965 | Q23: 2271 | R23: 5847 | S23: 60 | T23: 15142 | U23: 191 | V23: 47275 | W23: 1111 | X23: 7410 | Y23: 310 | Z23: 56464 | AA23: 672 | AB23: 65967 | AC23: 113242 | AE23: 47275 | AF23: 0 | AG23: 113242 | AH23: 0
B24: 2025 | C24: 382 | D24: 106 | E24: 2402 | F24: 710 | G24: 12243 | I24: 174 | J24: 110 | K24: 889 | L24: 5079 | M24: 139 | O24: 565 | P24: 965 | Q24: 2271 | R24: 5847 | S24: 60 | T24: 15142 | U24: 192 | V24: 47276 | W24: 1111 | X24: 7410 | Y24: 310 | Z24: 56464 | AA24: 672 | AB24: 65967 | AC24: 113243 | AE24: 47276 | AF24: 0 | AG24: 113243 | AH24: 0
B25: 2026 | C25: 382 | D25: 106 | E25: 2402 | F25: 710 | G25: 12243 | I25: 174 | J25: 110 | K25: 889 | L25: 5079 | M25: 139 | O25: 565 | P25: 965 | Q25: 2271 | R25: 5847 | S25: 60 | T25: 15142 | U25: 193 | V25: 47277 | W25: 1111 | X25: 7410 | Y25: 310 | Z25: 56464 | AA25: 672 | AB25: 65967 | AC25: 113244 | AE25: 47277 | AF25: 0 | AG25: 113244 | AH25: 0
B26: 2027 | C26: 382 | D26: 106 | E26: 2402 | F26: 710 | G26: 12243 | I26: 174 | J26: 110 | K26: 889 | L26: 5079 | M26: 139 | O26: 565 | P26: 965 | Q26: 2271 | R26: 5847 | S26: 60 | T26: 15142 | U26: 194 | V26: 47278 | W26: 1111 | X26: 7410 | Y26: 310 | Z26: 56464 | AA26: 672 | AB26: 65967 | AC26: 113245 | AE26: 47278 | AF26: 0 | AG26: 113245 | AH26: 0
B27: 2028 | C27: 382 | D27: 106 | E27: 2402 | F27: 710 | G27: 12243 | I27: 174 | J27: 110 | K27: 889 | L27: 5079 | M27: 139 | O27: 565 | P27: 965 | Q27: 2271 | R27: 5847 | S27: 60 | T27: 15142 | U27: 195 | V27: 47279 | W27: 1111 | X27: 7410 | Y27: 310 | Z27: 56464 | AA27: 672 | AB27: 65967 | AC27: 113246 | AE27: 47279 | AF27: 0 | AG27: 113246 | AH27: 0
B28: 2029 | C28: 382 | D28: 106 | E28: 2402 | F28: 710 | G28: 12243 | I28: 174 | J28: 110 | K28: 889 | L28: 5079 | M28: 139 | O28: 565 | P28: 965 | Q28: 2271 | R28: 5847 | S28: 60 | T28: 15142 | U28: 196 | V28: 47280 | W28: 1111 | X28: 7410 | Y28: 310 | Z28: 56464 | AA28: 672 | AB28: 65967 | AC28: 113247 | AE28: 47280 | AF28: 0 | AG28: 113247 | AH28: 0
B29: 2030 | C29: 382 | D29: 106 | E29: 2402 | F29: 710 | G29: 12243 | I29: 174 | J29: 110 | K29: 889 | L29: 5079 | M29: 139 | O29: 565 | P29: 965 | Q29: 2271 | R29: 5847 | S29: 60 | T29: 15142 | U29: 197 | V29: 47281 | W29: 1111 | X29: 7410 | Y29: 310 | Z29: 56464 | AA29: 672 | AB29: 65967 | AC29: 113248 | AE29: 47281 | AF29: 0 | AG29: 113248 | AH29: 0
B30: 2035 | C30: 382 | D30: 106 | E30: 2402 | F30: 710 | G30: 12243 | I30: 174 | J30: 110 | K30: 889 | L30: 5079 | M30: 139 | O30: 565 | P30: 965 | Q30: 2271 | R30: 5847 | S30: 60 | T30: 15142 | U30: 198 | V30: =SUM(C30:U30) -> 47282 | AB30: 0 | AC30: 47282 | AE30: 47282 | AF30: 0
B31: 2040 | C31: 382 | D31: 106 | E31: 2402 | F31: 710 | G31: 12243 | I31: 174 | J31: 110 | K31: 889 | L31: 5079 | M31: 139 | O31: 565 | P31: 965 | Q31: 2271 | R31: 5847 | S31: 60 | T31: 15142 | U31: 200 | V31: 47284 | AB31: 0 | AC31: 47284 | AE31: 47284 | AF31: 0
B32: 2045 | C32: 382 | D32: 106 | E32: 2402 | F32: 710 | G32: 12243 | I32: 174 | J32: 110 | K32: 889 | L32: 5079 | M32: 139 | O32: 565 | P32: 965 | Q32: 2271 | R32: 5847 | S32: 60 | T32: 15142 | U32: 205 | V32: 47289 | AB32: 0 | AC32: 47289 | AE32: 47289 | AF32: 0
B33: 2050 | C33: 382 | D33: 106 | E33: 2402 | F33: 710 | G33: 12243 | I33: 174 | J33: 110 | K33: 889 | L33: 5079 | M33: 139 | O33: 565 | P33: 965 | Q33: 2271 | R33: 5847 | S33: 60 | T33: 15142 | U33: 213 | V33: 47297 | AB33: 0 | AC33: 47297 | AE33: 47297 | AF33: 0
B36: Scen 1 | C36: Dry Lowland Forest, ha | I36: Moist Forest, ha | O36: Wet Upland Forest, ha | U36: Mangrove Forest, ha | V36: Total Forests | W36: CROP LAND, ha | AB36: CROPLAND | AC36: LAND
C37: Araucaria | D37: Casuarina | E37: Euc | F37: Tabebuia | G37: Scrub Land | I37: Araucaria | J37: Casuarina | K37: Euc | L37: Natural | M37: Tabebuia | O37: Euc Red | P37: Cryptomeria | Q37: Pine<20y | R37: Pine>20y | S37: Araucaria | T37: Natural | U37: Mangrove | W37: Fruits | X37: Mixed | Y37: Orchard | Z37: Sugarcane | AA37: Tea | AB37: ha | AC37: ha
B38: =B5 -> 2006 | C38: 408 | D38: 116 | E38: 2389 | F38: 710 | G38: 12276 | I38: 176 | J38: 110 | K38: 889 | L38: 5085 | M38: 139 | O38: 546 | P38: 967 | Q38: 2684 | R38: 5478 | S38: 62 | T38: 15146 | U38: 61 | V38: =SUM(C38:U38) -> 47242 | W38: 686 | X38: 6781 | Y38: 300 | Z38: 60000 | AA38: 688 | AB38: =SUM(W38:AA38) -> 68455 | AC38: =V38+AB38 -> 115697 | AE38: 47242 | AF38: =V38-AE38 -> 0 | AG38: 115697 | AH38: =AC38-AG38 -> 0
B39: 2007 | C39: 384 | D39: 112 | E39: 2410 | F39: 710 | G39: 12276 | I39: 176 | J39: 110 | K39: 889 | L39: 5085 | M39: 139 | O39: 546 | P39: 967 | Q39: 2734 | R39: 5461 | S39: 62 | T39: 15113 | U39: 75 | V39: 47249 | W39: 668 | X39: 6336 | Y39: 300 | Z39: 68520 | AA39: 688 | AB39: 76512 | AC39: 123761 | AE39: 47249 | AF39: 0 | AG39: 123761 | AH39: 0
B40: 2008 | C40: 384 | D40: 112 | E40: 2413 | F40: 710 | G40: 12254 | I40: 176 | J40: 110 | K40: 889 | L40: 5085 | M40: 139 | O40: 550 | P40: 967 | Q40: 2533 | R40: 5632 | S40: 62 | T40: 15143 | U40: 84 | V40: 47243 | W40: 730 | X40: 5810 | Y40: 300 | Z40: 65440 | AA40: 701 | AB40: 72981 | AC40: 120224 | AE40: 47243 | AF40: 0 | AG40: 120224 | AH40: 0
B41: 2009 | C41: 384 | D41: 112 | E41: 2413 | F41: 710 | G41: 12254 | I41: 176 | J41: 110 | K41: 889 | L41: 5085 | M41: 139 | O41: 550 | P41: 967 | Q41: 2476 | R41: 5721 | S41: 62 | T41: 15111 | U41: 98 | V41: 47257 | W41: 765 | X41: 6543 | Y41: 300 | Z41: 65850 | AA41: 713 | AB41: 74171 | AC41: 121428 | AE41: 47257 | AF41: 0 | AG41: 121428 | AH41: 0
B42: 2010 | C42: 382 | D42: 112 | E42: 2433 | F42: 710 | G42: 12242 | I42: 174 | J42: 110 | K42: 889 | L42: 5079 | M42: 139 | O42: 565 | P42: 965 | Q42: 2382 | R42: 5817 | S42: 60 | T42: 15100 | U42: 112 | V42: 47271 | W42: 790 | X42: 7009 | Y42: 300 | Z42: 64130 | AA42: 698 | AB42: 72927 | AC42: 120198 | AE42: 47271 | AF42: 0 | AG42: 120198 | AH42: 0
B43: 2011 | C43: 382 | D43: 112 | E43: 2437 | F43: 710 | G43: 12242 | I43: 174 | J43: 110 | K43: 889 | L43: 5079 | M43: 139 | O43: 565 | P43: 965 | Q43: 2268 | R43: 5908 | S43: 60 | T43: 15100 | U43: 127 | V43: 47267 | W43: 874 | X43: 6974 | Y43: 300 | Z43: 61730 | AA43: 651 | AB43: 70529 | AC43: 117796 | AE43: 47267 | AF43: 0 | AG43: 117796 | AH43: 0
B44: 2012 | C44: 382 | D44: 112 | E44: 2437 | F44: 710 | G44: 12242 | I44: 174 | J44: 110 | K44: 889 | L44: 5079 | M44: 139 | O44: 565 | P44: 965 | Q44: 2203 | R44: 5976 | S44: 60 | T44: 15100 | U44: 140 | V44: 47283 | W44: 1003 | X44: 7628 | Y44: 305 | Z44: 60000 | AA44: 651 | AB44: 69587 | AC44: 116870 | AE44: 47283 | AF44: 0 | AG44: 116870 | AH44: 0
B45: 2013 | C45: 382 | D45: 111 | E45: 2402 | F45: 710 | G45: 12243 | I45: 174 | J45: 110 | K45: 889 | L45: 5079 | M45: 139 | O45: 565 | P45: 965 | Q45: 2245 | R45: 5934 | S45: 60 | T45: 15100 | U45: 160 | V45: 47268 | W45: 1111 | X45: 7410 | Y45: 310 | Z45: 56464 | AA45: 672 | AB45: 65967 | AC45: 113235 | AE45: 47268 | AF45: 0 | AG45: 113235 | AH45: 0
B46: 2014 | C46: 382 | D46: 106 | E46: 2402 | F46: 710 | G46: 12243 | I46: 174 | J46: 110 | K46: 889 | L46: 5079 | M46: 139 | O46: 565 | P46: 965 | Q46: 2271 | R46: 5866 | S46: 60 | T46: 15142 | U46: 181 | V46: 47284 | W46: 1111 | X46: 7410 | Y46: 310 | Z46: 56464 | AA46: 672 | AB46: 65967 | AC46: 113251 | AE46: 47284 | AF46: 0 | AG46: 113251 | AH46: 0
B47: 2015 | C47: 382 | D47: 106 | E47: 2402 | F47: 710 | G47: 12243 | I47: 174 | J47: 110 | K47: 889 | L47: 5079 | M47: 139 | O47: 565 | P47: 965 | Q47: 2271 | R47: 5832 | S47: 60 | T47: 15142 | U47: 182 | V47: 47251 | W47: 1111 | X47: 7410 | Y47: 310 | Z47: 56464 | AA47: 672 | AB47: 65967 | AC47: 113218 | AE47: 47251 | AF47: 0 | AG47: 113218 | AH47: 0
B48: 2016 | C48: 382 | D48: 108.28 | E48: 2402 | F48: 711.82 | G48: 12249.23 | I48: 174 | J48: 110.6345455 | K48: 890.27 | L48: 5081.82 | M48: 139.91 | O48: 565 | P48: 965 | Q48: 2274.45 | R48: 5837 | S48: 61.25 | T48: 15146.58 | U48: 183 | V48: 47282.24455 | W48: 1111 | X48: 7410 | Y48: 310 | Z48: 56464 | AA48: 672 | AB48: 65967 | AC48: 113249.2445 | AE48: 47282.24455 | AF48: 0 | AG48: 113249.2445 | AH48: 0
B49: 2017 | C49: 382 | D49: 111.3306524 | E49: 2402 | F49: 714.2566233 | G49: 12258.11718 | I49: 174 | J49: 111.484927 | K49: 891.9658898 | L49: 5085.842184 | M49: 141.1283117 | O49: 565 | P49: 965 | Q49: 2279.078518 | R49: 5842 | S49: 62.92517853 | T49: 15153.11508 | U49: 184 | V49: 47323.24455 | W49: 1111 | X49: 7410 | Y49: 310 | Z49: 56464 | AA49: 672 | AB49: 65967 | AC49: 113290.2445 | AE49: 47323.24455 | AF49: 0 | AG49: 113290.2445 | AH49: 0
B50: 2018 | C50: 382 | D50: 114.4684663 | E50: 2402 | F50: 716.7628644 | G50: 12269.08651 | I50: 174 | J50: 112.3596051 | K50: 893.7102337 | L50: 5090.806708 | M50: 142.3814322 | O50: 565 | P50: 965 | Q50: 2283.83928 | R50: 5847 | S50: 64.64821931 | T50: 15161.18123 | U50: 185 | V50: 47369.24455 | W50: 1111 | X50: 7410 | Y50: 310 | Z50: 56464 | AA50: 672 | AB50: 65967 | AC50: 113336.2445 | AE50: 47369.24455 | AF50: 0 | AG50: 113336.2445 | AH50: 0
B51: 2019 | C51: 382 | D51: 117.6775941 | E51: 2402 | F51: 719.3260656 | G51: 12282.17491 | I51: 174 | J51: 113.2541623 | K51: 895.4942217 | L51: 5096.730287 | M51: 143.6630328 | O51: 565 | P51: 965 | Q51: 2288.708241 | R51: 5847 | S51: 66.4104201 | T51: 15170.80561 | U51: 186 | V51: 47415.24455 | W51: 1111 | X51: 7410 | Y51: 310 | Z51: 56464 | AA51: 672 | AB51: 65967 | AC51: 113382.2445 | AE51: 47415.24455 | AF51: 0 | AG51: 113382.2445 | AH51: 0
B52: 2020 | C52: 382 | D52: 120.9461503 | E52: 2402 | F52: 721.9367334 | G52: 12297.41008 | I52: 174 | J52: 114.1652854 | K52: 897.3112465 | L52: 5103.625459 | M52: 144.9683667 | O52: 565 | P52: 965 | Q52: 2293.667367 | R52: 5847 | S52: 68.20525424 | T52: 15182.0086 | U52: 187 | V52: 47466.24455 | W52: 1111 | X52: 7410 | Y52: 310 | Z52: 56464 | AA52: 672 | AB52: 65967 | AC52: 113433.2445 | AE52: 47466.24455 | AF52: 0 | AG52: 113433.2445 | AH52: 0
B53: 2021 | C53: 382 | D53: 120.9461503 | E53: 2402 | F53: 721.9367334 | G53: 12297.41008 | I53: 174 | J53: 114.1652854 | K53: 897.3112465 | L53: 5103.625459 | M53: 144.9683667 | O53: 565 | P53: 965 | Q53: 2293.667367 | R53: 5847 | S53: 68.20525424 | T53: 15182.0086 | U53: 188 | V53: 47467.24455 | W53: 1111 | X53: 7410 | Y53: 310 | Z53: 56464 | AA53: 672 | AB53: 65967 | AC53: 113434.2445 | AE53: 47467.24455 | AF53: 0 | AG53: 113434.2445 | AH53: 0
B54: 2022 | C54: 382 | D54: 120.9461503 | E54: 2402 | F54: 721.9367334 | G54: 12297.41008 | I54: 174 | J54: 114.1652854 | K54: 897.3112465 | L54: 5103.625459 | M54: 144.9683667 | O54: 565 | P54: 965 | Q54: 2293.667367 | R54: 5847 | S54: 68.20525424 | T54: 15182.0086 | U54: 189 | V54: 47468.24455 | W54: 1111 | X54: 7410 | Y54: 310 | Z54: 56464 | AA54: 672 | AB54: 65967 | AC54: 113435.2445 | AE54: 47468.24455 | AF54: 0 | AG54: 113435.2445 | AH54: 0
B55: 2023 | C55: 382 | D55: 120.9461503 | E55: 2402 | F55: 721.9367334 | G55: 12297.41008 | I55: 174 | J55: 114.1652854 | K55: 897.3112465 | L55: 5103.625459 | M55: 144.9683667 | O55: 565 | P55: 965 | Q55: 2293.667367 | R55: 5847 | S55: 68.20525424 | T55: 15182.0086 | U55: 190 | V55: 47469.24455 | W55: 1111 | X55: 7410 | Y55: 310 | Z55: 56464 | AA55: 672 | AB55: 65967 | AC55: 113436.2445 | AE55: 47469.24455 | AF55: 0 | AG55: 113436.2445 | AH55: 0
B56: 2024 | C56: 382 | D56: 120.9461503 | E56: 2402 | F56: 721.9367334 | G56: 12297.41008 | I56: 174 | J56: 114.1652854 | K56: 897.3112465 | L56: 5103.625459 | M56: 144.9683667 | O56: 565 | P56: 965 | Q56: 2293.667367 | R56: 5847 | S56: 68.20525424 | T56: 15182.0086 | U56: 191 | V56: 47470.24455 | W56: 1111 | X56: 7410 | Y56: 310 | Z56: 56464 | AA56: 672 | AB56: 65967 | AC56: 113437.2445 | AE56: 47470.24455 | AF56: 0 | AG56: 113437.2445 | AH56: 0
B57: 2025 | C57: 382 | D57: 120.9461503 | E57: 2402 | F57: 721.9367334 | G57: 12297.41008 | I57: 174 | J57: 114.1652854 | K57: 897.3112465 | L57: 5103.625459 | M57: 144.9683667 | O57: 565 | P57: 965 | Q57: 2293.667367 | R57: 5847 | S57: 68.20525424 | T57: 15182.0086 | U57: 192 | V57: 47471.24455 | W57: 1111 | X57: 7410 | Y57: 310 | Z57: 56464 | AA57: 672 | AB57: 65967 | AC57: 113438.2445 | AE57: 47471.24455 | AF57: 0 | AG57: 113438.2445 | AH57: 0
B58: 2026 | C58: 382 | D58: 120.9461503 | E58: 2402 | F58: 721.9367334 | G58: 12297.41008 | I58: 174 | J58: 114.1652854 | K58: 897.3112465 | L58: 5103.625459 | M58: 144.9683667 | O58: 565 | P58: 965 | Q58: 2293.667367 | R58: 5847 | S58: 68.20525424 | T58: 15182.0086 | U58: 193 | V58: 47472.24455 | W58: 1111 | X58: 7410 | Y58: 310 | Z58: 56464 | AA58: 672 | AB58: 65967 | AC58: 113439.2445 | AE58: 47472.24455 | AF58: 0 | AG58: 113439.2445 | AH58: 0
B59: 2027 | C59: 382 | D59: 120.9461503 | E59: 2402 | F59: 721.9367334 | G59: 12297.41008 | I59: 174 | J59: 114.1652854 | K59: 897.3112465 | L59: 5103.625459 | M59: 144.9683667 | O59: 565 | P59: 965 | Q59: 2293.667367 | R59: 5847 | S59: 68.20525424 | T59: 15182.0086 | U59: 194 | V59: 47473.24455 | W59: 1111 | X59: 7410 | Y59: 310 | Z59: 56464 | AA59: 672 | AB59: 65967 | AC59: 113440.2445 | AE59: 47473.24455 | AF59: 0 | AG59: 113440.2445 | AH59: 0
B60: 2028 | C60: 382 | D60: 120.9461503 | E60: 2402 | F60: 721.9367334 | G60: 12297.41008 | I60: 174 | J60: 114.1652854 | K60: 897.3112465 | L60: 5103.625459 | M60: 144.9683667 | O60: 565 | P60: 965 | Q60: 2293.667367 | R60: 5847 | S60: 68.20525424 | T60: 15182.0086 | U60: 195 | V60: 47474.24455 | W60: 1111 | X60: 7410 | Y60: 310 | Z60: 56464 | AA60: 672 | AB60: 65967 | AC60: 113441.2445 | AE60: 47474.24455 | AF60: 0 | AG60: 113441.2445 | AH60: 0
B61: 2029 | C61: 382 | D61: 120.9461503 | E61: 2402 | F61: 721.9367334 | G61: 12297.41008 | I61: 174 | J61: 114.1652854 | K61: 897.3112465 | L61: 5103.625459 | M61: 144.9683667 | O61: 565 | P61: 965 | Q61: 2293.667367 | R61: 5847 | S61: 68.20525424 | T61: 15182.0086 | U61: 196 | V61: 47475.24455 | W61: 1111 | X61: 7410 | Y61: 310 | Z61: 56464 | AA61: 672 | AB61: 65967 | AC61: 113442.2445 | AE61: 47475.24455 | AF61: 0 | AG61: 113442.2445 | AH61: 0
B62: 2030 | C62: 382 | D62: 120.9461503 | E62: 2402 | F62: 721.9367334 | G62: 12297.41008 | I62: 174 | J62: 114.1652854 | K62: 897.3112465 | L62: 5103.625459 | M62: 144.9683667 | O62: 565 | P62: 965 | Q62: 2293.667367 | R62: 5847 | S62: 68.20525424 | T62: 15182.0086 | U62: 197 | V62: 47476.24455 | W62: 1111 | X62: 7410 | Y62: 310 | Z62: 56464 | AA62: 672 | AB62: 65967 | AC62: 113443.2445 | AE62: 47476.24455 | AF62: 0 | AG62: 113443.2445 | AH62: 0
B63: 2035 | C63: 382 | D63: 120.9461503 | E63: 2402 | F63: 721.9367334 | G63: 12297.41008 | I63: 174 | J63: 114.1652854 | K63: 897.3112465 | L63: 5103.625459 | M63: 144.9683667 | O63: 565 | P63: 965 | Q63: 2293.667367 | R63: 5847 | S63: 68.20525424 | T63: 15182.0086 | U63: 198 | V63: 47477.24455 | AB63: 0 | AC63: 47477.24455 | AE63: 47477.24455 | AF63: 0
B64: 2040 | C64: 382 | D64: 120.9461503 | E64: 2402 | F64: 721.9367334 | G64: 12297.41008 | I64: 174 | J64: 114.1652854 | K64: 897.3112465 | L64: 5103.625459 | M64: 144.9683667 | O64: 565 | P64: 965 | Q64: 2271 | R64: 5869.667367 | S64: 68.20525424 | T64: 15182.0086 | U64: 200 | V64: 47479.24455 | AB64: 0 | AC64: 47479.24455 | AE64: 47479.24455 | AF64: 0
B65: 2045 | C65: 382 | D65: 120.9461503 | E65: 2402 | F65: 721.9367334 | G65: 12297.41008 | I65: 174 | J65: 114.1652854 | K65: 897.3112465 | L65: 5103.625459 | M65: 144.9683667 | O65: 565 | P65: 965 | Q65: 2271 | R65: 5869.667367 | S65: 68.20525424 | T65: 15182.0086 | U65: 205 | V65: 47484.24455 | AB65: 0 | AC65: 47484.24455 | AE65: 47484.24455 | AF65: 0
B66: 2050 | C66: 382 | D66: 120.9461503 | E66: 2402 | F66: 721.9367334 | G66: 12297.41008 | I66: 174 | J66: 114.1652854 | K66: 897.3112465 | L66: 5103.625459 | M66: 144.9683667 | O66: 565 | P66: 965 | Q66: 2271 | R66: 5869.667367 | S66: 68.20525424 | T66: 15182.0086 | U66: 213 | V66: 47492.24455 | AB66: 0 | AC66: 47492.24455 | AE66: 47492.24455 | AF66: 0
B69: Scen 2 | C69: Dry Lowland Forest, ha | I69: Moist Forest, ha | O69: Wet Upland Forest, ha | U69: Mangrove Forest, ha | V69: Total Forests | W69: CROP LAND, ha | AB69: CROPLAND | AC69: LAND
C70: Araucaria | D70: Casuarina | E70: Euc | F70: Tabebuia | G70: Scrub Land | I70: Araucaria | J70: Casuarina | K70: Euc | L70: Natural | M70: Tabebuia | O70: Euc Red | P70: Cryptomeria | Q70: Pine<20y | R70: Pine>20y | S70: Araucaria | T70: Natural | U70: Mangrove | W70: Fruits | X70: Mixed | Y70: Orchard | Z70: Sugarcane | AA70: Tea | AB70: ha | AC70: ha
B71: =B5 -> 2006 | C71: 408 | D71: 116 | E71: 2389 | F71: 710 | G71: 12276 | I71: 176 | J71: 110 | K71: 889 | L71: 5085 | M71: 139 | O71: 546 | P71: 967 | Q71: 2684 | R71: 5478 | S71: 62 | T71: 15146 | U71: 61 | V71: =SUM(C71:U71) -> 47242 | W71: 686 | X71: 6781 | Y71: 300 | Z71: 60000 | AA71: 688 | AB71: =SUM(W71:AA71) -> 68455 | AC71: =V71+AB71 -> 115697 | AE71: 47242 | AF71: =V71-AE71 -> 0 | AG71: 115697 | AH71: =AC71-AG71 -> 0
B72: =B6 -> 2007 | C72: 384 | D72: 112 | E72: 2410 | F72: 710 | G72: 12276 | I72: 176 | J72: 110 | K72: 889 | L72: 5085 | M72: 139 | O72: 546 | P72: 967 | Q72: 2734 | R72: 5461 | S72: 62 | T72: 15113 | U72: 75 | V72: 47249 | W72: 668 | X72: 6336 | Y72: 300 | Z72: 68520 | AA72: 688 | AB72: 76512 | AC72: 123761 | AE72: 47249 | AF72: 0 | AG72: 123761 | AH72: 0
B73: 2008 | C73: 384 | D73: 112 | E73: 2413 | F73: 710 | G73: 12254 | I73: 176 | J73: 110 | K73: 889 | L73: 5085 | M73: 139 | O73: 550 | P73: 967 | Q73: 2533 | R73: 5632 | S73: 62 | T73: 15143 | U73: 84 | V73: 47243 | W73: 730 | X73: 5810 | Y73: 300 | Z73: 65440 | AA73: 701 | AB73: 72981 | AC73: 120224 | AE73: 47243 | AF73: 0 | AG73: 120224 | AH73: 0
B74: 2009 | C74: 384 | D74: 112 | E74: 2413 | F74: 710 | G74: 12254 | I74: 176 | J74: 110 | K74: 889 | L74: 5085 | M74: 139 | O74: 550 | P74: 967 | Q74: 2476 | R74: 5721 | S74: 62 | T74: 15111 | U74: 98 | V74: 47257 | W74: 765 | X74: 6543 | Y74: 300 | Z74: 65850 | AA74: 713 | AB74: 74171 | AC74: 121428 | AE74: 47257 | AF74: 0 | AG74: 121428 | AH74: 0
B75: 2010 | C75: 382 | D75: 112 | E75: 2433 | F75: 710 | G75: 12242 | I75: 174 | J75: 110 | K75: 889 | L75: 5079 | M75: 139 | O75: 565 | P75: 965 | Q75: 2382 | R75: 5817 | S75: 60 | T75: 15100 | U75: 112 | V75: 47271 | W75: 790 | X75: 7009 | Y75: 300 | Z75: 64130 | AA75: 698 | AB75: 72927 | AC75: 120198 | AE75: 47271 | AF75: 0 | AG75: 120198 | AH75: 0
B76: 2011 | C76: 382 | D76: 112 | E76: 2437 | F76: 710 | G76: 12242 | I76: 174 | J76: 110 | K76: 889 | L76: 5079 | M76: 139 | O76: 565 | P76: 965 | Q76: 2268 | R76: 5908 | S76: 60 | T76: 15100 | U76: 127 | V76: 47267 | W76: 874 | X76: 6974 | Y76: 300 | Z76: 61730 | AA76: 651 | AB76: 70529 | AC76: 117796 | AE76: 47267 | AF76: 0 | AG76: 117796 | AH76: 0
B77: 2012 | C77: 382 | D77: 112 | E77: 2437 | F77: 710 | G77: 12242 | I77: 174 | J77: 110 | K77: 889 | L77: 5079 | M77: 139 | O77: 565 | P77: 965 | Q77: 2203 | R77: 5976 | S77: 60 | T77: 15100 | U77: 140 | V77: 47283 | W77: 1003 | X77: 7628 | Y77: 305 | Z77: 60000 | AA77: 651 | AB77: 69587 | AC77: 116870 | AE77: 47283 | AF77: 0 | AG77: 116870 | AH77: 0
B78: 2013 | C78: 382 | D78: 111 | E78: 2402 | F78: 710 | G78: 12243 | I78: 174 | J78: 110 | K78: 889 | L78: 5079 | M78: 139 | O78: 565 | P78: 965 | Q78: 2245 | R78: 5934 | S78: 60 | T78: 15100 | U78: 160 | V78: 47268 | W78: 1111 | X78: 7410 | Y78: 310 | Z78: 56464 | AA78: 672 | AB78: 65967 | AC78: 113235 | AE78: 47268 | AF78: 0 | AG78: 113235 | AH78: 0
B79: 2014 | C79: 382 | D79: 106 | E79: 2402 | F79: 710 | G79: 12243 | I79: 174 | J79: 110 | K79: 889 | L79: 5079 | M79: 139 | O79: 565 | P79: 965 | Q79: 2271 | R79: 5866 | S79: 60 | T79: 15142 | U79: 181 | V79: 47284 | W79: 1111 | X79: 7410 | Y79: 310 | Z79: 56464 | AA79: 672 | AB79: 65967 | AC79: 113251 | AE79: 47284 | AF79: 0 | AG79: 113251 | AH79: 0
B80: 2015 | C80: 382 | D80: 106 | E80: 2402 | F80: 710 | G80: 12243 | I80: 174 | J80: 110 | K80: 889 | L80: 5079 | M80: 139 | O80: 565 | P80: 965 | Q80: 2271 | R80: 5832 | S80: 60 | T80: 15142 | U80: 182 | V80: 47251 | W80: 1111 | X80: 7410 | Y80: 310 | Z80: 56464 | AA80: 672 | AB80: 65967 | AC80: 113218 | AE80: 47251 | AF80: 0 | AG80: 113218 | AH80: 0
B81: 2016 | C81: 382 | D81: 108.28 | E81: 2402 | F81: 711.82 | G81: 12249.23 | I81: 174 | J81: 110.6345455 | K81: 890.27 | L81: 5081.82 | M81: 139.91 | O81: 565 | P81: 965 | Q81: 2274.45 | R81: 5837 | S81: 61.25 | T81: 15146.58 | U81: 183 | V81: 47282.24455 | W81: 1111 | X81: 7410 | Y81: 310 | Z81: 56464 | AA81: 672 | AB81: 65967 | AC81: 113249.2445 | AE81: 47282.24455 | AF81: 0 | AG81: 113249.2445 | AH81: 0
B82: 2017 | C82: 382 | D82: 111.3306524 | E82: 2402 | F82: 714.2566233 | G82: 12258.11718 | I82: 174 | J82: 111.484927 | K82: 891.9658898 | L82: 5085.842184 | M82: 141.1283117 | O82: 565 | P82: 965 | Q82: 2279.078518 | R82: 5842 | S82: 62.92517853 | T82: 15153.11508 | U82: 184 | V82: 47323.24455 | W82: 1111 | X82: 7410 | Y82: 310 | Z82: 56464 | AA82: 672 | AB82: 65967 | AC82: 113290.2445 | AE82: 47323.24455 | AF82: 0 | AG82: 113290.2445 | AH82: 0
B83: 2018 | C83: 382 | D83: 114.4684663 | E83: 2402 | F83: 716.7628644 | G83: 12269.08651 | I83: 174 | J83: 112.3596051 | K83: 893.7102337 | L83: 5090.806708 | M83: 142.3814322 | O83: 565 | P83: 965 | Q83: 2283.83928 | R83: 5847 | S83: 64.64821931 | T83: 15161.18123 | U83: 185 | V83: 47369.24455 | W83: 1111 | X83: 7410 | Y83: 310 | Z83: 56464 | AA83: 672 | AB83: 65967 | AC83: 113336.2445 | AE83: 47369.24455 | AF83: 0 | AG83: 113336.2445 | AH83: 0
B84: 2019 | C84: 382 | D84: 117.6775941 | E84: 2402 | F84: 719.3260656 | G84: 12282.17491 | I84: 174 | J84: 113.2541623 | K84: 895.4942217 | L84: 5096.730287 | M84: 143.6630328 | O84: 565 | P84: 965 | Q84: 2288.708241 | R84: 5847 | S84: 66.4104201 | T84: 15170.80561 | U84: 186 | V84: 47415.24455 | W84: 1111 | X84: 7410 | Y84: 310 | Z84: 56464 | AA84: 672 | AB84: 65967 | AC84: 113382.2445 | AE84: 47415.24455 | AF84: 0 | AG84: 113382.2445 | AH84: 0
B85: =B19 -> 2020 | C85: 382 | D85: 120.9461503 | E85: 2402 | F85: 721.9367334 | G85: 12297.41008 | I85: 174 | J85: 114.1652854 | K85: 897.3112465 | L85: 5103.625459 | M85: 144.9683667 | O85: 565 | P85: 965 | Q85: 2293.667367 | R85: 5847 | S85: 68.20525424 | T85: 15182.0086 | U85: 187 | V85: 47466.24455 | W85: 1111 | X85: 7410 | Y85: 310 | Z85: 56464 | AA85: 672 | AB85: 65967 | AC85: 113433.2445 | AE85: 47466.24455 | AF85: 0 | AG85: 113433.2445 | AH85: 0
B86: 2021 | C86: 394.5 | D86: 120.9461503 | E86: 2427 | F86: 734.4367334 | G86: 12347.41008 | I86: 174 | J86: 114.1652854 | K86: 897.3112465 | L86: 5103.625459 | M86: 144.9683667 | O86: 565 | P86: 965 | Q86: 2293.667367 | R86: 5847 | S86: 68.20525424 | T86: 15182.0086 | U86: 188 | V86: 47567.24455 | W86: 1111 | X86: 7410 | Y86: 310 | Z86: 56464 | AA86: 672 | AB86: 65967 | AC86: 113534.2445 | AE86: 47567.24455 | AF86: 0 | AG86: 113534.2445 | AH86: 0
B87: 2022 | C87: 407 | D87: 120.9461503 | E87: 2452 | F87: 746.9367334 | G87: 12397.41008 | I87: 174 | J87: 114.1652854 | K87: 897.3112465 | L87: 5103.625459 | M87: 144.9683667 | O87: 565 | P87: 965 | Q87: 2293.667367 | R87: 5847 | S87: 68.20525424 | T87: 15182.0086 | U87: 189 | V87: 47668.24455 | W87: 1111 | X87: 7410 | Y87: 310 | Z87: 56464 | AA87: 672 | AB87: 65967 | AC87: 113635.2445 | AE87: 47668.24455 | AF87: 0 | AG87: 113635.2445 | AH87: 0
B88: 2023 | C88: 419.5 | D88: 120.9461503 | E88: 2477 | F88: 759.4367334 | G88: 12447.41008 | I88: 174 | J88: 114.1652854 | K88: 897.3112465 | L88: 5103.625459 | M88: 144.9683667 | O88: 565 | P88: 965 | Q88: 2293.667367 | R88: 5847 | S88: 68.20525424 | T88: 15182.0086 | U88: 190 | V88: 47769.24455 | W88: 1111 | X88: 7410 | Y88: 310 | Z88: 56464 | AA88: 672 | AB88: 65967 | AC88: 113736.2445 | AE88: 47769.24455 | AF88: 0 | AG88: 113736.2445 | AH88: 0
B89: 2024 | C89: 432 | D89: 120.9461503 | E89: 2502 | F89: 771.9367334 | G89: 12497.41008 | I89: 174 | J89: 114.1652854 | K89: 897.3112465 | L89: 5103.625459 | M89: 144.9683667 | O89: 565 | P89: 965 | Q89: 2293.667367 | R89: 5847 | S89: 68.20525424 | T89: 15182.0086 | U89: 191 | V89: 47870.24455 | W89: 1111 | X89: 7410 | Y89: 310 | Z89: 56464 | AA89: 672 | AB89: 65967 | AC89: 113837.2445 | AE89: 47870.24455 | AF89: 0 | AG89: 113837.2445 | AH89: 0
B90: 2025 | C90: 444.5 | D90: 120.9461503 | E90: 2527 | F90: 784.4367334 | G90: 12547.41008 | I90: 174 | J90: 114.1652854 | K90: 897.3112465 | L90: 5103.625459 | M90: 144.9683667 | O90: 565 | P90: 965 | Q90: 2293.667367 | R90: 5847 | S90: 68.20525424 | T90: 15182.0086 | U90: 192 | V90: 47971.24455 | W90: 1111 | X90: 7410 | Y90: 310 | Z90: 56464 | AA90: 672 | AB90: 65967 | AC90: 113938.2445 | AE90: 47971.24455 | AF90: 0 | AG90: 113938.2445 | AH90: 0
B91: 2026 | C91: 463.25 | D91: 120.9461503 | E91: 2564.5 | F91: 803.1867334 | G91: 12622.41008 | I91: 174 | J91: 114.1652854 | K91: 897.3112465 | L91: 5103.625459 | M91: 144.9683667 | O91: 565 | P91: 965 | Q91: 2293.667367 | R91: 5847 | S91: 68.20525424 | T91: 15182.0086 | U91: 193 | V91: 48122.24455 | W91: 1111 | X91: 7410 | Y91: 310 | Z91: 56464 | AA91: 672 | AB91: 65967 | AC91: 114089.2445 | AE91: 48122.24455 | AF91: 0 | AG91: 114089.2445 | AH91: 0
B92: 2027 | C92: 482 | D92: 120.9461503 | E92: 2602 | F92: 821.9367334 | G92: 12697.41008 | I92: 174 | J92: 114.1652854 | K92: 897.3112465 | L92: 5103.625459 | M92: 144.9683667 | O92: 565 | P92: 965 | Q92: 2293.667367 | R92: 5847 | S92: 68.20525424 | T92: 15182.0086 | U92: 194 | V92: 48273.24455 | W92: 1111 | X92: 7410 | Y92: 310 | Z92: 56464 | AA92: 672 | AB92: 65967 | AC92: 114240.2445 | AE92: 48273.24455 | AF92: 0 | AG92: 114240.2445 | AH92: 0
B93: =B27 -> 2028 | C93: 500.75 | D93: 120.9461503 | E93: 2639.5 | F93: 840.6867334 | G93: 12772.41008 | I93: 174 | J93: 114.1652854 | K93: 897.3112465 | L93: 5103.625459 | M93: 144.9683667 | O93: 565 | P93: 965 | Q93: 2293.667367 | R93: 5847 | S93: 68.20525424 | T93: 15182.0086 | U93: 195 | V93: 48424.24455 | W93: 1111 | X93: 7410 | Y93: 310 | Z93: 56464 | AA93: 672 | AB93: 65967 | AC93: 114391.2445 | AE93: 48424.24455 | AF93: 0 | AG93: 114391.2445 | AH93: 0
B94: 2029 | C94: 519.5 | D94: 120.9461503 | E94: 2677 | F94: 859.4367334 | G94: 12847.41008 | I94: 174 | J94: 114.1652854 | K94: 897.3112465 | L94: 5103.625459 | M94: 144.9683667 | O94: 565 | P94: 965 | Q94: 2293.667367 | R94: 5847 | S94: 68.20525424 | T94: 15182.0086 | U94: 196 | V94: 48575.24455 | W94: 1111 | X94: 7410 | Y94: 310 | Z94: 56464 | AA94: 672 | AB94: 65967 | AC94: 114542.2445 | AE94: 48575.24455 | AF94: 0 | AG94: 114542.2445 | AH94: 0
B95: 2030 | C95: 538.25 | D95: 120.9461503 | E95: 2714.5 | F95: 878.1867334 | G95: 12922.41008 | I95: 174 | J95: 114.1652854 | K95: 897.3112465 | L95: 5103.625459 | M95: 144.9683667 | O95: 565 | P95: 965 | Q95: 2293.667367 | R95: 5847 | S95: 68.20525424 | T95: 15182.0086 | U95: 197 | V95: 48726.24455 | W95: 1111 | X95: 7410 | Y95: 310 | Z95: 56464 | AA95: 672 | AB95: 65967 | AC95: 114693.2445 | AE95: 48726.24455 | AF95: 0 | AG95: 114693.2445 | AH95: 0
B96: 2035 | C96: 632 | D96: 120.9461503 | E96: 2902 | F96: 971.9367334 | G96: 13297.41008 | I96: 174 | J96: 114.1652854 | K96: 897.3112465 | L96: 5103.625459 | M96: 144.9683667 | O96: 565 | P96: 965 | Q96: 2293.667367 | R96: 5847 | S96: 68.20525424 | T96: 15182.0086 | U96: 198 | V96: 49477.24455 | AE96: 49477.24455 | AF96: 0 | AG96: 114240.2445
B97: 2040 | C97: 757 | D97: 120.9461503 | E97: 3152 | F97: 1096.936733 | G97: 13797.41008 | I97: 174 | J97: 114.1652854 | K97: 897.3112465 | L97: 5103.625459 | M97: 144.9683667 | O97: 565 | P97: 965 | Q97: 2271 | R97: 5869.667367 | S97: 68.20525424 | T97: 15182.0086 | U97: 200 | V97: 50479.24455 | AE97: 50479.24455 | AF97: 0 | AG97: 114391.2445
B98: 2045 | C98: 882 | D98: 120.9461503 | E98: 3402 | F98: 1221.936733 | G98: 14297.41008 | I98: 174 | J98: 114.1652854 | K98: 897.3112465 | L98: 5103.625459 | M98: 144.9683667 | O98: 565 | P98: 965 | Q98: 2271 | R98: 5869.667367 | S98: 68.20525424 | T98: 15182.0086 | U98: 205 | V98: 51484.24455 | AE98: 51484.24455 | AF98: 0 | AG98: 114542.2445
B99: =B33 -> 2050 | C99: 1007 | D99: 120.9461503 | E99: 3652 | F99: 1346.936733 | G99: 14797.41008 | I99: 174 | J99: 114.1652854 | K99: 897.3112465 | L99: 5103.625459 | M99: 144.9683667 | O99: 565 | P99: 965 | Q99: 2271 | R99: 5869.667367 | S99: 68.20525424 | T99: 15182.0086 | U99: 213 | V99: 52492.24455 | AE99: 52492.24455 | AF99: 0 | AG99: 114693.2445

Sheet .... (hidden)

Sheet Diff (hidden)
A1: Variable1 | B1: Variable2 | C1: %Change
A2: -381.1645138 | B2: -381.1645138 | C2: =(B2-A2)*100/A2 -> 0
A3: -387.15592 | B3: -387.15592 | C3: =(B3-A3)*100/A3 -> 0
A4: -393.4298437 | B4: -393.4298437 | C4: 0
A5: -395.5925895 | B5: -395.5925895 | C5: 0
A6: -388.4683014 | B6: -388.4683014 | C6: 0
A7: -394.7491017 | B7: -394.7491017 | C7: 0
A8: -399.7248438 | B8: -399.7248438 | C8: 0
A9: -404.7258313 | B9: -404.7258313 | C9: 0
A10: -404.4272226 | B10: -404.4272226 | C10: 0
A11: -405.8131443 | B11: -405.8131443 | C11: 0
A12: -406.3800288 | B12: -406.6570179 | C12: 0.0681601258
A13: -406.9648746 | B13: -407.6185352 | C13: 0.1606184167
A14: -407.4214475 | B14: -408.4818643 | C14: 0.2602751617
A15: -407.7529085 | B15: -409.2490881 | C15: 0.3669329055
A16: -408.2663843 | B16: -410.2265243 | C16: 0.4801130062
A17: -408.5594446 | B17: -410.5195846 | C17: 0.4797686205
A18: -408.8279645 | B18: -410.7881045 | C18: 0.4794535065
A19: -409.1644191 | B19: -411.1245591 | C19: 0.4790592534
A20: -409.4954395 | B20: -411.4555795 | C20: 0.4786720003
A21: -409.9422159 | B21: -411.902356 | C21: 0.4781503185
A22: -410.1762799 | B22: -412.1364199 | C22: 0.4778774658
A23: -410.3938898 | B23: -412.3540298 | C23: 0.4776240728
A24: -410.5937927 | B24: -412.5539327 | C24: 0.4773915354
A25: -410.786366 | B25: -412.7465061 | C25: 0.4771677381
A26: -411.3081405 | B26: -413.2682805 | C26: 0.4765624159
A27: -412.4289009 | B27: -414.3890409 | C27: 0.4752673751
A28: -413.0370652 | B28: -414.9222816 | C28: 0.4564278878
A29: -414.2011511 | B29: -416.0863674 | C29: 0.4551451264
A30: -414.9540754 | B30: -416.8392917 | C30: 0.4543192764

Sheet Radar Ratio (hidden)
A1: Variable1 | B1: Variable2 | C1: Ratio | D1: R1 | E1: R2 | F1: R3 | G1: R4 | H1: R5
A2: -381.1645138 | B2: -381.1645138 | C2: =B2/A2 -> 1 | D2: 0.125 | E2: 0.5 | F2: 1 | G2: 1.5 | H2: 2.15
A3: -387.15592 | B3: -387.15592 | C3: =B3/A3 -> 1 | D3: 0.125 | E3: 0.5 | F3: 1 | G3: 1.5 | H3: 2.15
A4: -393.4298437 | B4: -393.4298437 | C4: 1 | D4: 0.125 | E4: 0.5 | F4: 1 | G4: 1.5 | H4: 2.15
A5: -395.5925895 | B5: -395.5925895 | C5: 1 | D5: 0.125 | E5: 0.5 | F5: 1 | G5: 1.5 | H5: 2.15
A6: -388.4683014 | B6: -388.4683014 | C6: 1 | D6: 0.125 | E6: 0.5 | F6: 1 | G6: 1.5 | H6: 2.15
A7: -394.7491017 | B7: -394.7491017 | C7: 1 | D7: 0.125 | E7: 0.5 | F7: 1 | G7: 1.5 | H7: 2.15
A8: -399.7248438 | B8: -399.7248438 | C8: 1 | D8: 0.125 | E8: 0.5 | F8: 1 | G8: 1.5 | H8: 2.15
A9: -404.7258313 | B9: -404.7258313 | C9: 1 | D9: 0.125 | E9: 0.5 | F9: 1 | G9: 1.5 | H9: 2.15
A10: -404.4272226 | B10: -404.4272226 | C10: 1 | D10: 0.125 | E10: 0.5 | F10: 1 | G10: 1.5 | H10: 2.15
A11: -405.8131443 | B11: -405.8131443 | C11: 1 | D11: 0.125 | E11: 0.5 | F11: 1 | G11: 1.5 | H11: 2.15
A12: -406.3800288 | B12: -406.6570179 | C12: 1.000681601 | D12: 0.125 | E12: 0.5 | F12: 1 | G12: 1.5 | H12: 2.15
A13: -406.9648746 | B13: -407.6185352 | C13: 1.001606184 | D13: 0.125 | E13: 0.5 | F13: 1 | G13: 1.5 | H13: 2.15
A14: -407.4214475 | B14: -408.4818643 | C14: 1.002602752 | D14: 0.125 | E14: 0.5 | F14: 1 | G14: 1.5 | H14: 2.15
A15: -407.7529085 | B15: -409.2490881 | C15: 1.003669329 | D15: 0.125 | E15: 0.5 | F15: 1 | G15: 1.5 | H15: 2.15
A16: -408.2663843 | B16: -410.2265243 | C16: 1.00480113 | D16: 0.125 | E16: 0.5 | F16: 1 | G16: 1.5 | H16: 2.15
A17: -408.5594446 | B17: -410.5195846 | C17: 1.004797686 | D17: 0.125 | E17: 0.5 | F17: 1 | G17: 1.5 | H17: 2.15
A18: -408.8279645 | B18: -410.7881045 | C18: 1.004794535 | D18: 0.125 | E18: 0.5 | F18: 1 | G18: 1.5 | H18: 2.15
A19: -409.1644191 | B19: -411.1245591 | C19: 1.004790593 | D19: 0.125 | E19: 0.5 | F19: 1 | G19: 1.5 | H19: 2.15
A20: -409.4954395 | B20: -411.4555795 | C20: 1.00478672 | D20: 0.125 | E20: 0.5 | F20: 1 | G20: 1.5 | H20: 2.15
A21: -409.9422159 | B21: -411.902356 | C21: 1.004781503 | D21: 0.125 | E21: 0.5 | F21: 1 | G21: 1.5 | H21: 2.15
A22: -410.1762799 | B22: -412.1364199 | C22: 1.004778775 | D22: 0.125 | E22: 0.5 | F22: 1 | G22: 1.5 | H22: 2.15
A23: -410.3938898 | B23: -412.3540298 | C23: 1.004776241 | D23: 0.125 | E23: 0.5 | F23: 1 | G23: 1.5 | H23: 2.15
A24: -410.5937927 | B24: -412.5539327 | C24: 1.004773915 | D24: 0.125 | E24: 0.5 | F24: 1 | G24: 1.5 | H24: 2.15
A25: -410.786366 | B25: -412.7465061 | C25: 1.004771677 | D25: 0.125 | E25: 0.5 | F25: 1 | G25: 1.5 | H25: 2.15
A26: -411.3081405 | B26: -413.2682805 | C26: 1.004765624 | D26: 0.125 | E26: 0.5 | F26: 1 | G26: 1.5 | H26: 2.15
A27: -412.4289009 | B27: -414.3890409 | C27: 1.004752674 | D27: 0.125 | E27: 0.5 | F27: 1 | G27: 1.5 | H27: 2.15
A28: -413.0370652 | B28: -414.9222816 | C28: 1.004564279 | D28: 0.125 | E28: 0.5 | F28: 1 | G28: 1.5 | H28: 2.15
A29: -414.2011511 | B29: -416.0863674 | C29: 1.004551451 | D29: 0.125 | E29: 0.5 | F29: 1 | G29: 1.5 | H29: 2.15
A30: -414.9540754 | B30: -416.8392917 | C30: 1.004543193 | D30: 0.125 | E30: 0.5 | F30: 1 | G30: 1.5 | H30: 2.15

Sheet Plots (hidden)
A1: Users can check up to 10 for visualisation
E3: Check Boxes (max 10)
B4: BAU | E4: TNC | F4: UD1 | G4: UD2 | H4: Figure Captions | J4: Selected Items to Plot
A5: 1 | B5: Total Mobility | C5: Mobility | D5: BAU | H5: Nett Passenger Mobility (PAX km) | J5: Plot no | K5: Scenario | L5: Case | M5: Figure Caption
A6: 2 | B6: PAX km by fuel type | C6: Gasoline | D6: BAU | H6: Passenger Mobility for All Gasoline Vehicles (PAX km) | J6: 1 | K6: BAU | L6: tnc
A7: 3 | B7: PAX km by fuel type | C7: Diesel | D7: BAU | H7: Passenger Mobility for All Diesel Vehicles (PAX km) | J7: 2 | K7: Sc1 | L7: ud1
A8: 4 | B8: PAX km by fuel type | C8: LPG | D8: BAU | H8: Passenger Mobility for All LPG Vehicles (PAX km) | J8: 3
A9: 5 | B9: PAX km for PETROL | C9: A/Cycle | D9: BAU | H9: Passenger Mobility for Autocycles (PAX km) | J9: 4 | K9: Sc3 | L9: ud2
A10: 6 | B10: PAX km for PETROL | C10: M/Cycle | D10: BAU | H10: Passenger Mobility for Motorcycles (PAX km) | J10: 5
A11: 7 | B11: PAX km for PETROL | C11: Cars | D11: BAU | H11: Passenger Mobility for Petrol Cars (PAX km) | J11: 6
A12: 8 | B12: PAX km for PETROL | C12: DPV | D12: BAU | H12: Passenger Mobility for Petrol DPVs (PAX km) | J12: 7
A13: 9 | B13: PAX km for PETROL | C13: Hybrid | D13: BAU | H13: Passenger Mobility for Hybrid Cars (PAX km) | J13: 8
A14: 10 | B14: PAX km for DIESEL | C14: Cars | D14: BAU | H14: Passenger Mobility for Diesel Cars (PAX km) | J14: 9
A15: 11 | B15: PAX km for DIESEL | C15: DPV | D15: BAU | H15: Passenger Mobility for Diesel DPVs (PAX km) | J15: 10
A16: 12 | B16: PAX km for DIESEL | C16: Buses | D16: BAU | H16: Passenger Mobility for Buses (PAX km)
A17: 13 | B17: PAX km for LPG | C17: Cars | D17: BAU | H17: Passenger Mobility for LPG Cars (PAX- km) | M17: Ravi- was thinking of using toggle keys
A18: 14 | B18: PAX km for LPG | C18: DPV | D18: BAU | H18: Passenger Mobility for LPG DPVs (PAX km) | M18: to eliminate/add above as you've first done in in query
A19: 15 | B19: GASOLINE (tonne) | C19: Autocycle | D19: BAU | H19: Fuel Consumption for Autocycles (tonne)
A20: 16 | B20: GASOLINE (tonne) | C20: Cars | D20: BAU | H20: Fuel Consumption for Petrol Cars (tonne)
A21: 17 | B21: GASOLINE (tonne) | C21: Motorcycle | D21: BAU | H21: Fuel Consumption for Motorcycles (tonne)
A22: 18 | B22: GASOLINE (tonne) | C22: DPV | D22: BAU | H22: Fuel Consumption for Petrol DPVs (tonne)
A23: 19 | B23: GASOLINE (tonne) | C23: Hybrid | D23: BAU | H23: Fuel Consumption for Hybrid Cars (tonne)
A24: 20 | B24: GASOLINE (tonne) | C24: Goods Vehicles | D24: BAU | H24: Fuel Consumption for Petrol Good Vehicles (tonne)
A25: 21 | B25: GASOLINE (tonne) | C25: total | D25: BAU | H25: Fuel Consumption for All Petrol Vehicles (tonne)
A26: 22 | B26: DIESEL (tonne) | C26: Cars | D26: BAU | H26: Fuel Consumption for Diesel Cars (tonne)
A27: 23 | B27: DIESEL (tonne) | C27: DPV | D27: BAU | H27: Fuel Consumption for Diesel DPVs (tonne)
A28: 24 | B28: DIESEL (tonne) | C28: Buses | D28: BAU | H28: Fuel Consumption for Buses (tonne)
A29: 25 | B29: DIESEL (tonne) | C29: Freight | D29: BAU | H29: Fuel Consumption for Diesel Freights (tonne)
A30: 26 | B30: DIESEL (tonne) | C30: total | D30: BAU | H30: Fuel Consumption for All Diesel Vehicles (tonne)
A31: 27 | B31: LPG (tonne) | C31: cars | D31: BAU | H31: Fuel Consumption for LPG Cars (tonne)
A32: 28 | B32: LPG (tonne) | C32: DPV | D32: BAU | H32: Fuel Consumption for LPG DPVs (tonne)
A33: 29 | B33: LPG (tonne) | C33: Residual | D33: BAU | H33: Fuel Consumption- Residual (tonne)
A34: 30 | B34: LPG (tonne) | C34: total | D34: BAU | H34: Fuel Consumption for all LPG Vehicles (tonne)
A35: 31 | B35: LPG (tonne) | C35: X10 | D35: BAU | H35: Fuel Consumption: LPG (total) X10 (tonne)
A36: 32 | B36: FUEL (TONNE) | C36: ALL Vs | D36: BAU | H36: Fuel Consumption for ALL Vehicles (tonne)
A37: 33 | B37: Gasoline (Gg) | C37: CO2 | D37: BAU | H37: CO2 Emissions from Petrol Vehicles (Gg/year)
A38: 34 | B38: Gasoline (Gg) | C38: CH4 | D38: BAU | H38: CH4 Emissions from Petrol Vehicles (Gg/year)
A39: 35 | B39: Gasoline (Gg) | C39: N2O | D39: BAU | H39: N2O Emissions from Petrol Vehicles (Gg/year)
A40: 36 | B40: Diesel (Gg) | C40: CO2 | D40: BAU | H40: CO2 Emissions from Diesel Vehicles (Gg/year)
A41: 37 | B41: Diesel (Gg) | C41: CH4 | D41: BAU | H41: CH4 Emissions from Diesel Vehicles (Gg/year)
A42: 38 | B42: Diesel (Gg) | C42: N2O | D42: BAU | H42: N2O Emissions from Diesel Vehicles (Gg/year)
A43: 39 | B43: LPG (Gg) | C43: CO2 | D43: BAU | H43: CO2 Emissions from LPG Vehicles (Gg/year)
A44: 40 | B44: LPG (Gg) | C44: CH4 | D44: BAU | H44: CH4 Emissions from LPG Vehicles (Gg/year)
A45: 41 | B45: LPG (Gg) | C45: N2O | D45: BAU | H45: N2O Emissions from LPG Vehicles (Gg/year)
A46: 42 | B46: TOTAL CO2 EMISSIONS (Gg) | C46: CO2 | D46: BAU | H46: Total CO2 Emissions from Vehicles (Gg/year)
A47: 43 | B47: TOTAL CH4 EMISSIONS (Gg) | C47: CH4 | D47: BAU | H47: Total CH4 Emissions from Vehicles (Gg/year)
A48: 44 | B48: TOTAL N2O EMISSIONS (Gg) | C48: N20 | D48: BAU | H48: Total N2O Emissions from Vehicles (Gg/year)
A49: 45 | B49: TOTAL GHG EMISSIONS (Gg) | C49: CO2e | D49: BAU | H49: Total GHG (CO2e) Emissions from Vehicles (Gg/year)
A50: 46 | B50: Sc1: Fuel Intensity Improvements | E50: TNC | F50: UD1 | G50: UD2 | H50: Figure Captions
A51: 47 | B51: TOTAL FUEL CONSUMPTION (tonne) | C51: Gasoline | D51: SC1 | H51: Total Gasoline Consumption after Fuel Intensity Improvements (tonne)
A52: 48 | B52: TOTAL FUEL CONSUMPTION (tonne) | C52: Diesel | D52: SC1 | H52: Total Diesel Consumption after Fuel Intensity Improvements (tonne)
A53: 49 | B53: TOTAL FUEL CONSUMPTION (tonne) | C53: LPG | D53: SC1 | H53: Total LPG Consumption after Fuel Intensity Improvements (tonne)
A54: 50 | B54: TOTAL FUEL CONSUMPTION (tonne) | C54: Total | D54: SC1 | H54: Total Fuel Consumption after Fuel Intensity Improvements (tonne)
A55: 51 | B55: Gasoline (Gg) | C55: CO2 | D55: SC1 | H55: CO2 Emissions from Petrol Vehicles after Fuel Intensity Improvements (Gg/year)
A56: 52 | B56: Gasoline (Gg) | C56: CH4 | D56: SC1 | H56: CH4 Emissions from Petrol Vehicles after Fuel Intensity Improvements (Gg/year)
A57: 53 | B57: Gasoline (Gg) | C57: N2O | D57: SC1 | H57: N2O Emissions from Petrol Vehicles after Fuel Intensity Improvements (Gg/year)
A58: 54 | B58: Diesel (Gg) | C58: CO2 | D58: SC1 | H58: CO2 Emissions from Diesel Vehicles after Fuel Intensity Improvements (Gg/year)
A59: 55 | B59: Diesel (Gg) | C59: CH4 | D59: SC1 | H59: CH4 Emissions from Diesel Vehicles after Fuel Intensity Improvements (Gg/year)
A60: 56 | B60: Diesel (Gg) | C60: N2O | D60: SC1 | H60: N2O Emissions from Diesel Vehicles after Fuel Intensity Improvements (Gg/year)
A61: 57 | B61: LPG (Gg) | C61: CO2 | D61: SC1 | H61: CO2 Emissions from LPG Vehicles after Fuel Intensity Improvements (Gg/year)
A62: 58 | B62: LPG (Gg) | C62: CH4 | D62: SC1 | H62: CH4 Emissions from LPG Vehicles after Fuel Intensity Improvements (Gg/year)
A63: 59 | B63: LPG (Gg) | C63: N2O | D63: SC1 | H63: N2O Emissions from LPG Vehicles after Fuel Intensity Improvements (Gg/year)
A64: 60 | B64: TOTAL EMISSIONS (Gg) | C64: CO2 | D64: SC1 | H64: Total CO2 Emissions from Vehicles after Fuel Intensity Improvements (Gg/year)
A65: 61 | B65: TOTAL EMISSIONS (Gg) | C65: CH4 | D65: SC1 | H65: Total CH4 Emissions from Vehicles after Fuel Intensity Improvements (Gg/year)
A66: 62 | B66: TOTAL EMISSIONS (Gg) | C66: N20 | D66: SC1 | H66: Total N2O Emissions from Vehicles after Fuel Intensity Improvements (Gg/year)
A67: 63 | B67: TOTAL EMISSIONS (Gg) | C67: CO2e | D67: SC1 | H67: Total GHG (CO2e) Emissions from Vehicles after Fuel Intensity Improvements (Gg/year)
A68: 64 | B68: Sc2: Improvements in Vehicle Maintenance | E68: TNC | F68: UD1 | G68: UD2 | H68: Figure Captions
A69: 65 | B69: TOTAL FUEL CONSUMPTION (tonne) | C69: Gasoline | D69: SC2 | H69: Total Gasoline Consumption after Improvements in Vehicle Maintenance (tonne)
A70: 66 | B70: TOTAL FUEL CONSUMPTION (tonne) | C70: Diesel | D70: SC2 | H70: Total Diesel Consumption after Improvements in Vehicle Maintenance (tonne)
A71: 67 | B71: TOTAL FUEL CONSUMPTION (tonne) | C71: LPG | D71: SC2 | H71: Total Fuel Consumption after Improvements in Vehicle Maintenance (tonne)
A72: 68 | B72: TOTAL FUEL CONSUMPTION (tonne) | C72: Total | D72: SC2 | H72: Total LG Consumption after Improvements in Vehicle Maintenance (tonne)
A73: 69 | B73: Gasoline (Gg) | C73: CO2 | D73: SC2 | H73: CO2 Emissions from Petrol Vehicles after Improvements in Vehicle Maintenance (Gg/year)
A74: 70 | B74: Gasoline (Gg) | C74: CH4 | D74: SC2 | H74: CH4 Emissions from Petrol Vehicles after Improvements in Vehicle Maintenance (Gg/year)
A75: 71 | B75: Gasoline (Gg) | C75: N2O | D75: SC2 | H75: N2O Emissions from Petrol Vehicles after Improvements in Vehicle Maintenance (Gg/year)
A76: 72 | B76: Diesel (Gg) | C76: CO2 | D76: SC2 | H76: CO2 Emissions from Diesel Vehicles after Improvements in Vehicle Maintenance (Gg/year)
A77: 73 | B77: Diesel (Gg) | C77: CH4 | D77: SC2 | H77: CH4 Emissions from Diesel Vehicles after Improvements in Vehicle Maintenance (Gg/year)
A78: 74 | B78: Diesel (Gg) | C78: N2O | D78: SC2 | H78: N2O Emissions from Diesel Vehicles after Improvements in Vehicle Maintenance (Gg/year)
A79: 75 | B79: LPG (Gg) | C79: CO2 | D79: SC2 | H79: CO2 Emissions from LPG Vehicles after Improvements in Vehicle Maintenance (Gg/year)
A80: 76 | B80: LPG (Gg) | C80: CH4 | D80: SC2 | H80: CH4 Emissions from LPG Vehicles after Improvements in Vehicle Maintenance (Gg/year)
A81: 77 | B81: LPG (Gg) | C81: N2O | D81: SC2 | H81: N2O Emissions from LPG Vehicles after Improvements in Vehicle Maintenance (Gg/year)
A82: 78 | B82: TOTAL EMISSIONS (Gg) | C82: CO2 | D82: SC2 | H82: Total CO2 Emissions from Vehicles after Improvements in Vehicle Maintenance (Gg/year)
A83: 79 | B83: TOTAL EMISSIONS (Gg) | C83: CH4 | D83: SC2 | H83: Total CH4 Emissions from Vehicles after Improvements in Vehicle Maintenance (Gg/year)
A84: 80 | B84: TOTAL EMISSIONS (Gg) | C84: N20 | D84: SC2 | H84: Total N2O Emissions from Vehicles after Improvements in Vehicle Maintenance (Gg/year)
A85: 81 | B85: TOTAL EMISSIONS (Gg) | C85: CO2e | D85: SC2 | H85: Total GHG (CO2e) Emissions from Vehicles after Improvements in Vehicle Maintenance (Gg/year)
A86: 82 | B86: TNC SC3: Low-carbon options | E86: TNC | F86: UD1 | G86: UD2 | H86: Figure Captions
A87: 83 | B87: PETROL Pax-km | C87: Autocycle | D87: SC3 | H87: x
A88: 84 | B88: PETROL Pax-km | C88: Motorcycle | D88: SC3 | H88: x
A89: 85 | B89: PETROL Pax-km | C89: Cars | D89: SC3 | H89: Passenger Mobility for Petrol Cars with H/E Vs substitutes (PAX km)
A90: 86 | B90: PETROL Pax-km | C90: DPV | D90: SC3 | H90: x
A91: 87 | B91: PETROL Pax-km | C91: Hybrid | D91: SC3 | H91: Passenger Mobility for Hybrid Vs with H/E Vs substitutes (PAX km)
A92: 88 | B92: PETROL Pax-km | C92: Electric | D92: SC3 | H92: Passenger Mobility for Electric Vs with H/E Vs substitutes (PAX km)
A93: 89 | B93: GASOLINE (tonne) | C93: Autocycle | D93: SC3 | H93: x
A94: 90 | B94: GASOLINE (tonne) | C94: Motorcycle | D94: SC3 | H94: x
A95: 91 | B95: GASOLINE (tonne) | C95: Cars | D95: SC3 | H95: Fuel Consumption for Petrol Cars with H/E Vs substitutes (tonne)
A96: 92 | B96: GASOLINE (tonne) | C96: DPV | D96: SC3 | H96: x
A97: 93 | B97: GASOLINE (tonne) | C97: Hybrid | D97: SC3 | H97: Fuel Consumption for Hybrid Cars with H/E Vs substitutes (tonne)
A98: 94 | B98: GASOLINE (tonne) | C98: Goods Vehicles | D98: SC3 | H98: Fuel Consumption for Goods Vs with H/E Vs substitutes (tonne)
A99: 95 | B99: GASOLINE (tonne) | C99: TOTAL | D99: SC3 | H99: Total Gasoline Consumption with H/E Vs substitutes (tonne)
A100: 96 | B100: DIESEL (tonne) | C100: (from BAU) | D100: SC3 | H100: x
A101: 97 | B101: LPG (tonne) | C101: (from BAU) | D101: SC3 | H101: x
A102: 98 | B102: TOTAL FUEL CONSUMED | C102: TOTAL | D102: SC3 | H102: Total Fuel Consumption with H/E Vs substitutes (tonne)
A103: 99 | B103: After increase in H/E | C103: Gasoline | D103: SC3 | H103: x
A104: 100 | B104: Ethanol (eq) Consumption | C104: Gasoline Equivalent (tonne) | D104: SC3 | H104: Ethanol Consumption (Gasoline Equivalence) (tonne)
A105: 101 | B105: Fuel Consumption with Ethanol Penetration | C105: Gasoline Effective (tonne) | D105: SC3 | H105: Fuel Consumption after Ethanol penetration (tonne)
A106: 102 | C106: Diesel (tonne) | D106: SC3 | H106: x
A107: 103 | C107: LPG (tonne) | D107: SC3 | H107: x
A108: 104 | B108: Total | C108: Total (tonne) | D108: SC3 | H108: Total Fuel Consumption under low-carbon options (tonne)
A109: 105 | B109: Gasoline (Gg) | C109: CO2 | D109: SC3 | H109: CO2 Emissions from Petrol Vehicles under low-carbon options (Gg/year)
A110: 106 | B110: Gasoline (Gg) | C110: CH4 | D110: SC3 | H110: CH4 Emissions from Petrol Vehicles under low-carbon options (Gg/year)
A111: 107 | B111: Gasoline (Gg) | C111: N2O | D111: SC3 | H111: N2O Emissions from Petrol Vehicles under low-carbon options (Gg/year)
A112: 108 | B112: Diesel (Gg) | C112: CO2 | D112: SC3 | H112: CO2 Emissions from Diesel Vehicles under low-carbon options (Gg/year)
A113: 109 | B113: Diesel (Gg) | C113: CH4 | D113: SC3 | H113: CH4 Emissions from Diesel Vehicles under low-carbon options (Gg/year)
A114: 110 | B114: Diesel (Gg) | C114: N2O | D114: SC3 | H114: N2O Emissions from Diesel Vehicles under low-carbon options (Gg/year)
A115: 111 | B115: LPG (Gg) | C115: CO2 | D115: SC3 | H115: CO2 Emissions from LPG Vehicles under low-carbon options (Gg/year)
A116: 112 | B116: LPG (Gg) | C116: CH4 | D116: SC3 | H116: CH4 Emissions from LPG Vehicles under low-carbon options (Gg/year)
A117: 113 | B117: LPG (Gg) | C117: N2O | D117: SC3 | H117: N2O Emissions from LPG Vehicles under low-carbon options (Gg/year)
A118: 114 | B118: TOTAL EMISSIONS (Gg) | C118: CO2 | D118: SC3 | H118: Total CO2 Emissions from Vehicles under low-carbon options (Gg/year)
A119: 115 | B119: TOTAL EMISSIONS (Gg) | C119: CH4 | D119: SC3 | H119: Total CH4 Emissions from Vehicles under low-carbon options (Gg/year)
A120: 116 | B120: TOTAL EMISSIONS (Gg) | C120: N20 | D120: SC3 | H120: Total N2O Emissions from Vehicles under low-carbon options (Gg/year)
A121: 117 | B121: TOTAL EMISSIONS (Gg) | C121: CO2e | D121: SC3 | H121: Total GHG (CO2e) Emissions from Vehicles under low-carbon options (Gg/year)
A122: 118 | B122: TNC SC4: LRT System | E122: TNC | F122: UD1 | G122: UD2 | H122: Figure Captions

Sheet All TNC Plots (hidden)
B1: =CONCATENATE("Area: ",$B$5," : ",B6) -> Area: Dry Lowland Forest, ha : Araucaria | C1: =CONCATENATE("Area: ",$B$5," : ",C6) -> Area: Dry Lowland Forest, ha : Casuarina | D1: =CONCATENATE("Area: ",$B$5," : ",D6) -> Area: Dry Lowland Forest, ha : Euc | E1: =CONCATENATE("Area: ",$B$5," : ",E6) -> Area: Dry Lowland Forest, ha : Tabebuia | F1: =CONCATENATE("Area: ",$B$5," : ",F6) -> Area: Dry Lowland Forest, ha : Scrub Land | G1: =CONCATENATE("Area: ",$G$5," : ",G6) -> Area: Moist Forest, ha : Araucaria | H1: =CONCATENATE("Area: ",$G$5," : ",H6) -> Area: Moist Forest, ha : Casuarina | I1: =CONCATENATE("Area: ",$G$5," : ",I6) -> Area: Moist Forest, ha : Euc | J1: =CONCATENATE("Area: ",$G$5," : ",J6) -> Area: Moist Forest, ha : Natural | K1: =CONCATENATE("Area: ",$G$5," : ",K6) -> Area: Moist Forest, ha : Tabebuia | L1: =CONCATENATE("Area: ",$L$5," : ",L6) -> Area: Wet Upland Forest, ha : Euc Red | M1: Area: Wet Upland Forest, ha : Cryptomeria | N1: Area: Wet Upland Forest, ha : Pine<20y | O1: Area: Wet Upland Forest, ha : Pine>20y | P1: Area: Wet Upland Forest, ha : Araucaria | Q1: Area: Wet Upland Forest, ha : Natural | R1: =CONCATENATE("Area: ",$R$5," : ",R6) -> Area: Mangrove : Forest | S1: =CONCATENATE("Area: ",$S$5," : ",S6) -> Area: Wet Upland Forest Pine, ha : Pine<20y | T1: =CONCATENATE("Area: ",$S$5," : ",T6) -> Area: Wet Upland Forest Pine, ha : Pine>20y | U1: =CONCATENATE("Area: ",$U$5) -> Area: Wet Upland Forest Euc Red<20 | V1: =CONCATENATE($V$5," ", A4) -> Total Area of Forests by Type (ha) | W1: =CONCATENATE("Annual Increase in Carbon (tC): ",$W$5,": ",W6) -> Annual Increase in Carbon (tC): Dry Lowland Forest, ha: Araucaria | X1: =CONCATENATE("Annual Increase in Carbon (tC): ",$W$5,": ",X6) -> Annual Increase in Carbon (tC): Dry Lowland Forest, ha: Casuarina | Y1: =CONCATENATE("Annual Increase in Carbon (tC): ",$W$5,": ",Y6) -> Annual Increase in Carbon (tC): Dry Lowland Forest, ha: Euc | Z1: =CONCATENATE("Annual Increase in Carbon (tC): ",$W$5,": ",Z6) -> Annual Increase in Carbon (tC): Dry Lowland Forest, ha: Tabebuia | AA1: =CONCATENATE("Annual Increase in Carbon (tC): ",$W$5,": ",AA6) -> Annual Increase in Carbon (tC): Dry Lowland Forest, ha: Scrub Land | AB1: =CONCATENATE("Annual Increase in Carbon (tC): ",$AB$5,": ",AB6) -> Annual Increase in Carbon (tC): Moist Forest, ha: Araucaria | AC1: =CONCATENATE("Annual Increase in Carbon (tC): ",$AB$5,": ",AC6) -> Annual Increase in Carbon (tC): Moist Forest, ha: Casuarina | AD1: =CONCATENATE("Annual Increase in Carbon (tC): ",$AB$5,": ",AD6) -> Annual Increase in Carbon (tC): Moist Forest, ha: Euc | AE1: =CONCATENATE("Annual Increase in Carbon (tC): ",$AB$5,": ",AE6) -> Annual Increase in Carbon (tC): Moist Forest, ha: Natural | AF1: =CONCATENATE("Annual Increase in Carbon (tC): ",$AB$5,": ",AF6) -> Annual Increase in Carbon (tC): Moist Forest, ha: Tabebuia | AG1: =CONCATENATE("Annual Increase in Carbon (tC): ",$AG$5,": ",AG6) -> Annual Increase in Carbon (tC): Wet Upland Forest, ha: Euc Red | AH1: Annual Increase in Carbon (tC): Wet Upland Forest, ha: Cryptomeria | AI1: Annual Increase in Carbon (tC): Wet Upland Forest, ha: Pine<20y | AJ1: Annual Increase in Carbon (tC): Wet Upland Forest, ha: Pine>20y | AK1: Annual Increase in Carbon (tC): Wet Upland Forest, ha: Araucaria | AL1: Annual Increase in Carbon (tC): Wet Upland Forest, ha: Natural | AM1: =CONCATENATE("Annual Increase in Carbon (tC): ",$AM$5,": ",AM6) -> Annual Increase in Carbon (tC): Mangrove: Forest | AN1: =CONCATENATE("Annual Increase in Carbon (tC): ",$AN$5,": ",AN6) -> Annual Increase in Carbon (tC): Wet Upland Forest Pine: Pine<20y | AO1: =CONCATENATE("Annual Increase in Carbon (tC): ",$AN$5,": ",AO6) -> Annual Increase in Carbon (tC): Wet Upland Forest Pine: Pine>20y | AP1: =CONCATENATE("Total Annual Increase in Carbon (tC) ") -> Total Annual Increase in Carbon (tC) | AQ1: =CONCATENATE("Annual Increase in Carbon (tC): ",$AP$5,": ",AQ6) -> Annual Increase in Carbon (tC): Wet Upland Forest Euc Red<20: | AR1: =CONCATENATE($AR$4,": ",AR5) -> Wood Removal: Wood Removal | AS1: =CONCATENATE($AR$4,": ",AS5) -> Wood Removal: Fuelwood | AT1: Wood Removal: Disturbance | AU1: Wood Removal: Loss Total | AV1: =CONCATENATE($AV$4,": ",$AV$5," (",AV6,")") -> Carbon Seq: Net Increase in C Stock (tC/yr) | AW1: =CONCATENATE($AV$4,": ",$AV$5," (",AW6,")") -> Carbon Seq: Net Increase in C Stock (GgCO2e/yr) | AX1: Area: Dry Lowland Forest, ha : Araucaria | AY1: Area: Dry Lowland Forest, ha : Casuarina | AZ1: Area: Dry Lowland Forest, ha : Euc | BA1: Area: Dry Lowland Forest, ha : Tabebuia | BB1: Area: Dry Lowland Forest, ha : Scrub Land | BC1: Area: Moist Forest, ha : Araucaria | BD1: Area: Moist Forest, ha : Casuarina | BE1: Area: Moist Forest, ha : Euc | BF1: Area: Moist Forest, ha : Natural | BG1: Area: Moist Forest, ha : Tabebuia | BH1: Area: Wet Upland Forest, ha : Euc Red | BI1: Area: Wet Upland Forest, ha : Cryptomeria | BJ1: Area: Wet Upland Forest, ha : Pine<20y | BK1: Area: Wet Upland Forest, ha : Pine>20y | BL1: Area: Wet Upland Forest, ha : Araucaria | BM1: Area: Wet Upland Forest, ha : Natural | BN1: Area: Mangrove : Forest | BO1: Area: Wet Upland Forest Pine<20y : Pine<20y | BP1: Area: Wet Upland Forest Pine<20y : Pine>20y | BQ1: Area: Wet Upland Forest Euc Red<20 : | BR1: Total AREA OF FORESTS BY TYPE (Ha) | BS1: Annual Increase in Carbon (tC): Dry Lowland Forest, ha: Araucaria | BT1: Annual Increase in Carbon (tC): Dry Lowland Forest, ha: Casuarina | BU1: Annual Increase in Carbon (tC): Dry Lowland Forest, ha: Euc | BV1: Annual Increase in Carbon (tC): Dry Lowland Forest, ha: Tabebuia | BW1: Annual Increase in Carbon (tC): Dry Lowland Forest, ha: Scrub Land | BX1: Annual Increase in Carbon (tC): Moist Forest, ha: Araucaria | BY1: Annual Increase in Carbon (tC): Moist Forest, ha: Casuarina | BZ1: Annual Increase in Carbon (tC): Moist Forest, ha: Euc | CA1: Annual Increase in Carbon (tC): Moist Forest, ha: Natural | CB1: Annual Increase in Carbon (tC): Moist Forest, ha: Tabebuia | CC1: Annual Increase in Carbon (tC): Wet Upland Forest, ha: Euc Red | CD1: Annual Increase in Carbon (tC): Wet Upland Forest, ha: Cryptomeria | CE1: Annual Increase in Carbon (tC): Wet Upland Forest, ha: Pine<20y | CF1: Annual Increase in Carbon (tC): Wet Upland Forest, ha: Pine>20y | CG1: Annual Increase in Carbon (tC): Wet Upland Forest, ha: Araucaria | CH1: Annual Increase in Carbon (tC): Wet Upland Forest, ha: Natural | CI1: Annual Increase in Carbon (tC): Mangrove: Forest | CJ1: Annual Increase in Carbon (tC): Wet Upland Forest Pine<20y | CK1: Annual Increase in Carbon (tC): Wet Upland Forest Pine>20y | CL1: Total Annual Increase in Carbon (tC) | CM1: Annual Increase in Carbon (tC): Wet Upland Forest Euc Red<20: | CN1: Wood Removal: Wood Removal | CO1: Wood Removal: Fuelwood | CP1: Wood Removal: Disturbance | CQ1: Wood Removal: Loss Total | CR1: Carbon seq: Net Increase in C Stock (tC/yr) | CS1: Carbon seq: Net Increase in C Stock (GgCO2e/yr) | CT1: Area: Dry Lowland Forest, ha : Araucaria | CU1: Area: Dry Lowland Forest, ha : Casuarina | CV1: Area: Dry Lowland Forest, ha : Euc | CW1: Area: Dry Lowland Forest, ha : Tabebuia | CX1: Area: Dry Lowland Forest, ha : Scrub Land | CY1: Area: Moist Forest, ha : Araucaria | CZ1: Area: Moist Forest, ha : Casuarina | DA1: Area: Moist Forest, ha : Euc | DB1: Area: Moist Forest, ha : Natural | DC1: Area: Moist Forest, ha : Tabebuia | DD1: Area: Wet Upland Forest, ha : Euc Red | DE1: Area: Wet Upland Forest, ha : Cryptomeria | DF1: Area: Wet Upland Forest, ha : Pine<20y | DG1: Area: Wet Upland Forest, ha : Pine>20y | DH1: Area: Wet Upland Forest, ha : Araucaria | DI1: Area: Wet Upland Forest, ha : Natural | DJ1: Area: Mangrove : Forest | DK1: Area: Wet Upland Forest Pine<20y : Pine<20y | DL1: Area: Wet Upland Forest Pine<20y : Pine>20y | DM1: Area: Wet Upland Forest Euc Red<20 : | DN1: Total AREA OF FORESTS BY TYPE (Ha) | DO1: Annual Increase in Carbon (tC): Dry Lowland Forest, ha: Araucaria | DP1: Annual Increase in Carbon (tC): Dry Lowland Forest, ha: Casuarina | DQ1: Annual Increase in Carbon (tC): Dry Lowland Forest, ha: Euc | DR1: Annual Increase in Carbon (tC): Dry Lowland Forest, ha: Tabebuia | DS1: Annual Increase in Carbon (tC): Dry Lowland Forest, ha: Scrub Land | DT1: Annual Increase in Carbon (tC): Moist Forest, ha: Araucaria | DU1: Annual Increase in Carbon (tC): Moist Forest, ha: Casuarina | DV1: Annual Increase in Carbon (tC): Moist Forest, ha: Euc | DW1: Annual Increase in Carbon (tC): Moist Forest, ha: Natural | DX1: Annual Increase in Carbon (tC): Moist Forest, ha: Tabebuia | DY1: Annual Increase in Carbon (tC): Wet Upland Forest, ha: Euc Red | DZ1: Annual Increase in Carbon (tC): Wet Upland Forest, ha: Cryptomeria | EA1: Annual Increase in Carbon (tC): Wet Upland Forest, ha: Pine<20y | EB1: Annual Increase in Carbon (tC): Wet Upland Forest, ha: Pine>20y | EC1: Annual Increase in Carbon (tC): Wet Upland Forest, ha: Araucaria | ED1: Annual Increase in Carbon (tC): Wet Upland Forest, ha: Natural | EE1: Annual Increase in Carbon (tC): Mangrove: Forest | EF1: Annual Increase in Carbon (tC): Wet Upland Forest Pine<20y | EG1: Annual Increase in Carbon (tC): Wet Upland Forest Pine>20y | EH1: Total Annual Increase in Carbon (tC) | EI1: Annual Increase in Carbon (tC): Wet Upland Forest Euc Red<20: | EJ1: Wood Removal: Wood Removal | EK1: Wood Removal: Fuelwood | EL1: Wood Removal: Disturbance | EM1: Wood Removal: Loss Total | EN1: Carbon seq: Net Increase in C Stock (tC/yr) | EO1: Carbon seq: Net Increase in C Stock (GgCO2e/yr)
A2: TNC | B2: =B7 -> BAU | C2: =C7 -> BAU | D2: =D7 -> BAU | E2: BAU | F2: BAU | G2: BAU | H2: BAU | I2: BAU | J2: BAU | K2: BAU | L2: BAU | M2: BAU | N2: BAU | O2: BAU | P2: BAU | Q2: BAU | R2: BAU | S2: BAU | T2: BAU | U2: BAU | V2: BAU | W2: BAU | X2: BAU | Y2: BAU | Z2: BAU | AA2: BAU | AB2: BAU | AC2: BAU | AD2: BAU | AE2: BAU | AF2: BAU | AG2: BAU | AH2: BAU | AI2: BAU | AJ2: BAU | AK2: BAU | AL2: BAU | AM2: BAU | AN2: BAU | AO2: BAU | AP2: BAU | AQ2: BAU | AR2: BAU | AS2: BAU | AT2: BAU | AU2: BAU | AV2: BAU | AW2: BAU | AX2: SC1 | AY2: SC1 | AZ2: SC1 | BA2: SC1 | BB2: SC1 | BC2: SC1 | BD2: SC1 | BE2: SC1 | BF2: SC1 | BG2: SC1 | BH2: SC1 | BI2: SC1 | BJ2: SC1 | BK2: SC1 | BL2: SC1 | BM2: SC1 | BN2: SC1 | BO2: SC1 | BP2: =BP7 -> SC1 | BQ2: SC1 | BR2: SC1 | BS2: SC1 | BT2: SC1 | BU2: SC1 | BV2: SC1 | BW2: SC1 | BX2: SC1 | BY2: SC1 | BZ2: SC1 | CA2: SC1 | CB2: SC1 | CC2: SC1 | CD2: SC1 | CE2: SC1 | CF2: SC1 | CG2: SC1 | CH2: SC1 | CI2: SC1 | CJ2: SC1 | CK2: SC1 | CL2: SC1 | CM2: SC1 | CN2: SC1 | CO2: SC1 | CP2: SC1 | CQ2: SC1 | CR2: SC1 | CS2: SC1 | CT2: SC2 | CU2: SC2 | CV2: SC2 | CW2: SC2 | CX2: SC2 | CY2: SC2 | CZ2: SC2 | DA2: SC2 | DB2: SC2 | DC2: SC2 | DD2: SC2 | DE2: SC2 | DF2: SC2 | DG2: SC2 | DH2: SC2 | DI2: SC2 | DJ2: SC2 | DK2: SC2 | DL2: SC2 | DM2: SC2 | DN2: SC2 | DO2: SC2 | DP2: SC2 | DQ2: SC2 | DR2: SC2 | DS2: SC2 | DT2: SC2 | DU2: SC2 | DV2: SC2 | DW2: SC2 | DX2: SC2 | DY2: SC2 | DZ2: SC2 | EA2: SC2 | EB2: =EB7 -> SC2 | EC2: SC2 | ED2: SC2 | EE2: SC2 | EF2: SC2 | EG2: SC2 | EH2: SC2 | EI2: SC2 | EJ2: SC2 | EK2: SC2 | EL2: SC2 | EM2: SC2 | EN2: SC2 | EO2: SC2
B3: 1 | C3: 2 | D3: 3 | E3: 4 | F3: 5 | G3: 6 | H3: 7 | I3: 8 | J3: 9 | K3: 10 | L3: 11 | M3: 12 | N3: 13 | O3: 14 | P3: 15 | Q3: 16 | R3: 17 | S3: 18 | T3: 19 | U3: 20 | V3: 21 | W3: 22 | X3: 23 | Y3: 24 | Z3: 25 | AA3: 26 | AB3: 27 | AC3: 28 | AD3: 29 | AE3: 30 | AF3: 31 | AG3: 32 | AH3: 33 | AI3: 34 | AJ3: 35 | AK3: 36 | AL3: 37 | AM3: 38 | AN3: 39 | AO3: 40 | AP3: 41 | AQ3: 42 | AR3: 43 | AS3: 44 | AT3: 45 | AU3: 46 | AV3: 47 | AW3: 48 | AX3: 49 | AY3: 50 | AZ3: 51 | BA3: 52 | BB3: 53 | BC3: 54 | BD3: 55 | BE3: 56 | BF3: 57 | BG3: 58 | BH3: 59 | BI3: 60 | BJ3: 61 | BK3: 62 | BL3: 63 | BM3: 64 | BN3: 65 | BO3: 66 | BP3: 67 | BQ3: 68 | BR3: 69 | BS3: 70 | BT3: 71 | BU3: 72 | BV3: 73 | BW3: 74 | BX3: 75 | BY3: 76 | BZ3: 77 | CA3: 78 | CB3: 79 | CC3: 80 | CD3: 81 | CE3: 82 | CF3: 83 | CG3: 84 | CH3: 85 | CI3: 86 | CJ3: 87 | CK3: 88 | CL3: 89 | CM3: 90 | CN3: 91 | CO3: 92 | CP3: 93 | CQ3: 94 | CR3: 95 | CS3: 96 | CT3: 97 | CU3: 98 | CV3: 99 | CW3: 100 | CX3: 101 | CY3: 102 | CZ3: 103 | DA3: 104 | DB3: 105 | DC3: 106 | DD3: 107 | DE3: 108 | DF3: 109 | DG3: 110 | DH3: 111 | DI3: 112 | DJ3: 113 | DK3: 114 | DL3: 115 | DM3: 116 | DN3: 117 | DO3: 118 | DP3: 119 | DQ3: 120 | DR3: 121 | DS3: 122 | DT3: 123 | DU3: 124 | DV3: 125 | DW3: 126 | DX3: 127 | DY3: 128 | DZ3: 129 | EA3: 130 | EB3: 131 | EC3: 132 | ED3: 133 | EE3: 134 | EF3: 135 | EG3: 136 | EH3: 137 | EI3: 138 | EJ3: 139 | EK3: 140 | EL3: 141 | EM3: 142 | EN3: 143 | EO3: 144
A4: Area of Forests by Type (ha) | W4: Annual Increase in Carbon Stock for the different Tree Species and Forest Type, tC | AR4: Wood Removal | AV4: Carbon Seq | AX4: Area of Forests by Type (ha) | BS4: Annual Increase in Carbon Stock for the different Tree Species and Forest Type, tC | CN4: Wood Removal | CR4: Carbon Seq | CT4: AREA OF FORESTS BY TYPE (Ha) | DO4: ANNUAL INCREASE IN CARBON STOCK FOR THE DIFFERENT TREE SPECIES AND FOREST TYPE, tC | EJ4: Wood Removal | EN4: Carbon Seq
A5: Year | B5: Dry Lowland Forest, ha | G5: Moist Forest, ha | L5: Wet Upland Forest, ha | R5: Mangrove | S5: Wet Upland Forest Pine, ha | U5: Wet Upland Forest Euc Red<20 | V5: Total | W5: Dry Lowland Forest, ha | AB5: Moist Forest, ha | AG5: Wet Upland Forest, ha | AM5: Mangrove | AN5: Wet Upland Forest Pine | AP5: Wet Upland Forest Euc Red<20 | AQ5: Total | AR5: Wood Removal | AS5: Fuelwood | AT5: Disturbance | AU5: Loss Total | AV5: Net Increase in C Stock | AX5: Dry Lowland Forest, ha | BC5: Moist Forest, ha | BH5: Wet Upland Forest, ha | BN5: Mangrove | BO5: Wet Upland Forest Pine | BQ5: Wet Upland Forest Euc Red<20 | BR5: Total | BS5: Dry Lowland Forest, ha | BX5: Moist Forest, ha | CC5: Wet Upland Forest, ha | CI5: Mangrove | CJ5: Wet Upland Forest Pine | CL5: Wet Upland Forest Euc Red<20 | CM5: Total | CN5: Wood Removal | CO5: Fuelwood | CP5: Disturbance | CQ5: Loss Total | CR5: Net Increase in C Stock | CT5: Dry Lowland Forest, ha | CY5: Moist Forest, ha | DD5: Wet Upland Forest, ha | DJ5: Mangrove | DK5: Wet Upland Forest Pine | DM5: Wet Upland Forest Euc Red<20 | DN5: Total | DO5: Dry Lowland Forest, ha | DT5: Moist Forest, ha | DY5: Wet Upland Forest, ha | EE5: Mangrove | EF5: Wet Upland Forest Pine | EH5: Wet Upland Forest Euc Red<20 | EI5: Total | EJ5: Wood Removal | EK5: Fuelwood | EL5: Disturbance | EM5: Loss Total | EN5: Net Increase in C Stock
B6: Araucaria | C6: Casuarina | D6: Euc | E6: Tabebuia | F6: Scrub Land | G6: Araucaria | H6: Casuarina | I6: Euc | J6: Natural | K6: Tabebuia | L6: Euc Red | M6: Cryptomeria | N6: Pine<20y | O6: Pine>20y | P6: Araucaria | Q6: Natural | R6: Forest | S6: Pine<20y | T6: Pine>20y | W6: Araucaria | X6: Casuarina | Y6: Euc | Z6: Tabebuia | AA6: Scrub Land | AB6: Araucaria | AC6: Casuarina | AD6: Euc | AE6: Natural | AF6: Tabebuia | AG6: Euc Red | AH6: Cryptomeria | AI6: Pine<20y | AJ6: Pine>20y | AK6: Araucaria | AL6: Natural | AM6: Forest | AN6: Pine<20y | AO6: Pine>20y | AV6: tC/yr | AW6: GgCO2e/yr | AX6: Araucaria | AY6: Casuarina | AZ6: Euc | BA6: Tabebuia | BB6: Scrub Land | BC6: Araucaria | BD6: Casuarina | BE6: Euc | BF6: Natural | BG6: Tabebuia | BH6: Euc Red | BI6: Cryptomeria | BJ6: Pine<20y | BK6: Pine>20y | BL6: Araucaria | BM6: Natural | BN6: Forest | BO6: Pine<20y | BP6: Pine>20y | BS6: Araucaria | BT6: Casuarina | BU6: Euc | BV6: Tabebuia | BW6: Scrub Land | BX6: Araucaria | BY6: Casuarina | BZ6: Euc | CA6: Natural | CB6: Tabebuia | CC6: Euc Red | CD6: Cryptomeria | CE6: Pine<20y | CF6: Pine>20y | CG6: Araucaria | CH6: Natural | CI6: Forest | CJ6: Pine<20y | CK6: Pine>20y | CR6: tC/yr | CS6: GgCO2e/yr | CT6: Araucaria | CU6: Casuarina | CV6: Euc | CW6: Tabebuia | CX6: Scrub Land | CY6: Araucaria | CZ6: Casuarina | DA6: Euc | DB6: Natural | DC6: Tabebuia | DD6: Euc Red | DE6: Cryptomeria | DF6: Pine<20y | DG6: Pine>20y | DH6: Araucaria | DI6: Natural | DJ6: Forest | DK6: Pine<20y | DL6: Pine>20y | DO6: Araucaria | DP6: Casuarina | DQ6: Euc | DR6: Tabebuia | DS6: Scrub Land | DT6: Araucaria | DU6: Casuarina | DV6: Euc | DW6: Natural | DX6: Tabebuia | DY6: Euc Red | DZ6: Cryptomeria | EA6: Pine<20y | EB6: Pine>20y | EC6: Araucaria | ED6: Natural | EE6: Forest | EF6: Pine<20y | EG6: Pine>20y | EN6: tC/yr | EO6: GgCO2e/yr
A7: BAU | B7: BAU | C7: BAU | D7: BAU | E7: BAU | F7: BAU | G7: BAU | H7: BAU | I7: BAU | J7: BAU | K7: BAU | L7: BAU | M7: BAU | N7: BAU | O7: BAU | P7: BAU | Q7: BAU | R7: BAU | S7: BAU | T7: BAU | U7: BAU | V7: BAU | W7: BAU | X7: BAU | Y7: BAU | Z7: BAU | AA7: BAU | AB7: BAU | AC7: BAU | AD7: BAU | AE7: BAU | AF7: BAU | AG7: BAU | AH7: BAU | AI7: BAU | AJ7: BAU | AK7: BAU | AL7: BAU | AM7: BAU | AN7: BAU | AO7: BAU | AP7: BAU | AQ7: BAU | AR7: BAU | AS7: BAU | AT7: BAU | AU7: BAU | AV7: BAU | AW7: BAU | AX7: SC1 | AY7: SC1 | AZ7: SC1 | BA7: SC1 | BB7: SC1 | BC7: SC1 | BD7: SC1 | BE7: SC1 | BF7: SC1 | BG7: SC1 | BH7: SC1 | BI7: SC1 | BJ7: SC1 | BK7: SC1 | BL7: SC1 | BM7: SC1 | BN7: SC1 | BO7: SC1 | BP7: SC1 | BQ7: SC1 | BR7: SC1 | BS7: SC1 | BT7: SC1 | BU7: SC1 | BV7: SC1 | BW7: SC1 | BX7: SC1 | BY7: SC1 | BZ7: SC1 | CA7: SC1 | CB7: SC1 | CC7: SC1 | CD7: SC1 | CE7: SC1 | CF7: SC1 | CG7: SC1 | CH7: SC1 | CI7: SC1 | CJ7: SC1 | CK7: SC1 | CL7: SC1 | CM7: SC1 | CN7: SC1 | CO7: SC1 | CP7: SC1 | CQ7: SC1 | CR7: SC1 | CS7: SC1 | CT7: SC2 | CU7: SC2 | CV7: SC2 | CW7: SC2 | CX7: SC2 | CY7: SC2 | CZ7: SC2 | DA7: SC2 | DB7: SC2 | DC7: SC2 | DD7: SC2 | DE7: SC2 | DF7: SC2 | DG7: SC2 | DH7: SC2 | DI7: SC2 | DJ7: SC2 | DK7: SC2 | DL7: SC2 | DM7: SC2 | DN7: SC2 | DO7: SC2 | DP7: SC2 | DQ7: SC2 | DR7: SC2 | DS7: SC2 | DT7: SC2 | DU7: SC2 | DV7: SC2 | DW7: SC2 | DX7: SC2 | DY7: SC2 | DZ7: SC2 | EA7: SC2 | EB7: SC2 | EC7: SC2 | ED7: SC2 | EE7: SC2 | EF7: SC2 | EG7: SC2 | EH7: SC2 | EI7: SC2 | EJ7: SC2 | EK7: SC2 | EL7: SC2 | EM7: SC2 | EN7: SC2 | EO7: SC2
A8: 2006 | B8: ='6. TNC Assumptions'!C7 -> 408 | C8: ='6. TNC Assumptions'!D7 -> 116 | D8: ='6. TNC Assumptions'!E7 -> 2389 | E8: ='6. TNC Assumptions'!F7 -> 710 | F8: ='6. TNC Assumptions'!G7 -> 12276 | G8: ='6. TNC Assumptions'!I7 -> 176 | H8: ='6. TNC Assumptions'!J7 -> 110 | I8: ='6. TNC Assumptions'!K7 -> 889 | J8: ='6. TNC Assumptions'!L7 -> 5085 | K8: ='6. TNC Assumptions'!M7 -> 139 | L8: ='6. TNC Assumptions'!O7 -> 546 | M8: ='6. TNC Assumptions'!P7 -> 967 | N8: ='6. TNC Assumptions'!Q7 -> 2684 | O8: ='6. TNC Assumptions'!R7 -> 5478 | P8: ='6. TNC Assumptions'!S7 -> 62 | Q8: ='6. TNC Assumptions'!T7 -> 15146 | R8: ='6. TNC Assumptions'!U7 -> 61 | S8: ='6. TNC Assumptions'!W7 -> 0 | T8: ='6. TNC Assumptions'!X7 -> 0 | U8: ='6. TNC Assumptions'!Y7 -> 0 | V8: =SUM(B8:U8) -> 47242 | W8: ='TNC CALC_Cstock'!B12 -> 2454.528 | X8: ='TNC CALC_Cstock'!C12 -> 697.856 | Y8: ='TNC CALC_Cstock'!D12 -> 18683.8912 | Z8: ='TNC CALC_Cstock'!E12 -> 4271.36 | AA8: ='TNC CALC_Cstock'!F12 -> 13293.43488 | AB8: ='TNC CALC_Cstock'!G12 -> 923.1552 | AC8: ='TNC CALC_Cstock'!H12 -> 576.972 | AD8: ='TNC CALC_Cstock'!I12 -> 4662.9828 | AE8: ='TNC CALC_Cstock'!J12 -> 3728.322 | AF8: ='TNC CALC_Cstock'!K12 -> 729.0828 | AG8: ='TNC CALC_Cstock'!L12 -> 2109.4164 | AH8: ='TNC CALC_Cstock'!M12 -> 3735.9078 | AI8: ='TNC CALC_Cstock'!N12 -> 10369.3656 | AJ8: ='TNC CALC_Cstock'!O12 -> 16225.50732 | AK8: ='TNC CALC_Cstock'!P12 -> 239.5308 | AL8: ='TNC CALC_Cstock'!Q12 -> 30232.77914 | AM8: ='TNC CALC_Cstock'!R12 -> 401.38 | AN8: ='TNC CALC_Cstock'!S12 -> 0 | AO8: ='TNC CALC_Cstock'!T12 -> 0 | AP8: ='TNC CALC_Cstock'!U12 -> 0 | AQ8: =SUM(W8:AP8) -> 113335.4719 | AR8: ='TNC CALC_Cstock'!X12 -> 4282.855777 | AS8: ='TNC CALC_Cstock'!Z12 -> 3133.531454 | AT8: ='TNC CALC_Cstock'!AB12 -> 1965.1264 | AU8: =SUM(AR8:AT8) -> 9381.513631 | AV8: =AQ8-AU8 -> 103953.9583 | AW8: =-AV8*44/12/1000 -> -381.1645138 | AX8: ='6. TNC Assumptions'!C39 -> 408 | AY8: ='6. TNC Assumptions'!D39 -> 116 | AZ8: ='6. TNC Assumptions'!E39 -> 2389 | BA8: ='6. TNC Assumptions'!F39 -> 710 | BB8: ='6. TNC Assumptions'!G39 -> 12276 | BC8: ='6. TNC Assumptions'!I39 -> 176 | BD8: ='6. TNC Assumptions'!J39 -> 110 | BE8: ='6. TNC Assumptions'!K39 -> 889 | BF8: ='6. TNC Assumptions'!L39 -> 5085 | BG8: ='6. TNC Assumptions'!M39 -> 139 | BH8: ='6. TNC Assumptions'!O39 -> 546 | BI8: ='6. TNC Assumptions'!P39 -> 967 | BJ8: ='6. TNC Assumptions'!Q39 -> 2684 | BK8: ='6. TNC Assumptions'!R39 -> 5478 | BL8: ='6. TNC Assumptions'!S39 -> 62 | BM8: ='6. TNC Assumptions'!T39 -> 15146 | BN8: ='6. TNC Assumptions'!U39 -> 61 | BO8: ='6. TNC Assumptions'!W39 -> 0 | BP8: ='6. TNC Assumptions'!X39 -> 0 | BQ8: ='6. TNC Assumptions'!Y39 -> 0 | BR8: =SUM(AX8:BQ8) -> 47242 | BS8: ='TNC CALC_Cstock'!B45 -> 2454.528 | BT8: ='TNC CALC_Cstock'!C45 -> 697.856 | BU8: ='TNC CALC_Cstock'!D45 -> 18683.8912 | BV8: ='TNC CALC_Cstock'!E45 -> 4271.36 | BW8: ='TNC CALC_Cstock'!F45 -> 13293.43488 | BX8: ='TNC CALC_Cstock'!G45 -> 923.1552 | BY8: ='TNC CALC_Cstock'!H45 -> 576.972 | BZ8: ='TNC CALC_Cstock'!I45 -> 4662.9828 | CA8: ='TNC CALC_Cstock'!J45 -> 3728.322 | CB8: ='TNC CALC_Cstock'!K45 -> 729.0828 | CC8: ='TNC CALC_Cstock'!L45 -> 2109.4164 | CD8: ='TNC CALC_Cstock'!M45 -> 3735.9078 | CE8: ='TNC CALC_Cstock'!N45 -> 10369.3656 | CF8: ='TNC CALC_Cstock'!O45 -> 16225.50732 | CG8: ='TNC CALC_Cstock'!P45 -> 239.5308 | CH8: ='TNC CALC_Cstock'!Q45 -> 30232.77914 | CI8: ='TNC CALC_Cstock'!R45 -> 401.38 | CJ8: ='TNC CALC_Cstock'!S45 -> 0 | CK8: ='TNC CALC_Cstock'!T45 -> 0 | CL8: ='TNC CALC_Cstock'!U45 -> 0 | CM8: =SUM(BS8:CL8) -> 113335.4719 | CN8: ='TNC CALC_Cstock'!X45 -> 4282.855777 | CO8: ='TNC CALC_Cstock'!Z45 -> 3133.531454 | CP8: ='TNC CALC_Cstock'!AB45 -> 1965.1264 | CQ8: =SUM(CN8:CP8) -> 9381.513631 | CR8: =CM8-CQ8 -> 103953.9583 | CS8: =-CR8*44/12/1000 -> -381.1645138 | CT8: ='6. TNC Assumptions'!C71 -> 408 | CU8: ='6. TNC Assumptions'!D71 -> 116 | CV8: ='6. TNC Assumptions'!E71 -> 2389 | CW8: ='6. TNC Assumptions'!F71 -> 710 | CX8: ='6. TNC Assumptions'!G71 -> 12276 | CY8: ='6. TNC Assumptions'!I71 -> 176 | CZ8: ='6. TNC Assumptions'!J71 -> 110 | DA8: ='6. TNC Assumptions'!K71 -> 889 | DB8: ='6. TNC Assumptions'!L71 -> 5085 | DC8: ='6. TNC Assumptions'!M71 -> 139 | DD8: ='6. TNC Assumptions'!O71 -> 546 | DE8: ='6. TNC Assumptions'!P71 -> 967 | DF8: ='6. TNC Assumptions'!Q71 -> 2684 | DG8: ='6. TNC Assumptions'!R71 -> 5478 | DH8: ='6. TNC Assumptions'!S71 -> 62 | DI8: ='6. TNC Assumptions'!T71 -> 15146 | DJ8: ='6. TNC Assumptions'!U71 -> 61 | DK8: ='6. TNC Assumptions'!W71 -> 0 | DL8: ='6. TNC Assumptions'!X71 -> 0 | DM8: ='6. TNC Assumptions'!Y71 -> 0 | DN8: =SUM(CT8:DM8) -> 47242 | DO8: ='TNC CALC_Cstock'!B79 -> 2454.528 | DP8: ='TNC CALC_Cstock'!C79 -> 697.856 | DQ8: ='TNC CALC_Cstock'!D79 -> 18683.8912 | DR8: ='TNC CALC_Cstock'!E79 -> 4271.36 | DS8: ='TNC CALC_Cstock'!F79 -> 13293.43488 | DT8: ='TNC CALC_Cstock'!G79 -> 923.1552 | DU8: ='TNC CALC_Cstock'!H79 -> 576.972 | DV8: ='TNC CALC_Cstock'!I79 -> 4662.9828 | DW8: ='TNC CALC_Cstock'!J79 -> 3728.322 | DX8: ='TNC CALC_Cstock'!K79 -> 729.0828 | DY8: ='TNC CALC_Cstock'!L79 -> 2109.4164 | DZ8: ='TNC CALC_Cstock'!M79 -> 3735.9078 | EA8: ='TNC CALC_Cstock'!N79 -> 10369.3656 | EB8: ='TNC CALC_Cstock'!O79 -> 16225.50732 | EC8: ='TNC CALC_Cstock'!P79 -> 239.5308 | ED8: ='TNC CALC_Cstock'!Q79 -> 30232.77914 | EE8: ='TNC CALC_Cstock'!R79 -> 401.38 | EF8: ='TNC CALC_Cstock'!S79 -> 0 | EG8: ='TNC CALC_Cstock'!T79 -> 0 | EH8: ='TNC CALC_Cstock'!U79 -> 0 | EI8: =SUM(DO8:EH8) -> 113335.4719 | EJ8: ='TNC CALC_Cstock'!X79 -> 4282.855777 | EK8: ='TNC CALC_Cstock'!Z79 -> 3133.531454 | EL8: ='TNC CALC_Cstock'!AB79 -> 1965.1264 | EM8: =SUM(EJ8:EL8) -> 9381.513631 | EN8: =EI8-EM8 -> 103953.9583 | EO8: =-EN8*44/12/1000 -> -381.1645138
A9: 2007 | B9: ='6. TNC Assumptions'!C8 -> 384 | C9: ='6. TNC Assumptions'!D8 -> 112 | D9: ='6. TNC Assumptions'!E8 -> 2410 | E9: ='6. TNC Assumptions'!F8 -> 710 | F9: ='6. TNC Assumptions'!G8 -> 12276 | G9: ='6. TNC Assumptions'!I8 -> 176 | H9: ='6. TNC Assumptions'!J8 -> 110 | I9: ='6. TNC Assumptions'!K8 -> 889 | J9: ='6. TNC Assumptions'!L8 -> 5085 | K9: ='6. TNC Assumptions'!M8 -> 139 | L9: ='6. TNC Assumptions'!O8 -> 546 | M9: ='6. TNC Assumptions'!P8 -> 967 | N9: ='6. TNC Assumptions'!Q8 -> 2734 | O9: ='6. TNC Assumptions'!R8 -> 5461 | P9: ='6. TNC Assumptions'!S8 -> 62 | Q9: ='6. TNC Assumptions'!T8 -> 15113 | R9: ='6. TNC Assumptions'!U8 -> 75 | S9: ='6. TNC Assumptions'!W8 -> 0 | T9: ='6. TNC Assumptions'!X8 -> 0 | U9: ='6. TNC Assumptions'!Y8 -> 0 | V9: =SUM(B9:U9) -> 47249 | W9: ='TNC CALC_Cstock'!B13 -> 2310.144 | X9: ='TNC CALC_Cstock'!C13 -> 673.792 | Y9: ='TNC CALC_Cstock'!D13 -> 18848.128 | Z9: ='TNC CALC_Cstock'!E13 -> 4271.36 | AA9: ='TNC CALC_Cstock'!F13 -> 13293.43488 | AB9: ='TNC CALC_Cstock'!G13 -> 923.1552 | AC9: ='TNC CALC_Cstock'!H13 -> 576.972 | AD9: ='TNC CALC_Cstock'!I13 -> 4662.9828 | AE9: ='TNC CALC_Cstock'!J13 -> 3728.322 | AF9: ='TNC CALC_Cstock'!K13 -> 729.0828 | AG9: ='TNC CALC_Cstock'!L13 -> 2109.4164 | AH9: ='TNC CALC_Cstock'!M13 -> 3735.9078 | AI9: ='TNC CALC_Cstock'!N13 -> 10562.5356 | AJ9: ='TNC CALC_Cstock'!O13 -> 16175.15434 | AK9: ='TNC CALC_Cstock'!P13 -> 239.5308 | AL9: ='TNC CALC_Cstock'!Q13 -> 30166.90817 | AM9: ='TNC CALC_Cstock'!R13 -> 493.5 | AN9: ='TNC CALC_Cstock'!S13 -> 0 | AO9: ='TNC CALC_Cstock'!T13 -> 0 | AP9: ='TNC CALC_Cstock'!U13 -> 0 | AQ9: =SUM(W9:AP9) -> 113500.3268 | AR9: ='TNC CALC_Cstock'!X13 -> 3483.019647 | AS9: ='TNC CALC_Cstock'!Z13 -> 3656.657998 | AT9: ='TNC CALC_Cstock'!AB13 -> 772.670976 | AU9: =SUM(AR9:AT9) -> 7912.348621 | AV9: =AQ9-AU9 -> 105587.9782 | AW9: =-AV9*44/12/1000 -> -387.15592 | AX9: ='6. TNC Assumptions'!C40 -> 384 | AY9: ='6. TNC Assumptions'!D40 -> 112 | AZ9: ='6. TNC Assumptions'!E40 -> 2410 | BA9: ='6. TNC Assumptions'!F40 -> 710 | BB9: ='6. TNC Assumptions'!G40 -> 12276 | BC9: ='6. TNC Assumptions'!I40 -> 176 | BD9: ='6. TNC Assumptions'!J40 -> 110 | BE9: ='6. TNC Assumptions'!K40 -> 889 | BF9: ='6. TNC Assumptions'!L40 -> 5085 | BG9: ='6. TNC Assumptions'!M40 -> 139 | BH9: ='6. TNC Assumptions'!O40 -> 546 | BI9: ='6. TNC Assumptions'!P40 -> 967 | BJ9: ='6. TNC Assumptions'!Q40 -> 2734 | BK9: ='6. TNC Assumptions'!R40 -> 5461 | BL9: ='6. TNC Assumptions'!S40 -> 62 | BM9: ='6. TNC Assumptions'!T40 -> 15113 | BN9: ='6. TNC Assumptions'!U40 -> 75 | BO9: ='6. TNC Assumptions'!W40 -> 0 | BP9: ='6. TNC Assumptions'!X40 -> 0 | BQ9: ='6. TNC Assumptions'!Y40 -> 0 | BR9: =SUM(AX9:BQ9) -> 47249 | BS9: ='TNC CALC_Cstock'!B46 -> 2310.144 | BT9: ='TNC CALC_Cstock'!C46 -> 673.792 | BU9: ='TNC CALC_Cstock'!D46 -> 18848.128 | BV9: ='TNC CALC_Cstock'!E46 -> 4271.36 | BW9: ='TNC CALC_Cstock'!F46 -> 13293.43488 | BX9: ='TNC CALC_Cstock'!G46 -> 923.1552 | BY9: ='TNC CALC_Cstock'!H46 -> 576.972 | BZ9: ='TNC CALC_Cstock'!I46 -> 4662.9828 | CA9: ='TNC CALC_Cstock'!J46 -> 3728.322 | CB9: ='TNC CALC_Cstock'!K46 -> 729.0828 | CC9: ='TNC CALC_Cstock'!L46 -> 2109.4164 | CD9: ='TNC CALC_Cstock'!M46 -> 3735.9078 | CE9: ='TNC CALC_Cstock'!N46 -> 10562.5356 | CF9: ='TNC CALC_Cstock'!O46 -> 16175.15434 | CG9: ='TNC CALC_Cstock'!P46 -> 239.5308 | CH9: ='TNC CALC_Cstock'!Q46 -> 30166.90817 | CI9: ='TNC CALC_Cstock'!R46 -> 493.5 | CJ9: ='TNC CALC_Cstock'!S46 -> 0 | CK9: ='TNC CALC_Cstock'!T46 -> 0 | CL9: ='TNC CALC_Cstock'!U46 -> 0 | CM9: =SUM(BS9:CL9) -> 113500.3268 | CN9: ='TNC CALC_Cstock'!X46 -> 3483.019647 | CO9: ='TNC CALC_Cstock'!Z46 -> 3656.657998 | CP9: ='TNC CALC_Cstock'!AB46 -> 772.670976 | CQ9: =SUM(CN9:CP9) -> 7912.348621 | CR9: =CM9-CQ9 -> 105587.9782 | CS9: =-CR9*44/12/1000 -> -387.15592 | CT9: ='6. TNC Assumptions'!C72 -> 384 | CU9: ='6. TNC Assumptions'!D72 -> 112 | CV9: ='6. TNC Assumptions'!E72 -> 2410 | CW9: ='6. TNC Assumptions'!F72 -> 710 | CX9: ='6. TNC Assumptions'!G72 -> 12276 | CY9: ='6. TNC Assumptions'!I72 -> 176 | CZ9: ='6. TNC Assumptions'!J72 -> 110 | DA9: ='6. TNC Assumptions'!K72 -> 889 | DB9: ='6. TNC Assumptions'!L72 -> 5085 | DC9: ='6. TNC Assumptions'!M72 -> 139 | DD9: ='6. TNC Assumptions'!O72 -> 546 | DE9: ='6. TNC Assumptions'!P72 -> 967 | DF9: ='6. TNC Assumptions'!Q72 -> 2734 | DG9: ='6. TNC Assumptions'!R72 -> 5461 | DH9: ='6. TNC Assumptions'!S72 -> 62 | DI9: ='6. TNC Assumptions'!T72 -> 15113 | DJ9: ='6. TNC Assumptions'!U72 -> 75 | DK9: ='6. TNC Assumptions'!W72 -> 0 | DL9: ='6. TNC Assumptions'!X72 -> 0 | DM9: ='6. TNC Assumptions'!Y72 -> 0 | DN9: =SUM(CT9:DM9) -> 47249 | DO9: ='TNC CALC_Cstock'!B80 -> 2310.144 | DP9: ='TNC CALC_Cstock'!C80 -> 673.792 | DQ9: ='TNC CALC_Cstock'!D80 -> 18848.128 | DR9: ='TNC CALC_Cstock'!E80 -> 4271.36 | DS9: ='TNC CALC_Cstock'!F80 -> 13293.43488 | DT9: ='TNC CALC_Cstock'!G80 -> 923.1552 | DU9: ='TNC CALC_Cstock'!H80 -> 576.972 | DV9: ='TNC CALC_Cstock'!I80 -> 4662.9828 | DW9: ='TNC CALC_Cstock'!J80 -> 3728.322 | DX9: ='TNC CALC_Cstock'!K80 -> 729.0828 | DY9: ='TNC CALC_Cstock'!L80 -> 2109.4164 | DZ9: ='TNC CALC_Cstock'!M80 -> 3735.9078 | EA9: ='TNC CALC_Cstock'!N80 -> 10562.5356 | EB9: ='TNC CALC_Cstock'!O80 -> 16175.15434 | EC9: ='TNC CALC_Cstock'!P80 -> 239.5308 | ED9: ='TNC CALC_Cstock'!Q80 -> 30166.90817 | EE9: ='TNC CALC_Cstock'!R80 -> 493.5 | EF9: ='TNC CALC_Cstock'!S80 -> 0 | EG9: ='TNC CALC_Cstock'!T80 -> 0 | EH9: ='TNC CALC_Cstock'!U80 -> 0 | EI9: =SUM(DO9:EH9) -> 113500.3268 | EJ9: ='TNC CALC_Cstock'!X80 -> 3483.019647 | EK9: ='TNC CALC_Cstock'!Z80 -> 3656.657998 | EL9: ='TNC CALC_Cstock'!AB80 -> 772.670976 | EM9: =SUM(EJ9:EL9) -> 7912.348621 | EN9: =EI9-EM9 -> 105587.9782 | EO9: =-EN9*44/12/1000 -> -387.15592
A10: 2008 | B10: ='6. TNC Assumptions'!C9 -> 384 | C10: ='6. TNC Assumptions'!D9 -> 112 | D10: ='6. TNC Assumptions'!E9 -> 2413 | E10: ='6. TNC Assumptions'!F9 -> 710 | F10: ='6. TNC Assumptions'!G9 -> 12254 | G10: ='6. TNC Assumptions'!I9 -> 176 | H10: ='6. TNC Assumptions'!J9 -> 110 | I10: ='6. TNC Assumptions'!K9 -> 889 | J10: ='6. TNC Assumptions'!L9 -> 5085 | K10: ='6. TNC Assumptions'!M9 -> 139 | L10: ='6. TNC Assumptions'!O9 -> 550 | M10: ='6. TNC Assumptions'!P9 -> 967 | N10: ='6. TNC Assumptions'!Q9 -> 2533 | O10: ='6. TNC Assumptions'!R9 -> 5632 | P10: ='6. TNC Assumptions'!S9 -> 62 | Q10: ='6. TNC Assumptions'!T9 -> 15143 | R10: ='6. TNC Assumptions'!U9 -> 84 | S10: ='6. TNC Assumptions'!W9 -> 0 | T10: ='6. TNC Assumptions'!X9 -> 0 | U10: ='6. TNC Assumptions'!Y9 -> 0 | V10: 47243 | W10: ='TNC CALC_Cstock'!B14 -> 2310.144 | X10: ='TNC CALC_Cstock'!C14 -> 673.792 | Y10: ='TNC CALC_Cstock'!D14 -> 18871.5904 | Z10: ='TNC CALC_Cstock'!E14 -> 4271.36 | AA10: ='TNC CALC_Cstock'!F14 -> 13269.61152 | AB10: ='TNC CALC_Cstock'!G14 -> 923.1552 | AC10: ='TNC CALC_Cstock'!H14 -> 576.972 | AD10: ='TNC CALC_Cstock'!I14 -> 4662.9828 | AE10: ='TNC CALC_Cstock'!J14 -> 3728.322 | AF10: ='TNC CALC_Cstock'!K14 -> 729.0828 | AG10: ='TNC CALC_Cstock'!L14 -> 2124.87 | AH10: ='TNC CALC_Cstock'!M14 -> 3735.9078 | AI10: ='TNC CALC_Cstock'!N14 -> 9785.9922 | AJ10: ='TNC CALC_Cstock'!O14 -> 16681.64608 | AK10: ='TNC CALC_Cstock'!P14 -> 239.5308 | AL10: ='TNC CALC_Cstock'!Q14 -> 30226.79087 | AM10: ='TNC CALC_Cstock'!R14 -> 552.72 | AN10: ='TNC CALC_Cstock'!S14 -> 0 | AO10: ='TNC CALC_Cstock'!T14 -> 0 | AP10: ='TNC CALC_Cstock'!U14 -> 0 | AQ10: 113364.4705 | AR10: ='TNC CALC_Cstock'!X14 -> 2823.059042 | AS10: ='TNC CALC_Cstock'!Z14 -> 2673.73083 | AT10: ='TNC CALC_Cstock'!AB14 -> 568.63232 | AU10: 6065.422192 | AV10: 107299.0483 | AW10: -393.4298437 | AX10: ='6. TNC Assumptions'!C41 -> 384 | AY10: ='6. TNC Assumptions'!D41 -> 112 | AZ10: ='6. TNC Assumptions'!E41 -> 2413 | BA10: ='6. TNC Assumptions'!F41 -> 710 | BB10: ='6. TNC Assumptions'!G41 -> 12254 | BC10: ='6. TNC Assumptions'!I41 -> 176 | BD10: ='6. TNC Assumptions'!J41 -> 110 | BE10: ='6. TNC Assumptions'!K41 -> 889 | BF10: ='6. TNC Assumptions'!L41 -> 5085 | BG10: ='6. TNC Assumptions'!M41 -> 139 | BH10: ='6. TNC Assumptions'!O41 -> 550 | BI10: ='6. TNC Assumptions'!P41 -> 967 | BJ10: ='6. TNC Assumptions'!Q41 -> 2533 | BK10: ='6. TNC Assumptions'!R41 -> 5632 | BL10: ='6. TNC Assumptions'!S41 -> 62 | BM10: ='6. TNC Assumptions'!T41 -> 15143 | BN10: ='6. TNC Assumptions'!U41 -> 84 | BO10: ='6. TNC Assumptions'!W41 -> 0 | BP10: ='6. TNC Assumptions'!X41 -> 0 | BQ10: ='6. TNC Assumptions'!Y41 -> 0 | BR10: 47243 | BS10: ='TNC CALC_Cstock'!B47 -> 2310.144 | BT10: ='TNC CALC_Cstock'!C47 -> 673.792 | BU10: ='TNC CALC_Cstock'!D47 -> 18871.5904 | BV10: ='TNC CALC_Cstock'!E47 -> 4271.36 | BW10: ='TNC CALC_Cstock'!F47 -> 13269.61152 | BX10: ='TNC CALC_Cstock'!G47 -> 923.1552 | BY10: ='TNC CALC_Cstock'!H47 -> 576.972 | BZ10: ='TNC CALC_Cstock'!I47 -> 4662.9828 | CA10: ='TNC CALC_Cstock'!J47 -> 3728.322 | CB10: ='TNC CALC_Cstock'!K47 -> 729.0828 | CC10: ='TNC CALC_Cstock'!L47 -> 2124.87 | CD10: ='TNC CALC_Cstock'!M47 -> 3735.9078 | CE10: ='TNC CALC_Cstock'!N47 -> 9785.9922 | CF10: ='TNC CALC_Cstock'!O47 -> 16681.64608 | CG10: ='TNC CALC_Cstock'!P47 -> 239.5308 | CH10: ='TNC CALC_Cstock'!Q47 -> 30226.79087 | CI10: ='TNC CALC_Cstock'!R47 -> 552.72 | CJ10: ='TNC CALC_Cstock'!S47 -> 0 | CK10: ='TNC CALC_Cstock'!T47 -> 0 | CL10: ='TNC CALC_Cstock'!U47 -> 0 | CM10: 113364.4705 | CN10: ='TNC CALC_Cstock'!X47 -> 2823.059042 | CO10: ='TNC CALC_Cstock'!Z47 -> 2673.73083 | CP10: ='TNC CALC_Cstock'!AB47 -> 568.63232 | CQ10: 6065.422192 | CR10: 107299.0483 | CS10: -393.4298437 | CT10: ='6. TNC Assumptions'!C73 -> 384 | CU10: ='6. TNC Assumptions'!D73 -> 112 | CV10: ='6. TNC Assumptions'!E73 -> 2413 | CW10: ='6. TNC Assumptions'!F73 -> 710 | CX10: ='6. TNC Assumptions'!G73 -> 12254 | CY10: ='6. TNC Assumptions'!I73 -> 176 | CZ10: ='6. TNC Assumptions'!J73 -> 110 | DA10: ='6. TNC Assumptions'!K73 -> 889 | DB10: ='6. TNC Assumptions'!L73 -> 5085 | DC10: ='6. TNC Assumptions'!M73 -> 139 | DD10: ='6. TNC Assumptions'!O73 -> 550 | DE10: ='6. TNC Assumptions'!P73 -> 967 | DF10: ='6. TNC Assumptions'!Q73 -> 2533 | DG10: ='6. TNC Assumptions'!R73 -> 5632 | DH10: ='6. TNC Assumptions'!S73 -> 62 | DI10: ='6. TNC Assumptions'!T73 -> 15143 | DJ10: ='6. TNC Assumptions'!U73 -> 84 | DK10: ='6. TNC Assumptions'!W73 -> 0 | DL10: ='6. TNC Assumptions'!X73 -> 0 | DM10: ='6. TNC Assumptions'!Y73 -> 0 | DN10: 47243 | DO10: ='TNC CALC_Cstock'!B81 -> 2310.144 | DP10: ='TNC CALC_Cstock'!C81 -> 673.792 | DQ10: ='TNC CALC_Cstock'!D81 -> 18871.5904 | DR10: ='TNC CALC_Cstock'!E81 -> 4271.36 | DS10: ='TNC CALC_Cstock'!F81 -> 13269.61152 | DT10: ='TNC CALC_Cstock'!G81 -> 923.1552 | DU10: ='TNC CALC_Cstock'!H81 -> 576.972 | DV10: ='TNC CALC_Cstock'!I81 -> 4662.9828 | DW10: ='TNC CALC_Cstock'!J81 -> 3728.322 | DX10: ='TNC CALC_Cstock'!K81 -> 729.0828 | DY10: ='TNC CALC_Cstock'!L81 -> 2124.87 | DZ10: ='TNC CALC_Cstock'!M81 -> 3735.9078 | EA10: ='TNC CALC_Cstock'!N81 -> 9785.9922 | EB10: ='TNC CALC_Cstock'!O81 -> 16681.64608 | EC10: ='TNC CALC_Cstock'!P81 -> 239.5308 | ED10: ='TNC CALC_Cstock'!Q81 -> 30226.79087 | EE10: ='TNC CALC_Cstock'!R81 -> 552.72 | EF10: ='TNC CALC_Cstock'!S81 -> 0 | EG10: ='TNC CALC_Cstock'!T81 -> 0 | EH10: ='TNC CALC_Cstock'!U81 -> 0 | EI10: 113364.4705 | EJ10: ='TNC CALC_Cstock'!X81 -> 2823.059042 | EK10: ='TNC CALC_Cstock'!Z81 -> 2673.73083 | EL10: ='TNC CALC_Cstock'!AB81 -> 568.63232 | EM10: 6065.422192 | EN10: 107299.0483 | EO10: -393.4298437
A11: 2009 | B11: ='6. TNC Assumptions'!C10 -> 384 | C11: ='6. TNC Assumptions'!D10 -> 112 | D11: ='6. TNC Assumptions'!E10 -> 2413 | E11: ='6. TNC Assumptions'!F10 -> 710 | F11: ='6. TNC Assumptions'!G10 -> 12254 | G11: ='6. TNC Assumptions'!I10 -> 176 | H11: ='6. TNC Assumptions'!J10 -> 110 | I11: ='6. TNC Assumptions'!K10 -> 889 | J11: ='6. TNC Assumptions'!L10 -> 5085 | K11: ='6. TNC Assumptions'!M10 -> 139 | L11: ='6. TNC Assumptions'!O10 -> 550 | M11: ='6. TNC Assumptions'!P10 -> 967 | N11: ='6. TNC Assumptions'!Q10 -> 2476 | O11: ='6. TNC Assumptions'!R10 -> 5721 | P11: ='6. TNC Assumptions'!S10 -> 62 | Q11: ='6. TNC Assumptions'!T10 -> 15111 | R11: ='6. TNC Assumptions'!U10 -> 98 | S11: ='6. TNC Assumptions'!W10 -> 0 | T11: ='6. TNC Assumptions'!X10 -> 0 | U11: ='6. TNC Assumptions'!Y10 -> 0 | V11: 47257 | W11: ='TNC CALC_Cstock'!B15 -> 2310.144 | X11: ='TNC CALC_Cstock'!C15 -> 673.792 | Y11: ='TNC CALC_Cstock'!D15 -> 18871.5904 | Z11: ='TNC CALC_Cstock'!E15 -> 4271.36 | AA11: ='TNC CALC_Cstock'!F15 -> 13269.61152 | AB11: ='TNC CALC_Cstock'!G15 -> 923.1552 | AC11: ='TNC CALC_Cstock'!H15 -> 576.972 | AD11: ='TNC CALC_Cstock'!I15 -> 4662.9828 | AE11: ='TNC CALC_Cstock'!J15 -> 3728.322 | AF11: ='TNC CALC_Cstock'!K15 -> 729.0828 | AG11: ='TNC CALC_Cstock'!L15 -> 2124.87 | AH11: ='TNC CALC_Cstock'!M15 -> 3735.9078 | AI11: ='TNC CALC_Cstock'!N15 -> 9565.7784 | AJ11: ='TNC CALC_Cstock'!O15 -> 16945.25874 | AK11: ='TNC CALC_Cstock'!P15 -> 239.5308 | AL11: ='TNC CALC_Cstock'!Q15 -> 30162.91599 | AM11: ='TNC CALC_Cstock'!R15 -> 644.84 | AN11: ='TNC CALC_Cstock'!S15 -> 0 | AO11: ='TNC CALC_Cstock'!T15 -> 0 | AP11: ='TNC CALC_Cstock'!U15 -> 0 | AQ11: 113436.1144 | AR11: ='TNC CALC_Cstock'!X15 -> 2531.757225 | AS11: ='TNC CALC_Cstock'!Z15 -> 2810.507081 | AT11: ='TNC CALC_Cstock'!AB15 -> 204.962112 | AU11: 5547.226418 | AV11: 107888.888 | AW11: -395.5925895 | AX11: ='6. TNC Assumptions'!C42 -> 384 | AY11: ='6. TNC Assumptions'!D42 -> 112 | AZ11: ='6. TNC Assumptions'!E42 -> 2413 | BA11: ='6. TNC Assumptions'!F42 -> 710 | BB11: ='6. TNC Assumptions'!G42 -> 12254 | BC11: ='6. TNC Assumptions'!I42 -> 176 | BD11: ='6. TNC Assumptions'!J42 -> 110 | BE11: ='6. TNC Assumptions'!K42 -> 889 | BF11: ='6. TNC Assumptions'!L42 -> 5085 | BG11: ='6. TNC Assumptions'!M42 -> 139 | BH11: ='6. TNC Assumptions'!O42 -> 550 | BI11: ='6. TNC Assumptions'!P42 -> 967 | BJ11: ='6. TNC Assumptions'!Q42 -> 2476 | BK11: ='6. TNC Assumptions'!R42 -> 5721 | BL11: ='6. TNC Assumptions'!S42 -> 62 | BM11: ='6. TNC Assumptions'!T42 -> 15111 | BN11: ='6. TNC Assumptions'!U42 -> 98 | BO11: ='6. TNC Assumptions'!W42 -> 0 | BP11: ='6. TNC Assumptions'!X42 -> 0 | BQ11: ='6. TNC Assumptions'!Y42 -> 0 | BR11: 47257 | BS11: ='TNC CALC_Cstock'!B48 -> 2310.144 | BT11: ='TNC CALC_Cstock'!C48 -> 673.792 | BU11: ='TNC CALC_Cstock'!D48 -> 18871.5904 | BV11: ='TNC CALC_Cstock'!E48 -> 4271.36 | BW11: ='TNC CALC_Cstock'!F48 -> 13269.61152 | BX11: ='TNC CALC_Cstock'!G48 -> 923.1552 | BY11: ='TNC CALC_Cstock'!H48 -> 576.972 | BZ11: ='TNC CALC_Cstock'!I48 -> 4662.9828 | CA11: ='TNC CALC_Cstock'!J48 -> 3728.322 | CB11: ='TNC CALC_Cstock'!K48 -> 729.0828 | CC11: ='TNC CALC_Cstock'!L48 -> 2124.87 | CD11: ='TNC CALC_Cstock'!M48 -> 3735.9078 | CE11: ='TNC CALC_Cstock'!N48 -> 9565.7784 | CF11: ='TNC CALC_Cstock'!O48 -> 16945.25874 | CG11: ='TNC CALC_Cstock'!P48 -> 239.5308 | CH11: ='TNC CALC_Cstock'!Q48 -> 30162.91599 | CI11: ='TNC CALC_Cstock'!R48 -> 644.84 | CJ11: ='TNC CALC_Cstock'!S48 -> 0 | CK11: ='TNC CALC_Cstock'!T48 -> 0 | CL11: ='TNC CALC_Cstock'!U48 -> 0 | CM11: 113436.1144 | CN11: ='TNC CALC_Cstock'!X48 -> 2531.757225 | CO11: ='TNC CALC_Cstock'!Z48 -> 2810.507081 | CP11: ='TNC CALC_Cstock'!AB48 -> 204.962112 | CQ11: 5547.226418 | CR11: 107888.888 | CS11: -395.5925895 | CT11: ='6. TNC Assumptions'!C74 -> 384 | CU11: ='6. TNC Assumptions'!D74 -> 112 | CV11: ='6. TNC Assumptions'!E74 -> 2413 | CW11: ='6. TNC Assumptions'!F74 -> 710 | CX11: ='6. TNC Assumptions'!G74 -> 12254 | CY11: ='6. TNC Assumptions'!I74 -> 176 | CZ11: ='6. TNC Assumptions'!J74 -> 110 | DA11: ='6. TNC Assumptions'!K74 -> 889 | DB11: ='6. TNC Assumptions'!L74 -> 5085 | DC11: ='6. TNC Assumptions'!M74 -> 139 | DD11: ='6. TNC Assumptions'!O74 -> 550 | DE11: ='6. TNC Assumptions'!P74 -> 967 | DF11: ='6. TNC Assumptions'!Q74 -> 2476 | DG11: ='6. TNC Assumptions'!R74 -> 5721 | DH11: ='6. TNC Assumptions'!S74 -> 62 | DI11: ='6. TNC Assumptions'!T74 -> 15111 | DJ11: ='6. TNC Assumptions'!U74 -> 98 | DK11: ='6. TNC Assumptions'!W74 -> 0 | DL11: ='6. TNC Assumptions'!X74 -> 0 | DM11: ='6. TNC Assumptions'!Y74 -> 0 | DN11: 47257 | DO11: ='TNC CALC_Cstock'!B82 -> 2310.144 | DP11: ='TNC CALC_Cstock'!C82 -> 673.792 | DQ11: ='TNC CALC_Cstock'!D82 -> 18871.5904 | DR11: ='TNC CALC_Cstock'!E82 -> 4271.36 | DS11: ='TNC CALC_Cstock'!F82 -> 13269.61152 | DT11: ='TNC CALC_Cstock'!G82 -> 923.1552 | DU11: ='TNC CALC_Cstock'!H82 -> 576.972 | DV11: ='TNC CALC_Cstock'!I82 -> 4662.9828 | DW11: ='TNC CALC_Cstock'!J82 -> 3728.322 | DX11: ='TNC CALC_Cstock'!K82 -> 729.0828 | DY11: ='TNC CALC_Cstock'!L82 -> 2124.87 | DZ11: ='TNC CALC_Cstock'!M82 -> 3735.9078 | EA11: ='TNC CALC_Cstock'!N82 -> 9565.7784 | EB11: ='TNC CALC_Cstock'!O82 -> 16945.25874 | EC11: ='TNC CALC_Cstock'!P82 -> 239.5308 | ED11: ='TNC CALC_Cstock'!Q82 -> 30162.91599 | EE11: ='TNC CALC_Cstock'!R82 -> 644.84 | EF11: ='TNC CALC_Cstock'!S82 -> 0 | EG11: ='TNC CALC_Cstock'!T82 -> 0 | EH11: ='TNC CALC_Cstock'!U82 -> 0 | EI11: 113436.1144 | EJ11: ='TNC CALC_Cstock'!X82 -> 2531.757225 | EK11: ='TNC CALC_Cstock'!Z82 -> 2810.507081 | EL11: ='TNC CALC_Cstock'!AB82 -> 204.962112 | EM11: 5547.226418 | EN11: 107888.888 | EO11: -395.5925895
A12: 2010 | B12: ='6. TNC Assumptions'!C11 -> 382 | C12: ='6. TNC Assumptions'!D11 -> 112 | D12: ='6. TNC Assumptions'!E11 -> 2433 | E12: ='6. TNC Assumptions'!F11 -> 710 | F12: ='6. TNC Assumptions'!G11 -> 12242 | G12: ='6. TNC Assumptions'!I11 -> 174 | H12: ='6. TNC Assumptions'!J11 -> 110 | I12: ='6. TNC Assumptions'!K11 -> 889 | J12: ='6. TNC Assumptions'!L11 -> 5079 | K12: ='6. TNC Assumptions'!M11 -> 139 | L12: ='6. TNC Assumptions'!O11 -> 565 | M12: ='6. TNC Assumptions'!P11 -> 965 | N12: ='6. TNC Assumptions'!Q11 -> 2382 | O12: ='6. TNC Assumptions'!R11 -> 5817 | P12: ='6. TNC Assumptions'!S11 -> 60 | Q12: ='6. TNC Assumptions'!T11 -> 15100 | R12: ='6. TNC Assumptions'!U11 -> 112 | S12: ='6. TNC Assumptions'!W11 -> 0 | T12: ='6. TNC Assumptions'!X11 -> 0 | U12: ='6. TNC Assumptions'!Y11 -> 0 | V12: 47271 | W12: ='TNC CALC_Cstock'!B16 -> 2298.112 | X12: ='TNC CALC_Cstock'!C16 -> 673.792 | Y12: ='TNC CALC_Cstock'!D16 -> 19028.0064 | Z12: ='TNC CALC_Cstock'!E16 -> 4271.36 | AA12: ='TNC CALC_Cstock'!F16 -> 13256.61696 | AB12: ='TNC CALC_Cstock'!G16 -> 912.6648 | AC12: ='TNC CALC_Cstock'!H16 -> 576.972 | AD12: ='TNC CALC_Cstock'!I16 -> 4662.9828 | AE12: ='TNC CALC_Cstock'!J16 -> 3723.9228 | AF12: ='TNC CALC_Cstock'!K16 -> 729.0828 | AG12: ='TNC CALC_Cstock'!L16 -> 2182.821 | AH12: ='TNC CALC_Cstock'!M16 -> 3728.181 | AI12: ='TNC CALC_Cstock'!N16 -> 9202.6188 | AJ12: ='TNC CALC_Cstock'!O16 -> 17229.60498 | AK12: ='TNC CALC_Cstock'!P16 -> 231.804 | AL12: ='TNC CALC_Cstock'!Q16 -> 30140.959 | AM12: ='TNC CALC_Cstock'!R16 -> 736.96 | AN12: ='TNC CALC_Cstock'!S16 -> 0 | AO12: ='TNC CALC_Cstock'!T16 -> 0 | AP12: ='TNC CALC_Cstock'!U16 -> 0 | AQ12: 113586.4613 | AR12: ='TNC CALC_Cstock'!X16 -> 2504.723248 | AS12: ='TNC CALC_Cstock'!Z16 -> 4808.856089 | AT12: ='TNC CALC_Cstock'!AB16 -> 326.981632 | AU12: 7640.560969 | AV12: 105945.9004 | AW12: -388.4683014 | AX12: ='6. TNC Assumptions'!C43 -> 382 | AY12: ='6. TNC Assumptions'!D43 -> 112 | AZ12: ='6. TNC Assumptions'!E43 -> 2433 | BA12: ='6. TNC Assumptions'!F43 -> 710 | BB12: ='6. TNC Assumptions'!G43 -> 12242 | BC12: ='6. TNC Assumptions'!I43 -> 174 | BD12: ='6. TNC Assumptions'!J43 -> 110 | BE12: ='6. TNC Assumptions'!K43 -> 889 | BF12: ='6. TNC Assumptions'!L43 -> 5079 | BG12: ='6. TNC Assumptions'!M43 -> 139 | BH12: ='6. TNC Assumptions'!O43 -> 565 | BI12: ='6. TNC Assumptions'!P43 -> 965 | BJ12: ='6. TNC Assumptions'!Q43 -> 2382 | BK12: ='6. TNC Assumptions'!R43 -> 5817 | BL12: ='6. TNC Assumptions'!S43 -> 60 | BM12: ='6. TNC Assumptions'!T43 -> 15100 | BN12: ='6. TNC Assumptions'!U43 -> 112 | BO12: ='6. TNC Assumptions'!W43 -> 0 | BP12: ='6. TNC Assumptions'!X43 -> 0 | BQ12: ='6. TNC Assumptions'!Y43 -> 0 | BR12: 47271 | BS12: ='TNC CALC_Cstock'!B49 -> 2298.112 | BT12: ='TNC CALC_Cstock'!C49 -> 673.792 | BU12: ='TNC CALC_Cstock'!D49 -> 19028.0064 | BV12: ='TNC CALC_Cstock'!E49 -> 4271.36 | BW12: ='TNC CALC_Cstock'!F49 -> 13256.61696 | BX12: ='TNC CALC_Cstock'!G49 -> 912.6648 | BY12: ='TNC CALC_Cstock'!H49 -> 576.972 | BZ12: ='TNC CALC_Cstock'!I49 -> 4662.9828 | CA12: ='TNC CALC_Cstock'!J49 -> 3723.9228 | CB12: ='TNC CALC_Cstock'!K49 -> 729.0828 | CC12: ='TNC CALC_Cstock'!L49 -> 2182.821 | CD12: ='TNC CALC_Cstock'!M49 -> 3728.181 | CE12: ='TNC CALC_Cstock'!N49 -> 9202.6188 | CF12: ='TNC CALC_Cstock'!O49 -> 17229.60498 | CG12: ='TNC CALC_Cstock'!P49 -> 231.804 | CH12: ='TNC CALC_Cstock'!Q49 -> 30140.959 | CI12: ='TNC CALC_Cstock'!R49 -> 736.96 | CJ12: ='TNC CALC_Cstock'!S49 -> 0 | CK12: ='TNC CALC_Cstock'!T49 -> 0 | CL12: ='TNC CALC_Cstock'!U49 -> 0 | CM12: 113586.4613 | CN12: ='TNC CALC_Cstock'!X49 -> 2504.723248 | CO12: ='TNC CALC_Cstock'!Z49 -> 4808.856089 | CP12: ='TNC CALC_Cstock'!AB49 -> 326.981632 | CQ12: 7640.560969 | CR12: 105945.9004 | CS12: -388.4683014 | CT12: ='6. TNC Assumptions'!C75 -> 382 | CU12: ='6. TNC Assumptions'!D75 -> 112 | CV12: ='6. TNC Assumptions'!E75 -> 2433 | CW12: ='6. TNC Assumptions'!F75 -> 710 | CX12: ='6. TNC Assumptions'!G75 -> 12242 | CY12: ='6. TNC Assumptions'!I75 -> 174 | CZ12: ='6. TNC Assumptions'!J75 -> 110 | DA12: ='6. TNC Assumptions'!K75 -> 889 | DB12: ='6. TNC Assumptions'!L75 -> 5079 | DC12: ='6. TNC Assumptions'!M75 -> 139 | DD12: ='6. TNC Assumptions'!O75 -> 565 | DE12: ='6. TNC Assumptions'!P75 -> 965 | DF12: ='6. TNC Assumptions'!Q75 -> 2382 | DG12: ='6. TNC Assumptions'!R75 -> 5817 | DH12: ='6. TNC Assumptions'!S75 -> 60 | DI12: ='6. TNC Assumptions'!T75 -> 15100 | DJ12: ='6. TNC Assumptions'!U75 -> 112 | DK12: ='6. TNC Assumptions'!W75 -> 0 | DL12: ='6. TNC Assumptions'!X75 -> 0 | DM12: ='6. TNC Assumptions'!Y75 -> 0 | DN12: 47271 | DO12: ='TNC CALC_Cstock'!B83 -> 2298.112 | DP12: ='TNC CALC_Cstock'!C83 -> 673.792 | DQ12: ='TNC CALC_Cstock'!D83 -> 19028.0064 | DR12: ='TNC CALC_Cstock'!E83 -> 4271.36 | DS12: ='TNC CALC_Cstock'!F83 -> 13256.61696 | DT12: ='TNC CALC_Cstock'!G83 -> 912.6648 | DU12: ='TNC CALC_Cstock'!H83 -> 576.972 | DV12: ='TNC CALC_Cstock'!I83 -> 4662.9828 | DW12: ='TNC CALC_Cstock'!J83 -> 3723.9228 | DX12: ='TNC CALC_Cstock'!K83 -> 729.0828 | DY12: ='TNC CALC_Cstock'!L83 -> 2182.821 | DZ12: ='TNC CALC_Cstock'!M83 -> 3728.181 | EA12: ='TNC CALC_Cstock'!N83 -> 9202.6188 | EB12: ='TNC CALC_Cstock'!O83 -> 17229.60498 | EC12: ='TNC CALC_Cstock'!P83 -> 231.804 | ED12: ='TNC CALC_Cstock'!Q83 -> 30140.959 | EE12: ='TNC CALC_Cstock'!R83 -> 736.96 | EF12: ='TNC CALC_Cstock'!S83 -> 0 | EG12: ='TNC CALC_Cstock'!T83 -> 0 | EH12: ='TNC CALC_Cstock'!U83 -> 0 | EI12: 113586.4613 | EJ12: ='TNC CALC_Cstock'!X83 -> 2504.723248 | EK12: ='TNC CALC_Cstock'!Z83 -> 4808.856089 | EL12: ='TNC CALC_Cstock'!AB83 -> 326.981632 | EM12: 7640.560969 | EN12: 105945.9004 | EO12: -388.4683014
A13: 2011 | B13: ='6. TNC Assumptions'!C12 -> 382 | C13: ='6. TNC Assumptions'!D12 -> 112 | D13: ='6. TNC Assumptions'!E12 -> 2437 | E13: ='6. TNC Assumptions'!F12 -> 710 | F13: ='6. TNC Assumptions'!G12 -> 12242 | G13: ='6. TNC Assumptions'!I12 -> 174 | H13: ='6. TNC Assumptions'!J12 -> 110 | I13: ='6. TNC Assumptions'!K12 -> 889 | J13: ='6. TNC Assumptions'!L12 -> 5079 | K13: ='6. TNC Assumptions'!M12 -> 139 | L13: ='6. TNC Assumptions'!O12 -> 565 | M13: ='6. TNC Assumptions'!P12 -> 965 | N13: ='6. TNC Assumptions'!Q12 -> 2268 | O13: ='6. TNC Assumptions'!R12 -> 5908 | P13: ='6. TNC Assumptions'!S12 -> 60 | Q13: ='6. TNC Assumptions'!T12 -> 15100 | R13: ='6. TNC Assumptions'!U12 -> 127 | S13: ='6. TNC Assumptions'!W12 -> 0 | T13: ='6. TNC Assumptions'!X12 -> 0 | U13: ='6. TNC Assumptions'!Y12 -> 0 | V13: 47267 | W13: ='TNC CALC_Cstock'!B17 -> 2298.112 | X13: ='TNC CALC_Cstock'!C17 -> 673.792 | Y13: ='TNC CALC_Cstock'!D17 -> 19059.2896 | Z13: ='TNC CALC_Cstock'!E17 -> 4271.36 | AA13: ='TNC CALC_Cstock'!F17 -> 13256.61696 | AB13: ='TNC CALC_Cstock'!G17 -> 912.6648 | AC13: ='TNC CALC_Cstock'!H17 -> 576.972 | AD13: ='TNC CALC_Cstock'!I17 -> 4662.9828 | AE13: ='TNC CALC_Cstock'!J17 -> 3723.9228 | AF13: ='TNC CALC_Cstock'!K17 -> 729.0828 | AG13: ='TNC CALC_Cstock'!L17 -> 2182.821 | AH13: ='TNC CALC_Cstock'!M17 -> 3728.181 | AI13: ='TNC CALC_Cstock'!N17 -> 8762.1912 | AJ13: ='TNC CALC_Cstock'!O17 -> 17499.14152 | AK13: ='TNC CALC_Cstock'!P17 -> 231.804 | AL13: ='TNC CALC_Cstock'!Q17 -> 30140.959 | AM13: ='TNC CALC_Cstock'!R17 -> 835.66 | AN13: ='TNC CALC_Cstock'!S17 -> 0 | AO13: ='TNC CALC_Cstock'!T17 -> 0 | AP13: ='TNC CALC_Cstock'!U17 -> 0 | AQ13: 113545.5535 | AR13: ='TNC CALC_Cstock'!X17 -> 2261.298216 | AS13: ='TNC CALC_Cstock'!Z17 -> 3312.327068 | AT13: ='TNC CALC_Cstock'!AB17 -> 313.0822656 | AU13: 5886.70755 | AV13: 107658.8459 | AW13: -394.7491017 | AX13: ='6. TNC Assumptions'!C44 -> 382 | AY13: ='6. TNC Assumptions'!D44 -> 112 | AZ13: ='6. TNC Assumptions'!E44 -> 2437 | BA13: ='6. TNC Assumptions'!F44 -> 710 | BB13: ='6. TNC Assumptions'!G44 -> 12242 | BC13: ='6. TNC Assumptions'!I44 -> 174 | BD13: ='6. TNC Assumptions'!J44 -> 110 | BE13: ='6. TNC Assumptions'!K44 -> 889 | BF13: ='6. TNC Assumptions'!L44 -> 5079 | BG13: ='6. TNC Assumptions'!M44 -> 139 | BH13: ='6. TNC Assumptions'!O44 -> 565 | BI13: ='6. TNC Assumptions'!P44 -> 965 | BJ13: ='6. TNC Assumptions'!Q44 -> 2268 | BK13: ='6. TNC Assumptions'!R44 -> 5908 | BL13: ='6. TNC Assumptions'!S44 -> 60 | BM13: ='6. TNC Assumptions'!T44 -> 15100 | BN13: ='6. TNC Assumptions'!U44 -> 127 | BO13: ='6. TNC Assumptions'!W44 -> 0 | BP13: ='6. TNC Assumptions'!X44 -> 0 | BQ13: ='6. TNC Assumptions'!Y44 -> 0 | BR13: 47267 | BS13: ='TNC CALC_Cstock'!B50 -> 2298.112 | BT13: ='TNC CALC_Cstock'!C50 -> 673.792 | BU13: ='TNC CALC_Cstock'!D50 -> 19059.2896 | BV13: ='TNC CALC_Cstock'!E50 -> 4271.36 | BW13: ='TNC CALC_Cstock'!F50 -> 13256.61696 | BX13: ='TNC CALC_Cstock'!G50 -> 912.6648 | BY13: ='TNC CALC_Cstock'!H50 -> 576.972 | BZ13: ='TNC CALC_Cstock'!I50 -> 4662.9828 | CA13: ='TNC CALC_Cstock'!J50 -> 3723.9228 | CB13: ='TNC CALC_Cstock'!K50 -> 729.0828 | CC13: ='TNC CALC_Cstock'!L50 -> 2182.821 | CD13: ='TNC CALC_Cstock'!M50 -> 3728.181 | CE13: ='TNC CALC_Cstock'!N50 -> 8762.1912 | CF13: ='TNC CALC_Cstock'!O50 -> 17499.14152 | CG13: ='TNC CALC_Cstock'!P50 -> 231.804 | CH13: ='TNC CALC_Cstock'!Q50 -> 30140.959 | CI13: ='TNC CALC_Cstock'!R50 -> 835.66 | CJ13: ='TNC CALC_Cstock'!S50 -> 0 | CK13: ='TNC CALC_Cstock'!T50 -> 0 | CL13: ='TNC CALC_Cstock'!U50 -> 0 | CM13: 113545.5535 | CN13: ='TNC CALC_Cstock'!X50 -> 2261.298216 | CO13: ='TNC CALC_Cstock'!Z50 -> 3312.327068 | CP13: ='TNC CALC_Cstock'!AB50 -> 313.0822656 | CQ13: 5886.70755 | CR13: 107658.8459 | CS13: -394.7491017 | CT13: ='6. TNC Assumptions'!C76 -> 382 | CU13: ='6. TNC Assumptions'!D76 -> 112 | CV13: ='6. TNC Assumptions'!E76 -> 2437 | CW13: ='6. TNC Assumptions'!F76 -> 710 | CX13: ='6. TNC Assumptions'!G76 -> 12242 | CY13: ='6. TNC Assumptions'!I76 -> 174 | CZ13: ='6. TNC Assumptions'!J76 -> 110 | DA13: ='6. TNC Assumptions'!K76 -> 889 | DB13: ='6. TNC Assumptions'!L76 -> 5079 | DC13: ='6. TNC Assumptions'!M76 -> 139 | DD13: ='6. TNC Assumptions'!O76 -> 565 | DE13: ='6. TNC Assumptions'!P76 -> 965 | DF13: ='6. TNC Assumptions'!Q76 -> 2268 | DG13: ='6. TNC Assumptions'!R76 -> 5908 | DH13: ='6. TNC Assumptions'!S76 -> 60 | DI13: ='6. TNC Assumptions'!T76 -> 15100 | DJ13: ='6. TNC Assumptions'!U76 -> 127 | DK13: ='6. TNC Assumptions'!W76 -> 0 | DL13: ='6. TNC Assumptions'!X76 -> 0 | DM13: ='6. TNC Assumptions'!Y76 -> 0 | DN13: 47267 | DO13: ='TNC CALC_Cstock'!B84 -> 2298.112 | DP13: ='TNC CALC_Cstock'!C84 -> 673.792 | DQ13: ='TNC CALC_Cstock'!D84 -> 19059.2896 | DR13: ='TNC CALC_Cstock'!E84 -> 4271.36 | DS13: ='TNC CALC_Cstock'!F84 -> 13256.61696 | DT13: ='TNC CALC_Cstock'!G84 -> 912.6648 | DU13: ='TNC CALC_Cstock'!H84 -> 576.972 | DV13: ='TNC CALC_Cstock'!I84 -> 4662.9828 | DW13: ='TNC CALC_Cstock'!J84 -> 3723.9228 | DX13: ='TNC CALC_Cstock'!K84 -> 729.0828 | DY13: ='TNC CALC_Cstock'!L84 -> 2182.821 | DZ13: ='TNC CALC_Cstock'!M84 -> 3728.181 | EA13: ='TNC CALC_Cstock'!N84 -> 8762.1912 | EB13: ='TNC CALC_Cstock'!O84 -> 17499.14152 | EC13: ='TNC CALC_Cstock'!P84 -> 231.804 | ED13: ='TNC CALC_Cstock'!Q84 -> 30140.959 | EE13: ='TNC CALC_Cstock'!R84 -> 835.66 | EF13: ='TNC CALC_Cstock'!S84 -> 0 | EG13: ='TNC CALC_Cstock'!T84 -> 0 | EH13: ='TNC CALC_Cstock'!U84 -> 0 | EI13: 113545.5535 | EJ13: ='TNC CALC_Cstock'!X84 -> 2261.298216 | EK13: ='TNC CALC_Cstock'!Z84 -> 3312.327068 | EL13: ='TNC CALC_Cstock'!AB84 -> 313.0822656 | EM13: 5886.70755 | EN13: 107658.8459 | EO13: -394.7491017
A14: 2012 | B14: ='6. TNC Assumptions'!C13 -> 382 | C14: ='6. TNC Assumptions'!D13 -> 112 | D14: ='6. TNC Assumptions'!E13 -> 2437 | E14: ='6. TNC Assumptions'!F13 -> 710 | F14: ='6. TNC Assumptions'!G13 -> 12242 | G14: ='6. TNC Assumptions'!I13 -> 174 | H14: ='6. TNC Assumptions'!J13 -> 110 | I14: ='6. TNC Assumptions'!K13 -> 889 | J14: ='6. TNC Assumptions'!L13 -> 5079 | K14: ='6. TNC Assumptions'!M13 -> 139 | L14: ='6. TNC Assumptions'!O13 -> 565 | M14: ='6. TNC Assumptions'!P13 -> 965 | N14: ='6. TNC Assumptions'!Q13 -> 2203 | O14: ='6. TNC Assumptions'!R13 -> 5976 | P14: ='6. TNC Assumptions'!S13 -> 60 | Q14: ='6. TNC Assumptions'!T13 -> 15100 | R14: ='6. TNC Assumptions'!U13 -> 140 | S14: ='6. TNC Assumptions'!W13 -> 0 | T14: ='6. TNC Assumptions'!X13 -> 0 | U14: ='6. TNC Assumptions'!Y13 -> 0 | V14: 47283 | W14: ='TNC CALC_Cstock'!B18 -> 2298.112 | X14: ='TNC CALC_Cstock'!C18 -> 673.792 | Y14: ='TNC CALC_Cstock'!D18 -> 19059.2896 | Z14: ='TNC CALC_Cstock'!E18 -> 4271.36 | AA14: ='TNC CALC_Cstock'!F18 -> 13256.61696 | AB14: ='TNC CALC_Cstock'!G18 -> 912.6648 | AC14: ='TNC CALC_Cstock'!H18 -> 576.972 | AD14: ='TNC CALC_Cstock'!I18 -> 4662.9828 | AE14: ='TNC CALC_Cstock'!J18 -> 3723.9228 | AF14: ='TNC CALC_Cstock'!K18 -> 729.0828 | AG14: ='TNC CALC_Cstock'!L18 -> 2182.821 | AH14: ='TNC CALC_Cstock'!M18 -> 3728.181 | AI14: ='TNC CALC_Cstock'!N18 -> 8511.0702 | AJ14: ='TNC CALC_Cstock'!O18 -> 17700.55344 | AK14: ='TNC CALC_Cstock'!P18 -> 231.804 | AL14: ='TNC CALC_Cstock'!Q18 -> 30140.959 | AM14: ='TNC CALC_Cstock'!R18 -> 921.2 | AN14: ='TNC CALC_Cstock'!S18 -> 0 | AO14: ='TNC CALC_Cstock'!T18 -> 0 | AP14: ='TNC CALC_Cstock'!U18 -> 0 | AQ14: 113581.3844 | AR14: ='TNC CALC_Cstock'!X18 -> 1601.343721 | AS14: ='TNC CALC_Cstock'!Z18 -> 2628.962672 | AT14: ='TNC CALC_Cstock'!AB18 -> 335.21152 | AU14: 4565.517913 | AV14: 109015.8665 | AW14: -399.7248438 | AX14: ='6. TNC Assumptions'!C45 -> 382 | AY14: ='6. TNC Assumptions'!D45 -> 112 | AZ14: ='6. TNC Assumptions'!E45 -> 2437 | BA14: ='6. TNC Assumptions'!F45 -> 710 | BB14: ='6. TNC Assumptions'!G45 -> 12242 | BC14: ='6. TNC Assumptions'!I45 -> 174 | BD14: ='6. TNC Assumptions'!J45 -> 110 | BE14: ='6. TNC Assumptions'!K45 -> 889 | BF14: ='6. TNC Assumptions'!L45 -> 5079 | BG14: ='6. TNC Assumptions'!M45 -> 139 | BH14: ='6. TNC Assumptions'!O45 -> 565 | BI14: ='6. TNC Assumptions'!P45 -> 965 | BJ14: ='6. TNC Assumptions'!Q45 -> 2203 | BK14: ='6. TNC Assumptions'!R45 -> 5976 | BL14: ='6. TNC Assumptions'!S45 -> 60 | BM14: ='6. TNC Assumptions'!T45 -> 15100 | BN14: ='6. TNC Assumptions'!U45 -> 140 | BO14: ='6. TNC Assumptions'!W45 -> 0 | BP14: ='6. TNC Assumptions'!X45 -> 0 | BQ14: ='6. TNC Assumptions'!Y45 -> 0 | BR14: 47283 | BS14: ='TNC CALC_Cstock'!B51 -> 2298.112 | BT14: ='TNC CALC_Cstock'!C51 -> 673.792 | BU14: ='TNC CALC_Cstock'!D51 -> 19059.2896 | BV14: ='TNC CALC_Cstock'!E51 -> 4271.36 | BW14: ='TNC CALC_Cstock'!F51 -> 13256.61696 | BX14: ='TNC CALC_Cstock'!G51 -> 912.6648 | BY14: ='TNC CALC_Cstock'!H51 -> 576.972 | BZ14: ='TNC CALC_Cstock'!I51 -> 4662.9828 | CA14: ='TNC CALC_Cstock'!J51 -> 3723.9228 | CB14: ='TNC CALC_Cstock'!K51 -> 729.0828 | CC14: ='TNC CALC_Cstock'!L51 -> 2182.821 | CD14: ='TNC CALC_Cstock'!M51 -> 3728.181 | CE14: ='TNC CALC_Cstock'!N51 -> 8511.0702 | CF14: ='TNC CALC_Cstock'!O51 -> 17700.55344 | CG14: ='TNC CALC_Cstock'!P51 -> 231.804 | CH14: ='TNC CALC_Cstock'!Q51 -> 30140.959 | CI14: ='TNC CALC_Cstock'!R51 -> 921.2 | CJ14: ='TNC CALC_Cstock'!S51 -> 0 | CK14: ='TNC CALC_Cstock'!T51 -> 0 | CL14: ='TNC CALC_Cstock'!U51 -> 0 | CM14: 113581.3844 | CN14: ='TNC CALC_Cstock'!X51 -> 1601.343721 | CO14: ='TNC CALC_Cstock'!Z51 -> 2628.962672 | CP14: ='TNC CALC_Cstock'!AB51 -> 335.21152 | CQ14: 4565.517913 | CR14: 109015.8665 | CS14: -399.7248438 | CT14: ='6. TNC Assumptions'!C77 -> 382 | CU14: ='6. TNC Assumptions'!D77 -> 112 | CV14: ='6. TNC Assumptions'!E77 -> 2437 | CW14: ='6. TNC Assumptions'!F77 -> 710 | CX14: ='6. TNC Assumptions'!G77 -> 12242 | CY14: ='6. TNC Assumptions'!I77 -> 174 | CZ14: ='6. TNC Assumptions'!J77 -> 110 | DA14: ='6. TNC Assumptions'!K77 -> 889 | DB14: ='6. TNC Assumptions'!L77 -> 5079 | DC14: ='6. TNC Assumptions'!M77 -> 139 | DD14: ='6. TNC Assumptions'!O77 -> 565 | DE14: ='6. TNC Assumptions'!P77 -> 965 | DF14: ='6. TNC Assumptions'!Q77 -> 2203 | DG14: ='6. TNC Assumptions'!R77 -> 5976 | DH14: ='6. TNC Assumptions'!S77 -> 60 | DI14: ='6. TNC Assumptions'!T77 -> 15100 | DJ14: ='6. TNC Assumptions'!U77 -> 140 | DK14: ='6. TNC Assumptions'!W77 -> 0 | DL14: ='6. TNC Assumptions'!X77 -> 0 | DM14: ='6. TNC Assumptions'!Y77 -> 0 | DN14: 47283 | DO14: ='TNC CALC_Cstock'!B85 -> 2298.112 | DP14: ='TNC CALC_Cstock'!C85 -> 673.792 | DQ14: ='TNC CALC_Cstock'!D85 -> 19059.2896 | DR14: ='TNC CALC_Cstock'!E85 -> 4271.36 | DS14: ='TNC CALC_Cstock'!F85 -> 13256.61696 | DT14: ='TNC CALC_Cstock'!G85 -> 912.6648 | DU14: ='TNC CALC_Cstock'!H85 -> 576.972 | DV14: ='TNC CALC_Cstock'!I85 -> 4662.9828 | DW14: ='TNC CALC_Cstock'!J85 -> 3723.9228 | DX14: ='TNC CALC_Cstock'!K85 -> 729.0828 | DY14: ='TNC CALC_Cstock'!L85 -> 2182.821 | DZ14: ='TNC CALC_Cstock'!M85 -> 3728.181 | EA14: ='TNC CALC_Cstock'!N85 -> 8511.0702 | EB14: ='TNC CALC_Cstock'!O85 -> 17700.55344 | EC14: ='TNC CALC_Cstock'!P85 -> 231.804 | ED14: ='TNC CALC_Cstock'!Q85 -> 30140.959 | EE14: ='TNC CALC_Cstock'!R85 -> 921.2 | EF14: ='TNC CALC_Cstock'!S85 -> 0 | EG14: ='TNC CALC_Cstock'!T85 -> 0 | EH14: ='TNC CALC_Cstock'!U85 -> 0 | EI14: 113581.3844 | EJ14: ='TNC CALC_Cstock'!X85 -> 1601.343721 | EK14: ='TNC CALC_Cstock'!Z85 -> 2628.962672 | EL14: ='TNC CALC_Cstock'!AB85 -> 335.21152 | EM14: 4565.517913 | EN14: 109015.8665 | EO14: -399.7248438
A15: 2013 | B15: ='6. TNC Assumptions'!C14 -> 382 | C15: ='6. TNC Assumptions'!D14 -> 111 | D15: ='6. TNC Assumptions'!E14 -> 2402 | E15: ='6. TNC Assumptions'!F14 -> 710 | F15: ='6. TNC Assumptions'!G14 -> 12243 | G15: ='6. TNC Assumptions'!I14 -> 174 | H15: ='6. TNC Assumptions'!J14 -> 110 | I15: ='6. TNC Assumptions'!K14 -> 889 | J15: ='6. TNC Assumptions'!L14 -> 5079 | K15: ='6. TNC Assumptions'!M14 -> 139 | L15: ='6. TNC Assumptions'!O14 -> 565 | M15: ='6. TNC Assumptions'!P14 -> 965 | N15: ='6. TNC Assumptions'!Q14 -> 2245 | O15: ='6. TNC Assumptions'!R14 -> 5934 | P15: ='6. TNC Assumptions'!S14 -> 60 | Q15: ='6. TNC Assumptions'!T14 -> 15100 | R15: ='6. TNC Assumptions'!U14 -> 160 | S15: ='6. TNC Assumptions'!W14 -> 0 | T15: ='6. TNC Assumptions'!X14 -> 0 | U15: ='6. TNC Assumptions'!Y14 -> 0 | V15: 47268 | W15: ='TNC CALC_Cstock'!B19 -> 2298.112 | X15: ='TNC CALC_Cstock'!C19 -> 667.776 | Y15: ='TNC CALC_Cstock'!D19 -> 18785.5616 | Z15: ='TNC CALC_Cstock'!E19 -> 4271.36 | AA15: ='TNC CALC_Cstock'!F19 -> 13257.69984 | AB15: ='TNC CALC_Cstock'!G19 -> 912.6648 | AC15: ='TNC CALC_Cstock'!H19 -> 576.972 | AD15: ='TNC CALC_Cstock'!I19 -> 4662.9828 | AE15: ='TNC CALC_Cstock'!J19 -> 3723.9228 | AF15: ='TNC CALC_Cstock'!K19 -> 729.0828 | AG15: ='TNC CALC_Cstock'!L19 -> 2182.821 | AH15: ='TNC CALC_Cstock'!M19 -> 3728.181 | AI15: ='TNC CALC_Cstock'!N19 -> 8673.333 | AJ15: ='TNC CALC_Cstock'!O19 -> 17576.15196 | AK15: ='TNC CALC_Cstock'!P19 -> 231.804 | AL15: ='TNC CALC_Cstock'!Q19 -> 30140.959 | AM15: ='TNC CALC_Cstock'!R19 -> 1052.8 | AN15: ='TNC CALC_Cstock'!S19 -> 0 | AO15: ='TNC CALC_Cstock'!T19 -> 0 | AP15: ='TNC CALC_Cstock'!U19 -> 0 | AQ15: 113472.1846 | AR15: ='TNC CALC_Cstock'!X19 -> 735.981272 | AS15: ='TNC CALC_Cstock'!Z19 -> 2007.972399 | AT15: ='TNC CALC_Cstock'!AB19 -> 348.458752 | AU15: 3092.412423 | AV15: 110379.7722 | AW15: -404.7258313 | AX15: ='6. TNC Assumptions'!C46 -> 382 | AY15: ='6. TNC Assumptions'!D46 -> 111 | AZ15: ='6. TNC Assumptions'!E46 -> 2402 | BA15: ='6. TNC Assumptions'!F46 -> 710 | BB15: ='6. TNC Assumptions'!G46 -> 12243 | BC15: ='6. TNC Assumptions'!I46 -> 174 | BD15: ='6. TNC Assumptions'!J46 -> 110 | BE15: ='6. TNC Assumptions'!K46 -> 889 | BF15: ='6. TNC Assumptions'!L46 -> 5079 | BG15: ='6. TNC Assumptions'!M46 -> 139 | BH15: ='6. TNC Assumptions'!O46 -> 565 | BI15: ='6. TNC Assumptions'!P46 -> 965 | BJ15: ='6. TNC Assumptions'!Q46 -> 2245 | BK15: ='6. TNC Assumptions'!R46 -> 5934 | BL15: ='6. TNC Assumptions'!S46 -> 60 | BM15: ='6. TNC Assumptions'!T46 -> 15100 | BN15: ='6. TNC Assumptions'!U46 -> 160 | BO15: ='6. TNC Assumptions'!W46 -> 0 | BP15: ='6. TNC Assumptions'!X46 -> 0 | BQ15: ='6. TNC Assumptions'!Y46 -> 0 | BR15: 47268 | BS15: ='TNC CALC_Cstock'!B52 -> 2298.112 | BT15: ='TNC CALC_Cstock'!C52 -> 667.776 | BU15: ='TNC CALC_Cstock'!D52 -> 18785.5616 | BV15: ='TNC CALC_Cstock'!E52 -> 4271.36 | BW15: ='TNC CALC_Cstock'!F52 -> 13257.69984 | BX15: ='TNC CALC_Cstock'!G52 -> 912.6648 | BY15: ='TNC CALC_Cstock'!H52 -> 576.972 | BZ15: ='TNC CALC_Cstock'!I52 -> 4662.9828 | CA15: ='TNC CALC_Cstock'!J52 -> 3723.9228 | CB15: ='TNC CALC_Cstock'!K52 -> 729.0828 | CC15: ='TNC CALC_Cstock'!L52 -> 2182.821 | CD15: ='TNC CALC_Cstock'!M52 -> 3728.181 | CE15: ='TNC CALC_Cstock'!N52 -> 8673.333 | CF15: ='TNC CALC_Cstock'!O52 -> 17576.15196 | CG15: ='TNC CALC_Cstock'!P52 -> 231.804 | CH15: ='TNC CALC_Cstock'!Q52 -> 30140.959 | CI15: ='TNC CALC_Cstock'!R52 -> 1052.8 | CJ15: ='TNC CALC_Cstock'!S52 -> 0 | CK15: ='TNC CALC_Cstock'!T52 -> 0 | CL15: ='TNC CALC_Cstock'!U52 -> 0 | CM15: 113472.1846 | CN15: ='TNC CALC_Cstock'!X52 -> 735.981272 | CO15: ='TNC CALC_Cstock'!Z52 -> 2007.972399 | CP15: ='TNC CALC_Cstock'!AB52 -> 348.458752 | CQ15: 3092.412423 | CR15: 110379.7722 | CS15: -404.7258313 | CT15: ='6. TNC Assumptions'!C78 -> 382 | CU15: ='6. TNC Assumptions'!D78 -> 111 | CV15: ='6. TNC Assumptions'!E78 -> 2402 | CW15: ='6. TNC Assumptions'!F78 -> 710 | CX15: ='6. TNC Assumptions'!G78 -> 12243 | CY15: ='6. TNC Assumptions'!I78 -> 174 | CZ15: ='6. TNC Assumptions'!J78 -> 110 | DA15: ='6. TNC Assumptions'!K78 -> 889 | DB15: ='6. TNC Assumptions'!L78 -> 5079 | DC15: ='6. TNC Assumptions'!M78 -> 139 | DD15: ='6. TNC Assumptions'!O78 -> 565 | DE15: ='6. TNC Assumptions'!P78 -> 965 | DF15: ='6. TNC Assumptions'!Q78 -> 2245 | DG15: ='6. TNC Assumptions'!R78 -> 5934 | DH15: ='6. TNC Assumptions'!S78 -> 60 | DI15: ='6. TNC Assumptions'!T78 -> 15100 | DJ15: ='6. TNC Assumptions'!U78 -> 160 | DK15: ='6. TNC Assumptions'!W78 -> 0 | DL15: ='6. TNC Assumptions'!X78 -> 0 | DM15: ='6. TNC Assumptions'!Y78 -> 0 | DN15: 47268 | DO15: ='TNC CALC_Cstock'!B86 -> 2298.112 | DP15: ='TNC CALC_Cstock'!C86 -> 667.776 | DQ15: ='TNC CALC_Cstock'!D86 -> 18785.5616 | DR15: ='TNC CALC_Cstock'!E86 -> 4271.36 | DS15: ='TNC CALC_Cstock'!F86 -> 13257.69984 | DT15: ='TNC CALC_Cstock'!G86 -> 912.6648 | DU15: ='TNC CALC_Cstock'!H86 -> 576.972 | DV15: ='TNC CALC_Cstock'!I86 -> 4662.9828 | DW15: ='TNC CALC_Cstock'!J86 -> 3723.9228 | DX15: ='TNC CALC_Cstock'!K86 -> 729.0828 | DY15: ='TNC CALC_Cstock'!L86 -> 2182.821 | DZ15: ='TNC CALC_Cstock'!M86 -> 3728.181 | EA15: ='TNC CALC_Cstock'!N86 -> 8673.333 | EB15: ='TNC CALC_Cstock'!O86 -> 17576.15196 | EC15: ='TNC CALC_Cstock'!P86 -> 231.804 | ED15: ='TNC CALC_Cstock'!Q86 -> 30140.959 | EE15: ='TNC CALC_Cstock'!R86 -> 1052.8 | EF15: ='TNC CALC_Cstock'!S86 -> 0 | EG15: ='TNC CALC_Cstock'!T86 -> 0 | EH15: ='TNC CALC_Cstock'!U86 -> 0 | EI15: 113472.1846 | EJ15: ='TNC CALC_Cstock'!X86 -> 735.981272 | EK15: ='TNC CALC_Cstock'!Z86 -> 2007.972399 | EL15: ='TNC CALC_Cstock'!AB86 -> 348.458752 | EM15: 3092.412423 | EN15: 110379.7722 | EO15: -404.7258313
A16: 2014 | B16: ='6. TNC Assumptions'!C15 -> 382 | C16: ='6. TNC Assumptions'!D15 -> 106 | D16: ='6. TNC Assumptions'!E15 -> 2402 | E16: ='6. TNC Assumptions'!F15 -> 710 | F16: ='6. TNC Assumptions'!G15 -> 12243 | G16: ='6. TNC Assumptions'!I15 -> 174 | H16: ='6. TNC Assumptions'!J15 -> 110 | I16: ='6. TNC Assumptions'!K15 -> 889 | J16: ='6. TNC Assumptions'!L15 -> 5079 | K16: ='6. TNC Assumptions'!M15 -> 139 | L16: ='6. TNC Assumptions'!O15 -> 565 | M16: ='6. TNC Assumptions'!P15 -> 965 | N16: ='6. TNC Assumptions'!Q15 -> 2271 | O16: ='6. TNC Assumptions'!R15 -> 5866 | P16: ='6. TNC Assumptions'!S15 -> 60 | Q16: ='6. TNC Assumptions'!T15 -> 15142 | R16: ='6. TNC Assumptions'!U15 -> 181 | S16: ='6. TNC Assumptions'!W15 -> 0 | T16: ='6. TNC Assumptions'!X15 -> 0 | U16: ='6. TNC Assumptions'!Y15 -> 0 | V16: 47284 | W16: ='TNC CALC_Cstock'!B20 -> 2298.112 | X16: ='TNC CALC_Cstock'!C20 -> 637.696 | Y16: ='TNC CALC_Cstock'!D20 -> 18785.5616 | Z16: ='TNC CALC_Cstock'!E20 -> 4271.36 | AA16: ='TNC CALC_Cstock'!F20 -> 13257.69984 | AB16: ='TNC CALC_Cstock'!G20 -> 912.6648 | AC16: ='TNC CALC_Cstock'!H20 -> 576.972 | AD16: ='TNC CALC_Cstock'!I20 -> 4662.9828 | AE16: ='TNC CALC_Cstock'!J20 -> 3723.9228 | AF16: ='TNC CALC_Cstock'!K20 -> 729.0828 | AG16: ='TNC CALC_Cstock'!L20 -> 2182.821 | AH16: ='TNC CALC_Cstock'!M20 -> 3728.181 | AI16: ='TNC CALC_Cstock'!N20 -> 8773.7814 | AJ16: ='TNC CALC_Cstock'!O20 -> 17374.74004 | AK16: ='TNC CALC_Cstock'!P20 -> 231.804 | AL16: ='TNC CALC_Cstock'!Q20 -> 30224.79478 | AM16: ='TNC CALC_Cstock'!R20 -> 1190.98 | AN16: ='TNC CALC_Cstock'!S20 -> 0 | AO16: ='TNC CALC_Cstock'!T20 -> 0 | AP16: ='TNC CALC_Cstock'!U20 -> 0 | AQ16: 113563.1569 | AR16: ='TNC CALC_Cstock'!X20 -> 633.732396 | AS16: ='TNC CALC_Cstock'!Z20 -> 1866.060364 | AT16: ='TNC CALC_Cstock'!AB20 -> 765.030656 | AU16: 3264.823416 | AV16: 110298.3334 | AW16: -404.4272226 | AX16: ='6. TNC Assumptions'!C47 -> 382 | AY16: ='6. TNC Assumptions'!D47 -> 106 | AZ16: ='6. TNC Assumptions'!E47 -> 2402 | BA16: ='6. TNC Assumptions'!F47 -> 710 | BB16: ='6. TNC Assumptions'!G47 -> 12243 | BC16: ='6. TNC Assumptions'!I47 -> 174 | BD16: ='6. TNC Assumptions'!J47 -> 110 | BE16: ='6. TNC Assumptions'!K47 -> 889 | BF16: ='6. TNC Assumptions'!L47 -> 5079 | BG16: ='6. TNC Assumptions'!M47 -> 139 | BH16: ='6. TNC Assumptions'!O47 -> 565 | BI16: ='6. TNC Assumptions'!P47 -> 965 | BJ16: ='6. TNC Assumptions'!Q47 -> 2271 | BK16: ='6. TNC Assumptions'!R47 -> 5866 | BL16: ='6. TNC Assumptions'!S47 -> 60 | BM16: ='6. TNC Assumptions'!T47 -> 15142 | BN16: ='6. TNC Assumptions'!U47 -> 181 | BO16: ='6. TNC Assumptions'!W47 -> 0 | BP16: ='6. TNC Assumptions'!X47 -> 0 | BQ16: ='6. TNC Assumptions'!Y47 -> 0 | BR16: 47284 | BS16: ='TNC CALC_Cstock'!B53 -> 2298.112 | BT16: ='TNC CALC_Cstock'!C53 -> 637.696 | BU16: ='TNC CALC_Cstock'!D53 -> 18785.5616 | BV16: ='TNC CALC_Cstock'!E53 -> 4271.36 | BW16: ='TNC CALC_Cstock'!F53 -> 13257.69984 | BX16: ='TNC CALC_Cstock'!G53 -> 912.6648 | BY16: ='TNC CALC_Cstock'!H53 -> 576.972 | BZ16: ='TNC CALC_Cstock'!I53 -> 4662.9828 | CA16: ='TNC CALC_Cstock'!J53 -> 3723.9228 | CB16: ='TNC CALC_Cstock'!K53 -> 729.0828 | CC16: ='TNC CALC_Cstock'!L53 -> 2182.821 | CD16: ='TNC CALC_Cstock'!M53 -> 3728.181 | CE16: ='TNC CALC_Cstock'!N53 -> 8773.7814 | CF16: ='TNC CALC_Cstock'!O53 -> 17374.74004 | CG16: ='TNC CALC_Cstock'!P53 -> 231.804 | CH16: ='TNC CALC_Cstock'!Q53 -> 30224.79478 | CI16: ='TNC CALC_Cstock'!R53 -> 1190.98 | CJ16: ='TNC CALC_Cstock'!S53 -> 0 | CK16: ='TNC CALC_Cstock'!T53 -> 0 | CL16: ='TNC CALC_Cstock'!U53 -> 0 | CM16: 113563.1569 | CN16: ='TNC CALC_Cstock'!X53 -> 633.732396 | CO16: ='TNC CALC_Cstock'!Z53 -> 1866.060364 | CP16: ='TNC CALC_Cstock'!AB53 -> 765.030656 | CQ16: 3264.823416 | CR16: 110298.3334 | CS16: -404.4272226 | CT16: ='6. TNC Assumptions'!C79 -> 382 | CU16: ='6. TNC Assumptions'!D79 -> 106 | CV16: ='6. TNC Assumptions'!E79 -> 2402 | CW16: ='6. TNC Assumptions'!F79 -> 710 | CX16: ='6. TNC Assumptions'!G79 -> 12243 | CY16: ='6. TNC Assumptions'!I79 -> 174 | CZ16: ='6. TNC Assumptions'!J79 -> 110 | DA16: ='6. TNC Assumptions'!K79 -> 889 | DB16: ='6. TNC Assumptions'!L79 -> 5079 | DC16: ='6. TNC Assumptions'!M79 -> 139 | DD16: ='6. TNC Assumptions'!O79 -> 565 | DE16: ='6. TNC Assumptions'!P79 -> 965 | DF16: ='6. TNC Assumptions'!Q79 -> 2271 | DG16: ='6. TNC Assumptions'!R79 -> 5866 | DH16: ='6. TNC Assumptions'!S79 -> 60 | DI16: ='6. TNC Assumptions'!T79 -> 15142 | DJ16: ='6. TNC Assumptions'!U79 -> 181 | DK16: ='6. TNC Assumptions'!W79 -> 0 | DL16: ='6. TNC Assumptions'!X79 -> 0 | DM16: ='6. TNC Assumptions'!Y79 -> 0 | DN16: 47284 | DO16: ='TNC CALC_Cstock'!B87 -> 2298.112 | DP16: ='TNC CALC_Cstock'!C87 -> 637.696 | DQ16: ='TNC CALC_Cstock'!D87 -> 18785.5616 | DR16: ='TNC CALC_Cstock'!E87 -> 4271.36 | DS16: ='TNC CALC_Cstock'!F87 -> 13257.69984 | DT16: ='TNC CALC_Cstock'!G87 -> 912.6648 | DU16: ='TNC CALC_Cstock'!H87 -> 576.972 | DV16: ='TNC CALC_Cstock'!I87 -> 4662.9828 | DW16: ='TNC CALC_Cstock'!J87 -> 3723.9228 | DX16: ='TNC CALC_Cstock'!K87 -> 729.0828 | DY16: ='TNC CALC_Cstock'!L87 -> 2182.821 | DZ16: ='TNC CALC_Cstock'!M87 -> 3728.181 | EA16: ='TNC CALC_Cstock'!N87 -> 8773.7814 | EB16: ='TNC CALC_Cstock'!O87 -> 17374.74004 | EC16: ='TNC CALC_Cstock'!P87 -> 231.804 | ED16: ='TNC CALC_Cstock'!Q87 -> 30224.79478 | EE16: ='TNC CALC_Cstock'!R87 -> 1190.98 | EF16: ='TNC CALC_Cstock'!S87 -> 0 | EG16: ='TNC CALC_Cstock'!T87 -> 0 | EH16: ='TNC CALC_Cstock'!U87 -> 0 | EI16: 113563.1569 | EJ16: ='TNC CALC_Cstock'!X87 -> 633.732396 | EK16: ='TNC CALC_Cstock'!Z87 -> 1866.060364 | EL16: ='TNC CALC_Cstock'!AB87 -> 765.030656 | EM16: 3264.823416 | EN16: 110298.3334 | EO16: -404.4272226
A17: =A16+1 -> 2015 | B17: ='6. TNC Assumptions'!C16 -> 382 | C17: ='6. TNC Assumptions'!D16 -> 106 | D17: ='6. TNC Assumptions'!E16 -> 2402 | E17: ='6. TNC Assumptions'!F16 -> 710 | F17: ='6. TNC Assumptions'!G16 -> 12243 | G17: ='6. TNC Assumptions'!I16 -> 174 | H17: ='6. TNC Assumptions'!J16 -> 110 | I17: ='6. TNC Assumptions'!K16 -> 889 | J17: ='6. TNC Assumptions'!L16 -> 5079 | K17: ='6. TNC Assumptions'!M16 -> 139 | L17: ='6. TNC Assumptions'!O16 -> 565 | M17: ='6. TNC Assumptions'!P16 -> 965 | N17: ='6. TNC Assumptions'!Q16 -> 2271 | O17: ='6. TNC Assumptions'!R16 -> 5832 | P17: ='6. TNC Assumptions'!S16 -> 60 | Q17: ='6. TNC Assumptions'!T16 -> 15142 | R17: ='6. TNC Assumptions'!U16 -> 182 | S17: ='6. TNC Assumptions'!W16 -> 0 | T17: ='6. TNC Assumptions'!X16 -> 0 | U17: ='6. TNC Assumptions'!Y16 -> 0 | V17: 47251 | W17: ='TNC CALC_Cstock'!B21 -> 2298.112 | X17: ='TNC CALC_Cstock'!C21 -> 637.696 | Y17: ='TNC CALC_Cstock'!D21 -> 18785.5616 | Z17: ='TNC CALC_Cstock'!E21 -> 4271.36 | AA17: ='TNC CALC_Cstock'!F21 -> 13257.69984 | AB17: ='TNC CALC_Cstock'!G21 -> 912.6648 | AC17: ='TNC CALC_Cstock'!H21 -> 576.972 | AD17: ='TNC CALC_Cstock'!I21 -> 4662.9828 | AE17: ='TNC CALC_Cstock'!J21 -> 3723.9228 | AF17: ='TNC CALC_Cstock'!K21 -> 729.0828 | AG17: ='TNC CALC_Cstock'!L21 -> 2182.821 | AH17: ='TNC CALC_Cstock'!M21 -> 3728.181 | AI17: ='TNC CALC_Cstock'!N21 -> 8773.7814 | AJ17: ='TNC CALC_Cstock'!O21 -> 17274.03408 | AK17: ='TNC CALC_Cstock'!P21 -> 231.804 | AL17: ='TNC CALC_Cstock'!Q21 -> 30224.79478 | AM17: ='TNC CALC_Cstock'!R21 -> 1197.56 | AN17: ='TNC CALC_Cstock'!S21 -> 0 | AO17: ='TNC CALC_Cstock'!T21 -> 0 | AP17: ='TNC CALC_Cstock'!U21 -> 0 | AQ17: 113469.0309 | AR17: ='TNC CALC_Cstock'!X21 -> 633.732396 | AS17: ='TNC CALC_Cstock'!Z21 -> 1734.207177 | AT17: ='TNC CALC_Cstock'!AB21 -> 424.7792404 | AU17: 2792.718814 | AV17: 110676.3121 | AW17: -405.8131443 | AX17: ='6. TNC Assumptions'!C48 -> 382 | AY17: ='6. TNC Assumptions'!D48 -> 106 | AZ17: ='6. TNC Assumptions'!E48 -> 2402 | BA17: ='6. TNC Assumptions'!F48 -> 710 | BB17: ='6. TNC Assumptions'!G48 -> 12243 | BC17: ='6. TNC Assumptions'!I48 -> 174 | BD17: ='6. TNC Assumptions'!J48 -> 110 | BE17: ='6. TNC Assumptions'!K48 -> 889 | BF17: ='6. TNC Assumptions'!L48 -> 5079 | BG17: ='6. TNC Assumptions'!M48 -> 139 | BH17: ='6. TNC Assumptions'!O48 -> 565 | BI17: ='6. TNC Assumptions'!P48 -> 965 | BJ17: ='6. TNC Assumptions'!Q48 -> 2271 | BK17: ='6. TNC Assumptions'!R48 -> 5832 | BL17: ='6. TNC Assumptions'!S48 -> 60 | BM17: ='6. TNC Assumptions'!T48 -> 15142 | BN17: ='6. TNC Assumptions'!U48 -> 182 | BO17: ='6. TNC Assumptions'!W48 -> 0 | BP17: ='6. TNC Assumptions'!X48 -> 0 | BQ17: ='6. TNC Assumptions'!Y48 -> 0 | BR17: 47251 | BS17: ='TNC CALC_Cstock'!B54 -> 2298.112 | BT17: ='TNC CALC_Cstock'!C54 -> 637.696 | BU17: ='TNC CALC_Cstock'!D54 -> 18785.5616 | BV17: ='TNC CALC_Cstock'!E54 -> 4271.36 | BW17: ='TNC CALC_Cstock'!F54 -> 13257.69984 | BX17: ='TNC CALC_Cstock'!G54 -> 912.6648 | BY17: ='TNC CALC_Cstock'!H54 -> 576.972 | BZ17: ='TNC CALC_Cstock'!I54 -> 4662.9828 | CA17: ='TNC CALC_Cstock'!J54 -> 3723.9228 | CB17: ='TNC CALC_Cstock'!K54 -> 729.0828 | CC17: ='TNC CALC_Cstock'!L54 -> 2182.821 | CD17: ='TNC CALC_Cstock'!M54 -> 3728.181 | CE17: ='TNC CALC_Cstock'!N54 -> 8773.7814 | CF17: ='TNC CALC_Cstock'!O54 -> 17274.03408 | CG17: ='TNC CALC_Cstock'!P54 -> 231.804 | CH17: ='TNC CALC_Cstock'!Q54 -> 30224.79478 | CI17: ='TNC CALC_Cstock'!R54 -> 1197.56 | CJ17: ='TNC CALC_Cstock'!S54 -> 0 | CK17: ='TNC CALC_Cstock'!T54 -> 0 | CL17: ='TNC CALC_Cstock'!U54 -> 0 | CM17: 113469.0309 | CN17: ='TNC CALC_Cstock'!X54 -> 633.732396 | CO17: ='TNC CALC_Cstock'!Z54 -> 1734.207177 | CP17: ='TNC CALC_Cstock'!AB54 -> 424.7792404 | CQ17: 2792.718814 | CR17: 110676.3121 | CS17: -405.8131443 | CT17: ='6. TNC Assumptions'!C80 -> 382 | CU17: ='6. TNC Assumptions'!D80 -> 106 | CV17: ='6. TNC Assumptions'!E80 -> 2402 | CW17: ='6. TNC Assumptions'!F80 -> 710 | CX17: ='6. TNC Assumptions'!G80 -> 12243 | CY17: ='6. TNC Assumptions'!I80 -> 174 | CZ17: ='6. TNC Assumptions'!J80 -> 110 | DA17: ='6. TNC Assumptions'!K80 -> 889 | DB17: ='6. TNC Assumptions'!L80 -> 5079 | DC17: ='6. TNC Assumptions'!M80 -> 139 | DD17: ='6. TNC Assumptions'!O80 -> 565 | DE17: ='6. TNC Assumptions'!P80 -> 965 | DF17: ='6. TNC Assumptions'!Q80 -> 2271 | DG17: ='6. TNC Assumptions'!R80 -> 5832 | DH17: ='6. TNC Assumptions'!S80 -> 60 | DI17: ='6. TNC Assumptions'!T80 -> 15142 | DJ17: ='6. TNC Assumptions'!U80 -> 182 | DK17: ='6. TNC Assumptions'!W80 -> 0 | DL17: ='6. TNC Assumptions'!X80 -> 0 | DM17: ='6. TNC Assumptions'!Y80 -> 0 | DN17: 47251 | DO17: ='TNC CALC_Cstock'!B88 -> 2298.112 | DP17: ='TNC CALC_Cstock'!C88 -> 637.696 | DQ17: ='TNC CALC_Cstock'!D88 -> 18785.5616 | DR17: ='TNC CALC_Cstock'!E88 -> 4271.36 | DS17: ='TNC CALC_Cstock'!F88 -> 13257.69984 | DT17: ='TNC CALC_Cstock'!G88 -> 912.6648 | DU17: ='TNC CALC_Cstock'!H88 -> 576.972 | DV17: ='TNC CALC_Cstock'!I88 -> 4662.9828 | DW17: ='TNC CALC_Cstock'!J88 -> 3723.9228 | DX17: ='TNC CALC_Cstock'!K88 -> 729.0828 | DY17: ='TNC CALC_Cstock'!L88 -> 2182.821 | DZ17: ='TNC CALC_Cstock'!M88 -> 3728.181 | EA17: ='TNC CALC_Cstock'!N88 -> 8773.7814 | EB17: ='TNC CALC_Cstock'!O88 -> 17274.03408 | EC17: ='TNC CALC_Cstock'!P88 -> 231.804 | ED17: ='TNC CALC_Cstock'!Q88 -> 30224.79478 | EE17: ='TNC CALC_Cstock'!R88 -> 1197.56 | EF17: ='TNC CALC_Cstock'!S88 -> 0 | EG17: ='TNC CALC_Cstock'!T88 -> 0 | EH17: ='TNC CALC_Cstock'!U88 -> 0 | EI17: 113469.0309 | EJ17: ='TNC CALC_Cstock'!X88 -> 633.732396 | EK17: ='TNC CALC_Cstock'!Z88 -> 1734.207177 | EL17: ='TNC CALC_Cstock'!AB88 -> 424.7792404 | EM17: 2792.718814 | EN17: 110676.3121 | EO17: -405.8131443
A18: =A17+1 -> 2016 | B18: ='6. TNC Assumptions'!C17 -> 382 | C18: ='6. TNC Assumptions'!D17 -> 106 | D18: ='6. TNC Assumptions'!E17 -> 2402 | E18: ='6. TNC Assumptions'!F17 -> 710 | F18: ='6. TNC Assumptions'!G17 -> 12243 | G18: ='6. TNC Assumptions'!I17 -> 174 | H18: ='6. TNC Assumptions'!J17 -> 110 | I18: ='6. TNC Assumptions'!K17 -> 889 | J18: ='6. TNC Assumptions'!L17 -> 5079 | K18: ='6. TNC Assumptions'!M17 -> 139 | L18: ='6. TNC Assumptions'!O17 -> 565 | M18: ='6. TNC Assumptions'!P17 -> 965 | N18: ='6. TNC Assumptions'!Q17 -> 2271 | O18: ='6. TNC Assumptions'!R17 -> 5837 | P18: ='6. TNC Assumptions'!S17 -> 60 | Q18: ='6. TNC Assumptions'!T17 -> 15142 | R18: ='6. TNC Assumptions'!U17 -> 183 | S18: ='6. TNC Assumptions'!W17 -> 0 | T18: ='6. TNC Assumptions'!X17 -> 0 | U18: ='6. TNC Assumptions'!Y17 -> 0 | V18: 47257 | W18: ='TNC CALC_Cstock'!B22 -> 2298.112 | X18: ='TNC CALC_Cstock'!C22 -> 637.696 | Y18: ='TNC CALC_Cstock'!D22 -> 18785.5616 | Z18: ='TNC CALC_Cstock'!E22 -> 4271.36 | AA18: ='TNC CALC_Cstock'!F22 -> 13257.69984 | AB18: ='TNC CALC_Cstock'!G22 -> 912.6648 | AC18: ='TNC CALC_Cstock'!H22 -> 576.972 | AD18: ='TNC CALC_Cstock'!I22 -> 4662.9828 | AE18: ='TNC CALC_Cstock'!J22 -> 3723.9228 | AF18: ='TNC CALC_Cstock'!K22 -> 729.0828 | AG18: ='TNC CALC_Cstock'!L22 -> 2182.821 | AH18: ='TNC CALC_Cstock'!M22 -> 3728.181 | AI18: ='TNC CALC_Cstock'!N22 -> 8773.7814 | AJ18: ='TNC CALC_Cstock'!O22 -> 17288.84378 | AK18: ='TNC CALC_Cstock'!P22 -> 231.804 | AL18: ='TNC CALC_Cstock'!Q22 -> 30224.79478 | AM18: ='TNC CALC_Cstock'!R22 -> 1204.14 | AN18: ='TNC CALC_Cstock'!S22 -> 0 | AO18: ='TNC CALC_Cstock'!T22 -> 0 | AP18: ='TNC CALC_Cstock'!U22 -> 0 | AQ18: 113490.4206 | AR18: ='TNC CALC_Cstock'!X22 -> 633.732396 | AS18: ='TNC CALC_Cstock'!Z22 -> 1611.697816 | AT18: ='TNC CALC_Cstock'!AB22 -> 414.0734439 | AU18: 2659.503656 | AV18: 110830.9169 | AW18: -406.3800288 | AX18: ='6. TNC Assumptions'!C49 -> 382 | AY18: ='6. TNC Assumptions'!D49 -> 108.28 | AZ18: ='6. TNC Assumptions'!E49 -> 2402 | BA18: ='6. TNC Assumptions'!F49 -> 711.82 | BB18: ='6. TNC Assumptions'!G49 -> 12249.23 | BC18: ='6. TNC Assumptions'!I49 -> 174 | BD18: ='6. TNC Assumptions'!J49 -> 110.6345455 | BE18: ='6. TNC Assumptions'!K49 -> 890.27 | BF18: ='6. TNC Assumptions'!L49 -> 5081.82 | BG18: ='6. TNC Assumptions'!M49 -> 139.91 | BH18: ='6. TNC Assumptions'!O49 -> 565 | BI18: ='6. TNC Assumptions'!P49 -> 965 | BJ18: ='6. TNC Assumptions'!Q49 -> 2274.45 | BK18: ='6. TNC Assumptions'!R49 -> 5837 | BL18: ='6. TNC Assumptions'!S49 -> 61.25 | BM18: ='6. TNC Assumptions'!T49 -> 15146.58 | BN18: ='6. TNC Assumptions'!U49 -> 183 | BO18: ='6. TNC Assumptions'!W49 -> 0 | BP18: ='6. TNC Assumptions'!X49 -> 0 | BQ18: ='6. TNC Assumptions'!Y49 -> 0 | BR18: 47282.24455 | BS18: ='TNC CALC_Cstock'!B55 -> 2298.112 | BT18: ='TNC CALC_Cstock'!C55 -> 651.41248 | BU18: ='TNC CALC_Cstock'!D55 -> 18785.5616 | BV18: ='TNC CALC_Cstock'!E55 -> 4282.30912 | BW18: ='TNC CALC_Cstock'!F55 -> 13264.44618 | BX18: ='TNC CALC_Cstock'!G55 -> 912.6648 | BY18: ='TNC CALC_Cstock'!H55 -> 580.3003178 | BZ18: ='TNC CALC_Cstock'!I55 -> 4669.644204 | CA18: ='TNC CALC_Cstock'!J55 -> 3725.990424 | CB18: ='TNC CALC_Cstock'!K55 -> 733.855932 | CC18: ='TNC CALC_Cstock'!L55 -> 2182.821 | CD18: ='TNC CALC_Cstock'!M55 -> 3728.181 | CE18: ='TNC CALC_Cstock'!N55 -> 8787.11013 | CF18: ='TNC CALC_Cstock'!O55 -> 17288.84378 | CG18: ='TNC CALC_Cstock'!P55 -> 236.63325 | CH18: ='TNC CALC_Cstock'!Q55 -> 30233.93687 | CI18: ='TNC CALC_Cstock'!R55 -> 1204.14 | CJ18: ='TNC CALC_Cstock'!S55 -> 0 | CK18: ='TNC CALC_Cstock'!T55 -> 0 | CL18: ='TNC CALC_Cstock'!U55 -> 0 | CM18: 113565.9631 | CN18: ='TNC CALC_Cstock'!X55 -> 633.732396 | CO18: ='TNC CALC_Cstock'!Z55 -> 1611.697816 | CP18: ='TNC CALC_Cstock'!AB55 -> 414.0734439 | CQ18: 2659.503656 | CR18: 110906.4594 | CS18: -406.6570179 | CT18: ='6. TNC Assumptions'!C81 -> 382 | CU18: ='6. TNC Assumptions'!D81 -> 108.28 | CV18: ='6. TNC Assumptions'!E81 -> 2402 | CW18: ='6. TNC Assumptions'!F81 -> 711.82 | CX18: ='6. TNC Assumptions'!G81 -> 12249.23 | CY18: ='6. TNC Assumptions'!I81 -> 174 | CZ18: ='6. TNC Assumptions'!J81 -> 110.6345455 | DA18: ='6. TNC Assumptions'!K81 -> 890.27 | DB18: ='6. TNC Assumptions'!L81 -> 5081.82 | DC18: ='6. TNC Assumptions'!M81 -> 139.91 | DD18: ='6. TNC Assumptions'!O81 -> 565 | DE18: ='6. TNC Assumptions'!P81 -> 965 | DF18: ='6. TNC Assumptions'!Q81 -> 2274.45 | DG18: ='6. TNC Assumptions'!R81 -> 5837 | DH18: ='6. TNC Assumptions'!S81 -> 61.25 | DI18: ='6. TNC Assumptions'!T81 -> 15146.58 | DJ18: ='6. TNC Assumptions'!U81 -> 183 | DK18: ='6. TNC Assumptions'!W81 -> 0 | DL18: ='6. TNC Assumptions'!X81 -> 0 | DM18: ='6. TNC Assumptions'!Y81 -> 0 | DN18: 47282.24455 | DO18: ='TNC CALC_Cstock'!B89 -> 2298.112 | DP18: ='TNC CALC_Cstock'!C89 -> 651.41248 | DQ18: ='TNC CALC_Cstock'!D89 -> 18785.5616 | DR18: ='TNC CALC_Cstock'!E89 -> 4282.30912 | DS18: ='TNC CALC_Cstock'!F89 -> 13264.44618 | DT18: ='TNC CALC_Cstock'!G89 -> 912.6648 | DU18: ='TNC CALC_Cstock'!H89 -> 580.3003178 | DV18: ='TNC CALC_Cstock'!I89 -> 4669.644204 | DW18: ='TNC CALC_Cstock'!J89 -> 3725.990424 | DX18: ='TNC CALC_Cstock'!K89 -> 733.855932 | DY18: ='TNC CALC_Cstock'!L89 -> 2182.821 | DZ18: ='TNC CALC_Cstock'!M89 -> 3728.181 | EA18: ='TNC CALC_Cstock'!N89 -> 8787.11013 | EB18: ='TNC CALC_Cstock'!O89 -> 17288.84378 | EC18: ='TNC CALC_Cstock'!P89 -> 236.63325 | ED18: ='TNC CALC_Cstock'!Q89 -> 30233.93687 | EE18: ='TNC CALC_Cstock'!R89 -> 1204.14 | EF18: ='TNC CALC_Cstock'!S89 -> 0 | EG18: ='TNC CALC_Cstock'!T89 -> 0 | EH18: ='TNC CALC_Cstock'!U89 -> 0 | EI18: 113565.9631 | EJ18: ='TNC CALC_Cstock'!X89 -> 633.732396 | EK18: ='TNC CALC_Cstock'!Z89 -> 1611.697816 | EL18: ='TNC CALC_Cstock'!AB89 -> 414.0734439 | EM18: 2659.503656 | EN18: 110906.4594 | EO18: -406.6570179
A19: 2017 | B19: ='6. TNC Assumptions'!C18 -> 382 | C19: ='6. TNC Assumptions'!D18 -> 106 | D19: ='6. TNC Assumptions'!E18 -> 2402 | E19: ='6. TNC Assumptions'!F18 -> 710 | F19: ='6. TNC Assumptions'!G18 -> 12243 | G19: ='6. TNC Assumptions'!I18 -> 174 | H19: ='6. TNC Assumptions'!J18 -> 110 | I19: ='6. TNC Assumptions'!K18 -> 889 | J19: ='6. TNC Assumptions'!L18 -> 5079 | K19: ='6. TNC Assumptions'!M18 -> 139 | L19: ='6. TNC Assumptions'!O18 -> 565 | M19: ='6. TNC Assumptions'!P18 -> 965 | N19: ='6. TNC Assumptions'!Q18 -> 2271 | O19: ='6. TNC Assumptions'!R18 -> 5842 | P19: ='6. TNC Assumptions'!S18 -> 60 | Q19: ='6. TNC Assumptions'!T18 -> 15142 | R19: ='6. TNC Assumptions'!U18 -> 184 | S19: ='6. TNC Assumptions'!W18 -> 0 | T19: ='6. TNC Assumptions'!X18 -> 0 | U19: ='6. TNC Assumptions'!Y18 -> 0 | V19: 47263 | W19: ='TNC CALC_Cstock'!B23 -> 2298.112 | X19: ='TNC CALC_Cstock'!C23 -> 637.696 | Y19: ='TNC CALC_Cstock'!D23 -> 18785.5616 | Z19: ='TNC CALC_Cstock'!E23 -> 4271.36 | AA19: ='TNC CALC_Cstock'!F23 -> 13257.69984 | AB19: ='TNC CALC_Cstock'!G23 -> 912.6648 | AC19: ='TNC CALC_Cstock'!H23 -> 576.972 | AD19: ='TNC CALC_Cstock'!I23 -> 4662.9828 | AE19: ='TNC CALC_Cstock'!J23 -> 3723.9228 | AF19: ='TNC CALC_Cstock'!K23 -> 729.0828 | AG19: ='TNC CALC_Cstock'!L23 -> 2182.821 | AH19: ='TNC CALC_Cstock'!M23 -> 3728.181 | AI19: ='TNC CALC_Cstock'!N23 -> 8773.7814 | AJ19: ='TNC CALC_Cstock'!O23 -> 17303.65348 | AK19: ='TNC CALC_Cstock'!P23 -> 231.804 | AL19: ='TNC CALC_Cstock'!Q23 -> 30224.79478 | AM19: ='TNC CALC_Cstock'!R23 -> 1210.72 | AN19: ='TNC CALC_Cstock'!S23 -> 0 | AO19: ='TNC CALC_Cstock'!T23 -> 0 | AP19: ='TNC CALC_Cstock'!U23 -> 0 | AQ19: 113511.8103 | AR19: ='TNC CALC_Cstock'!X23 -> 633.732396 | AS19: ='TNC CALC_Cstock'!Z23 -> 1497.868226 | AT19: ='TNC CALC_Cstock'!AB23 -> 389.7893209 | AU19: 2521.389943 | AV19: 110990.4204 | AW19: -406.9648746 | AX19: ='6. TNC Assumptions'!C50 -> 382 | AY19: ='6. TNC Assumptions'!D50 -> 111.3306524 | AZ19: ='6. TNC Assumptions'!E50 -> 2402 | BA19: ='6. TNC Assumptions'!F50 -> 714.2566233 | BB19: ='6. TNC Assumptions'!G50 -> 12258.11718 | BC19: ='6. TNC Assumptions'!I50 -> 174 | BD19: ='6. TNC Assumptions'!J50 -> 111.484927 | BE19: ='6. TNC Assumptions'!K50 -> 891.9658898 | BF19: ='6. TNC Assumptions'!L50 -> 5085.842184 | BG19: ='6. TNC Assumptions'!M50 -> 141.1283117 | BH19: ='6. TNC Assumptions'!O50 -> 565 | BI19: ='6. TNC Assumptions'!P50 -> 965 | BJ19: ='6. TNC Assumptions'!Q50 -> 2279.078518 | BK19: ='6. TNC Assumptions'!R50 -> 5842 | BL19: ='6. TNC Assumptions'!S50 -> 62.92517853 | BM19: ='6. TNC Assumptions'!T50 -> 15153.11508 | BN19: ='6. TNC Assumptions'!U50 -> 184 | BO19: ='6. TNC Assumptions'!W50 -> 0 | BP19: ='6. TNC Assumptions'!X50 -> 0 | BQ19: ='6. TNC Assumptions'!Y50 -> 0 | BR19: 47323.24455 | BS19: ='TNC CALC_Cstock'!B56 -> 2298.112 | BT19: ='TNC CALC_Cstock'!C56 -> 669.7652048 | BU19: ='TNC CALC_Cstock'!D56 -> 18785.5616 | BV19: ='TNC CALC_Cstock'!E56 -> 4296.967846 | BW19: ='TNC CALC_Cstock'!F56 -> 13274.06994 | BX19: ='TNC CALC_Cstock'!G56 -> 912.6648 | BY19: ='TNC CALC_Cstock'!H56 -> 584.7607391 | BZ19: ='TNC CALC_Cstock'!I56 -> 4678.539485 | CA19: ='TNC CALC_Cstock'!J56 -> 3728.939489 | CB19: ='TNC CALC_Cstock'!K56 -> 740.2462203 | CC19: ='TNC CALC_Cstock'!L56 -> 2182.821 | CD19: ='TNC CALC_Cstock'!M56 -> 3728.181 | CE19: ='TNC CALC_Cstock'!N56 -> 8804.991948 | CF19: ='TNC CALC_Cstock'!O56 -> 17303.65348 | CG19: ='TNC CALC_Cstock'!P56 -> 243.1051347 | CH19: ='TNC CALC_Cstock'!Q56 -> 30246.98147 | CI19: ='TNC CALC_Cstock'!R56 -> 1210.72 | CJ19: ='TNC CALC_Cstock'!S56 -> 0 | CK19: ='TNC CALC_Cstock'!T56 -> 0 | CL19: ='TNC CALC_Cstock'!U56 -> 0 | CM19: 113690.0814 | CN19: ='TNC CALC_Cstock'!X56 -> 633.732396 | CO19: ='TNC CALC_Cstock'!Z56 -> 1497.868226 | CP19: ='TNC CALC_Cstock'!AB56 -> 389.7893209 | CQ19: 2521.389943 | CR19: 111168.6914 | CS19: -407.6185352 | CT19: ='6. TNC Assumptions'!C82 -> 382 | CU19: ='6. TNC Assumptions'!D82 -> 111.3306524 | CV19: ='6. TNC Assumptions'!E82 -> 2402 | CW19: ='6. TNC Assumptions'!F82 -> 714.2566233 | CX19: ='6. TNC Assumptions'!G82 -> 12258.11718 | CY19: ='6. TNC Assumptions'!I82 -> 174 | CZ19: ='6. TNC Assumptions'!J82 -> 111.484927 | DA19: ='6. TNC Assumptions'!K82 -> 891.9658898 | DB19: ='6. TNC Assumptions'!L82 -> 5085.842184 | DC19: ='6. TNC Assumptions'!M82 -> 141.1283117 | DD19: ='6. TNC Assumptions'!O82 -> 565 | DE19: ='6. TNC Assumptions'!P82 -> 965 | DF19: ='6. TNC Assumptions'!Q82 -> 2279.078518 | DG19: ='6. TNC Assumptions'!R82 -> 5842 | DH19: ='6. TNC Assumptions'!S82 -> 62.92517853 | DI19: ='6. TNC Assumptions'!T82 -> 15153.11508 | DJ19: ='6. TNC Assumptions'!U82 -> 184 | DK19: ='6. TNC Assumptions'!W82 -> 0 | DL19: ='6. TNC Assumptions'!X82 -> 0 | DM19: ='6. TNC Assumptions'!Y82 -> 0 | DN19: 47323.24455 | DO19: ='TNC CALC_Cstock'!B90 -> 2298.112 | DP19: ='TNC CALC_Cstock'!C90 -> 669.7652048 | DQ19: ='TNC CALC_Cstock'!D90 -> 18785.5616 | DR19: ='TNC CALC_Cstock'!E90 -> 4296.967846 | DS19: ='TNC CALC_Cstock'!F90 -> 13274.06994 | DT19: ='TNC CALC_Cstock'!G90 -> 912.6648 | DU19: ='TNC CALC_Cstock'!H90 -> 584.7607391 | DV19: ='TNC CALC_Cstock'!I90 -> 4678.539485 | DW19: ='TNC CALC_Cstock'!J90 -> 3728.939489 | DX19: ='TNC CALC_Cstock'!K90 -> 740.2462203 | DY19: ='TNC CALC_Cstock'!L90 -> 2182.821 | DZ19: ='TNC CALC_Cstock'!M90 -> 3728.181 | EA19: ='TNC CALC_Cstock'!N90 -> 8804.991948 | EB19: ='TNC CALC_Cstock'!O90 -> 17303.65348 | EC19: ='TNC CALC_Cstock'!P90 -> 243.1051347 | ED19: ='TNC CALC_Cstock'!Q90 -> 30246.98147 | EE19: ='TNC CALC_Cstock'!R90 -> 1210.72 | EF19: ='TNC CALC_Cstock'!S90 -> 0 | EG19: ='TNC CALC_Cstock'!T90 -> 0 | EH19: ='TNC CALC_Cstock'!U90 -> 0 | EI19: 113690.0814 | EJ19: ='TNC CALC_Cstock'!X90 -> 633.732396 | EK19: ='TNC CALC_Cstock'!Z90 -> 1497.868226 | EL19: ='TNC CALC_Cstock'!AB90 -> 389.7893209 | EM19: 2521.389943 | EN19: 111168.6914 | EO19: -407.6185352
A20: 2018 | B20: ='6. TNC Assumptions'!C19 -> 382 | C20: ='6. TNC Assumptions'!D19 -> 106 | D20: ='6. TNC Assumptions'!E19 -> 2402 | E20: ='6. TNC Assumptions'!F19 -> 710 | F20: ='6. TNC Assumptions'!G19 -> 12243 | G20: ='6. TNC Assumptions'!I19 -> 174 | H20: ='6. TNC Assumptions'!J19 -> 110 | I20: ='6. TNC Assumptions'!K19 -> 889 | J20: ='6. TNC Assumptions'!L19 -> 5079 | K20: ='6. TNC Assumptions'!M19 -> 139 | L20: ='6. TNC Assumptions'!O19 -> 565 | M20: ='6. TNC Assumptions'!P19 -> 965 | N20: ='6. TNC Assumptions'!Q19 -> 2271 | O20: ='6. TNC Assumptions'!R19 -> 5847 | P20: ='6. TNC Assumptions'!S19 -> 60 | Q20: ='6. TNC Assumptions'!T19 -> 15142 | R20: ='6. TNC Assumptions'!U19 -> 185 | S20: ='6. TNC Assumptions'!W19 -> 0 | T20: ='6. TNC Assumptions'!X19 -> 0 | U20: ='6. TNC Assumptions'!Y19 -> 0 | V20: 47269 | W20: ='TNC CALC_Cstock'!B24 -> 2298.112 | X20: ='TNC CALC_Cstock'!C24 -> 637.696 | Y20: ='TNC CALC_Cstock'!D24 -> 18785.5616 | Z20: ='TNC CALC_Cstock'!E24 -> 4271.36 | AA20: ='TNC CALC_Cstock'!F24 -> 13257.69984 | AB20: ='TNC CALC_Cstock'!G24 -> 912.6648 | AC20: ='TNC CALC_Cstock'!H24 -> 576.972 | AD20: ='TNC CALC_Cstock'!I24 -> 4662.9828 | AE20: ='TNC CALC_Cstock'!J24 -> 3723.9228 | AF20: ='TNC CALC_Cstock'!K24 -> 729.0828 | AG20: ='TNC CALC_Cstock'!L24 -> 2182.821 | AH20: ='TNC CALC_Cstock'!M24 -> 3728.181 | AI20: ='TNC CALC_Cstock'!N24 -> 8773.7814 | AJ20: ='TNC CALC_Cstock'!O24 -> 17318.46318 | AK20: ='TNC CALC_Cstock'!P24 -> 231.804 | AL20: ='TNC CALC_Cstock'!Q24 -> 30224.79478 | AM20: ='TNC CALC_Cstock'!R24 -> 1217.3 | AN20: ='TNC CALC_Cstock'!S24 -> 0 | AO20: ='TNC CALC_Cstock'!T24 -> 0 | AP20: ='TNC CALC_Cstock'!U24 -> 0 | AQ20: 113533.2 | AR20: ='TNC CALC_Cstock'!X24 -> 633.732396 | AS20: ='TNC CALC_Cstock'!Z24 -> 1392.101678 | AT20: ='TNC CALC_Cstock'!AB24 -> 392.4257123 | AU20: 2418.259786 | AV20: 111114.9402 | AW20: -407.4214475 | AX20: ='6. TNC Assumptions'!C51 -> 382 | AY20: ='6. TNC Assumptions'!D51 -> 114.4684663 | AZ20: ='6. TNC Assumptions'!E51 -> 2402 | BA20: ='6. TNC Assumptions'!F51 -> 716.7628644 | BB20: ='6. TNC Assumptions'!G51 -> 12269.08651 | BC20: ='6. TNC Assumptions'!I51 -> 174 | BD20: ='6. TNC Assumptions'!J51 -> 112.3596051 | BE20: ='6. TNC Assumptions'!K51 -> 893.7102337 | BF20: ='6. TNC Assumptions'!L51 -> 5090.806708 | BG20: ='6. TNC Assumptions'!M51 -> 142.3814322 | BH20: ='6. TNC Assumptions'!O51 -> 565 | BI20: ='6. TNC Assumptions'!P51 -> 965 | BJ20: ='6. TNC Assumptions'!Q51 -> 2283.83928 | BK20: ='6. TNC Assumptions'!R51 -> 5847 | BL20: ='6. TNC Assumptions'!S51 -> 64.64821931 | BM20: ='6. TNC Assumptions'!T51 -> 15161.18123 | BN20: ='6. TNC Assumptions'!U51 -> 185 | BO20: ='6. TNC Assumptions'!W51 -> 0 | BP20: ='6. TNC Assumptions'!X51 -> 0 | BQ20: ='6. TNC Assumptions'!Y51 -> 0 | BR20: 47369.24455 | BS20: ='TNC CALC_Cstock'!B57 -> 2298.112 | BT20: ='TNC CALC_Cstock'!C57 -> 688.6422932 | BU20: ='TNC CALC_Cstock'!D57 -> 18785.5616 | BV20: ='TNC CALC_Cstock'!E57 -> 4312.045393 | BW20: ='TNC CALC_Cstock'!F57 -> 13285.9484 | BX20: ='TNC CALC_Cstock'!G57 -> 912.6648 | BY20: ='TNC CALC_Cstock'!H57 -> 589.3486009 | BZ20: ='TNC CALC_Cstock'!I57 -> 4687.688918 | CA20: ='TNC CALC_Cstock'!J57 -> 3732.579478 | CB20: ='TNC CALC_Cstock'!K57 -> 746.8190883 | CC20: ='TNC CALC_Cstock'!L57 -> 2182.821 | CD20: ='TNC CALC_Cstock'!M57 -> 3728.181 | CE20: ='TNC CALC_Cstock'!N57 -> 8823.384674 | CF20: ='TNC CALC_Cstock'!O57 -> 17318.46318 | CG20: ='TNC CALC_Cstock'!P57 -> 249.7619305 | CH20: ='TNC CALC_Cstock'!Q57 -> 30263.08224 | CI20: ='TNC CALC_Cstock'!R57 -> 1217.3 | CJ20: ='TNC CALC_Cstock'!S57 -> 0 | CK20: ='TNC CALC_Cstock'!T57 -> 0 | CL20: ='TNC CALC_Cstock'!U57 -> 0 | CM20: 113822.4046 | CN20: ='TNC CALC_Cstock'!X57 -> 633.732396 | CO20: ='TNC CALC_Cstock'!Z57 -> 1392.101678 | CP20: ='TNC CALC_Cstock'!AB57 -> 392.4257123 | CQ20: 2418.259786 | CR20: 111404.1448 | CS20: -408.4818643 | CT20: ='6. TNC Assumptions'!C83 -> 382 | CU20: ='6. TNC Assumptions'!D83 -> 114.4684663 | CV20: ='6. TNC Assumptions'!E83 -> 2402 | CW20: ='6. TNC Assumptions'!F83 -> 716.7628644 | CX20: ='6. TNC Assumptions'!G83 -> 12269.08651 | CY20: ='6. TNC Assumptions'!I83 -> 174 | CZ20: ='6. TNC Assumptions'!J83 -> 112.3596051 | DA20: ='6. TNC Assumptions'!K83 -> 893.7102337 | DB20: ='6. TNC Assumptions'!L83 -> 5090.806708 | DC20: ='6. TNC Assumptions'!M83 -> 142.3814322 | DD20: ='6. TNC Assumptions'!O83 -> 565 | DE20: ='6. TNC Assumptions'!P83 -> 965 | DF20: ='6. TNC Assumptions'!Q83 -> 2283.83928 | DG20: ='6. TNC Assumptions'!R83 -> 5847 | DH20: ='6. TNC Assumptions'!S83 -> 64.64821931 | DI20: ='6. TNC Assumptions'!T83 -> 15161.18123 | DJ20: ='6. TNC Assumptions'!U83 -> 185 | DK20: ='6. TNC Assumptions'!W83 -> 0 | DL20: ='6. TNC Assumptions'!X83 -> 0 | DM20: ='6. TNC Assumptions'!Y83 -> 0 | DN20: 47369.24455 | DO20: ='TNC CALC_Cstock'!B91 -> 2298.112 | DP20: ='TNC CALC_Cstock'!C91 -> 688.6422932 | DQ20: ='TNC CALC_Cstock'!D91 -> 18785.5616 | DR20: ='TNC CALC_Cstock'!E91 -> 4312.045393 | DS20: ='TNC CALC_Cstock'!F91 -> 13285.9484 | DT20: ='TNC CALC_Cstock'!G91 -> 912.6648 | DU20: ='TNC CALC_Cstock'!H91 -> 589.3486009 | DV20: ='TNC CALC_Cstock'!I91 -> 4687.688918 | DW20: ='TNC CALC_Cstock'!J91 -> 3732.579478 | DX20: ='TNC CALC_Cstock'!K91 -> 746.8190883 | DY20: ='TNC CALC_Cstock'!L91 -> 2182.821 | DZ20: ='TNC CALC_Cstock'!M91 -> 3728.181 | EA20: ='TNC CALC_Cstock'!N91 -> 8823.384674 | EB20: ='TNC CALC_Cstock'!O91 -> 17318.46318 | EC20: ='TNC CALC_Cstock'!P91 -> 249.7619305 | ED20: ='TNC CALC_Cstock'!Q91 -> 30263.08224 | EE20: ='TNC CALC_Cstock'!R91 -> 1217.3 | EF20: ='TNC CALC_Cstock'!S91 -> 0 | EG20: ='TNC CALC_Cstock'!T91 -> 0 | EH20: ='TNC CALC_Cstock'!U91 -> 0 | EI20: 113822.4046 | EJ20: ='TNC CALC_Cstock'!X91 -> 633.732396 | EK20: ='TNC CALC_Cstock'!Z91 -> 1392.101678 | EL20: ='TNC CALC_Cstock'!AB91 -> 392.4257123 | EM20: 2418.259786 | EN20: 111404.1448 | EO20: -408.4818643
A21: 2019 | B21: ='6. TNC Assumptions'!C20 -> 382 | C21: ='6. TNC Assumptions'!D20 -> 106 | D21: ='6. TNC Assumptions'!E20 -> 2402 | E21: ='6. TNC Assumptions'!F20 -> 710 | F21: ='6. TNC Assumptions'!G20 -> 12243 | G21: ='6. TNC Assumptions'!I20 -> 174 | H21: ='6. TNC Assumptions'!J20 -> 110 | I21: ='6. TNC Assumptions'!K20 -> 889 | J21: ='6. TNC Assumptions'!L20 -> 5079 | K21: ='6. TNC Assumptions'!M20 -> 139 | L21: ='6. TNC Assumptions'!O20 -> 565 | M21: ='6. TNC Assumptions'!P20 -> 965 | N21: ='6. TNC Assumptions'!Q20 -> 2271 | O21: ='6. TNC Assumptions'!R20 -> 5847 | P21: ='6. TNC Assumptions'!S20 -> 60 | Q21: ='6. TNC Assumptions'!T20 -> 15142 | R21: ='6. TNC Assumptions'!U20 -> 186 | S21: ='6. TNC Assumptions'!W20 -> 0 | T21: ='6. TNC Assumptions'!X20 -> 0 | U21: ='6. TNC Assumptions'!Y20 -> 0 | V21: 47270 | W21: ='TNC CALC_Cstock'!B25 -> 2298.112 | X21: ='TNC CALC_Cstock'!C25 -> 637.696 | Y21: ='TNC CALC_Cstock'!D25 -> 18785.5616 | Z21: ='TNC CALC_Cstock'!E25 -> 4271.36 | AA21: ='TNC CALC_Cstock'!F25 -> 13257.69984 | AB21: ='TNC CALC_Cstock'!G25 -> 912.6648 | AC21: ='TNC CALC_Cstock'!H25 -> 576.972 | AD21: ='TNC CALC_Cstock'!I25 -> 4662.9828 | AE21: ='TNC CALC_Cstock'!J25 -> 3723.9228 | AF21: ='TNC CALC_Cstock'!K25 -> 729.0828 | AG21: ='TNC CALC_Cstock'!L25 -> 2182.821 | AH21: ='TNC CALC_Cstock'!M25 -> 3728.181 | AI21: ='TNC CALC_Cstock'!N25 -> 8773.7814 | AJ21: ='TNC CALC_Cstock'!O25 -> 17318.46318 | AK21: ='TNC CALC_Cstock'!P25 -> 231.804 | AL21: ='TNC CALC_Cstock'!Q25 -> 30224.79478 | AM21: ='TNC CALC_Cstock'!R25 -> 1223.88 | AN21: ='TNC CALC_Cstock'!S25 -> 0 | AO21: ='TNC CALC_Cstock'!T25 -> 0 | AP21: ='TNC CALC_Cstock'!U25 -> 0 | AQ21: 113539.78 | AR21: ='TNC CALC_Cstock'!X25 -> 633.732396 | AS21: ='TNC CALC_Cstock'!Z25 -> 1293.825387 | AT21: ='TNC CALC_Cstock'!AB25 -> 406.8835424 | AU21: 2334.441325 | AV21: 111205.3387 | AW21: -407.7529085 | AX21: ='6. TNC Assumptions'!C52 -> 382 | AY21: ='6. TNC Assumptions'!D52 -> 117.6775941 | AZ21: ='6. TNC Assumptions'!E52 -> 2402 | BA21: ='6. TNC Assumptions'!F52 -> 719.3260656 | BB21: ='6. TNC Assumptions'!G52 -> 12282.17491 | BC21: ='6. TNC Assumptions'!I52 -> 174 | BD21: ='6. TNC Assumptions'!J52 -> 113.2541623 | BE21: ='6. TNC Assumptions'!K52 -> 895.4942217 | BF21: ='6. TNC Assumptions'!L52 -> 5096.730287 | BG21: ='6. TNC Assumptions'!M52 -> 143.6630328 | BH21: ='6. TNC Assumptions'!O52 -> 565 | BI21: ='6. TNC Assumptions'!P52 -> 965 | BJ21: ='6. TNC Assumptions'!Q52 -> 2288.708241 | BK21: ='6. TNC Assumptions'!R52 -> 5847 | BL21: ='6. TNC Assumptions'!S52 -> 66.4104201 | BM21: ='6. TNC Assumptions'!T52 -> 15170.80561 | BN21: ='6. TNC Assumptions'!U52 -> 186 | BO21: ='6. TNC Assumptions'!W52 -> 0 | BP21: ='6. TNC Assumptions'!X52 -> 0 | BQ21: ='6. TNC Assumptions'!Y52 -> 0 | BR21: 47415.24455 | BS21: ='TNC CALC_Cstock'!B58 -> 2298.112 | BT21: ='TNC CALC_Cstock'!C58 -> 707.9484063 | BU21: ='TNC CALC_Cstock'!D58 -> 18785.5616 | BV21: ='TNC CALC_Cstock'!E58 -> 4327.465611 | BW21: ='TNC CALC_Cstock'!F58 -> 13300.12157 | BX21: ='TNC CALC_Cstock'!G58 -> 912.6648 | BY21: ='TNC CALC_Cstock'!H58 -> 594.0407324 | BZ21: ='TNC CALC_Cstock'!I58 -> 4697.046291 | CA21: ='TNC CALC_Cstock'!J58 -> 3736.922647 | CB21: ='TNC CALC_Cstock'!K58 -> 753.5413396 | CC21: ='TNC CALC_Cstock'!L58 -> 2182.821 | CD21: ='TNC CALC_Cstock'!M58 -> 3728.181 | CE21: ='TNC CALC_Cstock'!N58 -> 8842.195417 | CF21: ='TNC CALC_Cstock'!O58 -> 17318.46318 | CG21: ='TNC CALC_Cstock'!P58 -> 256.570017 | CH21: ='TNC CALC_Cstock'!Q58 -> 30282.29337 | CI21: ='TNC CALC_Cstock'!R58 -> 1223.88 | CJ21: ='TNC CALC_Cstock'!S58 -> 0 | CK21: ='TNC CALC_Cstock'!T58 -> 0 | CL21: ='TNC CALC_Cstock'!U58 -> 0 | CM21: 113947.829 | CN21: ='TNC CALC_Cstock'!X58 -> 633.732396 | CO21: ='TNC CALC_Cstock'!Z58 -> 1293.825387 | CP21: ='TNC CALC_Cstock'!AB58 -> 406.8835424 | CQ21: 2334.441325 | CR21: 111613.3877 | CS21: -409.2490881 | CT21: ='6. TNC Assumptions'!C84 -> 382 | CU21: ='6. TNC Assumptions'!D84 -> 117.6775941 | CV21: ='6. TNC Assumptions'!E84 -> 2402 | CW21: ='6. TNC Assumptions'!F84 -> 719.3260656 | CX21: ='6. TNC Assumptions'!G84 -> 12282.17491 | CY21: ='6. TNC Assumptions'!I84 -> 174 | CZ21: ='6. TNC Assumptions'!J84 -> 113.2541623 | DA21: ='6. TNC Assumptions'!K84 -> 895.4942217 | DB21: ='6. TNC Assumptions'!L84 -> 5096.730287 | DC21: ='6. TNC Assumptions'!M84 -> 143.6630328 | DD21: ='6. TNC Assumptions'!O84 -> 565 | DE21: ='6. TNC Assumptions'!P84 -> 965 | DF21: ='6. TNC Assumptions'!Q84 -> 2288.708241 | DG21: ='6. TNC Assumptions'!R84 -> 5847 | DH21: ='6. TNC Assumptions'!S84 -> 66.4104201 | DI21: ='6. TNC Assumptions'!T84 -> 15170.80561 | DJ21: ='6. TNC Assumptions'!U84 -> 186 | DK21: ='6. TNC Assumptions'!W84 -> 0 | DL21: ='6. TNC Assumptions'!X84 -> 0 | DM21: ='6. TNC Assumptions'!Y84 -> 0 | DN21: 47415.24455 | DO21: ='TNC CALC_Cstock'!B92 -> 2298.112 | DP21: ='TNC CALC_Cstock'!C92 -> 707.9484063 | DQ21: ='TNC CALC_Cstock'!D92 -> 18785.5616 | DR21: ='TNC CALC_Cstock'!E92 -> 4327.465611 | DS21: ='TNC CALC_Cstock'!F92 -> 13300.12157 | DT21: ='TNC CALC_Cstock'!G92 -> 912.6648 | DU21: ='TNC CALC_Cstock'!H92 -> 594.0407324 | DV21: ='TNC CALC_Cstock'!I92 -> 4697.046291 | DW21: ='TNC CALC_Cstock'!J92 -> 3736.922647 | DX21: ='TNC CALC_Cstock'!K92 -> 753.5413396 | DY21: ='TNC CALC_Cstock'!L92 -> 2182.821 | DZ21: ='TNC CALC_Cstock'!M92 -> 3728.181 | EA21: ='TNC CALC_Cstock'!N92 -> 8842.195417 | EB21: ='TNC CALC_Cstock'!O92 -> 17318.46318 | EC21: ='TNC CALC_Cstock'!P92 -> 256.570017 | ED21: ='TNC CALC_Cstock'!Q92 -> 30282.29337 | EE21: ='TNC CALC_Cstock'!R92 -> 1223.88 | EF21: ='TNC CALC_Cstock'!S92 -> 0 | EG21: ='TNC CALC_Cstock'!T92 -> 0 | EH21: ='TNC CALC_Cstock'!U92 -> 0 | EI21: 113947.829 | EJ21: ='TNC CALC_Cstock'!X92 -> 633.732396 | EK21: ='TNC CALC_Cstock'!Z92 -> 1293.825387 | EL21: ='TNC CALC_Cstock'!AB92 -> 406.8835424 | EM21: 2334.441325 | EN21: 111613.3877 | EO21: -409.2490881
A22: 2020 | B22: ='6. TNC Assumptions'!C21 -> 382 | C22: ='6. TNC Assumptions'!D21 -> 106 | D22: ='6. TNC Assumptions'!E21 -> 2402 | E22: ='6. TNC Assumptions'!F21 -> 710 | F22: ='6. TNC Assumptions'!G21 -> 12243 | G22: ='6. TNC Assumptions'!I21 -> 174 | H22: ='6. TNC Assumptions'!J21 -> 110 | I22: ='6. TNC Assumptions'!K21 -> 889 | J22: ='6. TNC Assumptions'!L21 -> 5079 | K22: ='6. TNC Assumptions'!M21 -> 139 | L22: ='6. TNC Assumptions'!O21 -> 565 | M22: ='6. TNC Assumptions'!P21 -> 965 | N22: ='6. TNC Assumptions'!Q21 -> 2271 | O22: ='6. TNC Assumptions'!R21 -> 5847 | P22: ='6. TNC Assumptions'!S21 -> 60 | Q22: ='6. TNC Assumptions'!T21 -> 15142 | R22: ='6. TNC Assumptions'!U21 -> 187 | S22: ='6. TNC Assumptions'!W21 -> 0 | T22: ='6. TNC Assumptions'!X21 -> 0 | U22: ='6. TNC Assumptions'!Y21 -> 0 | V22: 47271 | W22: ='TNC CALC_Cstock'!B26 -> 2298.112 | X22: ='TNC CALC_Cstock'!C26 -> 637.696 | Y22: ='TNC CALC_Cstock'!D26 -> 18785.5616 | Z22: ='TNC CALC_Cstock'!E26 -> 4271.36 | AA22: ='TNC CALC_Cstock'!F26 -> 13257.69984 | AB22: ='TNC CALC_Cstock'!G26 -> 912.6648 | AC22: ='TNC CALC_Cstock'!H26 -> 576.972 | AD22: ='TNC CALC_Cstock'!I26 -> 4662.9828 | AE22: ='TNC CALC_Cstock'!J26 -> 3723.9228 | AF22: ='TNC CALC_Cstock'!K26 -> 729.0828 | AG22: ='TNC CALC_Cstock'!L26 -> 2182.821 | AH22: ='TNC CALC_Cstock'!M26 -> 3728.181 | AI22: ='TNC CALC_Cstock'!N26 -> 8773.7814 | AJ22: ='TNC CALC_Cstock'!O26 -> 17318.46318 | AK22: ='TNC CALC_Cstock'!P26 -> 231.804 | AL22: ='TNC CALC_Cstock'!Q26 -> 30224.79478 | AM22: ='TNC CALC_Cstock'!R26 -> 1230.46 | AN22: ='TNC CALC_Cstock'!S26 -> 0 | AO22: ='TNC CALC_Cstock'!T26 -> 0 | AP22: ='TNC CALC_Cstock'!U26 -> 0 | AQ22: 113546.36 | AR22: ='TNC CALC_Cstock'!X26 -> 578.204622 | AS22: ='TNC CALC_Cstock'!Z26 -> 1202.507372 | AT22: ='TNC CALC_Cstock'!AB26 -> 420.2704594 | AU22: 2200.982454 | AV22: 111345.3775 | AW22: -408.2663843 | AX22: ='6. TNC Assumptions'!C53 -> 382 | AY22: ='6. TNC Assumptions'!D53 -> 120.9461503 | AZ22: ='6. TNC Assumptions'!E53 -> 2402 | BA22: ='6. TNC Assumptions'!F53 -> 721.9367334 | BB22: ='6. TNC Assumptions'!G53 -> 12297.41008 | BC22: ='6. TNC Assumptions'!I53 -> 174 | BD22: ='6. TNC Assumptions'!J53 -> 114.1652854 | BE22: ='6. TNC Assumptions'!K53 -> 897.3112465 | BF22: ='6. TNC Assumptions'!L53 -> 5103.625459 | BG22: ='6. TNC Assumptions'!M53 -> 144.9683667 | BH22: ='6. TNC Assumptions'!O53 -> 565 | BI22: ='6. TNC Assumptions'!P53 -> 965 | BJ22: ='6. TNC Assumptions'!Q53 -> 2293.667367 | BK22: ='6. TNC Assumptions'!R53 -> 5847 | BL22: ='6. TNC Assumptions'!S53 -> 68.20525424 | BM22: ='6. TNC Assumptions'!T53 -> 15182.0086 | BN22: ='6. TNC Assumptions'!U53 -> 187 | BO22: ='6. TNC Assumptions'!W53 -> 0 | BP22: ='6. TNC Assumptions'!X53 -> 0 | BQ22: ='6. TNC Assumptions'!Y53 -> 0 | BR22: 47466.24455 | BS22: ='TNC CALC_Cstock'!B59 -> 2298.112 | BT22: ='TNC CALC_Cstock'!C59 -> 727.61204 | BU22: ='TNC CALC_Cstock'!D59 -> 18785.5616 | BV22: ='TNC CALC_Cstock'!E59 -> 4343.171388 | BW22: ='TNC CALC_Cstock'!F59 -> 13316.61943 | BX22: ='TNC CALC_Cstock'!G59 -> 912.6648 | BY22: ='TNC CALC_Cstock'!H59 -> 598.8197551 | BZ22: ='TNC CALC_Cstock'!I59 -> 4706.57695 | CA22: ='TNC CALC_Cstock'!J59 -> 3741.978187 | CB22: ='TNC CALC_Cstock'!K59 -> 760.3880771 | CC22: ='TNC CALC_Cstock'!L59 -> 2182.821 | CD22: ='TNC CALC_Cstock'!M59 -> 3728.181 | CE22: ='TNC CALC_Cstock'!N59 -> 8861.354507 | CF22: ='TNC CALC_Cstock'!O59 -> 17318.46318 | CG22: ='TNC CALC_Cstock'!P59 -> 263.5041792 | CH22: ='TNC CALC_Cstock'!Q59 -> 30304.65554 | CI22: ='TNC CALC_Cstock'!R59 -> 1230.46 | CJ22: ='TNC CALC_Cstock'!S59 -> 0 | CK22: ='TNC CALC_Cstock'!T59 -> 0 | CL22: ='TNC CALC_Cstock'!U59 -> 0 | CM22: 114080.9436 | CN22: ='TNC CALC_Cstock'!X59 -> 578.204622 | CO22: ='TNC CALC_Cstock'!Z59 -> 1202.507372 | CP22: ='TNC CALC_Cstock'!AB59 -> 420.2704594 | CQ22: 2200.982454 | CR22: 111879.9612 | CS22: -410.2265243 | CT22: ='6. TNC Assumptions'!C85 -> 382 | CU22: ='6. TNC Assumptions'!D85 -> 120.9461503 | CV22: ='6. TNC Assumptions'!E85 -> 2402 | CW22: ='6. TNC Assumptions'!F85 -> 721.9367334 | CX22: ='6. TNC Assumptions'!G85 -> 12297.41008 | CY22: ='6. TNC Assumptions'!I85 -> 174 | CZ22: ='6. TNC Assumptions'!J85 -> 114.1652854 | DA22: ='6. TNC Assumptions'!K85 -> 897.3112465 | DB22: ='6. TNC Assumptions'!L85 -> 5103.625459 | DC22: ='6. TNC Assumptions'!M85 -> 144.9683667 | DD22: ='6. TNC Assumptions'!O85 -> 565 | DE22: ='6. TNC Assumptions'!P85 -> 965 | DF22: ='6. TNC Assumptions'!Q85 -> 2293.667367 | DG22: ='6. TNC Assumptions'!R85 -> 5847 | DH22: ='6. TNC Assumptions'!S85 -> 68.20525424 | DI22: ='6. TNC Assumptions'!T85 -> 15182.0086 | DJ22: ='6. TNC Assumptions'!U85 -> 187 | DK22: ='6. TNC Assumptions'!W85 -> 0 | DL22: ='6. TNC Assumptions'!X85 -> 0 | DM22: ='6. TNC Assumptions'!Y85 -> 0 | DN22: 47466.24455 | DO22: ='TNC CALC_Cstock'!B93 -> 2298.112 | DP22: ='TNC CALC_Cstock'!C93 -> 727.61204 | DQ22: ='TNC CALC_Cstock'!D93 -> 18785.5616 | DR22: ='TNC CALC_Cstock'!E93 -> 4343.171388 | DS22: ='TNC CALC_Cstock'!F93 -> 13316.61943 | DT22: ='TNC CALC_Cstock'!G93 -> 912.6648 | DU22: ='TNC CALC_Cstock'!H93 -> 598.8197551 | DV22: ='TNC CALC_Cstock'!I93 -> 4706.57695 | DW22: ='TNC CALC_Cstock'!J93 -> 3741.978187 | DX22: ='TNC CALC_Cstock'!K93 -> 760.3880771 | DY22: ='TNC CALC_Cstock'!L93 -> 2182.821 | DZ22: ='TNC CALC_Cstock'!M93 -> 3728.181 | EA22: ='TNC CALC_Cstock'!N93 -> 8861.354507 | EB22: ='TNC CALC_Cstock'!O93 -> 17318.46318 | EC22: ='TNC CALC_Cstock'!P93 -> 263.5041792 | ED22: ='TNC CALC_Cstock'!Q93 -> 30304.65554 | EE22: ='TNC CALC_Cstock'!R93 -> 1230.46 | EF22: ='TNC CALC_Cstock'!S93 -> 0 | EG22: ='TNC CALC_Cstock'!T93 -> 0 | EH22: ='TNC CALC_Cstock'!U93 -> 0 | EI22: 114080.9436 | EJ22: ='TNC CALC_Cstock'!X93 -> 578.204622 | EK22: ='TNC CALC_Cstock'!Z93 -> 1202.507372 | EL22: ='TNC CALC_Cstock'!AB93 -> 420.2704594 | EM22: 2200.982454 | EN22: 111879.9612 | EO22: -410.2265243
A23: 2021 | B23: ='6. TNC Assumptions'!C22 -> 382 | C23: ='6. TNC Assumptions'!D22 -> 106 | D23: ='6. TNC Assumptions'!E22 -> 2402 | E23: ='6. TNC Assumptions'!F22 -> 710 | F23: ='6. TNC Assumptions'!G22 -> 12243 | G23: ='6. TNC Assumptions'!I22 -> 174 | H23: ='6. TNC Assumptions'!J22 -> 110 | I23: ='6. TNC Assumptions'!K22 -> 889 | J23: ='6. TNC Assumptions'!L22 -> 5079 | K23: ='6. TNC Assumptions'!M22 -> 139 | L23: ='6. TNC Assumptions'!O22 -> 565 | M23: ='6. TNC Assumptions'!P22 -> 965 | N23: ='6. TNC Assumptions'!Q22 -> 2271 | O23: ='6. TNC Assumptions'!R22 -> 5847 | P23: ='6. TNC Assumptions'!S22 -> 60 | Q23: ='6. TNC Assumptions'!T22 -> 15142 | R23: ='6. TNC Assumptions'!U22 -> 188 | S23: ='6. TNC Assumptions'!W22 -> 0 | T23: ='6. TNC Assumptions'!X22 -> 0 | U23: ='6. TNC Assumptions'!Y22 -> 0 | V23: 47272 | W23: ='TNC CALC_Cstock'!B27 -> 2298.112 | X23: ='TNC CALC_Cstock'!C27 -> 637.696 | Y23: ='TNC CALC_Cstock'!D27 -> 18785.5616 | Z23: ='TNC CALC_Cstock'!E27 -> 4271.36 | AA23: ='TNC CALC_Cstock'!F27 -> 13257.69984 | AB23: ='TNC CALC_Cstock'!G27 -> 912.6648 | AC23: ='TNC CALC_Cstock'!H27 -> 576.972 | AD23: ='TNC CALC_Cstock'!I27 -> 4662.9828 | AE23: ='TNC CALC_Cstock'!J27 -> 3723.9228 | AF23: ='TNC CALC_Cstock'!K27 -> 729.0828 | AG23: ='TNC CALC_Cstock'!L27 -> 2182.821 | AH23: ='TNC CALC_Cstock'!M27 -> 3728.181 | AI23: ='TNC CALC_Cstock'!N27 -> 8773.7814 | AJ23: ='TNC CALC_Cstock'!O27 -> 17318.46318 | AK23: ='TNC CALC_Cstock'!P27 -> 231.804 | AL23: ='TNC CALC_Cstock'!Q27 -> 30224.79478 | AM23: ='TNC CALC_Cstock'!R27 -> 1237.04 | AN23: ='TNC CALC_Cstock'!S27 -> 0 | AO23: ='TNC CALC_Cstock'!T27 -> 0 | AP23: ='TNC CALC_Cstock'!U27 -> 0 | AQ23: 113552.94 | AR23: ='TNC CALC_Cstock'!X27 -> 578.204622 | AS23: ='TNC CALC_Cstock'!Z27 -> 1117.653543 | AT23: ='TNC CALC_Cstock'!AB27 -> 431.7787563 | AU23: 2127.636921 | AV23: 111425.3031 | AW23: -408.5594446 | AX23: ='6. TNC Assumptions'!C54 -> 382 | AY23: ='6. TNC Assumptions'!D54 -> 120.9461503 | AZ23: ='6. TNC Assumptions'!E54 -> 2402 | BA23: ='6. TNC Assumptions'!F54 -> 721.9367334 | BB23: ='6. TNC Assumptions'!G54 -> 12297.41008 | BC23: ='6. TNC Assumptions'!I54 -> 174 | BD23: ='6. TNC Assumptions'!J54 -> 114.1652854 | BE23: ='6. TNC Assumptions'!K54 -> 897.3112465 | BF23: ='6. TNC Assumptions'!L54 -> 5103.625459 | BG23: ='6. TNC Assumptions'!M54 -> 144.9683667 | BH23: ='6. TNC Assumptions'!O54 -> 565 | BI23: ='6. TNC Assumptions'!P54 -> 965 | BJ23: ='6. TNC Assumptions'!Q54 -> 2293.667367 | BK23: ='6. TNC Assumptions'!R54 -> 5847 | BL23: ='6. TNC Assumptions'!S54 -> 68.20525424 | BM23: ='6. TNC Assumptions'!T54 -> 15182.0086 | BN23: ='6. TNC Assumptions'!U54 -> 188 | BO23: ='6. TNC Assumptions'!W54 -> 0 | BP23: ='6. TNC Assumptions'!X54 -> 0 | BQ23: ='6. TNC Assumptions'!Y54 -> 0 | BR23: 47467.24455 | BS23: ='TNC CALC_Cstock'!B60 -> 2298.112 | BT23: ='TNC CALC_Cstock'!C60 -> 727.61204 | BU23: ='TNC CALC_Cstock'!D60 -> 18785.5616 | BV23: ='TNC CALC_Cstock'!E60 -> 4343.171388 | BW23: ='TNC CALC_Cstock'!F60 -> 13316.61943 | BX23: ='TNC CALC_Cstock'!G60 -> 912.6648 | BY23: ='TNC CALC_Cstock'!H60 -> 598.8197551 | BZ23: ='TNC CALC_Cstock'!I60 -> 4706.57695 | CA23: ='TNC CALC_Cstock'!J60 -> 3741.978187 | CB23: ='TNC CALC_Cstock'!K60 -> 760.3880771 | CC23: ='TNC CALC_Cstock'!L60 -> 2182.821 | CD23: ='TNC CALC_Cstock'!M60 -> 3728.181 | CE23: ='TNC CALC_Cstock'!N60 -> 8861.354507 | CF23: ='TNC CALC_Cstock'!O60 -> 17318.46318 | CG23: ='TNC CALC_Cstock'!P60 -> 263.5041792 | CH23: ='TNC CALC_Cstock'!Q60 -> 30304.65554 | CI23: ='TNC CALC_Cstock'!R60 -> 1237.04 | CJ23: ='TNC CALC_Cstock'!S60 -> 0 | CK23: ='TNC CALC_Cstock'!T60 -> 0 | CL23: ='TNC CALC_Cstock'!U60 -> 0 | CM23: 114087.5236 | CN23: ='TNC CALC_Cstock'!X60 -> 578.204622 | CO23: ='TNC CALC_Cstock'!Z60 -> 1117.653543 | CP23: ='TNC CALC_Cstock'!AB60 -> 431.7787563 | CQ23: 2127.636921 | CR23: 111959.8867 | CS23: -410.5195846 | CT23: ='6. TNC Assumptions'!C86 -> 394.5 | CU23: ='6. TNC Assumptions'!D86 -> 120.9461503 | CV23: ='6. TNC Assumptions'!E86 -> 2427 | CW23: ='6. TNC Assumptions'!F86 -> 734.4367334 | CX23: ='6. TNC Assumptions'!G86 -> 12347.41008 | CY23: ='6. TNC Assumptions'!I86 -> 174 | CZ23: ='6. TNC Assumptions'!J86 -> 114.1652854 | DA23: ='6. TNC Assumptions'!K86 -> 897.3112465 | DB23: ='6. TNC Assumptions'!L86 -> 5103.625459 | DC23: ='6. TNC Assumptions'!M86 -> 144.9683667 | DD23: ='6. TNC Assumptions'!O86 -> 565 | DE23: ='6. TNC Assumptions'!P86 -> 965 | DF23: ='6. TNC Assumptions'!Q86 -> 2293.667367 | DG23: ='6. TNC Assumptions'!R86 -> 5847 | DH23: ='6. TNC Assumptions'!S86 -> 68.20525424 | DI23: ='6. TNC Assumptions'!T86 -> 15182.0086 | DJ23: ='6. TNC Assumptions'!U86 -> 188 | DK23: ='6. TNC Assumptions'!W86 -> 0 | DL23: ='6. TNC Assumptions'!X86 -> 0 | DM23: ='6. TNC Assumptions'!Y86 -> 0 | DN23: 47567.24455 | DO23: ='TNC CALC_Cstock'!B94 -> 2373.312 | DP23: ='TNC CALC_Cstock'!C94 -> 727.61204 | DQ23: ='TNC CALC_Cstock'!D94 -> 18981.0816 | DR23: ='TNC CALC_Cstock'!E94 -> 4418.371388 | DS23: ='TNC CALC_Cstock'!F94 -> 13370.76343 | DT23: ='TNC CALC_Cstock'!G94 -> 912.6648 | DU23: ='TNC CALC_Cstock'!H94 -> 598.8197551 | DV23: ='TNC CALC_Cstock'!I94 -> 4706.57695 | DW23: ='TNC CALC_Cstock'!J94 -> 3741.978187 | DX23: ='TNC CALC_Cstock'!K94 -> 760.3880771 | DY23: ='TNC CALC_Cstock'!L94 -> 2182.821 | DZ23: ='TNC CALC_Cstock'!M94 -> 3728.181 | EA23: ='TNC CALC_Cstock'!N94 -> 8861.354507 | EB23: ='TNC CALC_Cstock'!O94 -> 17318.46318 | EC23: ='TNC CALC_Cstock'!P94 -> 263.5041792 | ED23: ='TNC CALC_Cstock'!Q94 -> 30304.65554 | EE23: ='TNC CALC_Cstock'!R94 -> 1237.04 | EF23: ='TNC CALC_Cstock'!S94 -> 0 | EG23: ='TNC CALC_Cstock'!T94 -> 0 | EH23: ='TNC CALC_Cstock'!U94 -> 0 | EI23: 114487.5876 | EJ23: ='TNC CALC_Cstock'!X94 -> 578.204622 | EK23: ='TNC CALC_Cstock'!Z94 -> 1117.653543 | EL23: ='TNC CALC_Cstock'!AB94 -> 431.7787563 | EM23: 2127.636921 | EN23: 112359.9507 | EO23: -411.986486
A24: 2022 | B24: ='6. TNC Assumptions'!C23 -> 382 | C24: ='6. TNC Assumptions'!D23 -> 106 | D24: ='6. TNC Assumptions'!E23 -> 2402 | E24: ='6. TNC Assumptions'!F23 -> 710 | F24: ='6. TNC Assumptions'!G23 -> 12243 | G24: ='6. TNC Assumptions'!I23 -> 174 | H24: ='6. TNC Assumptions'!J23 -> 110 | I24: ='6. TNC Assumptions'!K23 -> 889 | J24: ='6. TNC Assumptions'!L23 -> 5079 | K24: ='6. TNC Assumptions'!M23 -> 139 | L24: ='6. TNC Assumptions'!O23 -> 565 | M24: ='6. TNC Assumptions'!P23 -> 965 | N24: ='6. TNC Assumptions'!Q23 -> 2271 | O24: ='6. TNC Assumptions'!R23 -> 5847 | P24: ='6. TNC Assumptions'!S23 -> 60 | Q24: ='6. TNC Assumptions'!T23 -> 15142 | R24: ='6. TNC Assumptions'!U23 -> 189 | S24: ='6. TNC Assumptions'!W23 -> 0 | T24: ='6. TNC Assumptions'!X23 -> 0 | U24: ='6. TNC Assumptions'!Y23 -> 0 | V24: 47273 | W24: ='TNC CALC_Cstock'!B28 -> 2298.112 | X24: ='TNC CALC_Cstock'!C28 -> 637.696 | Y24: ='TNC CALC_Cstock'!D28 -> 18785.5616 | Z24: ='TNC CALC_Cstock'!E28 -> 4271.36 | AA24: ='TNC CALC_Cstock'!F28 -> 13257.69984 | AB24: ='TNC CALC_Cstock'!G28 -> 912.6648 | AC24: ='TNC CALC_Cstock'!H28 -> 576.972 | AD24: ='TNC CALC_Cstock'!I28 -> 4662.9828 | AE24: ='TNC CALC_Cstock'!J28 -> 3723.9228 | AF24: ='TNC CALC_Cstock'!K28 -> 729.0828 | AG24: ='TNC CALC_Cstock'!L28 -> 2182.821 | AH24: ='TNC CALC_Cstock'!M28 -> 3728.181 | AI24: ='TNC CALC_Cstock'!N28 -> 8773.7814 | AJ24: ='TNC CALC_Cstock'!O28 -> 17318.46318 | AK24: ='TNC CALC_Cstock'!P28 -> 231.804 | AL24: ='TNC CALC_Cstock'!Q28 -> 30224.79478 | AM24: ='TNC CALC_Cstock'!R28 -> 1243.62 | AN24: ='TNC CALC_Cstock'!S28 -> 0 | AO24: ='TNC CALC_Cstock'!T28 -> 0 | AP24: ='TNC CALC_Cstock'!U28 -> 0 | AQ24: 113559.52 | AR24: ='TNC CALC_Cstock'!X28 -> 578.204622 | AS24: ='TNC CALC_Cstock'!Z28 -> 1038.804989 | AT24: ='TNC CALC_Cstock'!AB28 -> 443.9746124 | AU24: 2060.984224 | AV24: 111498.5358 | AW24: -408.8279645 | AX24: ='6. TNC Assumptions'!C55 -> 382 | AY24: ='6. TNC Assumptions'!D55 -> 120.9461503 | AZ24: ='6. TNC Assumptions'!E55 -> 2402 | BA24: ='6. TNC Assumptions'!F55 -> 721.9367334 | BB24: ='6. TNC Assumptions'!G55 -> 12297.41008 | BC24: ='6. TNC Assumptions'!I55 -> 174 | BD24: ='6. TNC Assumptions'!J55 -> 114.1652854 | BE24: ='6. TNC Assumptions'!K55 -> 897.3112465 | BF24: ='6. TNC Assumptions'!L55 -> 5103.625459 | BG24: ='6. TNC Assumptions'!M55 -> 144.9683667 | BH24: ='6. TNC Assumptions'!O55 -> 565 | BI24: ='6. TNC Assumptions'!P55 -> 965 | BJ24: ='6. TNC Assumptions'!Q55 -> 2293.667367 | BK24: ='6. TNC Assumptions'!R55 -> 5847 | BL24: ='6. TNC Assumptions'!S55 -> 68.20525424 | BM24: ='6. TNC Assumptions'!T55 -> 15182.0086 | BN24: ='6. TNC Assumptions'!U55 -> 189 | BO24: ='6. TNC Assumptions'!W55 -> 0 | BP24: ='6. TNC Assumptions'!X55 -> 0 | BQ24: ='6. TNC Assumptions'!Y55 -> 0 | BR24: 47468.24455 | BS24: ='TNC CALC_Cstock'!B61 -> 2298.112 | BT24: ='TNC CALC_Cstock'!C61 -> 727.61204 | BU24: ='TNC CALC_Cstock'!D61 -> 18785.5616 | BV24: ='TNC CALC_Cstock'!E61 -> 4343.171388 | BW24: ='TNC CALC_Cstock'!F61 -> 13316.61943 | BX24: ='TNC CALC_Cstock'!G61 -> 912.6648 | BY24: ='TNC CALC_Cstock'!H61 -> 598.8197551 | BZ24: ='TNC CALC_Cstock'!I61 -> 4706.57695 | CA24: ='TNC CALC_Cstock'!J61 -> 3741.978187 | CB24: ='TNC CALC_Cstock'!K61 -> 760.3880771 | CC24: ='TNC CALC_Cstock'!L61 -> 2182.821 | CD24: ='TNC CALC_Cstock'!M61 -> 3728.181 | CE24: ='TNC CALC_Cstock'!N61 -> 8861.354507 | CF24: ='TNC CALC_Cstock'!O61 -> 17318.46318 | CG24: ='TNC CALC_Cstock'!P61 -> 263.5041792 | CH24: ='TNC CALC_Cstock'!Q61 -> 30304.65554 | CI24: ='TNC CALC_Cstock'!R61 -> 1243.62 | CJ24: ='TNC CALC_Cstock'!S61 -> 0 | CK24: ='TNC CALC_Cstock'!T61 -> 0 | CL24: ='TNC CALC_Cstock'!U61 -> 0 | CM24: 114094.1036 | CN24: ='TNC CALC_Cstock'!X61 -> 578.204622 | CO24: ='TNC CALC_Cstock'!Z61 -> 1038.804989 | CP24: ='TNC CALC_Cstock'!AB61 -> 443.9746124 | CQ24: 2060.984224 | CR24: 112033.1194 | CS24: -410.7881045 | CT24: ='6. TNC Assumptions'!C87 -> 407 | CU24: ='6. TNC Assumptions'!D87 -> 120.9461503 | CV24: ='6. TNC Assumptions'!E87 -> 2452 | CW24: ='6. TNC Assumptions'!F87 -> 746.9367334 | CX24: ='6. TNC Assumptions'!G87 -> 12397.41008 | CY24: ='6. TNC Assumptions'!I87 -> 174 | CZ24: ='6. TNC Assumptions'!J87 -> 114.1652854 | DA24: ='6. TNC Assumptions'!K87 -> 897.3112465 | DB24: ='6. TNC Assumptions'!L87 -> 5103.625459 | DC24: ='6. TNC Assumptions'!M87 -> 144.9683667 | DD24: ='6. TNC Assumptions'!O87 -> 565 | DE24: ='6. TNC Assumptions'!P87 -> 965 | DF24: ='6. TNC Assumptions'!Q87 -> 2293.667367 | DG24: ='6. TNC Assumptions'!R87 -> 5847 | DH24: ='6. TNC Assumptions'!S87 -> 68.20525424 | DI24: ='6. TNC Assumptions'!T87 -> 15182.0086 | DJ24: ='6. TNC Assumptions'!U87 -> 189 | DK24: ='6. TNC Assumptions'!W87 -> 0 | DL24: ='6. TNC Assumptions'!X87 -> 0 | DM24: ='6. TNC Assumptions'!Y87 -> 0 | DN24: 47668.24455 | DO24: ='TNC CALC_Cstock'!B95 -> 2448.512 | DP24: ='TNC CALC_Cstock'!C95 -> 727.61204 | DQ24: ='TNC CALC_Cstock'!D95 -> 19176.6016 | DR24: ='TNC CALC_Cstock'!E95 -> 4493.571388 | DS24: ='TNC CALC_Cstock'!F95 -> 13424.90743 | DT24: ='TNC CALC_Cstock'!G95 -> 912.6648 | DU24: ='TNC CALC_Cstock'!H95 -> 598.8197551 | DV24: ='TNC CALC_Cstock'!I95 -> 4706.57695 | DW24: ='TNC CALC_Cstock'!J95 -> 3741.978187 | DX24: ='TNC CALC_Cstock'!K95 -> 760.3880771 | DY24: ='TNC CALC_Cstock'!L95 -> 2182.821 | DZ24: ='TNC CALC_Cstock'!M95 -> 3728.181 | EA24: ='TNC CALC_Cstock'!N95 -> 8861.354507 | EB24: ='TNC CALC_Cstock'!O95 -> 17318.46318 | EC24: ='TNC CALC_Cstock'!P95 -> 263.5041792 | ED24: ='TNC CALC_Cstock'!Q95 -> 30304.65554 | EE24: ='TNC CALC_Cstock'!R95 -> 1243.62 | EF24: ='TNC CALC_Cstock'!S95 -> 0 | EG24: ='TNC CALC_Cstock'!T95 -> 0 | EH24: ='TNC CALC_Cstock'!U95 -> 0 | EI24: 114894.2316 | EJ24: ='TNC CALC_Cstock'!X95 -> 578.204622 | EK24: ='TNC CALC_Cstock'!Z95 -> 1038.804989 | EL24: ='TNC CALC_Cstock'!AB95 -> 443.9746124 | EM24: 2060.984224 | EN24: 112833.2474 | EO24: -413.7219072
A25: 2023 | B25: ='6. TNC Assumptions'!C24 -> 382 | C25: ='6. TNC Assumptions'!D24 -> 106 | D25: ='6. TNC Assumptions'!E24 -> 2402 | E25: ='6. TNC Assumptions'!F24 -> 710 | F25: ='6. TNC Assumptions'!G24 -> 12243 | G25: ='6. TNC Assumptions'!I24 -> 174 | H25: ='6. TNC Assumptions'!J24 -> 110 | I25: ='6. TNC Assumptions'!K24 -> 889 | J25: ='6. TNC Assumptions'!L24 -> 5079 | K25: ='6. TNC Assumptions'!M24 -> 139 | L25: ='6. TNC Assumptions'!O24 -> 565 | M25: ='6. TNC Assumptions'!P24 -> 965 | N25: ='6. TNC Assumptions'!Q24 -> 2271 | O25: ='6. TNC Assumptions'!R24 -> 5847 | P25: ='6. TNC Assumptions'!S24 -> 60 | Q25: ='6. TNC Assumptions'!T24 -> 15142 | R25: ='6. TNC Assumptions'!U24 -> 190 | S25: ='6. TNC Assumptions'!W24 -> 0 | T25: ='6. TNC Assumptions'!X24 -> 0 | U25: ='6. TNC Assumptions'!Y24 -> 0 | V25: 47274 | W25: ='TNC CALC_Cstock'!B29 -> 2298.112 | X25: ='TNC CALC_Cstock'!C29 -> 637.696 | Y25: ='TNC CALC_Cstock'!D29 -> 18785.5616 | Z25: ='TNC CALC_Cstock'!E29 -> 4271.36 | AA25: ='TNC CALC_Cstock'!F29 -> 13257.69984 | AB25: ='TNC CALC_Cstock'!G29 -> 912.6648 | AC25: ='TNC CALC_Cstock'!H29 -> 576.972 | AD25: ='TNC CALC_Cstock'!I29 -> 4662.9828 | AE25: ='TNC CALC_Cstock'!J29 -> 3723.9228 | AF25: ='TNC CALC_Cstock'!K29 -> 729.0828 | AG25: ='TNC CALC_Cstock'!L29 -> 2182.821 | AH25: ='TNC CALC_Cstock'!M29 -> 3728.181 | AI25: ='TNC CALC_Cstock'!N29 -> 8773.7814 | AJ25: ='TNC CALC_Cstock'!O29 -> 17318.46318 | AK25: ='TNC CALC_Cstock'!P29 -> 231.804 | AL25: ='TNC CALC_Cstock'!Q29 -> 30224.79478 | AM25: ='TNC CALC_Cstock'!R29 -> 1250.2 | AN25: ='TNC CALC_Cstock'!S29 -> 0 | AO25: ='TNC CALC_Cstock'!T29 -> 0 | AP25: ='TNC CALC_Cstock'!U29 -> 0 | AQ25: 113566.1 | AR25: ='TNC CALC_Cstock'!X29 -> 578.204622 | AS25: ='TNC CALC_Cstock'!Z29 -> 965.5354756 | AT25: ='TNC CALC_Cstock'!AB29 -> 432.0637937 | AU25: 1975.803891 | AV25: 111590.2961 | AW25: -409.1644191 | AX25: ='6. TNC Assumptions'!C56 -> 382 | AY25: ='6. TNC Assumptions'!D56 -> 120.9461503 | AZ25: ='6. TNC Assumptions'!E56 -> 2402 | BA25: ='6. TNC Assumptions'!F56 -> 721.9367334 | BB25: ='6. TNC Assumptions'!G56 -> 12297.41008 | BC25: ='6. TNC Assumptions'!I56 -> 174 | BD25: ='6. TNC Assumptions'!J56 -> 114.1652854 | BE25: ='6. TNC Assumptions'!K56 -> 897.3112465 | BF25: ='6. TNC Assumptions'!L56 -> 5103.625459 | BG25: ='6. TNC Assumptions'!M56 -> 144.9683667 | BH25: ='6. TNC Assumptions'!O56 -> 565 | BI25: ='6. TNC Assumptions'!P56 -> 965 | BJ25: ='6. TNC Assumptions'!Q56 -> 2293.667367 | BK25: ='6. TNC Assumptions'!R56 -> 5847 | BL25: ='6. TNC Assumptions'!S56 -> 68.20525424 | BM25: ='6. TNC Assumptions'!T56 -> 15182.0086 | BN25: ='6. TNC Assumptions'!U56 -> 190 | BO25: ='6. TNC Assumptions'!W56 -> 0 | BP25: ='6. TNC Assumptions'!X56 -> 0 | BQ25: ='6. TNC Assumptions'!Y56 -> 0 | BR25: 47469.24455 | BS25: ='TNC CALC_Cstock'!B62 -> 2298.112 | BT25: ='TNC CALC_Cstock'!C62 -> 727.61204 | BU25: ='TNC CALC_Cstock'!D62 -> 18785.5616 | BV25: ='TNC CALC_Cstock'!E62 -> 4343.171388 | BW25: ='TNC CALC_Cstock'!F62 -> 13316.61943 | BX25: ='TNC CALC_Cstock'!G62 -> 912.6648 | BY25: ='TNC CALC_Cstock'!H62 -> 598.8197551 | BZ25: ='TNC CALC_Cstock'!I62 -> 4706.57695 | CA25: ='TNC CALC_Cstock'!J62 -> 3741.978187 | CB25: ='TNC CALC_Cstock'!K62 -> 760.3880771 | CC25: ='TNC CALC_Cstock'!L62 -> 2182.821 | CD25: ='TNC CALC_Cstock'!M62 -> 3728.181 | CE25: ='TNC CALC_Cstock'!N62 -> 8861.354507 | CF25: ='TNC CALC_Cstock'!O62 -> 17318.46318 | CG25: ='TNC CALC_Cstock'!P62 -> 263.5041792 | CH25: ='TNC CALC_Cstock'!Q62 -> 30304.65554 | CI25: ='TNC CALC_Cstock'!R62 -> 1250.2 | CJ25: ='TNC CALC_Cstock'!S62 -> 0 | CK25: ='TNC CALC_Cstock'!T62 -> 0 | CL25: ='TNC CALC_Cstock'!U62 -> 0 | CM25: 114100.6836 | CN25: ='TNC CALC_Cstock'!X62 -> 578.204622 | CO25: ='TNC CALC_Cstock'!Z62 -> 965.5354756 | CP25: ='TNC CALC_Cstock'!AB62 -> 432.0637937 | CQ25: 1975.803891 | CR25: 112124.8797 | CS25: -411.1245591 | CT25: ='6. TNC Assumptions'!C88 -> 419.5 | CU25: ='6. TNC Assumptions'!D88 -> 120.9461503 | CV25: ='6. TNC Assumptions'!E88 -> 2477 | CW25: ='6. TNC Assumptions'!F88 -> 759.4367334 | CX25: ='6. TNC Assumptions'!G88 -> 12447.41008 | CY25: ='6. TNC Assumptions'!I88 -> 174 | CZ25: ='6. TNC Assumptions'!J88 -> 114.1652854 | DA25: ='6. TNC Assumptions'!K88 -> 897.3112465 | DB25: ='6. TNC Assumptions'!L88 -> 5103.625459 | DC25: ='6. TNC Assumptions'!M88 -> 144.9683667 | DD25: ='6. TNC Assumptions'!O88 -> 565 | DE25: ='6. TNC Assumptions'!P88 -> 965 | DF25: ='6. TNC Assumptions'!Q88 -> 2293.667367 | DG25: ='6. TNC Assumptions'!R88 -> 5847 | DH25: ='6. TNC Assumptions'!S88 -> 68.20525424 | DI25: ='6. TNC Assumptions'!T88 -> 15182.0086 | DJ25: ='6. TNC Assumptions'!U88 -> 190 | DK25: ='6. TNC Assumptions'!W88 -> 0 | DL25: ='6. TNC Assumptions'!X88 -> 0 | DM25: ='6. TNC Assumptions'!Y88 -> 0 | DN25: 47769.24455 | DO25: ='TNC CALC_Cstock'!B96 -> 2523.712 | DP25: ='TNC CALC_Cstock'!C96 -> 727.61204 | DQ25: ='TNC CALC_Cstock'!D96 -> 19372.1216 | DR25: ='TNC CALC_Cstock'!E96 -> 4568.771388 | DS25: ='TNC CALC_Cstock'!F96 -> 13479.05143 | DT25: ='TNC CALC_Cstock'!G96 -> 912.6648 | DU25: ='TNC CALC_Cstock'!H96 -> 598.8197551 | DV25: ='TNC CALC_Cstock'!I96 -> 4706.57695 | DW25: ='TNC CALC_Cstock'!J96 -> 3741.978187 | DX25: ='TNC CALC_Cstock'!K96 -> 760.3880771 | DY25: ='TNC CALC_Cstock'!L96 -> 2182.821 | DZ25: ='TNC CALC_Cstock'!M96 -> 3728.181 | EA25: ='TNC CALC_Cstock'!N96 -> 8861.354507 | EB25: ='TNC CALC_Cstock'!O96 -> 17318.46318 | EC25: ='TNC CALC_Cstock'!P96 -> 263.5041792 | ED25: ='TNC CALC_Cstock'!Q96 -> 30304.65554 | EE25: ='TNC CALC_Cstock'!R96 -> 1250.2 | EF25: ='TNC CALC_Cstock'!S96 -> 0 | EG25: ='TNC CALC_Cstock'!T96 -> 0 | EH25: ='TNC CALC_Cstock'!U96 -> 0 | EI25: 115300.8756 | EJ25: ='TNC CALC_Cstock'!X96 -> 578.204622 | EK25: ='TNC CALC_Cstock'!Z96 -> 965.5354756 | EL25: ='TNC CALC_Cstock'!AB96 -> 432.0637937 | EM25: 1975.803891 | EN25: 113325.0717 | EO25: -415.5252631
A26: 2024 | B26: ='6. TNC Assumptions'!C25 -> 382 | C26: ='6. TNC Assumptions'!D25 -> 106 | D26: ='6. TNC Assumptions'!E25 -> 2402 | E26: ='6. TNC Assumptions'!F25 -> 710 | F26: ='6. TNC Assumptions'!G25 -> 12243 | G26: ='6. TNC Assumptions'!I25 -> 174 | H26: ='6. TNC Assumptions'!J25 -> 110 | I26: ='6. TNC Assumptions'!K25 -> 889 | J26: ='6. TNC Assumptions'!L25 -> 5079 | K26: ='6. TNC Assumptions'!M25 -> 139 | L26: ='6. TNC Assumptions'!O25 -> 565 | M26: ='6. TNC Assumptions'!P25 -> 965 | N26: ='6. TNC Assumptions'!Q25 -> 2271 | O26: ='6. TNC Assumptions'!R25 -> 5847 | P26: ='6. TNC Assumptions'!S25 -> 60 | Q26: ='6. TNC Assumptions'!T25 -> 15142 | R26: ='6. TNC Assumptions'!U25 -> 191 | S26: ='6. TNC Assumptions'!W25 -> 0 | T26: ='6. TNC Assumptions'!X25 -> 0 | U26: ='6. TNC Assumptions'!Y25 -> 0 | V26: 47275 | W26: ='TNC CALC_Cstock'!B30 -> 2298.112 | X26: ='TNC CALC_Cstock'!C30 -> 637.696 | Y26: ='TNC CALC_Cstock'!D30 -> 18785.5616 | Z26: ='TNC CALC_Cstock'!E30 -> 4271.36 | AA26: ='TNC CALC_Cstock'!F30 -> 13257.69984 | AB26: ='TNC CALC_Cstock'!G30 -> 912.6648 | AC26: ='TNC CALC_Cstock'!H30 -> 576.972 | AD26: ='TNC CALC_Cstock'!I30 -> 4662.9828 | AE26: ='TNC CALC_Cstock'!J30 -> 3723.9228 | AF26: ='TNC CALC_Cstock'!K30 -> 729.0828 | AG26: ='TNC CALC_Cstock'!L30 -> 2182.821 | AH26: ='TNC CALC_Cstock'!M30 -> 3728.181 | AI26: ='TNC CALC_Cstock'!N30 -> 8773.7814 | AJ26: ='TNC CALC_Cstock'!O30 -> 17318.46318 | AK26: ='TNC CALC_Cstock'!P30 -> 231.804 | AL26: ='TNC CALC_Cstock'!Q30 -> 30224.79478 | AM26: ='TNC CALC_Cstock'!R30 -> 1256.78 | AN26: ='TNC CALC_Cstock'!S30 -> 0 | AO26: ='TNC CALC_Cstock'!T30 -> 0 | AP26: ='TNC CALC_Cstock'!U30 -> 0 | AQ26: 113572.68 | AR26: ='TNC CALC_Cstock'!X30 -> 578.204622 | AS26: ='TNC CALC_Cstock'!Z30 -> 897.4491029 | AT26: ='TNC CALC_Cstock'!AB30 -> 416.451877 | AU26: 1892.105602 | AV26: 111680.5744 | AW26: -409.4954395 | AX26: ='6. TNC Assumptions'!C57 -> 382 | AY26: ='6. TNC Assumptions'!D57 -> 120.9461503 | AZ26: ='6. TNC Assumptions'!E57 -> 2402 | BA26: ='6. TNC Assumptions'!F57 -> 721.9367334 | BB26: ='6. TNC Assumptions'!G57 -> 12297.41008 | BC26: ='6. TNC Assumptions'!I57 -> 174 | BD26: ='6. TNC Assumptions'!J57 -> 114.1652854 | BE26: ='6. TNC Assumptions'!K57 -> 897.3112465 | BF26: ='6. TNC Assumptions'!L57 -> 5103.625459 | BG26: ='6. TNC Assumptions'!M57 -> 144.9683667 | BH26: ='6. TNC Assumptions'!O57 -> 565 | BI26: ='6. TNC Assumptions'!P57 -> 965 | BJ26: ='6. TNC Assumptions'!Q57 -> 2293.667367 | BK26: ='6. TNC Assumptions'!R57 -> 5847 | BL26: ='6. TNC Assumptions'!S57 -> 68.20525424 | BM26: ='6. TNC Assumptions'!T57 -> 15182.0086 | BN26: ='6. TNC Assumptions'!U57 -> 191 | BO26: ='6. TNC Assumptions'!W57 -> 0 | BP26: ='6. TNC Assumptions'!X57 -> 0 | BQ26: ='6. TNC Assumptions'!Y57 -> 0 | BR26: 47470.24455 | BS26: ='TNC CALC_Cstock'!B63 -> 2298.112 | BT26: ='TNC CALC_Cstock'!C63 -> 727.61204 | BU26: ='TNC CALC_Cstock'!D63 -> 18785.5616 | BV26: ='TNC CALC_Cstock'!E63 -> 4343.171388 | BW26: ='TNC CALC_Cstock'!F63 -> 13316.61943 | BX26: ='TNC CALC_Cstock'!G63 -> 912.6648 | BY26: ='TNC CALC_Cstock'!H63 -> 598.8197551 | BZ26: ='TNC CALC_Cstock'!I63 -> 4706.57695 | CA26: ='TNC CALC_Cstock'!J63 -> 3741.978187 | CB26: ='TNC CALC_Cstock'!K63 -> 760.3880771 | CC26: ='TNC CALC_Cstock'!L63 -> 2182.821 | CD26: ='TNC CALC_Cstock'!M63 -> 3728.181 | CE26: ='TNC CALC_Cstock'!N63 -> 8861.354507 | CF26: ='TNC CALC_Cstock'!O63 -> 17318.46318 | CG26: ='TNC CALC_Cstock'!P63 -> 263.5041792 | CH26: ='TNC CALC_Cstock'!Q63 -> 30304.65554 | CI26: ='TNC CALC_Cstock'!R63 -> 1256.78 | CJ26: ='TNC CALC_Cstock'!S63 -> 0 | CK26: ='TNC CALC_Cstock'!T63 -> 0 | CL26: ='TNC CALC_Cstock'!U63 -> 0 | CM26: 114107.2636 | CN26: ='TNC CALC_Cstock'!X63 -> 578.204622 | CO26: ='TNC CALC_Cstock'!Z63 -> 897.4491029 | CP26: ='TNC CALC_Cstock'!AB63 -> 416.451877 | CQ26: 1892.105602 | CR26: 112215.158 | CS26: -411.4555795 | CT26: ='6. TNC Assumptions'!C89 -> 432 | CU26: ='6. TNC Assumptions'!D89 -> 120.9461503 | CV26: ='6. TNC Assumptions'!E89 -> 2502 | CW26: ='6. TNC Assumptions'!F89 -> 771.9367334 | CX26: ='6. TNC Assumptions'!G89 -> 12497.41008 | CY26: ='6. TNC Assumptions'!I89 -> 174 | CZ26: ='6. TNC Assumptions'!J89 -> 114.1652854 | DA26: ='6. TNC Assumptions'!K89 -> 897.3112465 | DB26: ='6. TNC Assumptions'!L89 -> 5103.625459 | DC26: ='6. TNC Assumptions'!M89 -> 144.9683667 | DD26: ='6. TNC Assumptions'!O89 -> 565 | DE26: ='6. TNC Assumptions'!P89 -> 965 | DF26: ='6. TNC Assumptions'!Q89 -> 2293.667367 | DG26: ='6. TNC Assumptions'!R89 -> 5847 | DH26: ='6. TNC Assumptions'!S89 -> 68.20525424 | DI26: ='6. TNC Assumptions'!T89 -> 15182.0086 | DJ26: ='6. TNC Assumptions'!U89 -> 191 | DK26: ='6. TNC Assumptions'!W89 -> 0 | DL26: ='6. TNC Assumptions'!X89 -> 0 | DM26: ='6. TNC Assumptions'!Y89 -> 0 | DN26: 47870.24455 | DO26: ='TNC CALC_Cstock'!B97 -> 2598.912 | DP26: ='TNC CALC_Cstock'!C97 -> 727.61204 | DQ26: ='TNC CALC_Cstock'!D97 -> 19567.6416 | DR26: ='TNC CALC_Cstock'!E97 -> 4643.971388 | DS26: ='TNC CALC_Cstock'!F97 -> 13533.19543 | DT26: ='TNC CALC_Cstock'!G97 -> 912.6648 | DU26: ='TNC CALC_Cstock'!H97 -> 598.8197551 | DV26: ='TNC CALC_Cstock'!I97 -> 4706.57695 | DW26: ='TNC CALC_Cstock'!J97 -> 3741.978187 | DX26: ='TNC CALC_Cstock'!K97 -> 760.3880771 | DY26: ='TNC CALC_Cstock'!L97 -> 2182.821 | DZ26: ='TNC CALC_Cstock'!M97 -> 3728.181 | EA26: ='TNC CALC_Cstock'!N97 -> 8861.354507 | EB26: ='TNC CALC_Cstock'!O97 -> 17318.46318 | EC26: ='TNC CALC_Cstock'!P97 -> 263.5041792 | ED26: ='TNC CALC_Cstock'!Q97 -> 30304.65554 | EE26: ='TNC CALC_Cstock'!R97 -> 1256.78 | EF26: ='TNC CALC_Cstock'!S97 -> 0 | EG26: ='TNC CALC_Cstock'!T97 -> 0 | EH26: ='TNC CALC_Cstock'!U97 -> 0 | EI26: 115707.5196 | EJ26: ='TNC CALC_Cstock'!X97 -> 578.204622 | EK26: ='TNC CALC_Cstock'!Z97 -> 897.4491029 | EL26: ='TNC CALC_Cstock'!AB97 -> 416.451877 | EM26: 1892.105602 | EN26: 113815.414 | EO26: -417.3231848
A27: 2025 | B27: ='6. TNC Assumptions'!C26 -> 382 | C27: ='6. TNC Assumptions'!D26 -> 106 | D27: ='6. TNC Assumptions'!E26 -> 2402 | E27: ='6. TNC Assumptions'!F26 -> 710 | F27: ='6. TNC Assumptions'!G26 -> 12243 | G27: ='6. TNC Assumptions'!I26 -> 174 | H27: ='6. TNC Assumptions'!J26 -> 110 | I27: ='6. TNC Assumptions'!K26 -> 889 | J27: ='6. TNC Assumptions'!L26 -> 5079 | K27: ='6. TNC Assumptions'!M26 -> 139 | L27: ='6. TNC Assumptions'!O26 -> 565 | M27: ='6. TNC Assumptions'!P26 -> 965 | N27: ='6. TNC Assumptions'!Q26 -> 2271 | O27: ='6. TNC Assumptions'!R26 -> 5847 | P27: ='6. TNC Assumptions'!S26 -> 60 | Q27: ='6. TNC Assumptions'!T26 -> 15142 | R27: ='6. TNC Assumptions'!U26 -> 192 | S27: ='6. TNC Assumptions'!W26 -> 0 | T27: ='6. TNC Assumptions'!X26 -> 0 | U27: ='6. TNC Assumptions'!Y26 -> 0 | V27: 47276 | W27: ='TNC CALC_Cstock'!B31 -> 2298.112 | X27: ='TNC CALC_Cstock'!C31 -> 637.696 | Y27: ='TNC CALC_Cstock'!D31 -> 18785.5616 | Z27: ='TNC CALC_Cstock'!E31 -> 4271.36 | AA27: ='TNC CALC_Cstock'!F31 -> 13257.69984 | AB27: ='TNC CALC_Cstock'!G31 -> 912.6648 | AC27: ='TNC CALC_Cstock'!H31 -> 576.972 | AD27: ='TNC CALC_Cstock'!I31 -> 4662.9828 | AE27: ='TNC CALC_Cstock'!J31 -> 3723.9228 | AF27: ='TNC CALC_Cstock'!K31 -> 729.0828 | AG27: ='TNC CALC_Cstock'!L31 -> 2182.821 | AH27: ='TNC CALC_Cstock'!M31 -> 3728.181 | AI27: ='TNC CALC_Cstock'!N31 -> 8773.7814 | AJ27: ='TNC CALC_Cstock'!O31 -> 17318.46318 | AK27: ='TNC CALC_Cstock'!P31 -> 231.804 | AL27: ='TNC CALC_Cstock'!Q31 -> 30224.79478 | AM27: ='TNC CALC_Cstock'!R31 -> 1263.36 | AN27: ='TNC CALC_Cstock'!S31 -> 0 | AO27: ='TNC CALC_Cstock'!T31 -> 0 | AP27: ='TNC CALC_Cstock'!U31 -> 0 | AQ27: 113579.26 | AR27: ='TNC CALC_Cstock'!X31 -> 525.037 | AS27: ='TNC CALC_Cstock'!Z31 -> 834.1781462 | AT27: ='TNC CALC_Cstock'!AB31 -> 417.622324 | AU27: 1776.83747 | AV27: 111802.4225 | AW27: -409.9422159 | AX27: ='6. TNC Assumptions'!C58 -> 382 | AY27: ='6. TNC Assumptions'!D58 -> 120.9461503 | AZ27: ='6. TNC Assumptions'!E58 -> 2402 | BA27: ='6. TNC Assumptions'!F58 -> 721.9367334 | BB27: ='6. TNC Assumptions'!G58 -> 12297.41008 | BC27: ='6. TNC Assumptions'!I58 -> 174 | BD27: ='6. TNC Assumptions'!J58 -> 114.1652854 | BE27: ='6. TNC Assumptions'!K58 -> 897.3112465 | BF27: ='6. TNC Assumptions'!L58 -> 5103.625459 | BG27: ='6. TNC Assumptions'!M58 -> 144.9683667 | BH27: ='6. TNC Assumptions'!O58 -> 565 | BI27: ='6. TNC Assumptions'!P58 -> 965 | BJ27: ='6. TNC Assumptions'!Q58 -> 2293.667367 | BK27: ='6. TNC Assumptions'!R58 -> 5847 | BL27: ='6. TNC Assumptions'!S58 -> 68.20525424 | BM27: ='6. TNC Assumptions'!T58 -> 15182.0086 | BN27: ='6. TNC Assumptions'!U58 -> 192 | BO27: ='6. TNC Assumptions'!W58 -> 0 | BP27: ='6. TNC Assumptions'!X58 -> 0 | BQ27: ='6. TNC Assumptions'!Y58 -> 0 | BR27: 47471.24455 | BS27: ='TNC CALC_Cstock'!B64 -> 2298.112 | BT27: ='TNC CALC_Cstock'!C64 -> 727.61204 | BU27: ='TNC CALC_Cstock'!D64 -> 18785.5616 | BV27: ='TNC CALC_Cstock'!E64 -> 4343.171388 | BW27: ='TNC CALC_Cstock'!F64 -> 13316.61943 | BX27: ='TNC CALC_Cstock'!G64 -> 912.6648 | BY27: ='TNC CALC_Cstock'!H64 -> 598.8197551 | BZ27: ='TNC CALC_Cstock'!I64 -> 4706.57695 | CA27: ='TNC CALC_Cstock'!J64 -> 3741.978187 | CB27: ='TNC CALC_Cstock'!K64 -> 760.3880771 | CC27: ='TNC CALC_Cstock'!L64 -> 2182.821 | CD27: ='TNC CALC_Cstock'!M64 -> 3728.181 | CE27: ='TNC CALC_Cstock'!N64 -> 8861.354507 | CF27: ='TNC CALC_Cstock'!O64 -> 17318.46318 | CG27: ='TNC CALC_Cstock'!P64 -> 263.5041792 | CH27: ='TNC CALC_Cstock'!Q64 -> 30304.65554 | CI27: ='TNC CALC_Cstock'!R64 -> 1263.36 | CJ27: ='TNC CALC_Cstock'!S64 -> 0 | CK27: ='TNC CALC_Cstock'!T64 -> 0 | CL27: ='TNC CALC_Cstock'!U64 -> 0 | CM27: 114113.8436 | CN27: ='TNC CALC_Cstock'!X64 -> 525.037 | CO27: ='TNC CALC_Cstock'!Z64 -> 834.1781462 | CP27: ='TNC CALC_Cstock'!AB64 -> 417.622324 | CQ27: 1776.83747 | CR27: 112337.0062 | CS27: -411.902356 | CT27: ='6. TNC Assumptions'!C90 -> 444.5 | CU27: ='6. TNC Assumptions'!D90 -> 120.9461503 | CV27: ='6. TNC Assumptions'!E90 -> 2527 | CW27: ='6. TNC Assumptions'!F90 -> 784.4367334 | CX27: ='6. TNC Assumptions'!G90 -> 12547.41008 | CY27: ='6. TNC Assumptions'!I90 -> 174 | CZ27: ='6. TNC Assumptions'!J90 -> 114.1652854 | DA27: ='6. TNC Assumptions'!K90 -> 897.3112465 | DB27: ='6. TNC Assumptions'!L90 -> 5103.625459 | DC27: ='6. TNC Assumptions'!M90 -> 144.9683667 | DD27: ='6. TNC Assumptions'!O90 -> 565 | DE27: ='6. TNC Assumptions'!P90 -> 965 | DF27: ='6. TNC Assumptions'!Q90 -> 2293.667367 | DG27: ='6. TNC Assumptions'!R90 -> 5847 | DH27: ='6. TNC Assumptions'!S90 -> 68.20525424 | DI27: ='6. TNC Assumptions'!T90 -> 15182.0086 | DJ27: ='6. TNC Assumptions'!U90 -> 192 | DK27: ='6. TNC Assumptions'!W90 -> 0 | DL27: ='6. TNC Assumptions'!X90 -> 0 | DM27: ='6. TNC Assumptions'!Y90 -> 0 | DN27: 47971.24455 | DO27: ='TNC CALC_Cstock'!B98 -> 2674.112 | DP27: ='TNC CALC_Cstock'!C98 -> 727.61204 | DQ27: ='TNC CALC_Cstock'!D98 -> 19763.1616 | DR27: ='TNC CALC_Cstock'!E98 -> 4719.171388 | DS27: ='TNC CALC_Cstock'!F98 -> 13587.33943 | DT27: ='TNC CALC_Cstock'!G98 -> 912.6648 | DU27: ='TNC CALC_Cstock'!H98 -> 598.8197551 | DV27: ='TNC CALC_Cstock'!I98 -> 4706.57695 | DW27: ='TNC CALC_Cstock'!J98 -> 3741.978187 | DX27: ='TNC CALC_Cstock'!K98 -> 760.3880771 | DY27: ='TNC CALC_Cstock'!L98 -> 2182.821 | DZ27: ='TNC CALC_Cstock'!M98 -> 3728.181 | EA27: ='TNC CALC_Cstock'!N98 -> 8861.354507 | EB27: ='TNC CALC_Cstock'!O98 -> 17318.46318 | EC27: ='TNC CALC_Cstock'!P98 -> 263.5041792 | ED27: ='TNC CALC_Cstock'!Q98 -> 30304.65554 | EE27: ='TNC CALC_Cstock'!R98 -> 1263.36 | EF27: ='TNC CALC_Cstock'!S98 -> 0 | EG27: ='TNC CALC_Cstock'!T98 -> 0 | EH27: ='TNC CALC_Cstock'!U98 -> 0 | EI27: 116114.1636 | EJ27: ='TNC CALC_Cstock'!X98 -> 525.037 | EK27: ='TNC CALC_Cstock'!Z98 -> 834.1781462 | EL27: ='TNC CALC_Cstock'!AB98 -> 417.622324 | EM27: 1776.83747 | EN27: 114337.3262 | EO27: -419.2368626
A28: 2026 | B28: ='6. TNC Assumptions'!C27 -> 382 | C28: ='6. TNC Assumptions'!D27 -> 106 | D28: ='6. TNC Assumptions'!E27 -> 2402 | E28: ='6. TNC Assumptions'!F27 -> 710 | F28: ='6. TNC Assumptions'!G27 -> 12243 | G28: ='6. TNC Assumptions'!I27 -> 174 | H28: ='6. TNC Assumptions'!J27 -> 110 | I28: ='6. TNC Assumptions'!K27 -> 889 | J28: ='6. TNC Assumptions'!L27 -> 5079 | K28: ='6. TNC Assumptions'!M27 -> 139 | L28: ='6. TNC Assumptions'!O27 -> 565 | M28: ='6. TNC Assumptions'!P27 -> 965 | N28: ='6. TNC Assumptions'!Q27 -> 2271 | O28: ='6. TNC Assumptions'!R27 -> 5847 | P28: ='6. TNC Assumptions'!S27 -> 60 | Q28: ='6. TNC Assumptions'!T27 -> 15142 | R28: ='6. TNC Assumptions'!U27 -> 193 | S28: ='6. TNC Assumptions'!W27 -> 0 | T28: ='6. TNC Assumptions'!X27 -> 0 | U28: ='6. TNC Assumptions'!Y27 -> 0 | V28: 47277 | W28: ='TNC CALC_Cstock'!B32 -> 2298.112 | X28: ='TNC CALC_Cstock'!C32 -> 637.696 | Y28: ='TNC CALC_Cstock'!D32 -> 18785.5616 | Z28: ='TNC CALC_Cstock'!E32 -> 4271.36 | AA28: ='TNC CALC_Cstock'!F32 -> 13257.69984 | AB28: ='TNC CALC_Cstock'!G32 -> 912.6648 | AC28: ='TNC CALC_Cstock'!H32 -> 576.972 | AD28: ='TNC CALC_Cstock'!I32 -> 4662.9828 | AE28: ='TNC CALC_Cstock'!J32 -> 3723.9228 | AF28: ='TNC CALC_Cstock'!K32 -> 729.0828 | AG28: ='TNC CALC_Cstock'!L32 -> 2182.821 | AH28: ='TNC CALC_Cstock'!M32 -> 3728.181 | AI28: ='TNC CALC_Cstock'!N32 -> 8773.7814 | AJ28: ='TNC CALC_Cstock'!O32 -> 17318.46318 | AK28: ='TNC CALC_Cstock'!P32 -> 231.804 | AL28: ='TNC CALC_Cstock'!Q32 -> 30224.79478 | AM28: ='TNC CALC_Cstock'!R32 -> 1269.94 | AN28: ='TNC CALC_Cstock'!S32 -> 0 | AO28: ='TNC CALC_Cstock'!T32 -> 0 | AP28: ='TNC CALC_Cstock'!U32 -> 0 | AQ28: 113585.84 | AR28: ='TNC CALC_Cstock'!X32 -> 525.037 | AS28: ='TNC CALC_Cstock'!Z32 -> 775.3810437 | AT28: ='TNC CALC_Cstock'!AB32 -> 419.1638121 | AU28: 1719.581856 | AV28: 111866.2581 | AW28: -410.1762799 | AX28: ='6. TNC Assumptions'!C59 -> 382 | AY28: ='6. TNC Assumptions'!D59 -> 120.9461503 | AZ28: ='6. TNC Assumptions'!E59 -> 2402 | BA28: ='6. TNC Assumptions'!F59 -> 721.9367334 | BB28: ='6. TNC Assumptions'!G59 -> 12297.41008 | BC28: ='6. TNC Assumptions'!I59 -> 174 | BD28: ='6. TNC Assumptions'!J59 -> 114.1652854 | BE28: ='6. TNC Assumptions'!K59 -> 897.3112465 | BF28: ='6. TNC Assumptions'!L59 -> 5103.625459 | BG28: ='6. TNC Assumptions'!M59 -> 144.9683667 | BH28: ='6. TNC Assumptions'!O59 -> 565 | BI28: ='6. TNC Assumptions'!P59 -> 965 | BJ28: ='6. TNC Assumptions'!Q59 -> 2293.667367 | BK28: ='6. TNC Assumptions'!R59 -> 5847 | BL28: ='6. TNC Assumptions'!S59 -> 68.20525424 | BM28: ='6. TNC Assumptions'!T59 -> 15182.0086 | BN28: ='6. TNC Assumptions'!U59 -> 193 | BO28: ='6. TNC Assumptions'!W59 -> 0 | BP28: ='6. TNC Assumptions'!X59 -> 0 | BQ28: ='6. TNC Assumptions'!Y59 -> 0 | BR28: 47472.24455 | BS28: ='TNC CALC_Cstock'!B65 -> 2298.112 | BT28: ='TNC CALC_Cstock'!C65 -> 727.61204 | BU28: ='TNC CALC_Cstock'!D65 -> 18785.5616 | BV28: ='TNC CALC_Cstock'!E65 -> 4343.171388 | BW28: ='TNC CALC_Cstock'!F65 -> 13316.61943 | BX28: ='TNC CALC_Cstock'!G65 -> 912.6648 | BY28: ='TNC CALC_Cstock'!H65 -> 598.8197551 | BZ28: ='TNC CALC_Cstock'!I65 -> 4706.57695 | CA28: ='TNC CALC_Cstock'!J65 -> 3741.978187 | CB28: ='TNC CALC_Cstock'!K65 -> 760.3880771 | CC28: ='TNC CALC_Cstock'!L65 -> 2182.821 | CD28: ='TNC CALC_Cstock'!M65 -> 3728.181 | CE28: ='TNC CALC_Cstock'!N65 -> 8861.354507 | CF28: ='TNC CALC_Cstock'!O65 -> 17318.46318 | CG28: ='TNC CALC_Cstock'!P65 -> 263.5041792 | CH28: ='TNC CALC_Cstock'!Q65 -> 30304.65554 | CI28: ='TNC CALC_Cstock'!R65 -> 1269.94 | CJ28: ='TNC CALC_Cstock'!S65 -> 0 | CK28: ='TNC CALC_Cstock'!T65 -> 0 | CL28: ='TNC CALC_Cstock'!U65 -> 0 | CM28: 114120.4236 | CN28: ='TNC CALC_Cstock'!X65 -> 525.037 | CO28: ='TNC CALC_Cstock'!Z65 -> 775.3810437 | CP28: ='TNC CALC_Cstock'!AB65 -> 419.1638121 | CQ28: 1719.581856 | CR28: 112400.8418 | CS28: -412.1364199 | CT28: ='6. TNC Assumptions'!C91 -> 463.25 | CU28: ='6. TNC Assumptions'!D91 -> 120.9461503 | CV28: ='6. TNC Assumptions'!E91 -> 2564.5 | CW28: ='6. TNC Assumptions'!F91 -> 803.1867334 | CX28: ='6. TNC Assumptions'!G91 -> 12622.41008 | CY28: ='6. TNC Assumptions'!I91 -> 174 | CZ28: ='6. TNC Assumptions'!J91 -> 114.1652854 | DA28: ='6. TNC Assumptions'!K91 -> 897.3112465 | DB28: ='6. TNC Assumptions'!L91 -> 5103.625459 | DC28: ='6. TNC Assumptions'!M91 -> 144.9683667 | DD28: ='6. TNC Assumptions'!O91 -> 565 | DE28: ='6. TNC Assumptions'!P91 -> 965 | DF28: ='6. TNC Assumptions'!Q91 -> 2293.667367 | DG28: ='6. TNC Assumptions'!R91 -> 5847 | DH28: ='6. TNC Assumptions'!S91 -> 68.20525424 | DI28: ='6. TNC Assumptions'!T91 -> 15182.0086 | DJ28: ='6. TNC Assumptions'!U91 -> 193 | DK28: ='6. TNC Assumptions'!W91 -> 0 | DL28: ='6. TNC Assumptions'!X91 -> 0 | DM28: ='6. TNC Assumptions'!Y91 -> 0 | DN28: 48122.24455 | DO28: ='TNC CALC_Cstock'!B99 -> 2786.912 | DP28: ='TNC CALC_Cstock'!C99 -> 727.61204 | DQ28: ='TNC CALC_Cstock'!D99 -> 20056.4416 | DR28: ='TNC CALC_Cstock'!E99 -> 4831.971388 | DS28: ='TNC CALC_Cstock'!F99 -> 13668.55543 | DT28: ='TNC CALC_Cstock'!G99 -> 912.6648 | DU28: ='TNC CALC_Cstock'!H99 -> 598.8197551 | DV28: ='TNC CALC_Cstock'!I99 -> 4706.57695 | DW28: ='TNC CALC_Cstock'!J99 -> 3741.978187 | DX28: ='TNC CALC_Cstock'!K99 -> 760.3880771 | DY28: ='TNC CALC_Cstock'!L99 -> 2182.821 | DZ28: ='TNC CALC_Cstock'!M99 -> 3728.181 | EA28: ='TNC CALC_Cstock'!N99 -> 8861.354507 | EB28: ='TNC CALC_Cstock'!O99 -> 17318.46318 | EC28: ='TNC CALC_Cstock'!P99 -> 263.5041792 | ED28: ='TNC CALC_Cstock'!Q99 -> 30304.65554 | EE28: ='TNC CALC_Cstock'!R99 -> 1269.94 | EF28: ='TNC CALC_Cstock'!S99 -> 0 | EG28: ='TNC CALC_Cstock'!T99 -> 0 | EH28: ='TNC CALC_Cstock'!U99 -> 0 | EI28: 116720.8396 | EJ28: ='TNC CALC_Cstock'!X99 -> 525.037 | EK28: ='TNC CALC_Cstock'!Z99 -> 775.3810437 | EL28: ='TNC CALC_Cstock'!AB99 -> 419.1638121 | EM28: 1719.581856 | EN28: 115001.2578 | EO28: -421.6712785
A29: 2027 | B29: ='6. TNC Assumptions'!C28 -> 382 | C29: ='6. TNC Assumptions'!D28 -> 106 | D29: ='6. TNC Assumptions'!E28 -> 2402 | E29: ='6. TNC Assumptions'!F28 -> 710 | F29: ='6. TNC Assumptions'!G28 -> 12243 | G29: ='6. TNC Assumptions'!I28 -> 174 | H29: ='6. TNC Assumptions'!J28 -> 110 | I29: ='6. TNC Assumptions'!K28 -> 889 | J29: ='6. TNC Assumptions'!L28 -> 5079 | K29: ='6. TNC Assumptions'!M28 -> 139 | L29: ='6. TNC Assumptions'!O28 -> 565 | M29: ='6. TNC Assumptions'!P28 -> 965 | N29: ='6. TNC Assumptions'!Q28 -> 2271 | O29: ='6. TNC Assumptions'!R28 -> 5847 | P29: ='6. TNC Assumptions'!S28 -> 60 | Q29: ='6. TNC Assumptions'!T28 -> 15142 | R29: ='6. TNC Assumptions'!U28 -> 194 | S29: ='6. TNC Assumptions'!W28 -> 0 | T29: ='6. TNC Assumptions'!X28 -> 0 | U29: ='6. TNC Assumptions'!Y28 -> 0 | V29: 47278 | W29: ='TNC CALC_Cstock'!B33 -> 2298.112 | X29: ='TNC CALC_Cstock'!C33 -> 637.696 | Y29: ='TNC CALC_Cstock'!D33 -> 18785.5616 | Z29: ='TNC CALC_Cstock'!E33 -> 4271.36 | AA29: ='TNC CALC_Cstock'!F33 -> 13257.69984 | AB29: ='TNC CALC_Cstock'!G33 -> 912.6648 | AC29: ='TNC CALC_Cstock'!H33 -> 576.972 | AD29: ='TNC CALC_Cstock'!I33 -> 4662.9828 | AE29: ='TNC CALC_Cstock'!J33 -> 3723.9228 | AF29: ='TNC CALC_Cstock'!K33 -> 729.0828 | AG29: ='TNC CALC_Cstock'!L33 -> 2182.821 | AH29: ='TNC CALC_Cstock'!M33 -> 3728.181 | AI29: ='TNC CALC_Cstock'!N33 -> 8773.7814 | AJ29: ='TNC CALC_Cstock'!O33 -> 17318.46318 | AK29: ='TNC CALC_Cstock'!P33 -> 231.804 | AL29: ='TNC CALC_Cstock'!Q33 -> 30224.79478 | AM29: ='TNC CALC_Cstock'!R33 -> 1276.52 | AN29: ='TNC CALC_Cstock'!S33 -> 0 | AO29: ='TNC CALC_Cstock'!T33 -> 0 | AP29: ='TNC CALC_Cstock'!U33 -> 0 | AQ29: 113592.42 | AR29: ='TNC CALC_Cstock'!X33 -> 525.037 | AS29: ='TNC CALC_Cstock'!Z33 -> 720.7405297 | AT29: ='TNC CALC_Cstock'!AB33 -> 421.0361522 | AU29: 1666.813682 | AV29: 111925.6063 | AW29: -410.3938898 | AX29: ='6. TNC Assumptions'!C60 -> 382 | AY29: ='6. TNC Assumptions'!D60 -> 120.9461503 | AZ29: ='6. TNC Assumptions'!E60 -> 2402 | BA29: ='6. TNC Assumptions'!F60 -> 721.9367334 | BB29: ='6. TNC Assumptions'!G60 -> 12297.41008 | BC29: ='6. TNC Assumptions'!I60 -> 174 | BD29: ='6. TNC Assumptions'!J60 -> 114.1652854 | BE29: ='6. TNC Assumptions'!K60 -> 897.3112465 | BF29: ='6. TNC Assumptions'!L60 -> 5103.625459 | BG29: ='6. TNC Assumptions'!M60 -> 144.9683667 | BH29: ='6. TNC Assumptions'!O60 -> 565 | BI29: ='6. TNC Assumptions'!P60 -> 965 | BJ29: ='6. TNC Assumptions'!Q60 -> 2293.667367 | BK29: ='6. TNC Assumptions'!R60 -> 5847 | BL29: ='6. TNC Assumptions'!S60 -> 68.20525424 | BM29: ='6. TNC Assumptions'!T60 -> 15182.0086 | BN29: ='6. TNC Assumptions'!U60 -> 194 | BO29: ='6. TNC Assumptions'!W60 -> 0 | BP29: ='6. TNC Assumptions'!X60 -> 0 | BQ29: ='6. TNC Assumptions'!Y60 -> 0 | BR29: 47473.24455 | BS29: ='TNC CALC_Cstock'!B66 -> 2298.112 | BT29: ='TNC CALC_Cstock'!C66 -> 727.61204 | BU29: ='TNC CALC_Cstock'!D66 -> 18785.5616 | BV29: ='TNC CALC_Cstock'!E66 -> 4343.171388 | BW29: ='TNC CALC_Cstock'!F66 -> 13316.61943 | BX29: ='TNC CALC_Cstock'!G66 -> 912.6648 | BY29: ='TNC CALC_Cstock'!H66 -> 598.8197551 | BZ29: ='TNC CALC_Cstock'!I66 -> 4706.57695 | CA29: ='TNC CALC_Cstock'!J66 -> 3741.978187 | CB29: ='TNC CALC_Cstock'!K66 -> 760.3880771 | CC29: ='TNC CALC_Cstock'!L66 -> 2182.821 | CD29: ='TNC CALC_Cstock'!M66 -> 3728.181 | CE29: ='TNC CALC_Cstock'!N66 -> 8861.354507 | CF29: ='TNC CALC_Cstock'!O66 -> 17318.46318 | CG29: ='TNC CALC_Cstock'!P66 -> 263.5041792 | CH29: ='TNC CALC_Cstock'!Q66 -> 30304.65554 | CI29: ='TNC CALC_Cstock'!R66 -> 1276.52 | CJ29: ='TNC CALC_Cstock'!S66 -> 0 | CK29: ='TNC CALC_Cstock'!T66 -> 0 | CL29: ='TNC CALC_Cstock'!U66 -> 0 | CM29: 114127.0036 | CN29: ='TNC CALC_Cstock'!X66 -> 525.037 | CO29: ='TNC CALC_Cstock'!Z66 -> 720.7405297 | CP29: ='TNC CALC_Cstock'!AB66 -> 421.0361522 | CQ29: 1666.813682 | CR29: 112460.19 | CS29: -412.3540298 | CT29: ='6. TNC Assumptions'!C92 -> 482 | CU29: ='6. TNC Assumptions'!D92 -> 120.9461503 | CV29: ='6. TNC Assumptions'!E92 -> 2602 | CW29: ='6. TNC Assumptions'!F92 -> 821.9367334 | CX29: ='6. TNC Assumptions'!G92 -> 12697.41008 | CY29: ='6. TNC Assumptions'!I92 -> 174 | CZ29: ='6. TNC Assumptions'!J92 -> 114.1652854 | DA29: ='6. TNC Assumptions'!K92 -> 897.3112465 | DB29: ='6. TNC Assumptions'!L92 -> 5103.625459 | DC29: ='6. TNC Assumptions'!M92 -> 144.9683667 | DD29: ='6. TNC Assumptions'!O92 -> 565 | DE29: ='6. TNC Assumptions'!P92 -> 965 | DF29: ='6. TNC Assumptions'!Q92 -> 2293.667367 | DG29: ='6. TNC Assumptions'!R92 -> 5847 | DH29: ='6. TNC Assumptions'!S92 -> 68.20525424 | DI29: ='6. TNC Assumptions'!T92 -> 15182.0086 | DJ29: ='6. TNC Assumptions'!U92 -> 194 | DK29: ='6. TNC Assumptions'!W92 -> 0 | DL29: ='6. TNC Assumptions'!X92 -> 0 | DM29: ='6. TNC Assumptions'!Y92 -> 0 | DN29: 48273.24455 | DO29: ='TNC CALC_Cstock'!B100 -> 2899.712 | DP29: ='TNC CALC_Cstock'!C100 -> 727.61204 | DQ29: ='TNC CALC_Cstock'!D100 -> 20349.7216 | DR29: ='TNC CALC_Cstock'!E100 -> 4944.771388 | DS29: ='TNC CALC_Cstock'!F100 -> 13749.77143 | DT29: ='TNC CALC_Cstock'!G100 -> 912.6648 | DU29: ='TNC CALC_Cstock'!H100 -> 598.8197551 | DV29: ='TNC CALC_Cstock'!I100 -> 4706.57695 | DW29: ='TNC CALC_Cstock'!J100 -> 3741.978187 | DX29: ='TNC CALC_Cstock'!K100 -> 760.3880771 | DY29: ='TNC CALC_Cstock'!L100 -> 2182.821 | DZ29: ='TNC CALC_Cstock'!M100 -> 3728.181 | EA29: ='TNC CALC_Cstock'!N100 -> 8861.354507 | EB29: ='TNC CALC_Cstock'!O100 -> 17318.46318 | EC29: ='TNC CALC_Cstock'!P100 -> 263.5041792 | ED29: ='TNC CALC_Cstock'!Q100 -> 30304.65554 | EE29: ='TNC CALC_Cstock'!R100 -> 1276.52 | EF29: ='TNC CALC_Cstock'!S100 -> 0 | EG29: ='TNC CALC_Cstock'!T100 -> 0 | EH29: ='TNC CALC_Cstock'!U100 -> 0 | EI29: 117327.5156 | EJ29: ='TNC CALC_Cstock'!X100 -> 525.037 | EK29: ='TNC CALC_Cstock'!Z100 -> 720.7405297 | EL29: ='TNC CALC_Cstock'!AB100 -> 421.0361522 | EM29: 1666.813682 | EN29: 115660.702 | EO29: -424.0892405
A30: 2028 | B30: ='6. TNC Assumptions'!C29 -> 382 | C30: ='6. TNC Assumptions'!D29 -> 106 | D30: ='6. TNC Assumptions'!E29 -> 2402 | E30: ='6. TNC Assumptions'!F29 -> 710 | F30: ='6. TNC Assumptions'!G29 -> 12243 | G30: ='6. TNC Assumptions'!I29 -> 174 | H30: ='6. TNC Assumptions'!J29 -> 110 | I30: ='6. TNC Assumptions'!K29 -> 889 | J30: ='6. TNC Assumptions'!L29 -> 5079 | K30: ='6. TNC Assumptions'!M29 -> 139 | L30: ='6. TNC Assumptions'!O29 -> 565 | M30: ='6. TNC Assumptions'!P29 -> 965 | N30: ='6. TNC Assumptions'!Q29 -> 2271 | O30: ='6. TNC Assumptions'!R29 -> 5847 | P30: ='6. TNC Assumptions'!S29 -> 60 | Q30: ='6. TNC Assumptions'!T29 -> 15142 | R30: ='6. TNC Assumptions'!U29 -> 195 | S30: ='6. TNC Assumptions'!W29 -> 0 | T30: ='6. TNC Assumptions'!X29 -> 0 | U30: ='6. TNC Assumptions'!Y29 -> 0 | V30: 47279 | W30: ='TNC CALC_Cstock'!B34 -> 2298.112 | X30: ='TNC CALC_Cstock'!C34 -> 637.696 | Y30: ='TNC CALC_Cstock'!D34 -> 18785.5616 | Z30: ='TNC CALC_Cstock'!E34 -> 4271.36 | AA30: ='TNC CALC_Cstock'!F34 -> 13257.69984 | AB30: ='TNC CALC_Cstock'!G34 -> 912.6648 | AC30: ='TNC CALC_Cstock'!H34 -> 576.972 | AD30: ='TNC CALC_Cstock'!I34 -> 4662.9828 | AE30: ='TNC CALC_Cstock'!J34 -> 3723.9228 | AF30: ='TNC CALC_Cstock'!K34 -> 729.0828 | AG30: ='TNC CALC_Cstock'!L34 -> 2182.821 | AH30: ='TNC CALC_Cstock'!M34 -> 3728.181 | AI30: ='TNC CALC_Cstock'!N34 -> 8773.7814 | AJ30: ='TNC CALC_Cstock'!O34 -> 17318.46318 | AK30: ='TNC CALC_Cstock'!P34 -> 231.804 | AL30: ='TNC CALC_Cstock'!Q34 -> 30224.79478 | AM30: ='TNC CALC_Cstock'!R34 -> 1283.1 | AN30: ='TNC CALC_Cstock'!S34 -> 0 | AO30: ='TNC CALC_Cstock'!T34 -> 0 | AP30: ='TNC CALC_Cstock'!U34 -> 0 | AQ30: 113599 | AR30: ='TNC CALC_Cstock'!X34 -> 525.037 | AS30: ='TNC CALC_Cstock'!Z34 -> 669.9619018 | AT30: ='TNC CALC_Cstock'!AB34 -> 423.8758168 | AU30: 1618.874719 | AV30: 111980.1253 | AW30: -410.5937927 | AX30: ='6. TNC Assumptions'!C61 -> 382 | AY30: ='6. TNC Assumptions'!D61 -> 120.9461503 | AZ30: ='6. TNC Assumptions'!E61 -> 2402 | BA30: ='6. TNC Assumptions'!F61 -> 721.9367334 | BB30: ='6. TNC Assumptions'!G61 -> 12297.41008 | BC30: ='6. TNC Assumptions'!I61 -> 174 | BD30: ='6. TNC Assumptions'!J61 -> 114.1652854 | BE30: ='6. TNC Assumptions'!K61 -> 897.3112465 | BF30: ='6. TNC Assumptions'!L61 -> 5103.625459 | BG30: ='6. TNC Assumptions'!M61 -> 144.9683667 | BH30: ='6. TNC Assumptions'!O61 -> 565 | BI30: ='6. TNC Assumptions'!P61 -> 965 | BJ30: ='6. TNC Assumptions'!Q61 -> 2293.667367 | BK30: ='6. TNC Assumptions'!R61 -> 5847 | BL30: ='6. TNC Assumptions'!S61 -> 68.20525424 | BM30: ='6. TNC Assumptions'!T61 -> 15182.0086 | BN30: ='6. TNC Assumptions'!U61 -> 195 | BO30: ='6. TNC Assumptions'!W61 -> 0 | BP30: ='6. TNC Assumptions'!X61 -> 0 | BQ30: ='6. TNC Assumptions'!Y61 -> 0 | BR30: 47474.24455 | BS30: ='TNC CALC_Cstock'!B67 -> 2298.112 | BT30: ='TNC CALC_Cstock'!C67 -> 727.61204 | BU30: ='TNC CALC_Cstock'!D67 -> 18785.5616 | BV30: ='TNC CALC_Cstock'!E67 -> 4343.171388 | BW30: ='TNC CALC_Cstock'!F67 -> 13316.61943 | BX30: ='TNC CALC_Cstock'!G67 -> 912.6648 | BY30: ='TNC CALC_Cstock'!H67 -> 598.8197551 | BZ30: ='TNC CALC_Cstock'!I67 -> 4706.57695 | CA30: ='TNC CALC_Cstock'!J67 -> 3741.978187 | CB30: ='TNC CALC_Cstock'!K67 -> 760.3880771 | CC30: ='TNC CALC_Cstock'!L67 -> 2182.821 | CD30: ='TNC CALC_Cstock'!M67 -> 3728.181 | CE30: ='TNC CALC_Cstock'!N67 -> 8861.354507 | CF30: ='TNC CALC_Cstock'!O67 -> 17318.46318 | CG30: ='TNC CALC_Cstock'!P67 -> 263.5041792 | CH30: ='TNC CALC_Cstock'!Q67 -> 30304.65554 | CI30: ='TNC CALC_Cstock'!R67 -> 1283.1 | CJ30: ='TNC CALC_Cstock'!S67 -> 0 | CK30: ='TNC CALC_Cstock'!T67 -> 0 | CL30: ='TNC CALC_Cstock'!U67 -> 0 | CM30: 114133.5836 | CN30: ='TNC CALC_Cstock'!X67 -> 525.037 | CO30: ='TNC CALC_Cstock'!Z67 -> 669.9619018 | CP30: ='TNC CALC_Cstock'!AB67 -> 423.8758168 | CQ30: 1618.874719 | CR30: 112514.7089 | CS30: -412.5539327 | CT30: ='6. TNC Assumptions'!C93 -> 500.75 | CU30: ='6. TNC Assumptions'!D93 -> 120.9461503 | CV30: ='6. TNC Assumptions'!E93 -> 2639.5 | CW30: ='6. TNC Assumptions'!F93 -> 840.6867334 | CX30: ='6. TNC Assumptions'!G93 -> 12772.41008 | CY30: ='6. TNC Assumptions'!I93 -> 174 | CZ30: ='6. TNC Assumptions'!J93 -> 114.1652854 | DA30: ='6. TNC Assumptions'!K93 -> 897.3112465 | DB30: ='6. TNC Assumptions'!L93 -> 5103.625459 | DC30: ='6. TNC Assumptions'!M93 -> 144.9683667 | DD30: ='6. TNC Assumptions'!O93 -> 565 | DE30: ='6. TNC Assumptions'!P93 -> 965 | DF30: ='6. TNC Assumptions'!Q93 -> 2293.667367 | DG30: ='6. TNC Assumptions'!R93 -> 5847 | DH30: ='6. TNC Assumptions'!S93 -> 68.20525424 | DI30: ='6. TNC Assumptions'!T93 -> 15182.0086 | DJ30: ='6. TNC Assumptions'!U93 -> 195 | DK30: ='6. TNC Assumptions'!W93 -> 0 | DL30: ='6. TNC Assumptions'!X93 -> 0 | DM30: ='6. TNC Assumptions'!Y93 -> 0 | DN30: 48424.24455 | DO30: ='TNC CALC_Cstock'!B101 -> 3012.512 | DP30: ='TNC CALC_Cstock'!C101 -> 727.61204 | DQ30: ='TNC CALC_Cstock'!D101 -> 20643.0016 | DR30: ='TNC CALC_Cstock'!E101 -> 5057.571388 | DS30: ='TNC CALC_Cstock'!F101 -> 13830.98743 | DT30: ='TNC CALC_Cstock'!G101 -> 912.6648 | DU30: ='TNC CALC_Cstock'!H101 -> 598.8197551 | DV30: ='TNC CALC_Cstock'!I101 -> 4706.57695 | DW30: ='TNC CALC_Cstock'!J101 -> 3741.978187 | DX30: ='TNC CALC_Cstock'!K101 -> 760.3880771 | DY30: ='TNC CALC_Cstock'!L101 -> 2182.821 | DZ30: ='TNC CALC_Cstock'!M101 -> 3728.181 | EA30: ='TNC CALC_Cstock'!N101 -> 8861.354507 | EB30: ='TNC CALC_Cstock'!O101 -> 17318.46318 | EC30: ='TNC CALC_Cstock'!P101 -> 263.5041792 | ED30: ='TNC CALC_Cstock'!Q101 -> 30304.65554 | EE30: ='TNC CALC_Cstock'!R101 -> 1283.1 | EF30: ='TNC CALC_Cstock'!S101 -> 0 | EG30: ='TNC CALC_Cstock'!T101 -> 0 | EH30: ='TNC CALC_Cstock'!U101 -> 0 | EI30: 117934.1916 | EJ30: ='TNC CALC_Cstock'!X101 -> 525.037 | EK30: ='TNC CALC_Cstock'!Z101 -> 669.9619018 | EL30: ='TNC CALC_Cstock'!AB101 -> 423.8758168 | EM30: 1618.874719 | EN30: 116315.3169 | EO30: -426.4894954
A31: 2029 | B31: ='6. TNC Assumptions'!C30 -> 382 | C31: ='6. TNC Assumptions'!D30 -> 106 | D31: ='6. TNC Assumptions'!E30 -> 2402 | E31: ='6. TNC Assumptions'!F30 -> 710 | F31: ='6. TNC Assumptions'!G30 -> 12243 | G31: ='6. TNC Assumptions'!I30 -> 174 | H31: ='6. TNC Assumptions'!J30 -> 110 | I31: ='6. TNC Assumptions'!K30 -> 889 | J31: ='6. TNC Assumptions'!L30 -> 5079 | K31: ='6. TNC Assumptions'!M30 -> 139 | L31: ='6. TNC Assumptions'!O30 -> 565 | M31: ='6. TNC Assumptions'!P30 -> 965 | N31: ='6. TNC Assumptions'!Q30 -> 2271 | O31: ='6. TNC Assumptions'!R30 -> 5847 | P31: ='6. TNC Assumptions'!S30 -> 60 | Q31: ='6. TNC Assumptions'!T30 -> 15142 | R31: ='6. TNC Assumptions'!U30 -> 196 | S31: ='6. TNC Assumptions'!W30 -> 0 | T31: ='6. TNC Assumptions'!X30 -> 0 | U31: ='6. TNC Assumptions'!Y30 -> 0 | V31: 47280 | W31: ='TNC CALC_Cstock'!B35 -> 2298.112 | X31: ='TNC CALC_Cstock'!C35 -> 637.696 | Y31: ='TNC CALC_Cstock'!D35 -> 18785.5616 | Z31: ='TNC CALC_Cstock'!E35 -> 4271.36 | AA31: ='TNC CALC_Cstock'!F35 -> 13257.69984 | AB31: ='TNC CALC_Cstock'!G35 -> 912.6648 | AC31: ='TNC CALC_Cstock'!H35 -> 576.972 | AD31: ='TNC CALC_Cstock'!I35 -> 4662.9828 | AE31: ='TNC CALC_Cstock'!J35 -> 3723.9228 | AF31: ='TNC CALC_Cstock'!K35 -> 729.0828 | AG31: ='TNC CALC_Cstock'!L35 -> 2182.821 | AH31: ='TNC CALC_Cstock'!M35 -> 3728.181 | AI31: ='TNC CALC_Cstock'!N35 -> 8773.7814 | AJ31: ='TNC CALC_Cstock'!O35 -> 17318.46318 | AK31: ='TNC CALC_Cstock'!P35 -> 231.804 | AL31: ='TNC CALC_Cstock'!Q35 -> 30224.79478 | AM31: ='TNC CALC_Cstock'!R35 -> 1289.68 | AN31: ='TNC CALC_Cstock'!S35 -> 0 | AO31: ='TNC CALC_Cstock'!T35 -> 0 | AP31: ='TNC CALC_Cstock'!U35 -> 0 | AQ31: 113605.58 | AR31: ='TNC CALC_Cstock'!X35 -> 525.037 | AS31: ='TNC CALC_Cstock'!Z35 -> 622.7714117 | AT31: ='TNC CALC_Cstock'!AB35 -> 425.126303 | AU31: 1572.934715 | AV31: 112032.6453 | AW31: -410.786366 | AX31: ='6. TNC Assumptions'!C62 -> 382 | AY31: ='6. TNC Assumptions'!D62 -> 120.9461503 | AZ31: ='6. TNC Assumptions'!E62 -> 2402 | BA31: ='6. TNC Assumptions'!F62 -> 721.9367334 | BB31: ='6. TNC Assumptions'!G62 -> 12297.41008 | BC31: ='6. TNC Assumptions'!I62 -> 174 | BD31: ='6. TNC Assumptions'!J62 -> 114.1652854 | BE31: ='6. TNC Assumptions'!K62 -> 897.3112465 | BF31: ='6. TNC Assumptions'!L62 -> 5103.625459 | BG31: ='6. TNC Assumptions'!M62 -> 144.9683667 | BH31: ='6. TNC Assumptions'!O62 -> 565 | BI31: ='6. TNC Assumptions'!P62 -> 965 | BJ31: ='6. TNC Assumptions'!Q62 -> 2293.667367 | BK31: ='6. TNC Assumptions'!R62 -> 5847 | BL31: ='6. TNC Assumptions'!S62 -> 68.20525424 | BM31: ='6. TNC Assumptions'!T62 -> 15182.0086 | BN31: ='6. TNC Assumptions'!U62 -> 196 | BO31: ='6. TNC Assumptions'!W62 -> 0 | BP31: ='6. TNC Assumptions'!X62 -> 0 | BQ31: ='6. TNC Assumptions'!Y62 -> 0 | BR31: 47475.24455 | BS31: ='TNC CALC_Cstock'!B68 -> 2298.112 | BT31: ='TNC CALC_Cstock'!C68 -> 727.61204 | BU31: ='TNC CALC_Cstock'!D68 -> 18785.5616 | BV31: ='TNC CALC_Cstock'!E68 -> 4343.171388 | BW31: ='TNC CALC_Cstock'!F68 -> 13316.61943 | BX31: ='TNC CALC_Cstock'!G68 -> 912.6648 | BY31: ='TNC CALC_Cstock'!H68 -> 598.8197551 | BZ31: ='TNC CALC_Cstock'!I68 -> 4706.57695 | CA31: ='TNC CALC_Cstock'!J68 -> 3741.978187 | CB31: ='TNC CALC_Cstock'!K68 -> 760.3880771 | CC31: ='TNC CALC_Cstock'!L68 -> 2182.821 | CD31: ='TNC CALC_Cstock'!M68 -> 3728.181 | CE31: ='TNC CALC_Cstock'!N68 -> 8861.354507 | CF31: ='TNC CALC_Cstock'!O68 -> 17318.46318 | CG31: ='TNC CALC_Cstock'!P68 -> 263.5041792 | CH31: ='TNC CALC_Cstock'!Q68 -> 30304.65554 | CI31: ='TNC CALC_Cstock'!R68 -> 1289.68 | CJ31: ='TNC CALC_Cstock'!S68 -> 0 | CK31: ='TNC CALC_Cstock'!T68 -> 0 | CL31: ='TNC CALC_Cstock'!U68 -> 0 | CM31: 114140.1636 | CN31: ='TNC CALC_Cstock'!X68 -> 525.037 | CO31: ='TNC CALC_Cstock'!Z68 -> 622.7714117 | CP31: ='TNC CALC_Cstock'!AB68 -> 425.126303 | CQ31: 1572.934715 | CR31: 112567.2289 | CS31: -412.7465061 | CT31: ='6. TNC Assumptions'!C94 -> 519.5 | CU31: ='6. TNC Assumptions'!D94 -> 120.9461503 | CV31: ='6. TNC Assumptions'!E94 -> 2677 | CW31: ='6. TNC Assumptions'!F94 -> 859.4367334 | CX31: ='6. TNC Assumptions'!G94 -> 12847.41008 | CY31: ='6. TNC Assumptions'!I94 -> 174 | CZ31: ='6. TNC Assumptions'!J94 -> 114.1652854 | DA31: ='6. TNC Assumptions'!K94 -> 897.3112465 | DB31: ='6. TNC Assumptions'!L94 -> 5103.625459 | DC31: ='6. TNC Assumptions'!M94 -> 144.9683667 | DD31: ='6. TNC Assumptions'!O94 -> 565 | DE31: ='6. TNC Assumptions'!P94 -> 965 | DF31: ='6. TNC Assumptions'!Q94 -> 2293.667367 | DG31: ='6. TNC Assumptions'!R94 -> 5847 | DH31: ='6. TNC Assumptions'!S94 -> 68.20525424 | DI31: ='6. TNC Assumptions'!T94 -> 15182.0086 | DJ31: ='6. TNC Assumptions'!U94 -> 196 | DK31: ='6. TNC Assumptions'!W94 -> 0 | DL31: ='6. TNC Assumptions'!X94 -> 0 | DM31: ='6. TNC Assumptions'!Y94 -> 0 | DN31: 48575.24455 | DO31: ='TNC CALC_Cstock'!B102 -> 3125.312 | DP31: ='TNC CALC_Cstock'!C102 -> 727.61204 | DQ31: ='TNC CALC_Cstock'!D102 -> 20936.2816 | DR31: ='TNC CALC_Cstock'!E102 -> 5170.371388 | DS31: ='TNC CALC_Cstock'!F102 -> 13912.20343 | DT31: ='TNC CALC_Cstock'!G102 -> 912.6648 | DU31: ='TNC CALC_Cstock'!H102 -> 598.8197551 | DV31: ='TNC CALC_Cstock'!I102 -> 4706.57695 | DW31: ='TNC CALC_Cstock'!J102 -> 3741.978187 | DX31: ='TNC CALC_Cstock'!K102 -> 760.3880771 | DY31: ='TNC CALC_Cstock'!L102 -> 2182.821 | DZ31: ='TNC CALC_Cstock'!M102 -> 3728.181 | EA31: ='TNC CALC_Cstock'!N102 -> 8861.354507 | EB31: ='TNC CALC_Cstock'!O102 -> 17318.46318 | EC31: ='TNC CALC_Cstock'!P102 -> 263.5041792 | ED31: ='TNC CALC_Cstock'!Q102 -> 30304.65554 | EE31: ='TNC CALC_Cstock'!R102 -> 1289.68 | EF31: ='TNC CALC_Cstock'!S102 -> 0 | EG31: ='TNC CALC_Cstock'!T102 -> 0 | EH31: ='TNC CALC_Cstock'!U102 -> 0 | EI31: 118540.8676 | EJ31: ='TNC CALC_Cstock'!X102 -> 525.037 | EK31: ='TNC CALC_Cstock'!Z102 -> 622.7714117 | EL31: ='TNC CALC_Cstock'!AB102 -> 425.126303 | EM31: 1572.934715 | EN31: 116967.9329 | EO31: -428.8824207
A32: 2030 | B32: ='6. TNC Assumptions'!C31 -> 382 | C32: ='6. TNC Assumptions'!D31 -> 106 | D32: ='6. TNC Assumptions'!E31 -> 2402 | E32: ='6. TNC Assumptions'!F31 -> 710 | F32: ='6. TNC Assumptions'!G31 -> 12243 | G32: ='6. TNC Assumptions'!I31 -> 174 | H32: ='6. TNC Assumptions'!J31 -> 110 | I32: ='6. TNC Assumptions'!K31 -> 889 | J32: ='6. TNC Assumptions'!L31 -> 5079 | K32: ='6. TNC Assumptions'!M31 -> 139 | L32: ='6. TNC Assumptions'!O31 -> 565 | M32: ='6. TNC Assumptions'!P31 -> 965 | N32: ='6. TNC Assumptions'!Q31 -> 2271 | O32: ='6. TNC Assumptions'!R31 -> 5847 | P32: ='6. TNC Assumptions'!S31 -> 60 | Q32: ='6. TNC Assumptions'!T31 -> 15142 | R32: ='6. TNC Assumptions'!U31 -> 197 | S32: ='6. TNC Assumptions'!W31 -> 0 | T32: ='6. TNC Assumptions'!X31 -> 0 | U32: ='6. TNC Assumptions'!Y31 -> 0 | V32: 47281 | W32: ='TNC CALC_Cstock'!B36 -> 2298.112 | X32: ='TNC CALC_Cstock'!C36 -> 637.696 | Y32: ='TNC CALC_Cstock'!D36 -> 18785.5616 | Z32: ='TNC CALC_Cstock'!E36 -> 4271.36 | AA32: ='TNC CALC_Cstock'!F36 -> 13257.69984 | AB32: ='TNC CALC_Cstock'!G36 -> 912.6648 | AC32: ='TNC CALC_Cstock'!H36 -> 576.972 | AD32: ='TNC CALC_Cstock'!I36 -> 4662.9828 | AE32: ='TNC CALC_Cstock'!J36 -> 3723.9228 | AF32: ='TNC CALC_Cstock'!K36 -> 729.0828 | AG32: ='TNC CALC_Cstock'!L36 -> 2182.821 | AH32: ='TNC CALC_Cstock'!M36 -> 3728.181 | AI32: ='TNC CALC_Cstock'!N36 -> 8773.7814 | AJ32: ='TNC CALC_Cstock'!O36 -> 17318.46318 | AK32: ='TNC CALC_Cstock'!P36 -> 231.804 | AL32: ='TNC CALC_Cstock'!Q36 -> 30224.79478 | AM32: ='TNC CALC_Cstock'!R36 -> 1296.26 | AN32: ='TNC CALC_Cstock'!S36 -> 0 | AO32: ='TNC CALC_Cstock'!T36 -> 0 | AP32: ='TNC CALC_Cstock'!U36 -> 0 | AQ32: 113612.16 | AR32: ='TNC CALC_Cstock'!X36 -> 433.31885 | AS32: ='TNC CALC_Cstock'!Z36 -> 578.9147714 | AT32: ='TNC CALC_Cstock'!AB36 -> 424.9789632 | AU32: 1437.212585 | AV32: 112174.9474 | AW32: -411.3081405 | AX32: ='6. TNC Assumptions'!C63 -> 382 | AY32: ='6. TNC Assumptions'!D63 -> 120.9461503 | AZ32: ='6. TNC Assumptions'!E63 -> 2402 | BA32: ='6. TNC Assumptions'!F63 -> 721.9367334 | BB32: ='6. TNC Assumptions'!G63 -> 12297.41008 | BC32: ='6. TNC Assumptions'!I63 -> 174 | BD32: ='6. TNC Assumptions'!J63 -> 114.1652854 | BE32: ='6. TNC Assumptions'!K63 -> 897.3112465 | BF32: ='6. TNC Assumptions'!L63 -> 5103.625459 | BG32: ='6. TNC Assumptions'!M63 -> 144.9683667 | BH32: ='6. TNC Assumptions'!O63 -> 565 | BI32: ='6. TNC Assumptions'!P63 -> 965 | BJ32: ='6. TNC Assumptions'!Q63 -> 2293.667367 | BK32: ='6. TNC Assumptions'!R63 -> 5847 | BL32: ='6. TNC Assumptions'!S63 -> 68.20525424 | BM32: ='6. TNC Assumptions'!T63 -> 15182.0086 | BN32: ='6. TNC Assumptions'!U63 -> 197 | BO32: ='6. TNC Assumptions'!W63 -> 0 | BP32: ='6. TNC Assumptions'!X63 -> 0 | BQ32: ='6. TNC Assumptions'!Y63 -> 0 | BR32: 47476.24455 | BS32: ='TNC CALC_Cstock'!B69 -> 2298.112 | BT32: ='TNC CALC_Cstock'!C69 -> 727.61204 | BU32: ='TNC CALC_Cstock'!D69 -> 18785.5616 | BV32: ='TNC CALC_Cstock'!E69 -> 4343.171388 | BW32: ='TNC CALC_Cstock'!F69 -> 13316.61943 | BX32: ='TNC CALC_Cstock'!G69 -> 912.6648 | BY32: ='TNC CALC_Cstock'!H69 -> 598.8197551 | BZ32: ='TNC CALC_Cstock'!I69 -> 4706.57695 | CA32: ='TNC CALC_Cstock'!J69 -> 3741.978187 | CB32: ='TNC CALC_Cstock'!K69 -> 760.3880771 | CC32: ='TNC CALC_Cstock'!L69 -> 2182.821 | CD32: ='TNC CALC_Cstock'!M69 -> 3728.181 | CE32: ='TNC CALC_Cstock'!N69 -> 8861.354507 | CF32: ='TNC CALC_Cstock'!O69 -> 17318.46318 | CG32: ='TNC CALC_Cstock'!P69 -> 263.5041792 | CH32: ='TNC CALC_Cstock'!Q69 -> 30304.65554 | CI32: ='TNC CALC_Cstock'!R69 -> 1296.26 | CJ32: ='TNC CALC_Cstock'!S69 -> 0 | CK32: ='TNC CALC_Cstock'!T69 -> 0 | CL32: ='TNC CALC_Cstock'!U69 -> 0 | CM32: 114146.7436 | CN32: ='TNC CALC_Cstock'!X69 -> 433.31885 | CO32: ='TNC CALC_Cstock'!Z69 -> 578.9147714 | CP32: ='TNC CALC_Cstock'!AB69 -> 424.9789632 | CQ32: 1437.212585 | CR32: 112709.5311 | CS32: -413.2682805 | CT32: ='6. TNC Assumptions'!C95 -> 538.25 | CU32: ='6. TNC Assumptions'!D95 -> 120.9461503 | CV32: ='6. TNC Assumptions'!E95 -> 2714.5 | CW32: ='6. TNC Assumptions'!F95 -> 878.1867334 | CX32: ='6. TNC Assumptions'!G95 -> 12922.41008 | CY32: ='6. TNC Assumptions'!I95 -> 174 | CZ32: ='6. TNC Assumptions'!J95 -> 114.1652854 | DA32: ='6. TNC Assumptions'!K95 -> 897.3112465 | DB32: ='6. TNC Assumptions'!L95 -> 5103.625459 | DC32: ='6. TNC Assumptions'!M95 -> 144.9683667 | DD32: ='6. TNC Assumptions'!O95 -> 565 | DE32: ='6. TNC Assumptions'!P95 -> 965 | DF32: ='6. TNC Assumptions'!Q95 -> 2293.667367 | DG32: ='6. TNC Assumptions'!R95 -> 5847 | DH32: ='6. TNC Assumptions'!S95 -> 68.20525424 | DI32: ='6. TNC Assumptions'!T95 -> 15182.0086 | DJ32: ='6. TNC Assumptions'!U95 -> 197 | DK32: ='6. TNC Assumptions'!W95 -> 0 | DL32: ='6. TNC Assumptions'!X95 -> 0 | DM32: ='6. TNC Assumptions'!Y95 -> 0 | DN32: 48726.24455 | DO32: ='TNC CALC_Cstock'!B103 -> 3238.112 | DP32: ='TNC CALC_Cstock'!C103 -> 727.61204 | DQ32: ='TNC CALC_Cstock'!D103 -> 21229.5616 | DR32: ='TNC CALC_Cstock'!E103 -> 5283.171388 | DS32: ='TNC CALC_Cstock'!F103 -> 13993.41943 | DT32: ='TNC CALC_Cstock'!G103 -> 912.6648 | DU32: ='TNC CALC_Cstock'!H103 -> 598.8197551 | DV32: ='TNC CALC_Cstock'!I103 -> 4706.57695 | DW32: ='TNC CALC_Cstock'!J103 -> 3741.978187 | DX32: ='TNC CALC_Cstock'!K103 -> 760.3880771 | DY32: ='TNC CALC_Cstock'!L103 -> 2182.821 | DZ32: ='TNC CALC_Cstock'!M103 -> 3728.181 | EA32: ='TNC CALC_Cstock'!N103 -> 8861.354507 | EB32: ='TNC CALC_Cstock'!O103 -> 17318.46318 | EC32: ='TNC CALC_Cstock'!P103 -> 263.5041792 | ED32: ='TNC CALC_Cstock'!Q103 -> 30304.65554 | EE32: ='TNC CALC_Cstock'!R103 -> 1296.26 | EF32: ='TNC CALC_Cstock'!S103 -> 0 | EG32: ='TNC CALC_Cstock'!T103 -> 0 | EH32: ='TNC CALC_Cstock'!U103 -> 0 | EI32: 119147.5436 | EJ32: ='TNC CALC_Cstock'!X103 -> 433.31885 | EK32: ='TNC CALC_Cstock'!Z103 -> 578.9147714 | EL32: ='TNC CALC_Cstock'!AB103 -> 424.9789632 | EM32: 1437.212585 | EN32: 117710.3311 | EO32: -431.6045472
A33: =A32+5 -> 2035 | B33: ='6. TNC Assumptions'!C32 -> 382 | C33: ='6. TNC Assumptions'!D32 -> 106 | D33: ='6. TNC Assumptions'!E32 -> 2402 | E33: ='6. TNC Assumptions'!F32 -> 710 | F33: ='6. TNC Assumptions'!G32 -> 12243 | G33: ='6. TNC Assumptions'!I32 -> 174 | H33: ='6. TNC Assumptions'!J32 -> 110 | I33: ='6. TNC Assumptions'!K32 -> 889 | J33: ='6. TNC Assumptions'!L32 -> 5079 | K33: ='6. TNC Assumptions'!M32 -> 139 | L33: ='6. TNC Assumptions'!O32 -> 565 | M33: ='6. TNC Assumptions'!P32 -> 965 | N33: ='6. TNC Assumptions'!Q32 -> 2271 | O33: ='6. TNC Assumptions'!R32 -> 5847 | P33: ='6. TNC Assumptions'!S32 -> 60 | Q33: ='6. TNC Assumptions'!T32 -> 15142 | R33: ='6. TNC Assumptions'!U32 -> 198 | S33: ='6. TNC Assumptions'!W32 -> 0 | T33: ='6. TNC Assumptions'!X32 -> 0 | U33: ='6. TNC Assumptions'!Y32 -> 0 | V33: 47282 | W33: ='TNC CALC_Cstock'!B37 -> 2298.112 | X33: ='TNC CALC_Cstock'!C37 -> 637.696 | Y33: ='TNC CALC_Cstock'!D37 -> 18785.5616 | Z33: ='TNC CALC_Cstock'!E37 -> 4271.36 | AA33: ='TNC CALC_Cstock'!F37 -> 13257.69984 | AB33: ='TNC CALC_Cstock'!G37 -> 912.6648 | AC33: ='TNC CALC_Cstock'!H37 -> 576.972 | AD33: ='TNC CALC_Cstock'!I37 -> 4662.9828 | AE33: ='TNC CALC_Cstock'!J37 -> 3723.9228 | AF33: ='TNC CALC_Cstock'!K37 -> 729.0828 | AG33: ='TNC CALC_Cstock'!L37 -> 2182.821 | AH33: ='TNC CALC_Cstock'!M37 -> 3728.181 | AI33: ='TNC CALC_Cstock'!N37 -> 8773.7814 | AJ33: ='TNC CALC_Cstock'!O37 -> 17318.46318 | AK33: ='TNC CALC_Cstock'!P37 -> 231.804 | AL33: ='TNC CALC_Cstock'!Q37 -> 30224.79478 | AM33: ='TNC CALC_Cstock'!R37 -> 1302.84 | AN33: ='TNC CALC_Cstock'!S37 -> 0 | AO33: ='TNC CALC_Cstock'!T37 -> 0 | AP33: ='TNC CALC_Cstock'!U37 -> 0 | AQ33: 113618.74 | AR33: ='TNC CALC_Cstock'!X37 -> 305.406 | AS33: ='TNC CALC_Cstock'!Z37 -> 490.82335 | AT33: ='TNC CALC_Cstock'!AB37 -> 341.901312 | AU33: 1138.130662 | AV33: 112480.6093 | AW33: -412.4289009 | AX33: ='6. TNC Assumptions'!C64 -> 382 | AY33: ='6. TNC Assumptions'!D64 -> 120.9461503 | AZ33: ='6. TNC Assumptions'!E64 -> 2402 | BA33: ='6. TNC Assumptions'!F64 -> 721.9367334 | BB33: ='6. TNC Assumptions'!G64 -> 12297.41008 | BC33: ='6. TNC Assumptions'!I64 -> 174 | BD33: ='6. TNC Assumptions'!J64 -> 114.1652854 | BE33: ='6. TNC Assumptions'!K64 -> 897.3112465 | BF33: ='6. TNC Assumptions'!L64 -> 5103.625459 | BG33: ='6. TNC Assumptions'!M64 -> 144.9683667 | BH33: ='6. TNC Assumptions'!O64 -> 565 | BI33: ='6. TNC Assumptions'!P64 -> 965 | BJ33: ='6. TNC Assumptions'!Q64 -> 2293.667367 | BK33: ='6. TNC Assumptions'!R64 -> 5847 | BL33: ='6. TNC Assumptions'!S64 -> 68.20525424 | BM33: ='6. TNC Assumptions'!T64 -> 15182.0086 | BN33: ='6. TNC Assumptions'!U64 -> 198 | BO33: ='6. TNC Assumptions'!W64 -> 0 | BP33: ='6. TNC Assumptions'!X64 -> 0 | BQ33: ='6. TNC Assumptions'!Y64 -> 0 | BR33: 47477.24455 | BS33: ='TNC CALC_Cstock'!B70 -> 2298.112 | BT33: ='TNC CALC_Cstock'!C70 -> 727.61204 | BU33: ='TNC CALC_Cstock'!D70 -> 18785.5616 | BV33: ='TNC CALC_Cstock'!E70 -> 4343.171388 | BW33: ='TNC CALC_Cstock'!F70 -> 13316.61943 | BX33: ='TNC CALC_Cstock'!G70 -> 912.6648 | BY33: ='TNC CALC_Cstock'!H70 -> 598.8197551 | BZ33: ='TNC CALC_Cstock'!I70 -> 4706.57695 | CA33: ='TNC CALC_Cstock'!J70 -> 3741.978187 | CB33: ='TNC CALC_Cstock'!K70 -> 760.3880771 | CC33: ='TNC CALC_Cstock'!L70 -> 2182.821 | CD33: ='TNC CALC_Cstock'!M70 -> 3728.181 | CE33: ='TNC CALC_Cstock'!N70 -> 8861.354507 | CF33: ='TNC CALC_Cstock'!O70 -> 17318.46318 | CG33: ='TNC CALC_Cstock'!P70 -> 263.5041792 | CH33: ='TNC CALC_Cstock'!Q70 -> 30304.65554 | CI33: ='TNC CALC_Cstock'!R70 -> 1302.84 | CJ33: ='TNC CALC_Cstock'!S70 -> 0 | CK33: ='TNC CALC_Cstock'!T70 -> 0 | CL33: ='TNC CALC_Cstock'!U70 -> 0 | CM33: 114153.3236 | CN33: ='TNC CALC_Cstock'!X70 -> 305.406 | CO33: ='TNC CALC_Cstock'!Z70 -> 490.82335 | CP33: ='TNC CALC_Cstock'!AB70 -> 341.901312 | CQ33: 1138.130662 | CR33: 113015.193 | CS33: -414.3890409 | CT33: ='6. TNC Assumptions'!C96 -> 632 | CU33: ='6. TNC Assumptions'!D96 -> 120.9461503 | CV33: ='6. TNC Assumptions'!E96 -> 2902 | CW33: ='6. TNC Assumptions'!F96 -> 971.9367334 | CX33: ='6. TNC Assumptions'!G96 -> 13297.41008 | CY33: ='6. TNC Assumptions'!I96 -> 174 | CZ33: ='6. TNC Assumptions'!J96 -> 114.1652854 | DA33: ='6. TNC Assumptions'!K96 -> 897.3112465 | DB33: ='6. TNC Assumptions'!L96 -> 5103.625459 | DC33: ='6. TNC Assumptions'!M96 -> 144.9683667 | DD33: ='6. TNC Assumptions'!O96 -> 565 | DE33: ='6. TNC Assumptions'!P96 -> 965 | DF33: ='6. TNC Assumptions'!Q96 -> 2293.667367 | DG33: ='6. TNC Assumptions'!R96 -> 5847 | DH33: ='6. TNC Assumptions'!S96 -> 68.20525424 | DI33: ='6. TNC Assumptions'!T96 -> 15182.0086 | DJ33: ='6. TNC Assumptions'!U96 -> 198 | DK33: ='6. TNC Assumptions'!W96 -> 0 | DL33: ='6. TNC Assumptions'!X96 -> 0 | DM33: ='6. TNC Assumptions'!Y96 -> 0 | DN33: 49477.24455 | DO33: ='TNC CALC_Cstock'!B104 -> 3802.112 | DP33: ='TNC CALC_Cstock'!C104 -> 727.61204 | DQ33: ='TNC CALC_Cstock'!D104 -> 22695.9616 | DR33: ='TNC CALC_Cstock'!E104 -> 5847.171388 | DS33: ='TNC CALC_Cstock'!F104 -> 14399.49943 | DT33: ='TNC CALC_Cstock'!G104 -> 912.6648 | DU33: ='TNC CALC_Cstock'!H104 -> 598.8197551 | DV33: ='TNC CALC_Cstock'!I104 -> 4706.57695 | DW33: ='TNC CALC_Cstock'!J104 -> 3741.978187 | DX33: ='TNC CALC_Cstock'!K104 -> 760.3880771 | DY33: ='TNC CALC_Cstock'!L104 -> 2182.821 | DZ33: ='TNC CALC_Cstock'!M104 -> 3728.181 | EA33: ='TNC CALC_Cstock'!N104 -> 8861.354507 | EB33: ='TNC CALC_Cstock'!O104 -> 17318.46318 | EC33: ='TNC CALC_Cstock'!P104 -> 263.5041792 | ED33: ='TNC CALC_Cstock'!Q104 -> 30304.65554 | EE33: ='TNC CALC_Cstock'!R104 -> 1302.84 | EF33: ='TNC CALC_Cstock'!S104 -> 0 | EG33: ='TNC CALC_Cstock'!T104 -> 0 | EH33: ='TNC CALC_Cstock'!U104 -> 0 | EI33: 122154.6036 | EJ33: ='TNC CALC_Cstock'!X104 -> 305.406 | EK33: ='TNC CALC_Cstock'!Z104 -> 490.82335 | EL33: ='TNC CALC_Cstock'!AB104 -> 341.901312 | EM33: 1138.130662 | EN33: 121016.473 | EO33: -443.7270676
A34: =A33+5 -> 2040 | B34: ='6. TNC Assumptions'!C33 -> 382 | C34: ='6. TNC Assumptions'!D33 -> 106 | D34: ='6. TNC Assumptions'!E33 -> 2402 | E34: ='6. TNC Assumptions'!F33 -> 710 | F34: ='6. TNC Assumptions'!G33 -> 12243 | G34: ='6. TNC Assumptions'!I33 -> 174 | H34: ='6. TNC Assumptions'!J33 -> 110 | I34: ='6. TNC Assumptions'!K33 -> 889 | J34: ='6. TNC Assumptions'!L33 -> 5079 | K34: ='6. TNC Assumptions'!M33 -> 139 | L34: ='6. TNC Assumptions'!O33 -> 565 | M34: ='6. TNC Assumptions'!P33 -> 965 | N34: ='6. TNC Assumptions'!Q33 -> 2271 | O34: ='6. TNC Assumptions'!R33 -> 5847 | P34: ='6. TNC Assumptions'!S33 -> 60 | Q34: ='6. TNC Assumptions'!T33 -> 15142 | R34: ='6. TNC Assumptions'!U33 -> 200 | S34: ='6. TNC Assumptions'!W33 -> 0 | T34: ='6. TNC Assumptions'!X33 -> 0 | U34: ='6. TNC Assumptions'!Y33 -> 0 | V34: 47284 | W34: ='TNC CALC_Cstock'!B38 -> 2298.112 | X34: ='TNC CALC_Cstock'!C38 -> 637.696 | Y34: ='TNC CALC_Cstock'!D38 -> 18785.5616 | Z34: ='TNC CALC_Cstock'!E38 -> 4271.36 | AA34: ='TNC CALC_Cstock'!F38 -> 13257.69984 | AB34: ='TNC CALC_Cstock'!G38 -> 912.6648 | AC34: ='TNC CALC_Cstock'!H38 -> 576.972 | AD34: ='TNC CALC_Cstock'!I38 -> 4662.9828 | AE34: ='TNC CALC_Cstock'!J38 -> 3723.9228 | AF34: ='TNC CALC_Cstock'!K38 -> 729.0828 | AG34: ='TNC CALC_Cstock'!L38 -> 2182.821 | AH34: ='TNC CALC_Cstock'!M38 -> 3728.181 | AI34: ='TNC CALC_Cstock'!N38 -> 8773.7814 | AJ34: ='TNC CALC_Cstock'!O38 -> 17318.46318 | AK34: ='TNC CALC_Cstock'!P38 -> 231.804 | AL34: ='TNC CALC_Cstock'!Q38 -> 30224.79478 | AM34: ='TNC CALC_Cstock'!R38 -> 1316 | AN34: ='TNC CALC_Cstock'!S38 -> 0 | AO34: ='TNC CALC_Cstock'!T38 -> 0 | AP34: ='TNC CALC_Cstock'!U38 -> 0 | AQ34: 113631.9 | AR34: ='TNC CALC_Cstock'!X38 -> 255.8257 | AS34: ='TNC CALC_Cstock'!Z38 -> 387.70065 | AT34: ='TNC CALC_Cstock'!AB38 -> 341.901312 | AU34: 985.427662 | AV34: 112646.4723 | AW34: -413.0370652 | AX34: ='6. TNC Assumptions'!C65 -> 382 | AY34: ='6. TNC Assumptions'!D65 -> 120.9461503 | AZ34: ='6. TNC Assumptions'!E65 -> 2402 | BA34: ='6. TNC Assumptions'!F65 -> 721.9367334 | BB34: ='6. TNC Assumptions'!G65 -> 12297.41008 | BC34: ='6. TNC Assumptions'!I65 -> 174 | BD34: ='6. TNC Assumptions'!J65 -> 114.1652854 | BE34: ='6. TNC Assumptions'!K65 -> 897.3112465 | BF34: ='6. TNC Assumptions'!L65 -> 5103.625459 | BG34: ='6. TNC Assumptions'!M65 -> 144.9683667 | BH34: ='6. TNC Assumptions'!O65 -> 565 | BI34: ='6. TNC Assumptions'!P65 -> 965 | BJ34: ='6. TNC Assumptions'!Q65 -> 2271 | BK34: ='6. TNC Assumptions'!R65 -> 5869.667367 | BL34: ='6. TNC Assumptions'!S65 -> 68.20525424 | BM34: ='6. TNC Assumptions'!T65 -> 15182.0086 | BN34: ='6. TNC Assumptions'!U65 -> 200 | BO34: ='6. TNC Assumptions'!W65 -> 0 | BP34: ='6. TNC Assumptions'!X65 -> 0 | BQ34: ='6. TNC Assumptions'!Y65 -> 0 | BR34: 47479.24455 | BS34: ='TNC CALC_Cstock'!B71 -> 2298.112 | BT34: ='TNC CALC_Cstock'!C71 -> 727.61204 | BU34: ='TNC CALC_Cstock'!D71 -> 18785.5616 | BV34: ='TNC CALC_Cstock'!E71 -> 4343.171388 | BW34: ='TNC CALC_Cstock'!F71 -> 13316.61943 | BX34: ='TNC CALC_Cstock'!G71 -> 912.6648 | BY34: ='TNC CALC_Cstock'!H71 -> 598.8197551 | BZ34: ='TNC CALC_Cstock'!I71 -> 4706.57695 | CA34: ='TNC CALC_Cstock'!J71 -> 3741.978187 | CB34: ='TNC CALC_Cstock'!K71 -> 760.3880771 | CC34: ='TNC CALC_Cstock'!L71 -> 2182.821 | CD34: ='TNC CALC_Cstock'!M71 -> 3728.181 | CE34: ='TNC CALC_Cstock'!N71 -> 8773.7814 | CF34: ='TNC CALC_Cstock'!O71 -> 17385.60256 | CG34: ='TNC CALC_Cstock'!P71 -> 263.5041792 | CH34: ='TNC CALC_Cstock'!Q71 -> 30304.65554 | CI34: ='TNC CALC_Cstock'!R71 -> 1316 | CJ34: ='TNC CALC_Cstock'!S71 -> 0 | CK34: ='TNC CALC_Cstock'!T71 -> 0 | CL34: ='TNC CALC_Cstock'!U71 -> 0 | CM34: 114146.0499 | CN34: ='TNC CALC_Cstock'!X71 -> 255.8257 | CO34: ='TNC CALC_Cstock'!Z71 -> 387.70065 | CP34: ='TNC CALC_Cstock'!AB71 -> 341.901312 | CQ34: 985.427662 | CR34: 113160.6223 | CS34: -414.9222816 | CT34: ='6. TNC Assumptions'!C97 -> 757 | CU34: ='6. TNC Assumptions'!D97 -> 120.9461503 | CV34: ='6. TNC Assumptions'!E97 -> 3152 | CW34: ='6. TNC Assumptions'!F97 -> 1096.936733 | CX34: ='6. TNC Assumptions'!G97 -> 13797.41008 | CY34: ='6. TNC Assumptions'!I97 -> 174 | CZ34: ='6. TNC Assumptions'!J97 -> 114.1652854 | DA34: ='6. TNC Assumptions'!K97 -> 897.3112465 | DB34: ='6. TNC Assumptions'!L97 -> 5103.625459 | DC34: ='6. TNC Assumptions'!M97 -> 144.9683667 | DD34: ='6. TNC Assumptions'!O97 -> 565 | DE34: ='6. TNC Assumptions'!P97 -> 965 | DF34: ='6. TNC Assumptions'!Q97 -> 2271 | DG34: ='6. TNC Assumptions'!R97 -> 5869.667367 | DH34: ='6. TNC Assumptions'!S97 -> 68.20525424 | DI34: ='6. TNC Assumptions'!T97 -> 15182.0086 | DJ34: ='6. TNC Assumptions'!U97 -> 200 | DK34: ='6. TNC Assumptions'!W97 -> 0 | DL34: ='6. TNC Assumptions'!X97 -> 0 | DM34: ='6. TNC Assumptions'!Y97 -> 0 | DN34: 50479.24455 | DO34: ='TNC CALC_Cstock'!B105 -> 4554.112 | DP34: ='TNC CALC_Cstock'!C105 -> 727.61204 | DQ34: ='TNC CALC_Cstock'!D105 -> 24651.1616 | DR34: ='TNC CALC_Cstock'!E105 -> 6599.171388 | DS34: ='TNC CALC_Cstock'!F105 -> 14940.93943 | DT34: ='TNC CALC_Cstock'!G105 -> 912.6648 | DU34: ='TNC CALC_Cstock'!H105 -> 598.8197551 | DV34: ='TNC CALC_Cstock'!I105 -> 4706.57695 | DW34: ='TNC CALC_Cstock'!J105 -> 3741.978187 | DX34: ='TNC CALC_Cstock'!K105 -> 760.3880771 | DY34: ='TNC CALC_Cstock'!L105 -> 2182.821 | DZ34: ='TNC CALC_Cstock'!M105 -> 3728.181 | EA34: ='TNC CALC_Cstock'!N105 -> 8773.7814 | EB34: ='TNC CALC_Cstock'!O105 -> 17385.60256 | EC34: ='TNC CALC_Cstock'!P105 -> 263.5041792 | ED34: ='TNC CALC_Cstock'!Q105 -> 30304.65554 | EE34: ='TNC CALC_Cstock'!R105 -> 1316 | EF34: ='TNC CALC_Cstock'!S105 -> 0 | EG34: ='TNC CALC_Cstock'!T105 -> 0 | EH34: ='TNC CALC_Cstock'!U105 -> 0 | EI34: 126147.9699 | EJ34: ='TNC CALC_Cstock'!X105 -> 255.8257 | EK34: ='TNC CALC_Cstock'!Z105 -> 387.70065 | EL34: ='TNC CALC_Cstock'!AB105 -> 341.901312 | EM34: 985.427662 | EN34: 125162.5423 | EO34: -458.9293216
A35: =A34+5 -> 2045 | B35: ='6. TNC Assumptions'!C34 -> 382 | C35: ='6. TNC Assumptions'!D34 -> 106 | D35: ='6. TNC Assumptions'!E34 -> 2402 | E35: ='6. TNC Assumptions'!F34 -> 710 | F35: ='6. TNC Assumptions'!G34 -> 12243 | G35: ='6. TNC Assumptions'!I34 -> 174 | H35: ='6. TNC Assumptions'!J34 -> 110 | I35: ='6. TNC Assumptions'!K34 -> 889 | J35: ='6. TNC Assumptions'!L34 -> 5079 | K35: ='6. TNC Assumptions'!M34 -> 139 | L35: ='6. TNC Assumptions'!O34 -> 565 | M35: ='6. TNC Assumptions'!P34 -> 965 | N35: ='6. TNC Assumptions'!Q34 -> 2271 | O35: ='6. TNC Assumptions'!R34 -> 5847 | P35: ='6. TNC Assumptions'!S34 -> 60 | Q35: ='6. TNC Assumptions'!T34 -> 15142 | R35: ='6. TNC Assumptions'!U34 -> 205 | S35: ='6. TNC Assumptions'!W34 -> 0 | T35: ='6. TNC Assumptions'!X34 -> 0 | U35: ='6. TNC Assumptions'!Y34 -> 0 | V35: 47289 | W35: ='TNC CALC_Cstock'!B39 -> 2298.112 | X35: ='TNC CALC_Cstock'!C39 -> 637.696 | Y35: ='TNC CALC_Cstock'!D39 -> 18785.5616 | Z35: ='TNC CALC_Cstock'!E39 -> 4271.36 | AA35: ='TNC CALC_Cstock'!F39 -> 13257.69984 | AB35: ='TNC CALC_Cstock'!G39 -> 912.6648 | AC35: ='TNC CALC_Cstock'!H39 -> 576.972 | AD35: ='TNC CALC_Cstock'!I39 -> 4662.9828 | AE35: ='TNC CALC_Cstock'!J39 -> 3723.9228 | AF35: ='TNC CALC_Cstock'!K39 -> 729.0828 | AG35: ='TNC CALC_Cstock'!L39 -> 2182.821 | AH35: ='TNC CALC_Cstock'!M39 -> 3728.181 | AI35: ='TNC CALC_Cstock'!N39 -> 8773.7814 | AJ35: ='TNC CALC_Cstock'!O39 -> 17318.46318 | AK35: ='TNC CALC_Cstock'!P39 -> 231.804 | AL35: ='TNC CALC_Cstock'!Q39 -> 30224.79478 | AM35: ='TNC CALC_Cstock'!R39 -> 1348.9 | AN35: ='TNC CALC_Cstock'!S39 -> 0 | AO35: ='TNC CALC_Cstock'!T39 -> 0 | AP35: ='TNC CALC_Cstock'!U39 -> 0 | AQ35: 113664.8 | AR35: ='TNC CALC_Cstock'!X39 -> 152.703 | AS35: ='TNC CALC_Cstock'!Z39 -> 206.2454 | AT35: ='TNC CALC_Cstock'!AB39 -> 341.901312 | AU35: 700.849712 | AV35: 112963.9503 | AW35: -414.2011511 | AX35: ='6. TNC Assumptions'!C66 -> 382 | AY35: ='6. TNC Assumptions'!D66 -> 120.9461503 | AZ35: ='6. TNC Assumptions'!E66 -> 2402 | BA35: ='6. TNC Assumptions'!F66 -> 721.9367334 | BB35: ='6. TNC Assumptions'!G66 -> 12297.41008 | BC35: ='6. TNC Assumptions'!I66 -> 174 | BD35: ='6. TNC Assumptions'!J66 -> 114.1652854 | BE35: ='6. TNC Assumptions'!K66 -> 897.3112465 | BF35: ='6. TNC Assumptions'!L66 -> 5103.625459 | BG35: ='6. TNC Assumptions'!M66 -> 144.9683667 | BH35: ='6. TNC Assumptions'!O66 -> 565 | BI35: ='6. TNC Assumptions'!P66 -> 965 | BJ35: ='6. TNC Assumptions'!Q66 -> 2271 | BK35: ='6. TNC Assumptions'!R66 -> 5869.667367 | BL35: ='6. TNC Assumptions'!S66 -> 68.20525424 | BM35: ='6. TNC Assumptions'!T66 -> 15182.0086 | BN35: ='6. TNC Assumptions'!U66 -> 205 | BO35: ='6. TNC Assumptions'!W66 -> 0 | BP35: ='6. TNC Assumptions'!X66 -> 0 | BQ35: ='6. TNC Assumptions'!Y66 -> 0 | BR35: 47484.24455 | BS35: ='TNC CALC_Cstock'!B72 -> 2298.112 | BT35: ='TNC CALC_Cstock'!C72 -> 727.61204 | BU35: ='TNC CALC_Cstock'!D72 -> 18785.5616 | BV35: ='TNC CALC_Cstock'!E72 -> 4343.171388 | BW35: ='TNC CALC_Cstock'!F72 -> 13316.61943 | BX35: ='TNC CALC_Cstock'!G72 -> 912.6648 | BY35: ='TNC CALC_Cstock'!H72 -> 598.8197551 | BZ35: ='TNC CALC_Cstock'!I72 -> 4706.57695 | CA35: ='TNC CALC_Cstock'!J72 -> 3741.978187 | CB35: ='TNC CALC_Cstock'!K72 -> 760.3880771 | CC35: ='TNC CALC_Cstock'!L72 -> 2182.821 | CD35: ='TNC CALC_Cstock'!M72 -> 3728.181 | CE35: ='TNC CALC_Cstock'!N72 -> 8773.7814 | CF35: ='TNC CALC_Cstock'!O72 -> 17385.60256 | CG35: ='TNC CALC_Cstock'!P72 -> 263.5041792 | CH35: ='TNC CALC_Cstock'!Q72 -> 30304.65554 | CI35: ='TNC CALC_Cstock'!R72 -> 1348.9 | CJ35: ='TNC CALC_Cstock'!S72 -> 0 | CK35: ='TNC CALC_Cstock'!T72 -> 0 | CL35: ='TNC CALC_Cstock'!U72 -> 0 | CM35: 114178.9499 | CN35: ='TNC CALC_Cstock'!X72 -> 152.703 | CO35: ='TNC CALC_Cstock'!Z72 -> 206.2454 | CP35: ='TNC CALC_Cstock'!AB72 -> 341.901312 | CQ35: 700.849712 | CR35: 113478.1002 | CS35: -416.0863674 | CT35: ='6. TNC Assumptions'!C98 -> 882 | CU35: ='6. TNC Assumptions'!D98 -> 120.9461503 | CV35: ='6. TNC Assumptions'!E98 -> 3402 | CW35: ='6. TNC Assumptions'!F98 -> 1221.936733 | CX35: ='6. TNC Assumptions'!G98 -> 14297.41008 | CY35: ='6. TNC Assumptions'!I98 -> 174 | CZ35: ='6. TNC Assumptions'!J98 -> 114.1652854 | DA35: ='6. TNC Assumptions'!K98 -> 897.3112465 | DB35: ='6. TNC Assumptions'!L98 -> 5103.625459 | DC35: ='6. TNC Assumptions'!M98 -> 144.9683667 | DD35: ='6. TNC Assumptions'!O98 -> 565 | DE35: ='6. TNC Assumptions'!P98 -> 965 | DF35: ='6. TNC Assumptions'!Q98 -> 2271 | DG35: ='6. TNC Assumptions'!R98 -> 5869.667367 | DH35: ='6. TNC Assumptions'!S98 -> 68.20525424 | DI35: ='6. TNC Assumptions'!T98 -> 15182.0086 | DJ35: ='6. TNC Assumptions'!U98 -> 205 | DK35: ='6. TNC Assumptions'!W98 -> 0 | DL35: ='6. TNC Assumptions'!X98 -> 0 | DM35: ='6. TNC Assumptions'!Y98 -> 0 | DN35: 51484.24455 | DO35: ='TNC CALC_Cstock'!B106 -> 5306.112 | DP35: ='TNC CALC_Cstock'!C106 -> 727.61204 | DQ35: ='TNC CALC_Cstock'!D106 -> 26606.3616 | DR35: ='TNC CALC_Cstock'!E106 -> 7351.171388 | DS35: ='TNC CALC_Cstock'!F106 -> 15482.37943 | DT35: ='TNC CALC_Cstock'!G106 -> 912.6648 | DU35: ='TNC CALC_Cstock'!H106 -> 598.8197551 | DV35: ='TNC CALC_Cstock'!I106 -> 4706.57695 | DW35: ='TNC CALC_Cstock'!J106 -> 3741.978187 | DX35: ='TNC CALC_Cstock'!K106 -> 760.3880771 | DY35: ='TNC CALC_Cstock'!L106 -> 2182.821 | DZ35: ='TNC CALC_Cstock'!M106 -> 3728.181 | EA35: ='TNC CALC_Cstock'!N106 -> 8773.7814 | EB35: ='TNC CALC_Cstock'!O106 -> 17385.60256 | EC35: ='TNC CALC_Cstock'!P106 -> 263.5041792 | ED35: ='TNC CALC_Cstock'!Q106 -> 30304.65554 | EE35: ='TNC CALC_Cstock'!R106 -> 1348.9 | EF35: ='TNC CALC_Cstock'!S106 -> 0 | EG35: ='TNC CALC_Cstock'!T106 -> 0 | EH35: ='TNC CALC_Cstock'!U106 -> 0 | EI35: 130181.5099 | EJ35: ='TNC CALC_Cstock'!X106 -> 152.703 | EK35: ='TNC CALC_Cstock'!Z106 -> 206.2454 | EL35: ='TNC CALC_Cstock'!AB106 -> 341.901312 | EM35: 700.849712 | EN35: 129480.6602 | EO35: -474.7624207
A36: =A35+5 -> 2050 | B36: ='6. TNC Assumptions'!C35 -> 382 | C36: ='6. TNC Assumptions'!D35 -> 106 | D36: ='6. TNC Assumptions'!E35 -> 2402 | E36: ='6. TNC Assumptions'!F35 -> 710 | F36: ='6. TNC Assumptions'!G35 -> 12243 | G36: ='6. TNC Assumptions'!I35 -> 174 | H36: ='6. TNC Assumptions'!J35 -> 110 | I36: ='6. TNC Assumptions'!K35 -> 889 | J36: ='6. TNC Assumptions'!L35 -> 5079 | K36: ='6. TNC Assumptions'!M35 -> 139 | L36: ='6. TNC Assumptions'!O35 -> 565 | M36: ='6. TNC Assumptions'!P35 -> 965 | N36: ='6. TNC Assumptions'!Q35 -> 2271 | O36: ='6. TNC Assumptions'!R35 -> 5847 | P36: ='6. TNC Assumptions'!S35 -> 60 | Q36: ='6. TNC Assumptions'!T35 -> 15142 | R36: ='6. TNC Assumptions'!U35 -> 213 | S36: ='6. TNC Assumptions'!W35 -> 0 | T36: ='6. TNC Assumptions'!X35 -> 0 | U36: ='6. TNC Assumptions'!Y35 -> 0 | V36: 47297 | W36: ='TNC CALC_Cstock'!B40 -> 2298.112 | X36: ='TNC CALC_Cstock'!C40 -> 637.696 | Y36: ='TNC CALC_Cstock'!D40 -> 18785.5616 | Z36: ='TNC CALC_Cstock'!E40 -> 4271.36 | AA36: ='TNC CALC_Cstock'!F40 -> 13257.69984 | AB36: ='TNC CALC_Cstock'!G40 -> 912.6648 | AC36: ='TNC CALC_Cstock'!H40 -> 576.972 | AD36: ='TNC CALC_Cstock'!I40 -> 4662.9828 | AE36: ='TNC CALC_Cstock'!J40 -> 3723.9228 | AF36: ='TNC CALC_Cstock'!K40 -> 729.0828 | AG36: ='TNC CALC_Cstock'!L40 -> 2182.821 | AH36: ='TNC CALC_Cstock'!M40 -> 3728.181 | AI36: ='TNC CALC_Cstock'!N40 -> 8773.7814 | AJ36: ='TNC CALC_Cstock'!O40 -> 17318.46318 | AK36: ='TNC CALC_Cstock'!P40 -> 231.804 | AL36: ='TNC CALC_Cstock'!Q40 -> 30224.79478 | AM36: ='TNC CALC_Cstock'!R40 -> 1401.54 | AN36: ='TNC CALC_Cstock'!S40 -> 0 | AO36: ='TNC CALC_Cstock'!T40 -> 0 | AP36: ='TNC CALC_Cstock'!U40 -> 0 | AQ36: 113717.44 | AR36: ='TNC CALC_Cstock'!X40 -> 103.1227 | AS36: ='TNC CALC_Cstock'!Z40 -> 103.1227 | AT36: ='TNC CALC_Cstock'!AB40 -> 341.901312 | AU36: 548.146712 | AV36: 113169.2933 | AW36: -414.9540754 | AX36: ='6. TNC Assumptions'!C67 -> 382 | AY36: ='6. TNC Assumptions'!D67 -> 120.9461503 | AZ36: ='6. TNC Assumptions'!E67 -> 2402 | BA36: ='6. TNC Assumptions'!F67 -> 721.9367334 | BB36: ='6. TNC Assumptions'!G67 -> 12297.41008 | BC36: ='6. TNC Assumptions'!I67 -> 174 | BD36: ='6. TNC Assumptions'!J67 -> 114.1652854 | BE36: ='6. TNC Assumptions'!K67 -> 897.3112465 | BF36: ='6. TNC Assumptions'!L67 -> 5103.625459 | BG36: ='6. TNC Assumptions'!M67 -> 144.9683667 | BH36: ='6. TNC Assumptions'!O67 -> 565 | BI36: ='6. TNC Assumptions'!P67 -> 965 | BJ36: ='6. TNC Assumptions'!Q67 -> 2271 | BK36: ='6. TNC Assumptions'!R67 -> 5869.667367 | BL36: ='6. TNC Assumptions'!S67 -> 68.20525424 | BM36: ='6. TNC Assumptions'!T67 -> 15182.0086 | BN36: ='6. TNC Assumptions'!U67 -> 213 | BO36: ='6. TNC Assumptions'!W67 -> 0 | BP36: ='6. TNC Assumptions'!X67 -> 0 | BQ36: ='6. TNC Assumptions'!Y67 -> 0 | BR36: 47492.24455 | BS36: ='TNC CALC_Cstock'!B73 -> 2298.112 | BT36: ='TNC CALC_Cstock'!C73 -> 727.61204 | BU36: ='TNC CALC_Cstock'!D73 -> 18785.5616 | BV36: ='TNC CALC_Cstock'!E73 -> 4343.171388 | BW36: ='TNC CALC_Cstock'!F73 -> 13316.61943 | BX36: ='TNC CALC_Cstock'!G73 -> 912.6648 | BY36: ='TNC CALC_Cstock'!H73 -> 598.8197551 | BZ36: ='TNC CALC_Cstock'!I73 -> 4706.57695 | CA36: ='TNC CALC_Cstock'!J73 -> 3741.978187 | CB36: ='TNC CALC_Cstock'!K73 -> 760.3880771 | CC36: ='TNC CALC_Cstock'!L73 -> 2182.821 | CD36: ='TNC CALC_Cstock'!M73 -> 3728.181 | CE36: ='TNC CALC_Cstock'!N73 -> 8773.7814 | CF36: ='TNC CALC_Cstock'!O73 -> 17385.60256 | CG36: ='TNC CALC_Cstock'!P73 -> 263.5041792 | CH36: ='TNC CALC_Cstock'!Q73 -> 30304.65554 | CI36: ='TNC CALC_Cstock'!R73 -> 1401.54 | CJ36: ='TNC CALC_Cstock'!S73 -> 0 | CK36: ='TNC CALC_Cstock'!T73 -> 0 | CL36: ='TNC CALC_Cstock'!U73 -> 0 | CM36: 114231.5899 | CN36: ='TNC CALC_Cstock'!X73 -> 103.1227 | CO36: ='TNC CALC_Cstock'!Z73 -> 103.1227 | CP36: ='TNC CALC_Cstock'!AB73 -> 341.901312 | CQ36: 548.146712 | CR36: 113683.4432 | CS36: -416.8392917 | CT36: ='6. TNC Assumptions'!C99 -> 1007 | CU36: ='6. TNC Assumptions'!D99 -> 120.9461503 | CV36: ='6. TNC Assumptions'!E99 -> 3652 | CW36: ='6. TNC Assumptions'!F99 -> 1346.936733 | CX36: ='6. TNC Assumptions'!G99 -> 14797.41008 | CY36: ='6. TNC Assumptions'!I99 -> 174 | CZ36: ='6. TNC Assumptions'!J99 -> 114.1652854 | DA36: ='6. TNC Assumptions'!K99 -> 897.3112465 | DB36: ='6. TNC Assumptions'!L99 -> 5103.625459 | DC36: ='6. TNC Assumptions'!M99 -> 144.9683667 | DD36: ='6. TNC Assumptions'!O99 -> 565 | DE36: ='6. TNC Assumptions'!P99 -> 965 | DF36: ='6. TNC Assumptions'!Q99 -> 2271 | DG36: ='6. TNC Assumptions'!R99 -> 5869.667367 | DH36: ='6. TNC Assumptions'!S99 -> 68.20525424 | DI36: ='6. TNC Assumptions'!T99 -> 15182.0086 | DJ36: ='6. TNC Assumptions'!U99 -> 213 | DK36: ='6. TNC Assumptions'!W99 -> 0 | DL36: ='6. TNC Assumptions'!X99 -> 0 | DM36: ='6. TNC Assumptions'!Y99 -> 0 | DN36: 52492.24455 | DO36: ='TNC CALC_Cstock'!B107 -> 6058.112 | DP36: ='TNC CALC_Cstock'!C107 -> 727.61204 | DQ36: ='TNC CALC_Cstock'!D107 -> 28561.5616 | DR36: ='TNC CALC_Cstock'!E107 -> 8103.171388 | DS36: ='TNC CALC_Cstock'!F107 -> 16023.81943 | DT36: ='TNC CALC_Cstock'!G107 -> 912.6648 | DU36: ='TNC CALC_Cstock'!H107 -> 598.8197551 | DV36: ='TNC CALC_Cstock'!I107 -> 4706.57695 | DW36: ='TNC CALC_Cstock'!J107 -> 3741.978187 | DX36: ='TNC CALC_Cstock'!K107 -> 760.3880771 | DY36: ='TNC CALC_Cstock'!L107 -> 2182.821 | DZ36: ='TNC CALC_Cstock'!M107 -> 3728.181 | EA36: ='TNC CALC_Cstock'!N107 -> 8773.7814 | EB36: ='TNC CALC_Cstock'!O107 -> 17385.60256 | EC36: ='TNC CALC_Cstock'!P107 -> 263.5041792 | ED36: ='TNC CALC_Cstock'!Q107 -> 30304.65554 | EE36: ='TNC CALC_Cstock'!R107 -> 1401.54 | EF36: ='TNC CALC_Cstock'!S107 -> 0 | EG36: ='TNC CALC_Cstock'!T107 -> 0 | EH36: ='TNC CALC_Cstock'!U107 -> 0 | EI36: 134234.7899 | EJ36: ='TNC CALC_Cstock'!X107 -> 103.1227 | EK36: ='TNC CALC_Cstock'!Z107 -> 103.1227 | EL36: ='TNC CALC_Cstock'!AB107 -> 341.901312 | EM36: 548.146712 | EN36: 133686.6432 | EO36: -490.1843584

Sheet All UD1 Plots (hidden)
B1: =CONCATENATE("Area: ",$B$5," : ",B6) -> Area: Dry Lowland Forest, ha : Araucaria | C1: =CONCATENATE("Area: ",$B$5," : ",C6) -> Area: Dry Lowland Forest, ha : Casuarina | D1: =CONCATENATE("Area: ",$B$5," : ",D6) -> Area: Dry Lowland Forest, ha : Euc | E1: =CONCATENATE("Area: ",$B$5," : ",E6) -> Area: Dry Lowland Forest, ha : Tabebuia | F1: =CONCATENATE("Area: ",$B$5," : ",F6) -> Area: Dry Lowland Forest, ha : Scrub Land | G1: =CONCATENATE("Area: ",$G$5," : ",G6) -> Area: Moist Forest, ha : Araucaria | H1: =CONCATENATE("Area: ",$G$5," : ",H6) -> Area: Moist Forest, ha : Casuarina | I1: =CONCATENATE("Area: ",$G$5," : ",I6) -> Area: Moist Forest, ha : Euc | J1: =CONCATENATE("Area: ",$G$5," : ",J6) -> Area: Moist Forest, ha : Natural | K1: =CONCATENATE("Area: ",$G$5," : ",K6) -> Area: Moist Forest, ha : Tabebuia | L1: =CONCATENATE("Area: ",$L$5," : ",L6) -> Area: Wet Upland Forest, ha : Euc Red | M1: Area: Wet Upland Forest, ha : Cryptomeria | N1: Area: Wet Upland Forest, ha : Pine<20y | O1: Area: Wet Upland Forest, ha : Pine>20y | P1: Area: Wet Upland Forest, ha : Araucaria | Q1: Area: Wet Upland Forest, ha : Natural | R1: =CONCATENATE("Area: ",$R$5," : ",R6) -> Area: Mangrove : Forest | S1: =CONCATENATE("Area: ",$S$5," : ",S6) -> Area: Wet Upland Forest Pine, ha : Pine<20y | T1: =CONCATENATE("Area: ",$S$5," : ",T6) -> Area: Wet Upland Forest Pine, ha : Pine>20y | U1: =CONCATENATE("Area: ",$U$5) -> Area: Wet Upland Forest Euc Red<20 | V1: =CONCATENATE($V$5," ", A4) -> Total Area of Forests by Type (ha) | W1: =CONCATENATE("Annual Increase in Carbon (tC): ",$W$5,": ",W6) -> Annual Increase in Carbon (tC): Dry Lowland Forest, ha: Araucaria | X1: =CONCATENATE("Annual Increase in Carbon (tC): ",$W$5,": ",X6) -> Annual Increase in Carbon (tC): Dry Lowland Forest, ha: Casuarina | Y1: =CONCATENATE("Annual Increase in Carbon (tC): ",$W$5,": ",Y6) -> Annual Increase in Carbon (tC): Dry Lowland Forest, ha: Euc | Z1: =CONCATENATE("Annual Increase in Carbon (tC): ",$W$5,": ",Z6) -> Annual Increase in Carbon (tC): Dry Lowland Forest, ha: Tabebuia | AA1: =CONCATENATE("Annual Increase in Carbon (tC): ",$W$5,": ",AA6) -> Annual Increase in Carbon (tC): Dry Lowland Forest, ha: Scrub Land | AB1: =CONCATENATE("Annual Increase in Carbon (tC): ",$AB$5,": ",AB6) -> Annual Increase in Carbon (tC): Moist Forest, ha: Araucaria | AC1: =CONCATENATE("Annual Increase in Carbon (tC): ",$AB$5,": ",AC6) -> Annual Increase in Carbon (tC): Moist Forest, ha: Casuarina | AD1: =CONCATENATE("Annual Increase in Carbon (tC): ",$AB$5,": ",AD6) -> Annual Increase in Carbon (tC): Moist Forest, ha: Euc | AE1: =CONCATENATE("Annual Increase in Carbon (tC): ",$AB$5,": ",AE6) -> Annual Increase in Carbon (tC): Moist Forest, ha: Natural | AF1: =CONCATENATE("Annual Increase in Carbon (tC): ",$AB$5,": ",AF6) -> Annual Increase in Carbon (tC): Moist Forest, ha: Tabebuia | AG1: =CONCATENATE("Annual Increase in Carbon (tC): ",$AG$5,": ",AG6) -> Annual Increase in Carbon (tC): Wet Upland Forest, ha: Euc Red | AH1: Annual Increase in Carbon (tC): Wet Upland Forest, ha: Cryptomeria | AI1: Annual Increase in Carbon (tC): Wet Upland Forest, ha: Pine<20y | AJ1: Annual Increase in Carbon (tC): Wet Upland Forest, ha: Pine>20y | AK1: Annual Increase in Carbon (tC): Wet Upland Forest, ha: Araucaria | AL1: Annual Increase in Carbon (tC): Wet Upland Forest, ha: Natural | AM1: =CONCATENATE("Annual Increase in Carbon (tC): ",$AM$5,": ",AM6) -> Annual Increase in Carbon (tC): Mangrove: Forest | AN1: =CONCATENATE("Annual Increase in Carbon (tC): ",$AN$5,": ",AN6) -> Annual Increase in Carbon (tC): Wet Upland Forest Pine: Pine<20y | AO1: =CONCATENATE("Annual Increase in Carbon (tC): ",$AN$5,": ",AO6) -> Annual Increase in Carbon (tC): Wet Upland Forest Pine: Pine>20y | AP1: =CONCATENATE("Total Annual Increase in Carbon (tC) ") -> Total Annual Increase in Carbon (tC) | AQ1: =CONCATENATE("Annual Increase in Carbon (tC): ",$AP$5,": ",AQ6) -> Annual Increase in Carbon (tC): Wet Upland Forest Euc Red<20: | AR1: =CONCATENATE($AR$4,": ",AR5) -> Wood Removal: Wood Removal | AS1: =CONCATENATE($AR$4,": ",AS5) -> Wood Removal: Fuelwood | AT1: Wood Removal: Disturbance | AU1: Wood Removal: Loss Total | AV1: =CONCATENATE($AV$4,": ",$AV$5," (",AV6,")") -> Carbon Seq: Net Increase in C Stock (tC/yr) | AW1: =CONCATENATE($AV$4,": ",$AV$5," (",AW6,")") -> Carbon Seq: Net Increase in C Stock (GgCO2e/yr) | AX1: Area: Dry Lowland Forest, ha : Araucaria | AY1: Area: Dry Lowland Forest, ha : Casuarina | AZ1: Area: Dry Lowland Forest, ha : Euc | BA1: Area: Dry Lowland Forest, ha : Tabebuia | BB1: Area: Dry Lowland Forest, ha : Scrub Land | BC1: Area: Moist Forest, ha : Araucaria | BD1: Area: Moist Forest, ha : Casuarina | BE1: Area: Moist Forest, ha : Euc | BF1: Area: Moist Forest, ha : Natural | BG1: Area: Moist Forest, ha : Tabebuia | BH1: Area: Wet Upland Forest, ha : Euc Red | BI1: Area: Wet Upland Forest, ha : Cryptomeria | BJ1: Area: Wet Upland Forest, ha : Pine<20y | BK1: Area: Wet Upland Forest, ha : Pine>20y | BL1: Area: Wet Upland Forest, ha : Araucaria | BM1: Area: Wet Upland Forest, ha : Natural | BN1: Area: Mangrove : Forest | BO1: Area: Wet Upland Forest Pine<20y : Pine<20y | BP1: Area: Wet Upland Forest Pine<20y : Pine>20y | BQ1: Area: Wet Upland Forest Euc Red<20 : | BR1: Total AREA OF FORESTS BY TYPE (Ha) | BS1: Annual Increase in Carbon (tC): Dry Lowland Forest, ha: Araucaria | BT1: Annual Increase in Carbon (tC): Dry Lowland Forest, ha: Casuarina | BU1: Annual Increase in Carbon (tC): Dry Lowland Forest, ha: Euc | BV1: Annual Increase in Carbon (tC): Dry Lowland Forest, ha: Tabebuia | BW1: Annual Increase in Carbon (tC): Dry Lowland Forest, ha: Scrub Land | BX1: Annual Increase in Carbon (tC): Moist Forest, ha: Araucaria | BY1: Annual Increase in Carbon (tC): Moist Forest, ha: Casuarina | BZ1: Annual Increase in Carbon (tC): Moist Forest, ha: Euc | CA1: Annual Increase in Carbon (tC): Moist Forest, ha: Natural | CB1: Annual Increase in Carbon (tC): Moist Forest, ha: Tabebuia | CC1: Annual Increase in Carbon (tC): Wet Upland Forest, ha: Euc Red | CD1: Annual Increase in Carbon (tC): Wet Upland Forest, ha: Cryptomeria | CE1: Annual Increase in Carbon (tC): Wet Upland Forest, ha: Pine<20y | CF1: Annual Increase in Carbon (tC): Wet Upland Forest, ha: Pine>20y | CG1: Annual Increase in Carbon (tC): Wet Upland Forest, ha: Araucaria | CH1: Annual Increase in Carbon (tC): Wet Upland Forest, ha: Natural | CI1: Annual Increase in Carbon (tC): Mangrove: Forest | CJ1: Annual Increase in Carbon (tC): Wet Upland Forest Pine<20y | CK1: Annual Increase in Carbon (tC): Wet Upland Forest Pine>20y | CL1: Total Annual Increase in Carbon (tC) | CM1: Annual Increase in Carbon (tC): Wet Upland Forest Euc Red<20: | CN1: Wood Removal: Wood Removal | CO1: Wood Removal: Fuelwood | CP1: Wood Removal: Disturbance | CQ1: Wood Removal: Loss Total | CR1: Carbon seq: Net Increase in C Stock (tC/yr) | CS1: Carbon seq: Net Increase in C Stock (GgCO2e/yr) | CT1: Area: Dry Lowland Forest, ha : Araucaria | CU1: Area: Dry Lowland Forest, ha : Casuarina | CV1: Area: Dry Lowland Forest, ha : Euc | CW1: Area: Dry Lowland Forest, ha : Tabebuia | CX1: Area: Dry Lowland Forest, ha : Scrub Land | CY1: Area: Moist Forest, ha : Araucaria | CZ1: Area: Moist Forest, ha : Casuarina | DA1: Area: Moist Forest, ha : Euc | DB1: Area: Moist Forest, ha : Natural | DC1: Area: Moist Forest, ha : Tabebuia | DD1: Area: Wet Upland Forest, ha : Euc Red | DE1: Area: Wet Upland Forest, ha : Cryptomeria | DF1: Area: Wet Upland Forest, ha : Pine<20y | DG1: Area: Wet Upland Forest, ha : Pine>20y | DH1: Area: Wet Upland Forest, ha : Araucaria | DI1: Area: Wet Upland Forest, ha : Natural | DJ1: Area: Mangrove : Forest | DK1: Area: Wet Upland Forest Pine<20y : Pine<20y | DL1: Area: Wet Upland Forest Pine<20y : Pine>20y | DM1: Area: Wet Upland Forest Euc Red<20 : | DN1: Total AREA OF FORESTS BY TYPE (Ha) | DO1: Annual Increase in Carbon (tC): Dry Lowland Forest, ha: Araucaria | DP1: Annual Increase in Carbon (tC): Dry Lowland Forest, ha: Casuarina | DQ1: Annual Increase in Carbon (tC): Dry Lowland Forest, ha: Euc | DR1: Annual Increase in Carbon (tC): Dry Lowland Forest, ha: Tabebuia | DS1: Annual Increase in Carbon (tC): Dry Lowland Forest, ha: Scrub Land | DT1: Annual Increase in Carbon (tC): Moist Forest, ha: Araucaria | DU1: Annual Increase in Carbon (tC): Moist Forest, ha: Casuarina | DV1: Annual Increase in Carbon (tC): Moist Forest, ha: Euc | DW1: Annual Increase in Carbon (tC): Moist Forest, ha: Natural | DX1: Annual Increase in Carbon (tC): Moist Forest, ha: Tabebuia | DY1: Annual Increase in Carbon (tC): Wet Upland Forest, ha: Euc Red | DZ1: Annual Increase in Carbon (tC): Wet Upland Forest, ha: Cryptomeria | EA1: Annual Increase in Carbon (tC): Wet Upland Forest, ha: Pine<20y | EB1: Annual Increase in Carbon (tC): Wet Upland Forest, ha: Pine>20y | EC1: Annual Increase in Carbon (tC): Wet Upland Forest, ha: Araucaria | ED1: Annual Increase in Carbon (tC): Wet Upland Forest, ha: Natural | EE1: Annual Increase in Carbon (tC): Mangrove: Forest | EF1: Annual Increase in Carbon (tC): Wet Upland Forest Pine<20y | EG1: Annual Increase in Carbon (tC): Wet Upland Forest Pine>20y | EH1: Total Annual Increase in Carbon (tC) | EI1: Annual Increase in Carbon (tC): Wet Upland Forest Euc Red<20: | EJ1: Wood Removal: Wood Removal | EK1: Wood Removal: Fuelwood | EL1: Wood Removal: Disturbance | EM1: Wood Removal: Loss Total | EN1: Carbon seq: Net Increase in C Stock (tC/yr) | EO1: Carbon seq: Net Increase in C Stock (GgCO2e/yr)
A2: UD1 | B2: =B7 -> BAU | C2: =C7 -> BAU | D2: =D7 -> BAU | E2: BAU | F2: BAU | G2: BAU | H2: BAU | I2: BAU | J2: BAU | K2: BAU | L2: BAU | M2: BAU | N2: BAU | O2: BAU | P2: BAU | Q2: BAU | R2: BAU | S2: BAU | T2: BAU | U2: BAU | V2: BAU | W2: BAU | X2: BAU | Y2: BAU | Z2: BAU | AA2: BAU | AB2: BAU | AC2: BAU | AD2: BAU | AE2: BAU | AF2: BAU | AG2: BAU | AH2: BAU | AI2: BAU | AJ2: BAU | AK2: BAU | AL2: BAU | AM2: BAU | AN2: BAU | AO2: BAU | AP2: BAU | AQ2: BAU | AR2: BAU | AS2: BAU | AT2: BAU | AU2: BAU | AV2: BAU | AW2: BAU | AX2: SC1 | AY2: SC1 | AZ2: SC1 | BA2: SC1 | BB2: SC1 | BC2: SC1 | BD2: SC1 | BE2: SC1 | BF2: SC1 | BG2: SC1 | BH2: SC1 | BI2: SC1 | BJ2: SC1 | BK2: SC1 | BL2: SC1 | BM2: SC1 | BN2: SC1 | BO2: SC1 | BP2: =BP7 -> SC1 | BQ2: SC1 | BR2: SC1 | BS2: SC1 | BT2: SC1 | BU2: SC1 | BV2: SC1 | BW2: SC1 | BX2: SC1 | BY2: SC1 | BZ2: SC1 | CA2: SC1 | CB2: SC1 | CC2: SC1 | CD2: SC1 | CE2: SC1 | CF2: SC1 | CG2: SC1 | CH2: SC1 | CI2: SC1 | CJ2: SC1 | CK2: SC1 | CL2: SC1 | CM2: SC1 | CN2: SC1 | CO2: SC1 | CP2: SC1 | CQ2: SC1 | CR2: SC1 | CS2: SC1 | CT2: SC2 | CU2: SC2 | CV2: SC2 | CW2: SC2 | CX2: SC2 | CY2: SC2 | CZ2: SC2 | DA2: SC2 | DB2: SC2 | DC2: SC2 | DD2: SC2 | DE2: SC2 | DF2: SC2 | DG2: SC2 | DH2: SC2 | DI2: SC2 | DJ2: SC2 | DK2: SC2 | DL2: SC2 | DM2: SC2 | DN2: SC2 | DO2: SC2 | DP2: SC2 | DQ2: SC2 | DR2: SC2 | DS2: SC2 | DT2: SC2 | DU2: SC2 | DV2: SC2 | DW2: SC2 | DX2: SC2 | DY2: SC2 | DZ2: SC2 | EA2: SC2 | EB2: =EB7 -> SC2 | EC2: SC2 | ED2: SC2 | EE2: SC2 | EF2: SC2 | EG2: SC2 | EH2: SC2 | EI2: SC2 | EJ2: SC2 | EK2: SC2 | EL2: SC2 | EM2: SC2 | EN2: SC2 | EO2: SC2
B3: 1 | C3: 2 | D3: 3 | E3: 4 | F3: 5 | G3: 6 | H3: 7 | I3: 8 | J3: 9 | K3: 10 | L3: 11 | M3: 12 | N3: 13 | O3: 14 | P3: 15 | Q3: 16 | R3: 17 | S3: 18 | T3: 19 | U3: 20 | V3: 21 | W3: 22 | X3: 23 | Y3: 24 | Z3: 25 | AA3: 26 | AB3: 27 | AC3: 28 | AD3: 29 | AE3: 30 | AF3: 31 | AG3: 32 | AH3: 33 | AI3: 34 | AJ3: 35 | AK3: 36 | AL3: 37 | AM3: 38 | AN3: 39 | AO3: 40 | AP3: 41 | AQ3: 42 | AR3: 43 | AS3: 44 | AT3: 45 | AU3: 46 | AV3: 47 | AW3: 48 | AX3: 49 | AY3: 50 | AZ3: 51 | BA3: 52 | BB3: 53 | BC3: 54 | BD3: 55 | BE3: 56 | BF3: 57 | BG3: 58 | BH3: 59 | BI3: 60 | BJ3: 61 | BK3: 62 | BL3: 63 | BM3: 64 | BN3: 65 | BO3: 66 | BP3: 67 | BQ3: 68 | BR3: 69 | BS3: 70 | BT3: 71 | BU3: 72 | BV3: 73 | BW3: 74 | BX3: 75 | BY3: 76 | BZ3: 77 | CA3: 78 | CB3: 79 | CC3: 80 | CD3: 81 | CE3: 82 | CF3: 83 | CG3: 84 | CH3: 85 | CI3: 86 | CJ3: 87 | CK3: 88 | CL3: 89 | CM3: 90 | CN3: 91 | CO3: 92 | CP3: 93 | CQ3: 94 | CR3: 95 | CS3: 96 | CT3: 97 | CU3: 98 | CV3: 99 | CW3: 100 | CX3: 101 | CY3: 102 | CZ3: 103 | DA3: 104 | DB3: 105 | DC3: 106 | DD3: 107 | DE3: 108 | DF3: 109 | DG3: 110 | DH3: 111 | DI3: 112 | DJ3: 113 | DK3: 114 | DL3: 115 | DM3: 116 | DN3: 117 | DO3: 118 | DP3: 119 | DQ3: 120 | DR3: 121 | DS3: 122 | DT3: 123 | DU3: 124 | DV3: 125 | DW3: 126 | DX3: 127 | DY3: 128 | DZ3: 129 | EA3: 130 | EB3: 131 | EC3: 132 | ED3: 133 | EE3: 134 | EF3: 135 | EG3: 136 | EH3: 137 | EI3: 138 | EJ3: 139 | EK3: 140 | EL3: 141 | EM3: 142 | EN3: 143 | EO3: 144
A4: Area of Forests by Type (ha) | W4: Annual Increase in Carbon Stock for the different Tree Species and Forest Type, tC | AR4: Wood Removal | AV4: Carbon Seq | AX4: Area of Forests by Type (ha) | BS4: Annual Increase in Carbon Stock for the different Tree Species and Forest Type, tC | CN4: Wood Removal | CR4: Carbon Seq | CT4: AREA OF FORESTS BY TYPE (Ha) | DO4: ANNUAL INCREASE IN CARBON STOCK FOR THE DIFFERENT TREE SPECIES AND FOREST TYPE, tC | EJ4: Wood Removal | EN4: Carbon Seq
A5: Year | B5: Dry Lowland Forest, ha | G5: Moist Forest, ha | L5: Wet Upland Forest, ha | R5: Mangrove | S5: Wet Upland Forest Pine, ha | U5: Wet Upland Forest Euc Red<20 | V5: Total | W5: Dry Lowland Forest, ha | AB5: Moist Forest, ha | AG5: Wet Upland Forest, ha | AM5: Mangrove | AN5: Wet Upland Forest Pine | AP5: Wet Upland Forest Euc Red<20 | AQ5: Total | AR5: Wood Removal | AS5: Fuelwood | AT5: Disturbance | AU5: Loss Total | AV5: Net Increase in C Stock | AX5: Dry Lowland Forest, ha | BC5: Moist Forest, ha | BH5: Wet Upland Forest, ha | BN5: Mangrove | BO5: Wet Upland Forest Pine | BQ5: Wet Upland Forest Euc Red<20 | BR5: Total | BS5: Dry Lowland Forest, ha | BX5: Moist Forest, ha | CC5: Wet Upland Forest, ha | CI5: Mangrove | CJ5: Wet Upland Forest Pine | CL5: Wet Upland Forest Euc Red<20 | CM5: Total | CN5: Wood Removal | CO5: Fuelwood | CP5: Disturbance | CQ5: Loss Total | CR5: Net Increase in C Stock | CT5: Dry Lowland Forest, ha | CY5: Moist Forest, ha | DD5: Wet Upland Forest, ha | DJ5: Mangrove | DK5: Wet Upland Forest Pine | DM5: Wet Upland Forest Euc Red<20 | DN5: Total | DO5: Dry Lowland Forest, ha | DT5: Moist Forest, ha | DY5: Wet Upland Forest, ha | EE5: Mangrove | EF5: Wet Upland Forest Pine | EH5: Wet Upland Forest Euc Red<20 | EI5: Total | EJ5: Wood Removal | EK5: Fuelwood | EL5: Disturbance | EM5: Loss Total | EN5: Net Increase in C Stock
B6: Araucaria | C6: Casuarina | D6: Euc | E6: Tabebuia | F6: Scrub Land | G6: Araucaria | H6: Casuarina | I6: Euc | J6: Natural | K6: Tabebuia | L6: Euc Red | M6: Cryptomeria | N6: Pine<20y | O6: Pine>20y | P6: Araucaria | Q6: Natural | R6: Forest | S6: Pine<20y | T6: Pine>20y | W6: Araucaria | X6: Casuarina | Y6: Euc | Z6: Tabebuia | AA6: Scrub Land | AB6: Araucaria | AC6: Casuarina | AD6: Euc | AE6: Natural | AF6: Tabebuia | AG6: Euc Red | AH6: Cryptomeria | AI6: Pine<20y | AJ6: Pine>20y | AK6: Araucaria | AL6: Natural | AM6: Forest | AN6: Pine<20y | AO6: Pine>20y | AV6: tC/yr | AW6: GgCO2e/yr | AX6: Araucaria | AY6: Casuarina | AZ6: Euc | BA6: Tabebuia | BB6: Scrub Land | BC6: Araucaria | BD6: Casuarina | BE6: Euc | BF6: Natural | BG6: Tabebuia | BH6: Euc Red | BI6: Cryptomeria | BJ6: Pine<20y | BK6: Pine>20y | BL6: Araucaria | BM6: Natural | BN6: Forest | BO6: Pine<20y | BP6: Pine>20y | BS6: Araucaria | BT6: Casuarina | BU6: Euc | BV6: Tabebuia | BW6: Scrub Land | BX6: Araucaria | BY6: Casuarina | BZ6: Euc | CA6: Natural | CB6: Tabebuia | CC6: Euc Red | CD6: Cryptomeria | CE6: Pine<20y | CF6: Pine>20y | CG6: Araucaria | CH6: Natural | CI6: Forest | CJ6: Pine<20y | CK6: Pine>20y | CR6: tC/yr | CS6: GgCO2e/yr | CT6: Araucaria | CU6: Casuarina | CV6: Euc | CW6: Tabebuia | CX6: Scrub Land | CY6: Araucaria | CZ6: Casuarina | DA6: Euc | DB6: Natural | DC6: Tabebuia | DD6: Euc Red | DE6: Cryptomeria | DF6: Pine<20y | DG6: Pine>20y | DH6: Araucaria | DI6: Natural | DJ6: Forest | DK6: Pine<20y | DL6: Pine>20y | DO6: Araucaria | DP6: Casuarina | DQ6: Euc | DR6: Tabebuia | DS6: Scrub Land | DT6: Araucaria | DU6: Casuarina | DV6: Euc | DW6: Natural | DX6: Tabebuia | DY6: Euc Red | DZ6: Cryptomeria | EA6: Pine<20y | EB6: Pine>20y | EC6: Araucaria | ED6: Natural | EE6: Forest | EF6: Pine<20y | EG6: Pine>20y | EN6: tC/yr | EO6: GgCO2e/yr
A7: BAU | B7: BAU | C7: BAU | D7: BAU | E7: BAU | F7: BAU | G7: BAU | H7: BAU | I7: BAU | J7: BAU | K7: BAU | L7: BAU | M7: BAU | N7: BAU | O7: BAU | P7: BAU | Q7: BAU | R7: BAU | S7: BAU | T7: BAU | U7: BAU | V7: BAU | W7: BAU | X7: BAU | Y7: BAU | Z7: BAU | AA7: BAU | AB7: BAU | AC7: BAU | AD7: BAU | AE7: BAU | AF7: BAU | AG7: BAU | AH7: BAU | AI7: BAU | AJ7: BAU | AK7: BAU | AL7: BAU | AM7: BAU | AN7: BAU | AO7: BAU | AP7: BAU | AQ7: BAU | AR7: BAU | AS7: BAU | AT7: BAU | AU7: BAU | AV7: BAU | AW7: BAU | AX7: SC1 | AY7: SC1 | AZ7: SC1 | BA7: SC1 | BB7: SC1 | BC7: SC1 | BD7: SC1 | BE7: SC1 | BF7: SC1 | BG7: SC1 | BH7: SC1 | BI7: SC1 | BJ7: SC1 | BK7: SC1 | BL7: SC1 | BM7: SC1 | BN7: SC1 | BO7: SC1 | BP7: SC1 | BQ7: SC1 | BR7: SC1 | BS7: SC1 | BT7: SC1 | BU7: SC1 | BV7: SC1 | BW7: SC1 | BX7: SC1 | BY7: SC1 | BZ7: SC1 | CA7: SC1 | CB7: SC1 | CC7: SC1 | CD7: SC1 | CE7: SC1 | CF7: SC1 | CG7: SC1 | CH7: SC1 | CI7: SC1 | CJ7: SC1 | CK7: SC1 | CL7: SC1 | CM7: SC1 | CN7: SC1 | CO7: SC1 | CP7: SC1 | CQ7: SC1 | CR7: SC1 | CS7: SC1 | CT7: SC2 | CU7: SC2 | CV7: SC2 | CW7: SC2 | CX7: SC2 | CY7: SC2 | CZ7: SC2 | DA7: SC2 | DB7: SC2 | DC7: SC2 | DD7: SC2 | DE7: SC2 | DF7: SC2 | DG7: SC2 | DH7: SC2 | DI7: SC2 | DJ7: SC2 | DK7: SC2 | DL7: SC2 | DM7: SC2 | DN7: SC2 | DO7: SC2 | DP7: SC2 | DQ7: SC2 | DR7: SC2 | DS7: SC2 | DT7: SC2 | DU7: SC2 | DV7: SC2 | DW7: SC2 | DX7: SC2 | DY7: SC2 | DZ7: SC2 | EA7: SC2 | EB7: SC2 | EC7: SC2 | ED7: SC2 | EE7: SC2 | EF7: SC2 | EG7: SC2 | EH7: SC2 | EI7: SC2 | EJ7: SC2 | EK7: SC2 | EL7: SC2 | EM7: SC2 | EN7: SC2 | EO7: SC2
A8: 2006 | B8: ='6. UD1 Assumptions'!C7 -> 408 | C8: ='6. UD1 Assumptions'!D7 -> 116 | D8: ='6. UD1 Assumptions'!E7 -> 2389 | E8: ='6. UD1 Assumptions'!F7 -> 710 | F8: ='6. UD1 Assumptions'!G7 -> 12276 | G8: ='6. UD1 Assumptions'!I7 -> 176 | H8: ='6. UD1 Assumptions'!J7 -> 110 | I8: ='6. UD1 Assumptions'!K7 -> 889 | J8: ='6. UD1 Assumptions'!L7 -> 5085 | K8: ='6. UD1 Assumptions'!M7 -> 139 | L8: ='6. UD1 Assumptions'!O7 -> 546 | M8: ='6. UD1 Assumptions'!P7 -> 967 | N8: ='6. UD1 Assumptions'!Q7 -> 2684 | O8: ='6. UD1 Assumptions'!R7 -> 5478 | P8: ='6. UD1 Assumptions'!S7 -> 62 | Q8: ='6. UD1 Assumptions'!T7 -> 15146 | R8: ='6. UD1 Assumptions'!U7 -> 61 | S8: ='6. UD1 Assumptions'!W7 -> 0 | T8: ='6. UD1 Assumptions'!X7 -> 0 | U8: ='6. UD1 Assumptions'!Y7 -> 0 | V8: =SUM(B8:U8) -> 47242 | W8: ='UD1 CALC_Cstock'!B12 -> 2454.528 | X8: ='UD1 CALC_Cstock'!C12 -> 697.856 | Y8: ='UD1 CALC_Cstock'!D12 -> 18683.8912 | Z8: ='UD1 CALC_Cstock'!E12 -> 4271.36 | AA8: ='UD1 CALC_Cstock'!F12 -> 13293.43488 | AB8: ='UD1 CALC_Cstock'!G12 -> 923.1552 | AC8: ='UD1 CALC_Cstock'!H12 -> 576.972 | AD8: ='UD1 CALC_Cstock'!I12 -> 4662.9828 | AE8: ='UD1 CALC_Cstock'!J12 -> 3728.322 | AF8: ='UD1 CALC_Cstock'!K12 -> 729.0828 | AG8: ='UD1 CALC_Cstock'!L12 -> 2109.4164 | AH8: ='UD1 CALC_Cstock'!M12 -> 3735.9078 | AI8: ='UD1 CALC_Cstock'!N12 -> 10369.3656 | AJ8: ='UD1 CALC_Cstock'!O12 -> 16225.50732 | AK8: ='UD1 CALC_Cstock'!P12 -> 239.5308 | AL8: ='UD1 CALC_Cstock'!Q12 -> 30232.77914 | AM8: ='UD1 CALC_Cstock'!R12 -> 401.38 | AN8: ='UD1 CALC_Cstock'!S12 -> 0 | AO8: ='UD1 CALC_Cstock'!T12 -> 0 | AP8: ='UD1 CALC_Cstock'!U12 -> 0 | AQ8: =SUM(W8:AP8) -> 113335.4719 | AR8: ='UD1 CALC_Cstock'!X12 -> 4282.855777 | AS8: ='UD1 CALC_Cstock'!Z12 -> 3133.531454 | AT8: ='UD1 CALC_Cstock'!AB12 -> 1965.1264 | AU8: =SUM(AR8:AT8) -> 9381.513631 | AV8: =AQ8-AU8 -> 103953.9583 | AW8: =-AV8*44/12/1000 -> -381.1645138 | AX8: ='6. UD1 Assumptions'!C37 -> 408 | AY8: ='6. UD1 Assumptions'!D37 -> 116 | AZ8: ='6. UD1 Assumptions'!E37 -> 2389 | BA8: ='6. UD1 Assumptions'!F37 -> 710 | BB8: ='6. UD1 Assumptions'!G37 -> 12276 | BC8: ='6. UD1 Assumptions'!I37 -> 176 | BD8: ='6. UD1 Assumptions'!J37 -> 110 | BE8: ='6. UD1 Assumptions'!K37 -> 889 | BF8: ='6. UD1 Assumptions'!L37 -> 5085 | BG8: ='6. UD1 Assumptions'!M37 -> 139 | BH8: ='6. UD1 Assumptions'!O37 -> 546 | BI8: ='6. UD1 Assumptions'!P37 -> 967 | BJ8: ='6. UD1 Assumptions'!Q37 -> 2684 | BK8: ='6. UD1 Assumptions'!R37 -> 5478 | BL8: ='6. UD1 Assumptions'!S37 -> 62 | BM8: ='6. UD1 Assumptions'!T37 -> 15146 | BN8: ='6. UD1 Assumptions'!U37 -> 61 | BO8: ='6. UD1 Assumptions'!W37 -> 0 | BP8: ='6. UD1 Assumptions'!X37 -> 0 | BQ8: ='6. UD1 Assumptions'!Y37 -> 0 | BR8: =SUM(AX8:BQ8) -> 47242 | BS8: ='UD1 CALC_Cstock'!B45 -> 2454.528 | BT8: ='UD1 CALC_Cstock'!C45 -> 697.856 | BU8: ='UD1 CALC_Cstock'!D45 -> 18683.8912 | BV8: ='UD1 CALC_Cstock'!E45 -> 4271.36 | BW8: ='UD1 CALC_Cstock'!F45 -> 13293.43488 | BX8: ='UD1 CALC_Cstock'!G45 -> 923.1552 | BY8: ='UD1 CALC_Cstock'!H45 -> 576.972 | BZ8: ='UD1 CALC_Cstock'!I45 -> 4662.9828 | CA8: ='UD1 CALC_Cstock'!J45 -> 3728.322 | CB8: ='UD1 CALC_Cstock'!K45 -> 729.0828 | CC8: ='UD1 CALC_Cstock'!L45 -> 2109.4164 | CD8: ='UD1 CALC_Cstock'!M45 -> 3735.9078 | CE8: ='UD1 CALC_Cstock'!N45 -> 10369.3656 | CF8: ='UD1 CALC_Cstock'!O45 -> 16225.50732 | CG8: ='UD1 CALC_Cstock'!P45 -> 239.5308 | CH8: ='UD1 CALC_Cstock'!Q45 -> 30232.77914 | CI8: ='UD1 CALC_Cstock'!R45 -> 401.38 | CJ8: ='UD1 CALC_Cstock'!S45 -> 0 | CK8: ='UD1 CALC_Cstock'!T45 -> 0 | CL8: ='UD1 CALC_Cstock'!U45 -> 0 | CM8: =SUM(BS8:CL8) -> 113335.4719 | CN8: ='UD1 CALC_Cstock'!X45 -> 4282.855777 | CO8: ='UD1 CALC_Cstock'!Z45 -> 3133.531454 | CP8: ='UD1 CALC_Cstock'!AB45 -> 1965.1264 | CQ8: =SUM(CN8:CP8) -> 9381.513631 | CR8: =CM8-CQ8 -> 103953.9583 | CS8: =-CR8*44/12/1000 -> -381.1645138 | CT8: ='6. UD1 Assumptions'!C67 -> 408 | CU8: ='6. UD1 Assumptions'!D67 -> 116 | CV8: ='6. UD1 Assumptions'!E67 -> 2389 | CW8: ='6. UD1 Assumptions'!F67 -> 710 | CX8: ='6. UD1 Assumptions'!G67 -> 12276 | CY8: ='6. UD1 Assumptions'!I67 -> 176 | CZ8: ='6. UD1 Assumptions'!J67 -> 110 | DA8: ='6. UD1 Assumptions'!K67 -> 889 | DB8: ='6. UD1 Assumptions'!L67 -> 5085 | DC8: ='6. UD1 Assumptions'!M67 -> 139 | DD8: ='6. UD1 Assumptions'!O67 -> 546 | DE8: ='6. UD1 Assumptions'!P67 -> 967 | DF8: ='6. UD1 Assumptions'!Q67 -> 2684 | DG8: ='6. UD1 Assumptions'!R67 -> 5478 | DH8: ='6. UD1 Assumptions'!S67 -> 62 | DI8: ='6. UD1 Assumptions'!T67 -> 15146 | DJ8: ='6. UD1 Assumptions'!U67 -> 61 | DK8: ='6. UD1 Assumptions'!W67 -> 0 | DL8: ='6. UD1 Assumptions'!X67 -> 0 | DM8: ='6. UD1 Assumptions'!Y67 -> 0 | DN8: =SUM(CT8:DM8) -> 47242 | DO8: ='UD1 CALC_Cstock'!B79 -> 2454.528 | DP8: ='UD1 CALC_Cstock'!C79 -> 697.856 | DQ8: ='UD1 CALC_Cstock'!D79 -> 18683.8912 | DR8: ='UD1 CALC_Cstock'!E79 -> 4271.36 | DS8: ='UD1 CALC_Cstock'!F79 -> 13293.43488 | DT8: ='UD1 CALC_Cstock'!G79 -> 923.1552 | DU8: ='UD1 CALC_Cstock'!H79 -> 576.972 | DV8: ='UD1 CALC_Cstock'!I79 -> 4662.9828 | DW8: ='UD1 CALC_Cstock'!J79 -> 3728.322 | DX8: ='UD1 CALC_Cstock'!K79 -> 729.0828 | DY8: ='UD1 CALC_Cstock'!L79 -> 2109.4164 | DZ8: ='UD1 CALC_Cstock'!M79 -> 3735.9078 | EA8: ='UD1 CALC_Cstock'!N79 -> 10369.3656 | EB8: ='UD1 CALC_Cstock'!O79 -> 16225.50732 | EC8: ='UD1 CALC_Cstock'!P79 -> 239.5308 | ED8: ='UD1 CALC_Cstock'!Q79 -> 30232.77914 | EE8: ='UD1 CALC_Cstock'!R79 -> 401.38 | EF8: ='UD1 CALC_Cstock'!S79 -> 0 | EG8: ='UD1 CALC_Cstock'!T79 -> 0 | EH8: ='UD1 CALC_Cstock'!U79 -> 0 | EI8: =SUM(DO8:EH8) -> 113335.4719 | EJ8: ='UD1 CALC_Cstock'!X79 -> 4282.855777 | EK8: ='UD1 CALC_Cstock'!Z79 -> 3133.531454 | EL8: ='UD1 CALC_Cstock'!AB79 -> 1965.1264 | EM8: =SUM(EJ8:EL8) -> 9381.513631 | EN8: =EI8-EM8 -> 103953.9583 | EO8: =-EN8*44/12/1000 -> -381.1645138
A9: 2007 | B9: ='6. UD1 Assumptions'!C8 -> 384 | C9: ='6. UD1 Assumptions'!D8 -> 112 | D9: ='6. UD1 Assumptions'!E8 -> 2410 | E9: ='6. UD1 Assumptions'!F8 -> 710 | F9: ='6. UD1 Assumptions'!G8 -> 12276 | G9: ='6. UD1 Assumptions'!I8 -> 176 | H9: ='6. UD1 Assumptions'!J8 -> 110 | I9: ='6. UD1 Assumptions'!K8 -> 889 | J9: ='6. UD1 Assumptions'!L8 -> 5085 | K9: ='6. UD1 Assumptions'!M8 -> 139 | L9: ='6. UD1 Assumptions'!O8 -> 546 | M9: ='6. UD1 Assumptions'!P8 -> 967 | N9: ='6. UD1 Assumptions'!Q8 -> 2734 | O9: ='6. UD1 Assumptions'!R8 -> 5461 | P9: ='6. UD1 Assumptions'!S8 -> 62 | Q9: ='6. UD1 Assumptions'!T8 -> 15113 | R9: ='6. UD1 Assumptions'!U8 -> 75 | S9: ='6. UD1 Assumptions'!W8 -> 0 | T9: ='6. UD1 Assumptions'!X8 -> 0 | U9: ='6. UD1 Assumptions'!Y8 -> 0 | V9: =SUM(B9:U9) -> 47249 | W9: ='UD1 CALC_Cstock'!B13 -> 2310.144 | X9: ='UD1 CALC_Cstock'!C13 -> 673.792 | Y9: ='UD1 CALC_Cstock'!D13 -> 18848.128 | Z9: ='UD1 CALC_Cstock'!E13 -> 4271.36 | AA9: ='UD1 CALC_Cstock'!F13 -> 13293.43488 | AB9: ='UD1 CALC_Cstock'!G13 -> 923.1552 | AC9: ='UD1 CALC_Cstock'!H13 -> 576.972 | AD9: ='UD1 CALC_Cstock'!I13 -> 4662.9828 | AE9: ='UD1 CALC_Cstock'!J13 -> 3728.322 | AF9: ='UD1 CALC_Cstock'!K13 -> 729.0828 | AG9: ='UD1 CALC_Cstock'!L13 -> 2109.4164 | AH9: ='UD1 CALC_Cstock'!M13 -> 3735.9078 | AI9: ='UD1 CALC_Cstock'!N13 -> 10562.5356 | AJ9: ='UD1 CALC_Cstock'!O13 -> 16175.15434 | AK9: ='UD1 CALC_Cstock'!P13 -> 239.5308 | AL9: ='UD1 CALC_Cstock'!Q13 -> 30166.90817 | AM9: ='UD1 CALC_Cstock'!R13 -> 493.5 | AN9: ='UD1 CALC_Cstock'!S13 -> 0 | AO9: ='UD1 CALC_Cstock'!T13 -> 0 | AP9: ='UD1 CALC_Cstock'!U13 -> 0 | AQ9: =SUM(W9:AP9) -> 113500.3268 | AR9: ='UD1 CALC_Cstock'!X13 -> 3483.019647 | AS9: ='UD1 CALC_Cstock'!Z13 -> 3656.657998 | AT9: ='UD1 CALC_Cstock'!AB13 -> 772.670976 | AU9: =SUM(AR9:AT9) -> 7912.348621 | AV9: =AQ9-AU9 -> 105587.9782 | AW9: =-AV9*44/12/1000 -> -387.15592 | AX9: ='6. UD1 Assumptions'!C38 -> 384 | AY9: ='6. UD1 Assumptions'!D38 -> 112 | AZ9: ='6. UD1 Assumptions'!E38 -> 2410 | BA9: ='6. UD1 Assumptions'!F38 -> 710 | BB9: ='6. UD1 Assumptions'!G38 -> 12276 | BC9: ='6. UD1 Assumptions'!I38 -> 176 | BD9: ='6. UD1 Assumptions'!J38 -> 110 | BE9: ='6. UD1 Assumptions'!K38 -> 889 | BF9: ='6. UD1 Assumptions'!L38 -> 5085 | BG9: ='6. UD1 Assumptions'!M38 -> 139 | BH9: ='6. UD1 Assumptions'!O38 -> 546 | BI9: ='6. UD1 Assumptions'!P38 -> 967 | BJ9: ='6. UD1 Assumptions'!Q38 -> 2734 | BK9: ='6. UD1 Assumptions'!R38 -> 5461 | BL9: ='6. UD1 Assumptions'!S38 -> 62 | BM9: ='6. UD1 Assumptions'!T38 -> 15113 | BN9: ='6. UD1 Assumptions'!U38 -> 75 | BO9: ='6. UD1 Assumptions'!W38 -> 0 | BP9: ='6. UD1 Assumptions'!X38 -> 0 | BQ9: ='6. UD1 Assumptions'!Y38 -> 0 | BR9: =SUM(AX9:BQ9) -> 47249 | BS9: ='UD1 CALC_Cstock'!B46 -> 2310.144 | BT9: ='UD1 CALC_Cstock'!C46 -> 673.792 | BU9: ='UD1 CALC_Cstock'!D46 -> 18848.128 | BV9: ='UD1 CALC_Cstock'!E46 -> 4271.36 | BW9: ='UD1 CALC_Cstock'!F46 -> 13293.43488 | BX9: ='UD1 CALC_Cstock'!G46 -> 923.1552 | BY9: ='UD1 CALC_Cstock'!H46 -> 576.972 | BZ9: ='UD1 CALC_Cstock'!I46 -> 4662.9828 | CA9: ='UD1 CALC_Cstock'!J46 -> 3728.322 | CB9: ='UD1 CALC_Cstock'!K46 -> 729.0828 | CC9: ='UD1 CALC_Cstock'!L46 -> 2109.4164 | CD9: ='UD1 CALC_Cstock'!M46 -> 3735.9078 | CE9: ='UD1 CALC_Cstock'!N46 -> 10562.5356 | CF9: ='UD1 CALC_Cstock'!O46 -> 16175.15434 | CG9: ='UD1 CALC_Cstock'!P46 -> 239.5308 | CH9: ='UD1 CALC_Cstock'!Q46 -> 30166.90817 | CI9: ='UD1 CALC_Cstock'!R46 -> 493.5 | CJ9: ='UD1 CALC_Cstock'!S46 -> 0 | CK9: ='UD1 CALC_Cstock'!T46 -> 0 | CL9: ='UD1 CALC_Cstock'!U46 -> 0 | CM9: =SUM(BS9:CL9) -> 113500.3268 | CN9: ='UD1 CALC_Cstock'!X46 -> 3483.019647 | CO9: ='UD1 CALC_Cstock'!Z46 -> 3656.657998 | CP9: ='UD1 CALC_Cstock'!AB46 -> 772.670976 | CQ9: =SUM(CN9:CP9) -> 7912.348621 | CR9: =CM9-CQ9 -> 105587.9782 | CS9: =-CR9*44/12/1000 -> -387.15592 | CT9: ='6. UD1 Assumptions'!C68 -> 384 | CU9: ='6. UD1 Assumptions'!D68 -> 112 | CV9: ='6. UD1 Assumptions'!E68 -> 2410 | CW9: ='6. UD1 Assumptions'!F68 -> 710 | CX9: ='6. UD1 Assumptions'!G68 -> 12276 | CY9: ='6. UD1 Assumptions'!I68 -> 176 | CZ9: ='6. UD1 Assumptions'!J68 -> 110 | DA9: ='6. UD1 Assumptions'!K68 -> 889 | DB9: ='6. UD1 Assumptions'!L68 -> 5085 | DC9: ='6. UD1 Assumptions'!M68 -> 139 | DD9: ='6. UD1 Assumptions'!O68 -> 546 | DE9: ='6. UD1 Assumptions'!P68 -> 967 | DF9: ='6. UD1 Assumptions'!Q68 -> 2734 | DG9: ='6. UD1 Assumptions'!R68 -> 5461 | DH9: ='6. UD1 Assumptions'!S68 -> 62 | DI9: ='6. UD1 Assumptions'!T68 -> 15113 | DJ9: ='6. UD1 Assumptions'!U68 -> 75 | DK9: ='6. UD1 Assumptions'!W68 -> 0 | DL9: ='6. UD1 Assumptions'!X68 -> 0 | DM9: ='6. UD1 Assumptions'!Y68 -> 0 | DN9: =SUM(CT9:DM9) -> 47249 | DO9: ='UD1 CALC_Cstock'!B80 -> 2310.144 | DP9: ='UD1 CALC_Cstock'!C80 -> 673.792 | DQ9: ='UD1 CALC_Cstock'!D80 -> 18848.128 | DR9: ='UD1 CALC_Cstock'!E80 -> 4271.36 | DS9: ='UD1 CALC_Cstock'!F80 -> 13293.43488 | DT9: ='UD1 CALC_Cstock'!G80 -> 923.1552 | DU9: ='UD1 CALC_Cstock'!H80 -> 576.972 | DV9: ='UD1 CALC_Cstock'!I80 -> 4662.9828 | DW9: ='UD1 CALC_Cstock'!J80 -> 3728.322 | DX9: ='UD1 CALC_Cstock'!K80 -> 729.0828 | DY9: ='UD1 CALC_Cstock'!L80 -> 2109.4164 | DZ9: ='UD1 CALC_Cstock'!M80 -> 3735.9078 | EA9: ='UD1 CALC_Cstock'!N80 -> 10562.5356 | EB9: ='UD1 CALC_Cstock'!O80 -> 16175.15434 | EC9: ='UD1 CALC_Cstock'!P80 -> 239.5308 | ED9: ='UD1 CALC_Cstock'!Q80 -> 30166.90817 | EE9: ='UD1 CALC_Cstock'!R80 -> 493.5 | EF9: ='UD1 CALC_Cstock'!S80 -> 0 | EG9: ='UD1 CALC_Cstock'!T80 -> 0 | EH9: ='UD1 CALC_Cstock'!U80 -> 0 | EI9: =SUM(DO9:EH9) -> 113500.3268 | EJ9: ='UD1 CALC_Cstock'!X80 -> 3483.019647 | EK9: ='UD1 CALC_Cstock'!Z80 -> 3656.657998 | EL9: ='UD1 CALC_Cstock'!AB80 -> 772.670976 | EM9: =SUM(EJ9:EL9) -> 7912.348621 | EN9: =EI9-EM9 -> 105587.9782 | EO9: =-EN9*44/12/1000 -> -387.15592
A10: 2008 | B10: ='6. UD1 Assumptions'!C9 -> 384 | C10: ='6. UD1 Assumptions'!D9 -> 112 | D10: ='6. UD1 Assumptions'!E9 -> 2413 | E10: ='6. UD1 Assumptions'!F9 -> 710 | F10: ='6. UD1 Assumptions'!G9 -> 12254 | G10: ='6. UD1 Assumptions'!I9 -> 176 | H10: ='6. UD1 Assumptions'!J9 -> 110 | I10: ='6. UD1 Assumptions'!K9 -> 889 | J10: ='6. UD1 Assumptions'!L9 -> 5085 | K10: ='6. UD1 Assumptions'!M9 -> 139 | L10: ='6. UD1 Assumptions'!O9 -> 550 | M10: ='6. UD1 Assumptions'!P9 -> 967 | N10: ='6. UD1 Assumptions'!Q9 -> 2533 | O10: ='6. UD1 Assumptions'!R9 -> 5632 | P10: ='6. UD1 Assumptions'!S9 -> 62 | Q10: ='6. UD1 Assumptions'!T9 -> 15143 | R10: ='6. UD1 Assumptions'!U9 -> 84 | S10: ='6. UD1 Assumptions'!W9 -> 0 | T10: ='6. UD1 Assumptions'!X9 -> 0 | U10: ='6. UD1 Assumptions'!Y9 -> 0 | V10: 47243 | W10: ='UD1 CALC_Cstock'!B14 -> 2310.144 | X10: ='UD1 CALC_Cstock'!C14 -> 673.792 | Y10: ='UD1 CALC_Cstock'!D14 -> 18871.5904 | Z10: ='UD1 CALC_Cstock'!E14 -> 4271.36 | AA10: ='UD1 CALC_Cstock'!F14 -> 13269.61152 | AB10: ='UD1 CALC_Cstock'!G14 -> 923.1552 | AC10: ='UD1 CALC_Cstock'!H14 -> 576.972 | AD10: ='UD1 CALC_Cstock'!I14 -> 4662.9828 | AE10: ='UD1 CALC_Cstock'!J14 -> 3728.322 | AF10: ='UD1 CALC_Cstock'!K14 -> 729.0828 | AG10: ='UD1 CALC_Cstock'!L14 -> 2124.87 | AH10: ='UD1 CALC_Cstock'!M14 -> 3735.9078 | AI10: ='UD1 CALC_Cstock'!N14 -> 9785.9922 | AJ10: ='UD1 CALC_Cstock'!O14 -> 16681.64608 | AK10: ='UD1 CALC_Cstock'!P14 -> 239.5308 | AL10: ='UD1 CALC_Cstock'!Q14 -> 30226.79087 | AM10: ='UD1 CALC_Cstock'!R14 -> 552.72 | AN10: ='UD1 CALC_Cstock'!S14 -> 0 | AO10: ='UD1 CALC_Cstock'!T14 -> 0 | AP10: ='UD1 CALC_Cstock'!U14 -> 0 | AQ10: 113364.4705 | AR10: ='UD1 CALC_Cstock'!X14 -> 2823.059042 | AS10: ='UD1 CALC_Cstock'!Z14 -> 2673.73083 | AT10: ='UD1 CALC_Cstock'!AB14 -> 568.63232 | AU10: 6065.422192 | AV10: 107299.0483 | AW10: -393.4298437 | AX10: ='6. UD1 Assumptions'!C39 -> 384 | AY10: ='6. UD1 Assumptions'!D39 -> 112 | AZ10: ='6. UD1 Assumptions'!E39 -> 2413 | BA10: ='6. UD1 Assumptions'!F39 -> 710 | BB10: ='6. UD1 Assumptions'!G39 -> 12254 | BC10: ='6. UD1 Assumptions'!I39 -> 176 | BD10: ='6. UD1 Assumptions'!J39 -> 110 | BE10: ='6. UD1 Assumptions'!K39 -> 889 | BF10: ='6. UD1 Assumptions'!L39 -> 5085 | BG10: ='6. UD1 Assumptions'!M39 -> 139 | BH10: ='6. UD1 Assumptions'!O39 -> 550 | BI10: ='6. UD1 Assumptions'!P39 -> 967 | BJ10: ='6. UD1 Assumptions'!Q39 -> 2533 | BK10: ='6. UD1 Assumptions'!R39 -> 5632 | BL10: ='6. UD1 Assumptions'!S39 -> 62 | BM10: ='6. UD1 Assumptions'!T39 -> 15143 | BN10: ='6. UD1 Assumptions'!U39 -> 84 | BO10: ='6. UD1 Assumptions'!W39 -> 0 | BP10: ='6. UD1 Assumptions'!X39 -> 0 | BQ10: ='6. UD1 Assumptions'!Y39 -> 0 | BR10: 47243 | BS10: ='UD1 CALC_Cstock'!B47 -> 2310.144 | BT10: ='UD1 CALC_Cstock'!C47 -> 673.792 | BU10: ='UD1 CALC_Cstock'!D47 -> 18871.5904 | BV10: ='UD1 CALC_Cstock'!E47 -> 4271.36 | BW10: ='UD1 CALC_Cstock'!F47 -> 13269.61152 | BX10: ='UD1 CALC_Cstock'!G47 -> 923.1552 | BY10: ='UD1 CALC_Cstock'!H47 -> 576.972 | BZ10: ='UD1 CALC_Cstock'!I47 -> 4662.9828 | CA10: ='UD1 CALC_Cstock'!J47 -> 3728.322 | CB10: ='UD1 CALC_Cstock'!K47 -> 729.0828 | CC10: ='UD1 CALC_Cstock'!L47 -> 2124.87 | CD10: ='UD1 CALC_Cstock'!M47 -> 3735.9078 | CE10: ='UD1 CALC_Cstock'!N47 -> 9785.9922 | CF10: ='UD1 CALC_Cstock'!O47 -> 16681.64608 | CG10: ='UD1 CALC_Cstock'!P47 -> 239.5308 | CH10: ='UD1 CALC_Cstock'!Q47 -> 30226.79087 | CI10: ='UD1 CALC_Cstock'!R47 -> 552.72 | CJ10: ='UD1 CALC_Cstock'!S47 -> 0 | CK10: ='UD1 CALC_Cstock'!T47 -> 0 | CL10: ='UD1 CALC_Cstock'!U47 -> 0 | CM10: 113364.4705 | CN10: ='UD1 CALC_Cstock'!X47 -> 2823.059042 | CO10: ='UD1 CALC_Cstock'!Z47 -> 2673.73083 | CP10: ='UD1 CALC_Cstock'!AB47 -> 568.63232 | CQ10: 6065.422192 | CR10: 107299.0483 | CS10: -393.4298437 | CT10: ='6. UD1 Assumptions'!C69 -> 384 | CU10: ='6. UD1 Assumptions'!D69 -> 112 | CV10: ='6. UD1 Assumptions'!E69 -> 2413 | CW10: ='6. UD1 Assumptions'!F69 -> 710 | CX10: ='6. UD1 Assumptions'!G69 -> 12254 | CY10: ='6. UD1 Assumptions'!I69 -> 176 | CZ10: ='6. UD1 Assumptions'!J69 -> 110 | DA10: ='6. UD1 Assumptions'!K69 -> 889 | DB10: ='6. UD1 Assumptions'!L69 -> 5085 | DC10: ='6. UD1 Assumptions'!M69 -> 139 | DD10: ='6. UD1 Assumptions'!O69 -> 550 | DE10: ='6. UD1 Assumptions'!P69 -> 967 | DF10: ='6. UD1 Assumptions'!Q69 -> 2533 | DG10: ='6. UD1 Assumptions'!R69 -> 5632 | DH10: ='6. UD1 Assumptions'!S69 -> 62 | DI10: ='6. UD1 Assumptions'!T69 -> 15143 | DJ10: ='6. UD1 Assumptions'!U69 -> 84 | DK10: ='6. UD1 Assumptions'!W69 -> 0 | DL10: ='6. UD1 Assumptions'!X69 -> 0 | DM10: ='6. UD1 Assumptions'!Y69 -> 0 | DN10: 47243 | DO10: ='UD1 CALC_Cstock'!B81 -> 2310.144 | DP10: ='UD1 CALC_Cstock'!C81 -> 673.792 | DQ10: ='UD1 CALC_Cstock'!D81 -> 18871.5904 | DR10: ='UD1 CALC_Cstock'!E81 -> 4271.36 | DS10: ='UD1 CALC_Cstock'!F81 -> 13269.61152 | DT10: ='UD1 CALC_Cstock'!G81 -> 923.1552 | DU10: ='UD1 CALC_Cstock'!H81 -> 576.972 | DV10: ='UD1 CALC_Cstock'!I81 -> 4662.9828 | DW10: ='UD1 CALC_Cstock'!J81 -> 3728.322 | DX10: ='UD1 CALC_Cstock'!K81 -> 729.0828 | DY10: ='UD1 CALC_Cstock'!L81 -> 2124.87 | DZ10: ='UD1 CALC_Cstock'!M81 -> 3735.9078 | EA10: ='UD1 CALC_Cstock'!N81 -> 9785.9922 | EB10: ='UD1 CALC_Cstock'!O81 -> 16681.64608 | EC10: ='UD1 CALC_Cstock'!P81 -> 239.5308 | ED10: ='UD1 CALC_Cstock'!Q81 -> 30226.79087 | EE10: ='UD1 CALC_Cstock'!R81 -> 552.72 | EF10: ='UD1 CALC_Cstock'!S81 -> 0 | EG10: ='UD1 CALC_Cstock'!T81 -> 0 | EH10: ='UD1 CALC_Cstock'!U81 -> 0 | EI10: 113364.4705 | EJ10: ='UD1 CALC_Cstock'!X81 -> 2823.059042 | EK10: ='UD1 CALC_Cstock'!Z81 -> 2673.73083 | EL10: ='UD1 CALC_Cstock'!AB81 -> 568.63232 | EM10: 6065.422192 | EN10: 107299.0483 | EO10: -393.4298437
A11: 2009 | B11: ='6. UD1 Assumptions'!C10 -> 384 | C11: ='6. UD1 Assumptions'!D10 -> 112 | D11: ='6. UD1 Assumptions'!E10 -> 2413 | E11: ='6. UD1 Assumptions'!F10 -> 710 | F11: ='6. UD1 Assumptions'!G10 -> 12254 | G11: ='6. UD1 Assumptions'!I10 -> 176 | H11: ='6. UD1 Assumptions'!J10 -> 110 | I11: ='6. UD1 Assumptions'!K10 -> 889 | J11: ='6. UD1 Assumptions'!L10 -> 5085 | K11: ='6. UD1 Assumptions'!M10 -> 139 | L11: ='6. UD1 Assumptions'!O10 -> 550 | M11: ='6. UD1 Assumptions'!P10 -> 967 | N11: ='6. UD1 Assumptions'!Q10 -> 2476 | O11: ='6. UD1 Assumptions'!R10 -> 5721 | P11: ='6. UD1 Assumptions'!S10 -> 62 | Q11: ='6. UD1 Assumptions'!T10 -> 15111 | R11: ='6. UD1 Assumptions'!U10 -> 98 | S11: ='6. UD1 Assumptions'!W10 -> 0 | T11: ='6. UD1 Assumptions'!X10 -> 0 | U11: ='6. UD1 Assumptions'!Y10 -> 0 | V11: 47257 | W11: ='UD1 CALC_Cstock'!B15 -> 2310.144 | X11: ='UD1 CALC_Cstock'!C15 -> 673.792 | Y11: ='UD1 CALC_Cstock'!D15 -> 18871.5904 | Z11: ='UD1 CALC_Cstock'!E15 -> 4271.36 | AA11: ='UD1 CALC_Cstock'!F15 -> 13269.61152 | AB11: ='UD1 CALC_Cstock'!G15 -> 923.1552 | AC11: ='UD1 CALC_Cstock'!H15 -> 576.972 | AD11: ='UD1 CALC_Cstock'!I15 -> 4662.9828 | AE11: ='UD1 CALC_Cstock'!J15 -> 3728.322 | AF11: ='UD1 CALC_Cstock'!K15 -> 729.0828 | AG11: ='UD1 CALC_Cstock'!L15 -> 2124.87 | AH11: ='UD1 CALC_Cstock'!M15 -> 3735.9078 | AI11: ='UD1 CALC_Cstock'!N15 -> 9565.7784 | AJ11: ='UD1 CALC_Cstock'!O15 -> 16945.25874 | AK11: ='UD1 CALC_Cstock'!P15 -> 239.5308 | AL11: ='UD1 CALC_Cstock'!Q15 -> 30162.91599 | AM11: ='UD1 CALC_Cstock'!R15 -> 644.84 | AN11: ='UD1 CALC_Cstock'!S15 -> 0 | AO11: ='UD1 CALC_Cstock'!T15 -> 0 | AP11: ='UD1 CALC_Cstock'!U15 -> 0 | AQ11: 113436.1144 | AR11: ='UD1 CALC_Cstock'!X15 -> 2531.757225 | AS11: ='UD1 CALC_Cstock'!Z15 -> 2810.507081 | AT11: ='UD1 CALC_Cstock'!AB15 -> 204.962112 | AU11: 5547.226418 | AV11: 107888.888 | AW11: -395.5925895 | AX11: ='6. UD1 Assumptions'!C40 -> 384 | AY11: ='6. UD1 Assumptions'!D40 -> 112 | AZ11: ='6. UD1 Assumptions'!E40 -> 2413 | BA11: ='6. UD1 Assumptions'!F40 -> 710 | BB11: ='6. UD1 Assumptions'!G40 -> 12254 | BC11: ='6. UD1 Assumptions'!I40 -> 176 | BD11: ='6. UD1 Assumptions'!J40 -> 110 | BE11: ='6. UD1 Assumptions'!K40 -> 889 | BF11: ='6. UD1 Assumptions'!L40 -> 5085 | BG11: ='6. UD1 Assumptions'!M40 -> 139 | BH11: ='6. UD1 Assumptions'!O40 -> 550 | BI11: ='6. UD1 Assumptions'!P40 -> 967 | BJ11: ='6. UD1 Assumptions'!Q40 -> 2476 | BK11: ='6. UD1 Assumptions'!R40 -> 5721 | BL11: ='6. UD1 Assumptions'!S40 -> 62 | BM11: ='6. UD1 Assumptions'!T40 -> 15111 | BN11: ='6. UD1 Assumptions'!U40 -> 98 | BO11: ='6. UD1 Assumptions'!W40 -> 0 | BP11: ='6. UD1 Assumptions'!X40 -> 0 | BQ11: ='6. UD1 Assumptions'!Y40 -> 0 | BR11: 47257 | BS11: ='UD1 CALC_Cstock'!B48 -> 2310.144 | BT11: ='UD1 CALC_Cstock'!C48 -> 673.792 | BU11: ='UD1 CALC_Cstock'!D48 -> 18871.5904 | BV11: ='UD1 CALC_Cstock'!E48 -> 4271.36 | BW11: ='UD1 CALC_Cstock'!F48 -> 13269.61152 | BX11: ='UD1 CALC_Cstock'!G48 -> 923.1552 | BY11: ='UD1 CALC_Cstock'!H48 -> 576.972 | BZ11: ='UD1 CALC_Cstock'!I48 -> 4662.9828 | CA11: ='UD1 CALC_Cstock'!J48 -> 3728.322 | CB11: ='UD1 CALC_Cstock'!K48 -> 729.0828 | CC11: ='UD1 CALC_Cstock'!L48 -> 2124.87 | CD11: ='UD1 CALC_Cstock'!M48 -> 3735.9078 | CE11: ='UD1 CALC_Cstock'!N48 -> 9565.7784 | CF11: ='UD1 CALC_Cstock'!O48 -> 16945.25874 | CG11: ='UD1 CALC_Cstock'!P48 -> 239.5308 | CH11: ='UD1 CALC_Cstock'!Q48 -> 30162.91599 | CI11: ='UD1 CALC_Cstock'!R48 -> 644.84 | CJ11: ='UD1 CALC_Cstock'!S48 -> 0 | CK11: ='UD1 CALC_Cstock'!T48 -> 0 | CL11: ='UD1 CALC_Cstock'!U48 -> 0 | CM11: 113436.1144 | CN11: ='UD1 CALC_Cstock'!X48 -> 2531.757225 | CO11: ='UD1 CALC_Cstock'!Z48 -> 2810.507081 | CP11: ='UD1 CALC_Cstock'!AB48 -> 204.962112 | CQ11: 5547.226418 | CR11: 107888.888 | CS11: -395.5925895 | CT11: ='6. UD1 Assumptions'!C70 -> 384 | CU11: ='6. UD1 Assumptions'!D70 -> 112 | CV11: ='6. UD1 Assumptions'!E70 -> 2413 | CW11: ='6. UD1 Assumptions'!F70 -> 710 | CX11: ='6. UD1 Assumptions'!G70 -> 12254 | CY11: ='6. UD1 Assumptions'!I70 -> 176 | CZ11: ='6. UD1 Assumptions'!J70 -> 110 | DA11: ='6. UD1 Assumptions'!K70 -> 889 | DB11: ='6. UD1 Assumptions'!L70 -> 5085 | DC11: ='6. UD1 Assumptions'!M70 -> 139 | DD11: ='6. UD1 Assumptions'!O70 -> 550 | DE11: ='6. UD1 Assumptions'!P70 -> 967 | DF11: ='6. UD1 Assumptions'!Q70 -> 2476 | DG11: ='6. UD1 Assumptions'!R70 -> 5721 | DH11: ='6. UD1 Assumptions'!S70 -> 62 | DI11: ='6. UD1 Assumptions'!T70 -> 15111 | DJ11: ='6. UD1 Assumptions'!U70 -> 98 | DK11: ='6. UD1 Assumptions'!W70 -> 0 | DL11: ='6. UD1 Assumptions'!X70 -> 0 | DM11: ='6. UD1 Assumptions'!Y70 -> 0 | DN11: 47257 | DO11: ='UD1 CALC_Cstock'!B82 -> 2310.144 | DP11: ='UD1 CALC_Cstock'!C82 -> 673.792 | DQ11: ='UD1 CALC_Cstock'!D82 -> 18871.5904 | DR11: ='UD1 CALC_Cstock'!E82 -> 4271.36 | DS11: ='UD1 CALC_Cstock'!F82 -> 13269.61152 | DT11: ='UD1 CALC_Cstock'!G82 -> 923.1552 | DU11: ='UD1 CALC_Cstock'!H82 -> 576.972 | DV11: ='UD1 CALC_Cstock'!I82 -> 4662.9828 | DW11: ='UD1 CALC_Cstock'!J82 -> 3728.322 | DX11: ='UD1 CALC_Cstock'!K82 -> 729.0828 | DY11: ='UD1 CALC_Cstock'!L82 -> 2124.87 | DZ11: ='UD1 CALC_Cstock'!M82 -> 3735.9078 | EA11: ='UD1 CALC_Cstock'!N82 -> 9565.7784 | EB11: ='UD1 CALC_Cstock'!O82 -> 16945.25874 | EC11: ='UD1 CALC_Cstock'!P82 -> 239.5308 | ED11: ='UD1 CALC_Cstock'!Q82 -> 30162.91599 | EE11: ='UD1 CALC_Cstock'!R82 -> 644.84 | EF11: ='UD1 CALC_Cstock'!S82 -> 0 | EG11: ='UD1 CALC_Cstock'!T82 -> 0 | EH11: ='UD1 CALC_Cstock'!U82 -> 0 | EI11: 113436.1144 | EJ11: ='UD1 CALC_Cstock'!X82 -> 2531.757225 | EK11: ='UD1 CALC_Cstock'!Z82 -> 2810.507081 | EL11: ='UD1 CALC_Cstock'!AB82 -> 204.962112 | EM11: 5547.226418 | EN11: 107888.888 | EO11: -395.5925895
A12: 2010 | B12: ='6. UD1 Assumptions'!C11 -> 382 | C12: ='6. UD1 Assumptions'!D11 -> 112 | D12: ='6. UD1 Assumptions'!E11 -> 2433 | E12: ='6. UD1 Assumptions'!F11 -> 710 | F12: ='6. UD1 Assumptions'!G11 -> 12242 | G12: ='6. UD1 Assumptions'!I11 -> 174 | H12: ='6. UD1 Assumptions'!J11 -> 110 | I12: ='6. UD1 Assumptions'!K11 -> 889 | J12: ='6. UD1 Assumptions'!L11 -> 5079 | K12: ='6. UD1 Assumptions'!M11 -> 139 | L12: ='6. UD1 Assumptions'!O11 -> 565 | M12: ='6. UD1 Assumptions'!P11 -> 965 | N12: ='6. UD1 Assumptions'!Q11 -> 2382 | O12: ='6. UD1 Assumptions'!R11 -> 5817 | P12: ='6. UD1 Assumptions'!S11 -> 60 | Q12: ='6. UD1 Assumptions'!T11 -> 15100 | R12: ='6. UD1 Assumptions'!U11 -> 112 | S12: ='6. UD1 Assumptions'!W11 -> 0 | T12: ='6. UD1 Assumptions'!X11 -> 0 | U12: ='6. UD1 Assumptions'!Y11 -> 0 | V12: 47271 | W12: ='UD1 CALC_Cstock'!B16 -> 2298.112 | X12: ='UD1 CALC_Cstock'!C16 -> 673.792 | Y12: ='UD1 CALC_Cstock'!D16 -> 19028.0064 | Z12: ='UD1 CALC_Cstock'!E16 -> 4271.36 | AA12: ='UD1 CALC_Cstock'!F16 -> 13256.61696 | AB12: ='UD1 CALC_Cstock'!G16 -> 912.6648 | AC12: ='UD1 CALC_Cstock'!H16 -> 576.972 | AD12: ='UD1 CALC_Cstock'!I16 -> 4662.9828 | AE12: ='UD1 CALC_Cstock'!J16 -> 3723.9228 | AF12: ='UD1 CALC_Cstock'!K16 -> 729.0828 | AG12: ='UD1 CALC_Cstock'!L16 -> 2182.821 | AH12: ='UD1 CALC_Cstock'!M16 -> 3728.181 | AI12: ='UD1 CALC_Cstock'!N16 -> 9202.6188 | AJ12: ='UD1 CALC_Cstock'!O16 -> 17229.60498 | AK12: ='UD1 CALC_Cstock'!P16 -> 231.804 | AL12: ='UD1 CALC_Cstock'!Q16 -> 30140.959 | AM12: ='UD1 CALC_Cstock'!R16 -> 736.96 | AN12: ='UD1 CALC_Cstock'!S16 -> 0 | AO12: ='UD1 CALC_Cstock'!T16 -> 0 | AP12: ='UD1 CALC_Cstock'!U16 -> 0 | AQ12: 113586.4613 | AR12: ='UD1 CALC_Cstock'!X16 -> 2504.723248 | AS12: ='UD1 CALC_Cstock'!Z16 -> 4808.856089 | AT12: ='UD1 CALC_Cstock'!AB16 -> 326.981632 | AU12: 7640.560969 | AV12: 105945.9004 | AW12: -388.4683014 | AX12: ='6. UD1 Assumptions'!C41 -> 382 | AY12: ='6. UD1 Assumptions'!D41 -> 112 | AZ12: ='6. UD1 Assumptions'!E41 -> 2433 | BA12: ='6. UD1 Assumptions'!F41 -> 710 | BB12: ='6. UD1 Assumptions'!G41 -> 12242 | BC12: ='6. UD1 Assumptions'!I41 -> 174 | BD12: ='6. UD1 Assumptions'!J41 -> 110 | BE12: ='6. UD1 Assumptions'!K41 -> 889 | BF12: ='6. UD1 Assumptions'!L41 -> 5079 | BG12: ='6. UD1 Assumptions'!M41 -> 139 | BH12: ='6. UD1 Assumptions'!O41 -> 565 | BI12: ='6. UD1 Assumptions'!P41 -> 965 | BJ12: ='6. UD1 Assumptions'!Q41 -> 2382 | BK12: ='6. UD1 Assumptions'!R41 -> 5817 | BL12: ='6. UD1 Assumptions'!S41 -> 60 | BM12: ='6. UD1 Assumptions'!T41 -> 15100 | BN12: ='6. UD1 Assumptions'!U41 -> 112 | BO12: ='6. UD1 Assumptions'!W41 -> 0 | BP12: ='6. UD1 Assumptions'!X41 -> 0 | BQ12: ='6. UD1 Assumptions'!Y41 -> 0 | BR12: 47271 | BS12: ='UD1 CALC_Cstock'!B49 -> 2298.112 | BT12: ='UD1 CALC_Cstock'!C49 -> 673.792 | BU12: ='UD1 CALC_Cstock'!D49 -> 19028.0064 | BV12: ='UD1 CALC_Cstock'!E49 -> 4271.36 | BW12: ='UD1 CALC_Cstock'!F49 -> 13256.61696 | BX12: ='UD1 CALC_Cstock'!G49 -> 912.6648 | BY12: ='UD1 CALC_Cstock'!H49 -> 576.972 | BZ12: ='UD1 CALC_Cstock'!I49 -> 4662.9828 | CA12: ='UD1 CALC_Cstock'!J49 -> 3723.9228 | CB12: ='UD1 CALC_Cstock'!K49 -> 729.0828 | CC12: ='UD1 CALC_Cstock'!L49 -> 2182.821 | CD12: ='UD1 CALC_Cstock'!M49 -> 3728.181 | CE12: ='UD1 CALC_Cstock'!N49 -> 9202.6188 | CF12: ='UD1 CALC_Cstock'!O49 -> 17229.60498 | CG12: ='UD1 CALC_Cstock'!P49 -> 231.804 | CH12: ='UD1 CALC_Cstock'!Q49 -> 30140.959 | CI12: ='UD1 CALC_Cstock'!R49 -> 736.96 | CJ12: ='UD1 CALC_Cstock'!S49 -> 0 | CK12: ='UD1 CALC_Cstock'!T49 -> 0 | CL12: ='UD1 CALC_Cstock'!U49 -> 0 | CM12: 113586.4613 | CN12: ='UD1 CALC_Cstock'!X49 -> 2504.723248 | CO12: ='UD1 CALC_Cstock'!Z49 -> 4808.856089 | CP12: ='UD1 CALC_Cstock'!AB49 -> 326.981632 | CQ12: 7640.560969 | CR12: 105945.9004 | CS12: -388.4683014 | CT12: ='6. UD1 Assumptions'!C71 -> 382 | CU12: ='6. UD1 Assumptions'!D71 -> 112 | CV12: ='6. UD1 Assumptions'!E71 -> 2433 | CW12: ='6. UD1 Assumptions'!F71 -> 710 | CX12: ='6. UD1 Assumptions'!G71 -> 12242 | CY12: ='6. UD1 Assumptions'!I71 -> 174 | CZ12: ='6. UD1 Assumptions'!J71 -> 110 | DA12: ='6. UD1 Assumptions'!K71 -> 889 | DB12: ='6. UD1 Assumptions'!L71 -> 5079 | DC12: ='6. UD1 Assumptions'!M71 -> 139 | DD12: ='6. UD1 Assumptions'!O71 -> 565 | DE12: ='6. UD1 Assumptions'!P71 -> 965 | DF12: ='6. UD1 Assumptions'!Q71 -> 2382 | DG12: ='6. UD1 Assumptions'!R71 -> 5817 | DH12: ='6. UD1 Assumptions'!S71 -> 60 | DI12: ='6. UD1 Assumptions'!T71 -> 15100 | DJ12: ='6. UD1 Assumptions'!U71 -> 112 | DK12: ='6. UD1 Assumptions'!W71 -> 0 | DL12: ='6. UD1 Assumptions'!X71 -> 0 | DM12: ='6. UD1 Assumptions'!Y71 -> 0 | DN12: 47271 | DO12: ='UD1 CALC_Cstock'!B83 -> 2298.112 | DP12: ='UD1 CALC_Cstock'!C83 -> 673.792 | DQ12: ='UD1 CALC_Cstock'!D83 -> 19028.0064 | DR12: ='UD1 CALC_Cstock'!E83 -> 4271.36 | DS12: ='UD1 CALC_Cstock'!F83 -> 13256.61696 | DT12: ='UD1 CALC_Cstock'!G83 -> 912.6648 | DU12: ='UD1 CALC_Cstock'!H83 -> 576.972 | DV12: ='UD1 CALC_Cstock'!I83 -> 4662.9828 | DW12: ='UD1 CALC_Cstock'!J83 -> 3723.9228 | DX12: ='UD1 CALC_Cstock'!K83 -> 729.0828 | DY12: ='UD1 CALC_Cstock'!L83 -> 2182.821 | DZ12: ='UD1 CALC_Cstock'!M83 -> 3728.181 | EA12: ='UD1 CALC_Cstock'!N83 -> 9202.6188 | EB12: ='UD1 CALC_Cstock'!O83 -> 17229.60498 | EC12: ='UD1 CALC_Cstock'!P83 -> 231.804 | ED12: ='UD1 CALC_Cstock'!Q83 -> 30140.959 | EE12: ='UD1 CALC_Cstock'!R83 -> 736.96 | EF12: ='UD1 CALC_Cstock'!S83 -> 0 | EG12: ='UD1 CALC_Cstock'!T83 -> 0 | EH12: ='UD1 CALC_Cstock'!U83 -> 0 | EI12: 113586.4613 | EJ12: ='UD1 CALC_Cstock'!X83 -> 2504.723248 | EK12: ='UD1 CALC_Cstock'!Z83 -> 4808.856089 | EL12: ='UD1 CALC_Cstock'!AB83 -> 326.981632 | EM12: 7640.560969 | EN12: 105945.9004 | EO12: -388.4683014
A13: 2011 | B13: ='6. UD1 Assumptions'!C12 -> 382 | C13: ='6. UD1 Assumptions'!D12 -> 112 | D13: ='6. UD1 Assumptions'!E12 -> 2437 | E13: ='6. UD1 Assumptions'!F12 -> 710 | F13: ='6. UD1 Assumptions'!G12 -> 12242 | G13: ='6. UD1 Assumptions'!I12 -> 174 | H13: ='6. UD1 Assumptions'!J12 -> 110 | I13: ='6. UD1 Assumptions'!K12 -> 889 | J13: ='6. UD1 Assumptions'!L12 -> 5079 | K13: ='6. UD1 Assumptions'!M12 -> 139 | L13: ='6. UD1 Assumptions'!O12 -> 565 | M13: ='6. UD1 Assumptions'!P12 -> 965 | N13: ='6. UD1 Assumptions'!Q12 -> 2268 | O13: ='6. UD1 Assumptions'!R12 -> 5908 | P13: ='6. UD1 Assumptions'!S12 -> 60 | Q13: ='6. UD1 Assumptions'!T12 -> 15100 | R13: ='6. UD1 Assumptions'!U12 -> 127 | S13: ='6. UD1 Assumptions'!W12 -> 0 | T13: ='6. UD1 Assumptions'!X12 -> 0 | U13: ='6. UD1 Assumptions'!Y12 -> 0 | V13: 47267 | W13: ='UD1 CALC_Cstock'!B17 -> 2298.112 | X13: ='UD1 CALC_Cstock'!C17 -> 673.792 | Y13: ='UD1 CALC_Cstock'!D17 -> 19059.2896 | Z13: ='UD1 CALC_Cstock'!E17 -> 4271.36 | AA13: ='UD1 CALC_Cstock'!F17 -> 13256.61696 | AB13: ='UD1 CALC_Cstock'!G17 -> 912.6648 | AC13: ='UD1 CALC_Cstock'!H17 -> 576.972 | AD13: ='UD1 CALC_Cstock'!I17 -> 4662.9828 | AE13: ='UD1 CALC_Cstock'!J17 -> 3723.9228 | AF13: ='UD1 CALC_Cstock'!K17 -> 729.0828 | AG13: ='UD1 CALC_Cstock'!L17 -> 2182.821 | AH13: ='UD1 CALC_Cstock'!M17 -> 3728.181 | AI13: ='UD1 CALC_Cstock'!N17 -> 8762.1912 | AJ13: ='UD1 CALC_Cstock'!O17 -> 17499.14152 | AK13: ='UD1 CALC_Cstock'!P17 -> 231.804 | AL13: ='UD1 CALC_Cstock'!Q17 -> 30140.959 | AM13: ='UD1 CALC_Cstock'!R17 -> 835.66 | AN13: ='UD1 CALC_Cstock'!S17 -> 0 | AO13: ='UD1 CALC_Cstock'!T17 -> 0 | AP13: ='UD1 CALC_Cstock'!U17 -> 0 | AQ13: 113545.5535 | AR13: ='UD1 CALC_Cstock'!X17 -> 2261.298216 | AS13: ='UD1 CALC_Cstock'!Z17 -> 3312.327068 | AT13: ='UD1 CALC_Cstock'!AB17 -> 313.0822656 | AU13: 5886.70755 | AV13: 107658.8459 | AW13: -394.7491017 | AX13: ='6. UD1 Assumptions'!C42 -> 382 | AY13: ='6. UD1 Assumptions'!D42 -> 112 | AZ13: ='6. UD1 Assumptions'!E42 -> 2437 | BA13: ='6. UD1 Assumptions'!F42 -> 710 | BB13: ='6. UD1 Assumptions'!G42 -> 12242 | BC13: ='6. UD1 Assumptions'!I42 -> 174 | BD13: ='6. UD1 Assumptions'!J42 -> 110 | BE13: ='6. UD1 Assumptions'!K42 -> 889 | BF13: ='6. UD1 Assumptions'!L42 -> 5079 | BG13: ='6. UD1 Assumptions'!M42 -> 139 | BH13: ='6. UD1 Assumptions'!O42 -> 565 | BI13: ='6. UD1 Assumptions'!P42 -> 965 | BJ13: ='6. UD1 Assumptions'!Q42 -> 2268 | BK13: ='6. UD1 Assumptions'!R42 -> 5908 | BL13: ='6. UD1 Assumptions'!S42 -> 60 | BM13: ='6. UD1 Assumptions'!T42 -> 15100 | BN13: ='6. UD1 Assumptions'!U42 -> 127 | BO13: ='6. UD1 Assumptions'!W42 -> 0 | BP13: ='6. UD1 Assumptions'!X42 -> 0 | BQ13: ='6. UD1 Assumptions'!Y42 -> 0 | BR13: 47267 | BS13: ='UD1 CALC_Cstock'!B50 -> 2298.112 | BT13: ='UD1 CALC_Cstock'!C50 -> 673.792 | BU13: ='UD1 CALC_Cstock'!D50 -> 19059.2896 | BV13: ='UD1 CALC_Cstock'!E50 -> 4271.36 | BW13: ='UD1 CALC_Cstock'!F50 -> 13256.61696 | BX13: ='UD1 CALC_Cstock'!G50 -> 912.6648 | BY13: ='UD1 CALC_Cstock'!H50 -> 576.972 | BZ13: ='UD1 CALC_Cstock'!I50 -> 4662.9828 | CA13: ='UD1 CALC_Cstock'!J50 -> 3723.9228 | CB13: ='UD1 CALC_Cstock'!K50 -> 729.0828 | CC13: ='UD1 CALC_Cstock'!L50 -> 2182.821 | CD13: ='UD1 CALC_Cstock'!M50 -> 3728.181 | CE13: ='UD1 CALC_Cstock'!N50 -> 8762.1912 | CF13: ='UD1 CALC_Cstock'!O50 -> 17499.14152 | CG13: ='UD1 CALC_Cstock'!P50 -> 231.804 | CH13: ='UD1 CALC_Cstock'!Q50 -> 30140.959 | CI13: ='UD1 CALC_Cstock'!R50 -> 835.66 | CJ13: ='UD1 CALC_Cstock'!S50 -> 0 | CK13: ='UD1 CALC_Cstock'!T50 -> 0 | CL13: ='UD1 CALC_Cstock'!U50 -> 0 | CM13: 113545.5535 | CN13: ='UD1 CALC_Cstock'!X50 -> 2261.298216 | CO13: ='UD1 CALC_Cstock'!Z50 -> 3312.327068 | CP13: ='UD1 CALC_Cstock'!AB50 -> 313.0822656 | CQ13: 5886.70755 | CR13: 107658.8459 | CS13: -394.7491017 | CT13: ='6. UD1 Assumptions'!C72 -> 382 | CU13: ='6. UD1 Assumptions'!D72 -> 112 | CV13: ='6. UD1 Assumptions'!E72 -> 2437 | CW13: ='6. UD1 Assumptions'!F72 -> 710 | CX13: ='6. UD1 Assumptions'!G72 -> 12242 | CY13: ='6. UD1 Assumptions'!I72 -> 174 | CZ13: ='6. UD1 Assumptions'!J72 -> 110 | DA13: ='6. UD1 Assumptions'!K72 -> 889 | DB13: ='6. UD1 Assumptions'!L72 -> 5079 | DC13: ='6. UD1 Assumptions'!M72 -> 139 | DD13: ='6. UD1 Assumptions'!O72 -> 565 | DE13: ='6. UD1 Assumptions'!P72 -> 965 | DF13: ='6. UD1 Assumptions'!Q72 -> 2268 | DG13: ='6. UD1 Assumptions'!R72 -> 5908 | DH13: ='6. UD1 Assumptions'!S72 -> 60 | DI13: ='6. UD1 Assumptions'!T72 -> 15100 | DJ13: ='6. UD1 Assumptions'!U72 -> 127 | DK13: ='6. UD1 Assumptions'!W72 -> 0 | DL13: ='6. UD1 Assumptions'!X72 -> 0 | DM13: ='6. UD1 Assumptions'!Y72 -> 0 | DN13: 47267 | DO13: ='UD1 CALC_Cstock'!B84 -> 2298.112 | DP13: ='UD1 CALC_Cstock'!C84 -> 673.792 | DQ13: ='UD1 CALC_Cstock'!D84 -> 19059.2896 | DR13: ='UD1 CALC_Cstock'!E84 -> 4271.36 | DS13: ='UD1 CALC_Cstock'!F84 -> 13256.61696 | DT13: ='UD1 CALC_Cstock'!G84 -> 912.6648 | DU13: ='UD1 CALC_Cstock'!H84 -> 576.972 | DV13: ='UD1 CALC_Cstock'!I84 -> 4662.9828 | DW13: ='UD1 CALC_Cstock'!J84 -> 3723.9228 | DX13: ='UD1 CALC_Cstock'!K84 -> 729.0828 | DY13: ='UD1 CALC_Cstock'!L84 -> 2182.821 | DZ13: ='UD1 CALC_Cstock'!M84 -> 3728.181 | EA13: ='UD1 CALC_Cstock'!N84 -> 8762.1912 | EB13: ='UD1 CALC_Cstock'!O84 -> 17499.14152 | EC13: ='UD1 CALC_Cstock'!P84 -> 231.804 | ED13: ='UD1 CALC_Cstock'!Q84 -> 30140.959 | EE13: ='UD1 CALC_Cstock'!R84 -> 835.66 | EF13: ='UD1 CALC_Cstock'!S84 -> 0 | EG13: ='UD1 CALC_Cstock'!T84 -> 0 | EH13: ='UD1 CALC_Cstock'!U84 -> 0 | EI13: 113545.5535 | EJ13: ='UD1 CALC_Cstock'!X84 -> 2261.298216 | EK13: ='UD1 CALC_Cstock'!Z84 -> 3312.327068 | EL13: ='UD1 CALC_Cstock'!AB84 -> 313.0822656 | EM13: 5886.70755 | EN13: 107658.8459 | EO13: -394.7491017
